Workbook

Sheet REPORT
A1: Surveyor’s Report
A2: Project: | B2: FRA-33-24.76 | D2: PID: | E2: 119387
A4: Scope: | B4: The purpose and need include maximizing the operational characteristics of through traffic on US-33, maintaining safe travel withing the corridor, accommodating local and regional planning goals, and integrating access between US-33 and the local roadway system. This project will prepare a feasibility study, evaluating adding capacity to US-33, an Interchange modification study for the I-270/US- 33 interchange and an interchange justification study at the FRA-33/ Bixby, as well as prepare Stage 1.
A5: Type:
A7: Gray boxes denote INPUT | E7: Tan boxes denote OUTPUT (check)
A9: Datum and Coordinate System | G9: Type:
A10: State Plane Coordinate System (Ohio): | C10: South | G10: (Select from List)
A11: Ohio County Coordinate System | C11: Franklin
A12: Horizontal Reference Datum: | C12: NAD83 (2011) | G12: Bridge Monitoring
A13: Ellipsoid: | C13: GRS80 | G13: Bridge Rehab
A14: Scale Factor | C14: =IF(REPORT!C15="Transverse_Mercator",VLOOKUP(REPORT!C11,OCCS_TM!M2:W38,7,FALSE),VLOOKUP(REPORT!C11,OCCS_Conical!O2:Y52,7,FALSE)) -> 1.000037 | G14: Bridge Replacement
A15: Map Projection | C15: Transverse_Mercator | G15: Culvert Rehab
A16: Vertical Reference Datum: | C16: NAVD88 | G16: Highway Widening
A17: Geoid Model: | C17: Geoid 18 | G17: Slope Repair
A18: Units: | C18: US Survey Feet (sft) | G18: Stream Maintenance
A19: Original Survey Subdivision: | C19: Congress Lands East of Scioto River
A20: Township: | C20: 11 North, Range 21 West
A21: Quarter Section/Section/Lot: | C21: Sections 4, 5 ,8 & 9
A22: Files | E22: Description
A23: W:\Srvln\GS\Dayton\V2\GS\Projects\10017857_03_FRA_33_2476_Survey\SV\Field_Data | E23: Cleaned up survey data
A24: W:\Srvln\GS\Dayton\V2\GS\Projects\10017857_03_FRA_33_2476_Survey\SV\TBC_Projects\Final | E24: TBC project(s)
A25: W:\Srvln\GS\Dayton\V2\GS\Projects\10017857_03_FRA_33_2476_Survey\SV\Field_Data\Photos\Resized | E25: Project photos
A26: W:\Srvln\GS\Dayton\V2\GS\Projects\10017857_03_FRA_33_2476_Survey\SV\Control | E26: Control spreadsheet
A27: W:\Srvln\GS\Dayton\V2\GS\Projects\10017857_03_FRA_33_2476_Survey\SV\811 | E27: 811 records
A32: References
A33: Alignment based on the following plan: | B33: W:\Srvln\DE\Dayton\Clients\LJB\10017857_FRA-33-24-76\119387\400-Engineering\Roadway\Basemaps\119387_BK001.dgn
A34: Other references used: | B34: W:\Srvln\DE\Dayton\Clients\LJB\10017857_FRA-33-24-76\119387\300-Survey\Basemaps\119387_FB001.dgn
A37: Equipment Maintenance
A38: Calibration certificates for survey equipment is available upon request.
A39: Methodology and Equipment Used
A40: Woolpert established three (3) Type A and two (2) Type B monuments as per ODOT survey control specs situated at locations conducive to the eventual design work. Control stations (101, 102, &103), are Type A poured in place concrete monuments and (104 & 105) are 30" by 5/8" rebars with Aluminum Cap stamped "ODOT SURVEY MARKER-WOOLPERT". Elevations for these control stations were derived via leveling from CP13 provided by LJB per the project scope.
A41: GPS Antenna Used
A42: Trimble R12i
A43: Trimble R10
A44: Trimble TSC7 Data collector
A45: DiNi12 Digital Level
A46: Trimble S7/SX10 Total Station/Scan series instruments
A48: Report Submitted/Prepared by: | C48: Mark Humphrey
A49: Date Submitted: | C49: 2024-06-25
A50: Surveying Performed by: | C50: Adam Sine
C51: David MacRitchie
C52: Ben Meyer
C53: Bill Welbaum
C54: Alex Uematsu
C55: Wes McCallister
C56: Steve Roberts
C57: Patrick Mailliard
A59: Checked By: | C59: Mike Wilson
C60: Jeff Waggamon
A62: DGN Overview Map
A63: Insert close-up screen shot of combined DGN here

Sheet CSF
A1: Combined Scale Factor Calculations | I1: Zone | J1: Index Value | K1: Project Latitude | M1: Radius of the Earth (meters) | N1: Tabular Difference | O1: Scale Factor (k) | P1: Differences | Q1: Coordinate System List
A2: Project: | B2: =REPORT!B2 -> FRA-33-24.76 | D2: PID: | E2: =REPORT!E2 -> 119387 | I2: NZ | J2: 3940 | K2: 39 | L2: 40 | M2: 7485451.598 | N2: 30.84836 | O2: 1.00023491
I3: NZ | J3: 3941 | K3: 39 | L3: 41 | M3: 7483600.697 | N3: 30.84823 | O3: 1.00022793 | P3: =O2-O3 -> 6.98e-06 | Q3: State Plane Coordinate System: Ohio North (3401)
A4: Horizontal Datum: NAD83 | C4: State Plane Coordinate System: Ohio South (3402) | I4: NZ | J4: 3942 | K4: 39 | L4: 42 | M4: 7481749.803 | N4: 30.84811 | O4: 1.00022104 | P4: 6.89e-06 | Q4: State Plane Coordinate System: Ohio South (3402)
I5: NZ | J5: 3943 | K5: 39 | L5: 43 | M5: 7479898.916 | N5: 30.84799 | O5: 1.00021424 | P5: 6.8e-06
A6: Gray boxes denote INPUT | D6: Tan boxes denote OUTPUT (check) | I6: NZ | J6: 3944 | K6: 39 | L6: 44 | M6: 7478048.037 | N6: 30.84787 | O6: 1.00020751 | P6: 6.73e-06
I7: NZ | J7: 3945 | K7: 39 | L7: 45 | M7: 7476197.165 | N7: 30.84776 | O7: 1.00020087 | P7: 6.64e-06
C8: Input Deg. | D8: Min. | E8: Sec. | F8: Zone Parameters: | I8: NZ | J8: 3946 | K8: 39 | L8: 46 | M8: 7474346.299 | N8: 30.84765 | O8: 1.00019431 | P8: 6.56e-06
A9: Project Mean Latitude (DMS): | F9: =IF(C4="State Plane Coordinate System: Ohio North (3401)", "k = 1 at lats. 40⁰ 26' and 41⁰ 42'", "k = 1 at lats. 38⁰ 44' and 40⁰ 20'") -> k = 1 at lats. 38⁰ 44' and 40⁰ 20' | I9: NZ | J9: 3947 | K9: 39 | L9: 47 | M9: 7472495.44 | N9: 30.84754 | O9: 1.00018783 | P9: 6.48e-06
A10: =ISBLANK(D9) -> TRUE | B10: =ISBLANK(E9) -> TRUE | D10: =IF(OR(A10,B10)=TRUE,"Minute and second fields must be populated","") -> Minute and second fields must be populated | I10: NZ | J10: 3948 | K10: 39 | L10: 48 | M10: 7470644.588 | N10: 30.84743 | O10: 1.00018144 | P10: 6.39e-06
C11: Input Ellipsoid Height: | F11: =IF(C4="State Plane Coordinate System: Ohio North (3401)", "Origin at 82⁰ 30' long., 39⁰ 40' lat.", "Origin at 82⁰ 30' long., 38⁰ 00' lat.") -> Origin at 82⁰ 30' long., 38⁰ 00' lat. | I11: NZ | J11: 3949 | K11: 39 | L11: 49 | M11: 7468793.742 | N11: 30.84732 | O11: 1.00017513 | P11: 6.31e-06
A12: Project Mean Height (ft): | F12: Origin coords: x=600,000m, y=0m | I12: NZ | J12: 3950 | K12: 39 | L12: 50 | M12: 7466942.903 | N12: 30.84722 | O12: 1.0001689 | P12: 6.23e-06
I13: NZ | J13: 3951 | K13: 39 | L13: 51 | M13: 7465092.069 | N13: 30.84712 | O13: 1.00016276 | P13: 6.14e-06
C14: Radius of the Earth * (Radius of the Earth + Proj. Mean Elev.) = | I14: NZ | J14: 3952 | K14: 39 | L14: 52 | M14: 7463241.242 | N14: 30.84703 | O14: 1.0001567 | P14: 6.06e-06
A15: Sea Level Factor: | C15: =TRUNC(20906000/(20906000+C12),9) -> 1 | I15: NZ | J15: 3953 | K15: 39 | L15: 53 | M15: 7461390.42 | N15: 30.84693 | O15: 1.00015072 | P15: 5.98e-06
I16: NZ | J16: 3954 | K16: 39 | L16: 54 | M16: 7459539.604 | N16: 30.84684 | O16: 1.00014482 | P16: 5.9e-06
C17: Tabular data proportioned according to the number of seconds: | I17: NZ | J17: 3955 | K17: 39 | L17: 55 | M17: 7457688.794 | N17: 30.84675 | O17: 1.00013901 | P17: 5.81e-06
C18: =IF($C$4="State Plane Coordinate System: Ohio North (3401)",VLOOKUP(D18,J1:O150,6),VLOOKUP(D18,J151:O310,6)) ->  | D18: =VALUE(IF(D9>9,CONCATENATE(C9,D9),CONCATENATE(C9*10,D9))) -> 0 | E18: =IF(C18>C19,1-E9/60,E9/60) ->  | F18: ="Scale factor at "&LEFT($D18,2)&"⁰ "&RIGHT($D18,2)&"' latitude" -> Scale factor at 0⁰ 0' latitude | I18: NZ | J18: 3956 | K18: 39 | L18: 56 | M18: 7455837.989 | N18: 30.84667 | O18: 1.00013328 | P18: 5.73e-06
C19: =IF($C$4="State Plane Coordinate System: Ohio North (3401)",VLOOKUP(D19,J2:O151,6),VLOOKUP(D19,J152:O311,6)) ->  | D19: =IF(D9=59,(VALUE(IF(D9>9,CONCATENATE(C9,D9),CONCATENATE(C9*10,D9)))+41),(VALUE(IF(D9>9,CONCATENATE(C9,D9),CONCATENATE(C9*10,D9)))+1)) -> 1 | E19: =IF(C18<C19,1-E9/60,E9/60) ->  | F19: ="Scale factor at "&LEFT($D19,2)&"⁰ "&RIGHT($D19,2)&"' latitude" -> Scale factor at 1⁰ 1' latitude | I19: NZ | J19: 3957 | K19: 39 | L19: 57 | M19: 7453987.189 | N19: 30.84658 | O19: 1.00012763 | P19: 5.65e-06
A20: Scale Factor (k): | C20: =C18*E18+C19*E19 ->  | I20: NZ | J20: 3958 | K20: 39 | L20: 58 | M20: 7452136.394 | N20: 30.8465 | O20: 1.00012206 | P20: 5.57e-06
I21: NZ | J21: 3959 | K21: 39 | L21: 59 | M21: 7450285.604 | N21: 30.84642 | O21: 1.00011658 | P21: 5.48e-06
C22: =LEFT(A15,16)&" * "&LEFT(A20,12)&" =" -> Sea Level Factor * Scale Factor = | I22: NZ | J22: 4000 | K22: 40 | L22: 0 | M22: 7448434.819 | N22: 30.84634 | O22: 1.00011118 | P22: 5.4e-06
A23: Combined Scale Factor (CSF): | C23: =C15*C20 ->  | I23: NZ | J23: 4001 | K23: 40 | L23: 1 | M23: 7446584.038 | N23: 30.84627 | O23: 1.00010587 | P23: 5.31e-06
I24: NZ | J24: 4002 | K24: 40 | L24: 2 | M24: 7444733.262 | N24: 30.8462 | O24: 1.00010063 | P24: 5.24e-06
C25: Unitless Grid to Ground Multiplier: | I25: NZ | J25: 4003 | K25: 40 | L25: 3 | M25: 7442882.49 | N25: 30.84613 | O25: 1.00009548 | P25: 5.15e-06
A26: Grid to Ground Multiplier (1/CSF): | C26: =1/C23 ->  | I26: NZ | J26: 4004 | K26: 40 | L26: 4 | M26: 7441031.722 | N26: 30.84607 | O26: 1.00009042 | P26: 5.06e-06
I27: NZ | J27: 4005 | K27: 40 | L27: 5 | M27: 7439180.958 | N27: 30.846 | O27: 1.00008543 | P27: 4.99e-06
C28: Converts Grid Meters to Ground Feet: | I28: NZ | J28: 4006 | K28: 40 | L28: 6 | M28: 7437330.198 | N28: 30.84594 | O28: 1.00008053 | P28: 4.9e-06
A29: Project Adjustment Factor (PAF): | C29: =C26*3.28083333 ->  | I29: NZ | J29: 4007 | K29: 40 | L29: 7 | M29: 7435479.441 | N29: 30.84588 | O29: 1.00007571 | P29: 4.82e-06
I30: NZ | J30: 4011 | K30: 40 | L30: 11 | M30: 7428076.449 | N30: 30.84568 | O30: 1.00005728 | P30: =O34-O30 -> 4.48e-06
A31: Check spreadsheet-generated (XLS) CSF against Trimble Business Center-generated (TBC) CSF below. | I31: NZ | J31: 4012 | K31: 40 | L31: 12 | M31: 7426225.708 | N31: 30.84563 | O31: 1.00005287 | P31: =O30-O31 -> 4.41e-06
I32: NZ | J32: 4008 | K32: 40 | L32: 8 | M32: 7433628.688 | N32: 30.84583 | O32: 1.00007098 | P32: =O29-O32 -> 4.73e-06
C33: Compare to Unitless Grid to Ground Multiplier: | I33: NZ | J33: 4009 | K33: 40 | L33: 9 | M33: 7431777.939 | N33: 30.84577 | O33: 1.00006633 | P33: =O32-O33 -> 4.65e-06
A34: Input TBC-generated 1/CSF: | I34: NZ | J34: 4010 | K34: 40 | L34: 10 | M34: 7429927.192 | N34: 30.84572 | O34: 1.00006176 | P34: =O33-O34 -> 4.57e-06
I35: NZ | J35: 4013 | K35: 40 | L35: 13 | M35: 7424374.97 | N35: 30.84559 | O35: 1.00004856 | P35: =O31-O35 -> 4.31e-06
A36: Test point at one end of project: | C36: Northing (ft) | D36: Easting (ft) | F36: Grid - Ground (XLS) | I36: NZ | J36: 4014 | K36: 40 | L36: 14 | M36: 7422524.235 | N36: 30.84555 | O36: 1.00004432 | P36: =O35-O36 -> 4.24e-06
B37: Input Grid Coordinates: | F37: =IF(C37-C38>0,ABS(ROUND(C37-C38,3))&"' shift N",ABS(ROUND(C37-C38,3))&"' shift S") ->  | G37: =IF(D37-D38>0,ABS(ROUND(D37-D38,3))&"' shift E",ABS(ROUND(D37-D38,3))&"' shift W") ->  | I37: NZ | J37: 4015 | K37: 40 | L37: 15 | M37: 7420673.502 | N37: 30.84551 | O37: 1.00004017 | P37: 4.15e-06
A38: =$A37 -> 0 | B38: Ground (XLS): | C38: =$C37*$C$26 ->  | D38: =$D37*$C$26 ->  | F38: Ground (XLS) - Ground (TBC) | I38: NZ | J38: 4016 | K38: 40 | L38: 16 | M38: 7418822.772 | N38: 30.84547 | O38: 1.0000361 | P38: 4.07e-06
A39: =$A37 -> 0 | B39: Ground (TBC): | C39: =$C37*$C$34 -> 0 | D39: =$D37*$C$34 -> 0 | F39: =IF(C38-C39>0,ABS(ROUND(C38-C39,3))&"' shift N",ABS(ROUND(C38-C39,3))&"' shift S") ->  | G39: =IF(D38-D39>0,ABS(ROUND(D38-D39,3))&"' shift E",ABS(ROUND(D38-D39,3))&"' shift W") ->  | I39: NZ | J39: 4017 | K39: 40 | L39: 17 | M39: 7416972.043 | N39: 30.84544 | O39: 1.00003212 | P39: 3.98e-06
I40: NZ | J40: 4018 | K40: 40 | L40: 18 | M40: 7415121.317 | N40: 30.84541 | O40: 1.00002821 | P40: 3.91e-06
A41: Test point at other end of project: | C41: Northing (ft) | D41: Easting (ft) | F41: Grid - Ground (XLS) | I41: NZ | J41: 4019 | K41: 40 | L41: 19 | M41: 7413270.592 | N41: 30.84538 | O41: 1.0000244 | P41: 3.81e-06
B42: Input Grid Coordinates: | F42: =IF(C42-C43>0,ABS(ROUND(C42-C43,3))&"' shift N",ABS(ROUND(C42-C43,3))&"' shift S") ->  | G42: =IF(D42-D43>0,ABS(ROUND(D42-D43,3))&"' shift E",ABS(ROUND(D42-D43,3))&"' shift W") ->  | I42: NZ | J42: 4020 | K42: 40 | L42: 20 | M42: 7411419.869 | N42: 30.84536 | O42: 1.00002066 | P42: 3.74e-06
A43: =$A42 -> 0 | B43: Ground (XLS): | C43: =$C42*$C$26 ->  | D43: =$D42*$C$26 ->  | F43: Ground XLS - Ground TBC | I43: NZ | J43: 4021 | K43: 40 | L43: 21 | M43: 7409569.147 | N43: 30.84534 | O43: 1.00001701 | P43: 3.65e-06
A44: =$A42 -> 0 | B44: Ground (TBC): | C44: =$C42*$C$34 -> 0 | D44: =$D42*$C$34 -> 0 | F44: =IF(C43-C44>0,ABS(ROUND(C43-C44,3))&"' shift N",ABS(ROUND(C43-C44,3))&"' shift S") ->  | G44: =IF(D43-D44>0,ABS(ROUND(D43-D44,3))&"' shift E",ABS(ROUND(D43-D44,3))&"' shift W") ->  | I44: NZ | J44: 4022 | K44: 40 | L44: 22 | M44: 7407718.427 | N44: 30.84532 | O44: 1.00001344 | P44: 3.57e-06
I45: NZ | J45: 4023 | K45: 40 | L45: 23 | M45: 7405867.708 | N45: 30.8453 | O45: 1.00000995 | P45: 3.49e-06
A46: ="Change in computed horizontal distance between "&A$37&" and "&A$42&" due to CSF used (an approximate "&ROUND(SQRT((C38-C43)^2+(D38-D43)^2),0)&" foot distance):" ->  | F46: Ground (XLS) vs. Ground (TBC) | I46: NZ | J46: 4024 | K46: 40 | L46: 24 | M46: 7404016.99 | N46: 30.84529 | O46: 1.00000655 | P46: 3.4e-06
F47: =IF(ABS(C38-C43)>ABS(C39-C44),ABS(ROUND((C38-C39)-(C43-C44),3))&"' further N-S",ABS(ROUND((C38-C39)-(C43-C44),3))&"' nearer N-S") ->  | G47: =IF(ABS(D38-D43)>ABS(D39-D44),ABS(ROUND((D38-D39)-(D43-D44),3))&"' further E-W",ABS(ROUND((D38-D39)-(D43-D44),3))&"' nearer E-W") ->  | I47: NZ | J47: 4025 | K47: 40 | L47: 25 | M47: 7402166.273 | N47: 30.84527 | O47: 1.00000323 | P47: 3.32e-06
I48: NZ | J48: 4027 | K48: 40 | L48: 27 | M48: 7398464.84 | N48: 30.84526 | O48: 0.99999685 | P48: 6.38e-06
A49: ="Change in computed horizontal distance between "&A$37&" and "&A$42&" by adjusting from grid to ground (approx. "&ROUND(SQRT((C38-C43)^2+(D38-D43)^2),0)&" ft dist.):" ->  | F49: Grid vs. Ground (XLS) | I49: NZ | J49: 4028 | K49: 40 | L49: 28 | M49: 7396614.125 | N49: 30.84525 | O49: 0.99999378 | P49: 3.07e-06
F50: =IF(ABS(C38-C43)>ABS(C37-C42),ABS(ROUND((C37-C38)-(C42-C43),3))&"' further N-S",ABS(ROUND((C37-C38)-(C42-C43),3))&"' nearer N-S") ->  | G50: =IF(ABS(D38-D43)>ABS(D37-D42),ABS(ROUND((D37-D38)-(D42-D43),3))&"' further E-W",ABS(ROUND((D37-D38)-(D42-D43),3))&"' nearer E-W") ->  | I50: NZ | J50: 4029 | K50: 40 | L50: 29 | M50: 7394763.409 | N50: 30.84525 | O50: 0.9999908 | P50: 2.98e-06
I51: NZ | J51: 4030 | K51: 40 | L51: 30 | M51: 7392912.694 | N51: 30.84525 | O51: 0.9999879 | P51: 2.9e-06
I52: NZ | J52: 4031 | K52: 40 | L52: 31 | M52: 7391061.979 | N52: 30.84526 | O52: 0.99998508 | P52: 2.82e-06
I53: NZ | J53: 4032 | K53: 40 | L53: 32 | M53: 7389211.263 | N53: 30.84526 | O53: 0.99998235 | P53: 2.73e-06
I54: NZ | J54: 4033 | K54: 40 | L54: 33 | M54: 7387360.548 | N54: 30.84527 | O54: 0.9999797 | P54: 2.65e-06
I55: NZ | J55: 4034 | K55: 40 | L55: 34 | M55: 7385509.831 | N55: 30.84528 | O55: 0.99997713 | P55: 2.57e-06
I56: NZ | J56: 4035 | K56: 40 | L56: 35 | M56: 7383659.114 | N56: 30.8453 | O56: 0.99997465 | P56: 2.48e-06
I57: NZ | J57: 4036 | K57: 40 | L57: 36 | M57: 7381808.396 | N57: 30.84532 | O57: 0.99997225 | P57: 2.4e-06
I58: NZ | J58: 4037 | K58: 40 | L58: 37 | M58: 7379957.677 | N58: 30.84533 | O58: 0.99996993 | P58: 2.32e-06
I59: NZ | J59: 4038 | K59: 40 | L59: 38 | M59: 7378106.957 | N59: 30.84536 | O59: 0.9999677 | P59: 2.23e-06
I60: NZ | J60: 4039 | K60: 40 | L60: 39 | M60: 7376256.236 | N60: 30.84538 | O60: 0.99996556 | P60: 2.14e-06
I61: NZ | J61: 4040 | K61: 40 | L61: 40 | M61: 7374405.513 | N61: 30.84541 | O61: 0.99996349 | P61: 2.07e-06
I62: NZ | J62: 4041 | K62: 40 | L62: 41 | M62: 7372554.789 | N62: 30.84544 | O62: 0.99996151 | P62: 1.98e-06
I63: NZ | J63: 4042 | K63: 40 | L63: 42 | M63: 7370704.062 | N63: 30.84547 | O63: 0.99995961 | P63: 1.9e-06
I64: NZ | J64: 4043 | K64: 40 | L64: 43 | M64: 7368853.334 | N64: 30.8455 | O64: 0.9999578 | P64: 1.81e-06
I65: NZ | J65: 4044 | K65: 40 | L65: 44 | M65: 7367002.604 | N65: 30.84554 | O65: 0.99995607 | P65: 1.73e-06
I66: NZ | J66: 4045 | K66: 40 | L66: 45 | M66: 7365151.872 | N66: 30.84558 | O66: 0.99995443 | P66: 1.64e-06
I67: NZ | J67: 4046 | K67: 40 | L67: 46 | M67: 7363301.137 | N67: 30.84562 | O67: 0.99995287 | P67: 1.56e-06
I68: NZ | J68: 4047 | K68: 40 | L68: 47 | M68: 7361450.399 | N68: 30.84567 | O68: 0.99995139 | P68: =O67-O68 -> 1.48e-06
I69: NZ | J69: 4048 | K69: 40 | L69: 48 | M69: 7359599.659 | N69: 30.84572 | O69: 0.99995 | P69: 1.39e-06
I70: NZ | J70: 4049 | K70: 40 | L70: 49 | M70: 7357748.916 | N70: 30.84577 | O70: 0.99994869 | P70: 1.31e-06
I71: NZ | J71: 4050 | K71: 40 | L71: 50 | M71: 7355898.17 | N71: 30.84582 | O71: 0.99994746 | P71: 1.23e-06
I72: NZ | J72: 4051 | K72: 40 | L72: 51 | M72: 7354047.421 | N72: 30.84588 | O72: 0.99994632 | P72: 1.14e-06
I73: NZ | J73: 4052 | K73: 40 | L73: 52 | M73: 7352196.669 | N73: 30.84593 | O73: 0.99994527 | P73: 1.05e-06
I74: NZ | J74: 4053 | K74: 40 | L74: 53 | M74: 7350345.913 | N74: 30.84599 | O74: 0.99994429 | P74: 9.8e-07
I75: NZ | J75: 4054 | K75: 40 | L75: 54 | M75: 7348495.153 | N75: 30.84606 | O75: 0.9999434 | P75: 8.899999999e-07
I76: NZ | J76: 4055 | K76: 40 | L76: 55 | M76: 7346644.39 | N76: 30.84612 | O76: 0.9999426 | P76: 8e-07
I77: NZ | J77: 4056 | K77: 40 | L77: 56 | M77: 7344793.622 | N77: 30.84619 | O77: 0.99994188 | P77: 7.200000001e-07
I78: NZ | J78: 4057 | K78: 40 | L78: 57 | M78: 7342942.851 | N78: 30.84626 | O78: 0.99994124 | P78: 6.4e-07
I79: NZ | J79: 4058 | K79: 40 | L79: 58 | M79: 7341092.075 | N79: 30.84634 | O79: 0.99994069 | P79: 5.5e-07
I80: NZ | J80: 4059 | K80: 40 | L80: 59 | M80: 7339241.295 | N80: 30.84641 | O80: 0.99994022 | P80: 4.699999999e-07
I81: NZ | J81: 4100 | K81: 41 | L81: 0 | M81: 7337390.51 | N81: 30.84649 | O81: 0.99993984 | P81: 3.8e-07
I82: NZ | J82: 4101 | K82: 41 | L82: 1 | M82: 7335539.72 | N82: 30.84657 | O82: 0.99993954 | P82: 3.000000001e-07
I83: NZ | J83: 4102 | K83: 41 | L83: 2 | M83: 7333688.926 | N83: 30.84666 | O83: 0.99993932 | P83: 2.2e-07
I84: NZ | J84: 4103 | K84: 41 | L84: 3 | M84: 7331838.127 | N84: 30.84674 | O84: 0.99993919 | P84: 1.3e-07
I85: NZ | J85: 4104 | K85: 41 | L85: 4 | M85: 7329987.322 | N85: 30.84683 | O85: 0.99993914 | P85: 5.000000003e-08
I86: NZ | J86: 4105 | K86: 41 | L86: 5 | M86: 7328136.512 | N86: 30.84693 | O86: 0.99993918 | P86: -4.000000009e-08
I87: NZ | J87: 4106 | K87: 41 | L87: 6 | M87: 7326285.696 | N87: 30.84702 | O87: 0.9999393 | P87: -1.199999999e-07
I88: NZ | J88: 4107 | K88: 41 | L88: 7 | M88: 7324434.875 | N88: 30.84712 | O88: 0.9999395 | P88: -2e-07
I89: NZ | J89: 4108 | K89: 41 | L89: 8 | M89: 7322584.048 | N89: 30.84722 | O89: 0.99993979 | P89: -2.9e-07
I90: NZ | J90: 4109 | K90: 41 | L90: 9 | M90: 7320733.215 | N90: 30.84732 | O90: 0.99994017 | P90: -3.8e-07
I91: NZ | J91: 4110 | K91: 41 | L91: 10 | M91: 7318882.376 | N91: 30.84742 | O91: 0.99994063 | P91: -4.6e-07
I92: NZ | J92: 4111 | K92: 41 | L92: 11 | M92: 7317031.531 | N92: 30.84753 | O92: 0.99994117 | P92: -5.4e-07
I93: NZ | J93: 4112 | K93: 41 | L93: 12 | M93: 7315180.679 | N93: 30.84764 | O93: 0.9999418 | P93: -6.299999999e-07
I94: NZ | J94: 4113 | K94: 41 | L94: 13 | M94: 7313329.82 | N94: 30.84776 | O94: 0.99994251 | P94: -7.1e-07
I95: NZ | J95: 4114 | K95: 41 | L95: 14 | M95: 7311478.955 | N95: 30.84787 | O95: 0.99994331 | P95: -8e-07
I96: NZ | J96: 4115 | K96: 41 | L96: 15 | M96: 7309628.083 | N96: 30.84799 | O96: 0.99994419 | P96: -8.8e-07
I97: NZ | J97: 4116 | K97: 41 | L97: 16 | M97: 7307777.203 | N97: 30.84811 | O97: 0.99994515 | P97: -9.599999999e-07
I98: NZ | J98: 4117 | K98: 41 | L98: 17 | M98: 7305926.317 | N98: 30.84823 | O98: 0.9999462 | P98: -1.05e-06
I99: NZ | J99: 4118 | K99: 41 | L99: 18 | M99: 7304075.423 | N99: 30.84836 | O99: 0.99994734 | P99: -1.14e-06
I100: NZ | J100: 4119 | K100: 41 | L100: 19 | M100: 7302224.521 | N100: 30.84849 | O100: 0.99994856 | P100: =O99-O100 -> -1.22e-06
I101: NZ | J101: 4120 | K101: 41 | L101: 20 | M101: 7300373.612 | N101: 30.84862 | O101: 0.99994986 | P101: -1.3e-06
I102: NZ | J102: 4121 | K102: 41 | L102: 21 | M102: 7298522.695 | N102: 30.84875 | O102: 0.99995125 | P102: -1.39e-06
I103: NZ | J103: 4122 | K103: 41 | L103: 22 | M103: 7296671.77 | N103: 30.84889 | O103: 0.99995272 | P103: -1.47e-06
I104: NZ | J104: 4123 | K104: 41 | L104: 23 | M104: 7294820.837 | N104: 30.84903 | O104: 0.99995428 | P104: -1.56e-06
I105: NZ | J105: 4124 | K105: 41 | L105: 24 | M105: 7292969.895 | N105: 30.84917 | O105: 0.99995592 | P105: -1.64e-06
I106: NZ | J106: 4125 | K106: 41 | L106: 25 | M106: 7291118.945 | N106: 30.84931 | O106: 0.99995765 | P106: -1.73e-06
I107: NZ | J107: 4126 | K107: 41 | L107: 26 | M107: 7289267.986 | N107: 30.84946 | O107: 0.99995946 | P107: -1.81e-06
I108: NZ | J108: 4127 | K108: 41 | L108: 27 | M108: 7287417.018 | N108: 30.84961 | O108: 0.99996136 | P108: -1.9e-06
I109: NZ | J109: 4128 | K109: 41 | L109: 28 | M109: 7285566.042 | N109: 30.84976 | O109: 0.99996334 | P109: -1.98e-06
I110: NZ | J110: 4129 | K110: 41 | L110: 29 | M110: 7283715.056 | N110: 30.84992 | O110: 0.99996541 | P110: -2.07e-06
I111: NZ | J111: 4130 | K111: 41 | L111: 30 | M111: 7281864.061 | N111: 30.85007 | O111: 0.99996756 | P111: -2.15e-06
I112: NZ | J112: 4131 | K112: 41 | L112: 31 | M112: 7280013.057 | N112: 30.85023 | O112: 0.99996979 | P112: -2.23e-06
I113: NZ | J113: 4132 | K113: 41 | L113: 32 | M113: 7278162.043 | N113: 30.8504 | O113: 0.99997212 | P113: -2.33e-06
I114: NZ | J114: 4133 | K114: 41 | L114: 33 | M114: 7276311.019 | N114: 30.85056 | O114: 0.99997452 | P114: -2.4e-06
I115: NZ | J115: 4134 | K115: 41 | L115: 34 | M115: 7274459.985 | N115: 30.85073 | O115: 0.99997701 | P115: -2.49e-06
I116: NZ | J116: 4135 | K116: 41 | L116: 35 | M116: 7272608.941 | N116: 30.8509 | O116: 0.99997959 | P116: -2.58e-06
I117: NZ | J117: 4136 | K117: 41 | L117: 36 | M117: 7270757.887 | N117: 30.85107 | O117: 0.99998225 | P117: -2.66e-06
I118: NZ | J118: 4137 | K118: 41 | L118: 37 | M118: 7268906.823 | N118: 30.85125 | O118: 0.99998499 | P118: -2.74e-06
I119: NZ | J119: 4138 | K119: 41 | L119: 38 | M119: 7267055.748 | N119: 30.85143 | O119: 0.99998783 | P119: -2.84e-06
I120: NZ | J120: 4139 | K120: 41 | L120: 39 | M120: 7265204.662 | N120: 30.85161 | O120: 0.99999074 | P120: -2.91e-06
I121: NZ | J121: 4140 | K121: 41 | L121: 40 | M121: 7263353.566 | N121: 30.85179 | O121: 0.99999374 | P121: -3e-06
I122: NZ | J122: 4141 | K122: 41 | L122: 41 | M122: 7261502.458 | N122: 30.85198 | O122: 0.99999683 | P122: -3.09e-06
I123: NZ | J123: 4142 | K123: 41 | L123: 42 | M123: 7259651.339 | N123: 30.85217 | O123: 1 | P123: -3.17e-06
I124: NZ | J124: 4143 | K124: 41 | L124: 43 | M124: 7257800.209 | N124: 30.85236 | O124: 1.00000326 | P124: -3.26e-06
I125: NZ | J125: 4144 | K125: 41 | L125: 44 | M125: 7255949.068 | N125: 30.85255 | O125: 1.0000066 | P125: -3.34e-06
I126: NZ | J126: 4145 | K126: 41 | L126: 45 | M126: 7254097.915 | N126: 30.85275 | O126: 1.00001002 | P126: -3.42e-06
I127: NZ | J127: 4146 | K127: 41 | L127: 46 | M127: 7252246.75 | N127: 30.85295 | O127: 1.00001354 | P127: -3.52e-06
I128: NZ | J128: 4147 | K128: 41 | L128: 47 | M128: 7250395.573 | N128: 30.85315 | O128: 1.00001713 | P128: -3.59e-06
I129: NZ | J129: 4148 | K129: 41 | L129: 48 | M129: 7248544.384 | N129: 30.85336 | O129: 1.00002082 | P129: -3.69e-06
I130: NZ | J130: 4149 | K130: 41 | L130: 49 | M130: 7246693.182 | N130: 30.85356 | O130: 1.00002458 | P130: -3.76e-06
I131: NZ | J131: 4150 | K131: 41 | L131: 50 | M131: 7244841.968 | N131: 30.85377 | O131: 1.00002844 | P131: -3.86e-06
I132: NZ | J132: 4151 | K132: 41 | L132: 51 | M132: 7242990.742 | N132: 30.85399 | O132: 1.00003238 | P132: =O131-O132 -> -3.94e-06
I133: NZ | J133: 4152 | K133: 41 | L133: 52 | M133: 7241139.503 | N133: 30.8542 | O133: 1.0000364 | P133: -4.02e-06
I134: NZ | J134: 4153 | K134: 41 | L134: 53 | M134: 7239288.251 | N134: 30.85442 | O134: 1.00004051 | P134: -4.11e-06
I135: NZ | J135: 4154 | K135: 41 | L135: 54 | M135: 7237436.985 | N135: 30.85464 | O135: 1.0000447 | P135: -4.19e-06
I136: NZ | J136: 4155 | K136: 41 | L136: 55 | M136: 7235585.707 | N136: 30.85486 | O136: 1.00004898 | P136: -4.28e-06
I137: NZ | J137: 4156 | K137: 41 | L137: 56 | M137: 7233734.415 | N137: 30.85509 | O137: 1.00005335 | P137: -4.37e-06
I138: NZ | J138: 4157 | K138: 41 | L138: 57 | M138: 7231883.11 | N138: 30.85532 | O138: 1.0000578 | P138: -4.45e-06
I139: NZ | J139: 4158 | K139: 41 | L139: 58 | M139: 7230031.791 | N139: 30.85555 | O139: 1.00006234 | P139: -4.54e-06
I140: NZ | J140: 4159 | K140: 41 | L140: 59 | M140: 7228180.458 | N140: 30.85578 | O140: 1.00006696 | P140: -4.62e-06
I141: NZ | J141: 4200 | K141: 42 | L141: 0 | M141: 7226329.111 | N141: 30.85602 | O141: 1.00007167 | P141: -4.71e-06
I142: NZ | J142: 4201 | K142: 42 | L142: 1 | M142: 7224477.749 | N142: 30.85626 | O142: 1.00007646 | P142: -4.79e-06
I143: NZ | J143: 4202 | K143: 42 | L143: 2 | M143: 7222626.374 | N143: 30.8565 | O143: 1.00008134 | P143: -4.88e-06
I144: NZ | J144: 4203 | K144: 42 | L144: 3 | M144: 7220774.984 | N144: 30.85675 | O144: 1.0000863 | P144: -4.96e-06
I145: NZ | J145: 4204 | K145: 42 | L145: 4 | M145: 7218923.579 | N145: 30.85699 | O145: 1.00009135 | P145: -5.05e-06
I146: NZ | J146: 4205 | K146: 42 | L146: 5 | M146: 7217072.16 | N146: 30.85724 | O146: 1.00009649 | P146: -5.14e-06
I147: NZ | J147: 4206 | K147: 42 | L147: 6 | M147: 7215220.725 | N147: 30.85749 | O147: 1.00010171 | P147: -5.22e-06
I148: NZ | J148: 4207 | K148: 42 | L148: 7 | M148: 7213369.275 | N148: 30.85775 | O148: 1.00010702 | P148: -5.31e-06
I149: NZ | J149: 4208 | K149: 42 | L149: 8 | M149: 7211517.811 | N149: 30.85801 | O149: 1.00011241 | P149: -5.39e-06
I150: NZ | J150: 4209 | K150: 42 | L150: 9 | M150: 7209666.33 | N150: 30.85827 | O150: 1.00011789 | P150: -5.48e-06
I151: NZ | J151: 4210 | K151: 42 | L151: 10 | M151: 7207814.834 | N151: 30.85853 | O151: 1.00012345 | P151: -5.56e-06
I152: SZ | J152: 3800 | K152: 38 | L152: 0 | M152: 7932869.037 | N152: 30.83922 | O152: 1.00022476
I153: SZ | J153: 3801 | K153: 38 | L153: 1 | M153: 7931018.684 | N153: 30.8391 | O153: 1.00021786 | P153: =O152-O153 -> 6.9e-06
I154: SZ | J154: 3802 | K154: 38 | L154: 2 | M154: 7929168.338 | N154: 30.83898 | O154: 1.00021105 | P154: 6.81e-06
I155: SZ | J155: 3803 | K155: 38 | L155: 3 | M155: 7927318 | N155: 30.83886 | O155: 1.00020433 | P155: 6.72e-06
I156: SZ | J156: 3804 | K156: 38 | L156: 4 | M156: 7925467.668 | N156: 30.83874 | O156: 1.00019768 | P156: 6.65e-06
I157: SZ | J157: 3805 | K157: 38 | L157: 5 | M157: 7923617.343 | N157: 30.83863 | O157: 1.00019112 | P157: 6.56e-06
I158: SZ | J158: 3806 | K158: 38 | L158: 6 | M158: 7921767.026 | N158: 30.83852 | O158: 1.00018464 | P158: 6.48e-06
I159: SZ | J159: 3807 | K159: 38 | L159: 7 | M159: 7919916.715 | N159: 30.83841 | O159: 1.00017825 | P159: 6.39e-06
I160: SZ | J160: 3808 | K160: 38 | L160: 8 | M160: 7918066.41 | N160: 30.8383 | O160: 1.00017193 | P160: 6.32e-06
I161: SZ | J161: 3809 | K161: 38 | L161: 9 | M161: 7916216.112 | N161: 30.8382 | O161: 1.0001657 | P161: 6.23e-06
I162: SZ | J162: 3810 | K162: 38 | L162: 10 | M162: 7914365.82 | N162: 30.8381 | O162: 1.00015956 | P162: 6.14e-06
I163: SZ | J163: 3811 | K163: 38 | L163: 11 | M163: 7912515.534 | N163: 30.8381 | O163: 1.00015349 | P163: 6.07e-06
I164: SZ | J164: 3812 | K164: 38 | L164: 12 | M164: 7910665.253 | N164: 30.83791 | O164: 1.00014751 | P164: 5.98e-06
I165: SZ | J165: 3813 | K165: 38 | L165: 13 | M165: 7908814.979 | N165: 30.83782 | O165: 1.00014161 | P165: 5.9e-06
I166: SZ | J166: 3814 | K166: 38 | L166: 14 | M166: 7906964.71 | N166: 30.83772 | O166: 1.0001358 | P166: 5.81e-06
I167: SZ | J167: 3815 | K167: 38 | L167: 15 | M167: 7905114.446 | N167: 30.83764 | O167: 1.00013007 | P167: 5.73e-06
I168: SZ | J168: 3816 | K168: 38 | L168: 16 | M168: 7903264.188 | N168: 30.83755 | O168: 1.00012442 | P168: 5.65e-06
I169: SZ | J169: 3817 | K169: 38 | L169: 17 | M169: 7901413.935 | N169: 30.83747 | O169: 1.00011885 | P169: 5.57e-06
I170: SZ | J170: 3818 | K170: 38 | L170: 18 | M170: 7899563.687 | N170: 30.83739 | O170: 1.00011337 | P170: 5.48e-06
I171: SZ | J171: 3819 | K171: 38 | L171: 19 | M171: 7897713.444 | N171: 30.83731 | O171: 1.00010797 | P171: 5.4e-06
I172: SZ | J172: 3820 | K172: 38 | L172: 20 | M172: 7895863.205 | N172: 30.83724 | O172: 1.00010265 | P172: 5.32e-06
I173: SZ | J173: 3821 | K173: 38 | L173: 21 | M173: 7894012.971 | N173: 30.83717 | O173: 1.00009741 | P173: 5.24e-06
I174: SZ | J174: 3822 | K174: 38 | L174: 22 | M174: 7892162.741 | N174: 30.8371 | O174: 1.00009226 | P174: 5.15e-06
I175: SZ | J175: 3823 | K175: 38 | L175: 23 | M175: 7890312.515 | N175: 30.83703 | O175: 1.0000872 | P175: 5.06e-06
I176: SZ | J176: 3824 | K176: 38 | L176: 24 | M176: 7888462.293 | N176: 30.83696 | O176: 1.00008221 | P176: 4.99e-06
I177: SZ | J177: 3825 | K177: 38 | L177: 25 | M177: 7886612.075 | N177: 30.8369 | O177: 1.00007731 | P177: 4.9e-06
I178: SZ | J178: 3826 | K178: 38 | L178: 26 | M178: 7884761.861 | N178: 30.83684 | O178: 1.00007249 | P178: 4.82e-06
I179: SZ | J179: 3827 | K179: 38 | L179: 27 | M179: 7882911.651 | N179: 30.83679 | O179: 1.00006776 | P179: 4.73e-06
I180: SZ | J180: 3828 | K180: 38 | L180: 28 | M180: 7881061.444 | N180: 30.83673 | O180: 1.0000631 | P180: 4.66e-06
I181: SZ | J181: 3829 | K181: 38 | L181: 29 | M181: 7879211.24 | N181: 30.83668 | O181: 1.00005853 | P181: 4.57e-06
I182: SZ | J182: 3830 | K182: 38 | L182: 30 | M182: 7877361.039 | N182: 30.83663 | O182: 1.00005405 | P182: 4.48e-06
I183: SZ | J183: 3831 | K183: 38 | L183: 31 | M183: 7875510.841 | N183: 30.83658 | O183: 1.00004965 | P183: 4.4e-06
I184: SZ | J184: 3832 | K184: 38 | L184: 32 | M184: 7873660.646 | N184: 30.83654 | O184: 1.00004533 | P184: 4.32e-06
I185: SZ | J185: 3833 | K185: 38 | L185: 33 | M185: 7871810.453 | N185: 30.8365 | O185: 1.00004109 | P185: =O184-O185 -> 4.24e-06
I186: SZ | J186: 3834 | K186: 38 | L186: 34 | M186: 7869960.263 | N186: 30.83646 | O186: 1.00003694 | P186: 4.15e-06
I187: SZ | J187: 3835 | K187: 38 | L187: 35 | M187: 7868110.076 | N187: 30.83642 | O187: 1.00003287 | P187: 4.07e-06
I188: SZ | J188: 3836 | K188: 38 | L188: 36 | M188: 7866259.89 | N188: 30.83639 | O188: 1.00002888 | P188: 3.99e-06
I189: SZ | J189: 3837 | K189: 38 | L189: 37 | M189: 7864409.707 | N189: 30.83636 | O189: 1.00002498 | P189: 3.9e-06
I190: SZ | J190: 3838 | K190: 38 | L190: 38 | M190: 7862559.525 | N190: 30.83633 | O190: 1.00002116 | P190: 3.82e-06
I191: SZ | J191: 3839 | K191: 38 | L191: 39 | M191: 7860709.345 | N191: 30.83631 | O191: 1.00001743 | P191: 3.73e-06
I192: SZ | J192: 3840 | K192: 38 | L192: 40 | M192: 7858859.167 | N192: 30.83628 | O192: 1.00001377 | P192: 3.66e-06
I193: SZ | J193: 3841 | K193: 38 | L193: 41 | M193: 7857008.99 | N193: 30.83626 | O193: 1.00001021 | P193: 3.56e-06
I194: SZ | J194: 3842 | K194: 38 | L194: 42 | M194: 7855158.814 | N194: 30.83624 | O194: 1.00000672 | P194: 3.49e-06
I195: SZ | J195: 3843 | K195: 38 | L195: 43 | M195: 7853308.64 | N195: 30.83623 | O195: 1.00000332 | P195: 3.4e-06
I196: SZ | J196: 3844 | K196: 38 | L196: 44 | M196: 7851458.466 | N196: 30.83622 | O196: 1 | P196: 3.32e-06
I197: SZ | J197: 3845 | K197: 38 | L197: 45 | M197: 7849608.293 | N197: 30.83621 | O197: 0.99999677 | P197: 3.23e-06
I198: SZ | J198: 3846 | K198: 38 | L198: 46 | M198: 7847758.121 | N198: 30.8362 | O198: 0.99999361 | P198: 3.16e-06
I199: SZ | J199: 3847 | K199: 38 | L199: 47 | M199: 7845907.949 | N199: 30.83619 | O199: 0.99999055 | P199: 3.06e-06
I200: SZ | J200: 3848 | K200: 38 | L200: 48 | M200: 7844057.777 | N200: 30.83619 | O200: 0.99998756 | P200: 2.99e-06
... 111 more rows

Sheet GRID<->GRND
A1: Project: | B1: =REPORT!B2 -> FRA-33-24.76 | E1: Import Units (please select): | G1: LDP Coord? | H1: TRUE | I1: =IF(H1=TRUE,"Unitless Ground to Grid Factor:","Unitless Grid to Ground Factor:") -> Unitless Ground to Grid Factor: | K1: =IF(H1=TRUE,1/REPORT!C14,REPORT!C14) -> 0.9999630014
A2: Pid: | B2: =REPORT!E2 -> 119387 | G2: U.S. Survey FT | H2: =INDEX(ShortUnits,MATCH(G2,Units,0),1) -> sft | I2: ="Unit Conversion Factor ("&H2&"->"&H3&"):" -> Unit Conversion Factor (sft->m): | K2: =INDEX(FactorValues,MATCH(H2&"->"&H3,FactorNames,0)) -> 0.3048006096
E3: Output Units (please select): | G3: Meters | H3: =INDEX(ShortUnits,MATCH(G3,Units,0),1) -> m | I3: Project Adjustment Factor: | K3: =K1*K2 -> 0.3047893324
A5: INPUT | G5: OUTPUT
A6: =IF(H1=TRUE,"LDP","State Plane")&" - "&G2 -> LDP - U.S. Survey FT | G6: =IF(H1=TRUE,"State Plane","LDP")&" - "&G3 -> State Plane - Meters
A7: NAME | B7: NORTH | C7: EAST | D7: ORTHO HT | E7: FEATURE | G7: NAME | H7: NORTH | I7: EAST | J7: ORTHO HT | K7: FEATURE
G8: =A8 -> 0 | H8: =B8*$K$3 -> 0 | I8: =C8*$K$3 -> 0 | J8: =D8*$K$2 -> 0 | K8: =E8 -> 0
G9: 0 | H9: 0 | I9: 0 | J9: 0 | K9: 0
G10: 0 | H10: 0 | I10: 0 | J10: 0 | K10: 0
G11: 0 | H11: 0 | I11: 0 | J11: 0 | K11: 0
G12: 0 | H12: 0 | I12: 0 | J12: 0 | K12: 0
G13: 0 | H13: 0 | I13: 0 | J13: 0 | K13: 0
G14: 0 | H14: 0 | I14: 0 | J14: 0 | K14: 0
G15: 0 | H15: 0 | I15: 0 | J15: 0 | K15: 0
G16: 0 | H16: 0 | I16: 0 | J16: 0 | K16: 0
G17: 0 | H17: 0 | I17: 0 | J17: 0 | K17: 0
G18: 0 | H18: 0 | I18: 0 | J18: 0 | K18: 0
G19: 0 | H19: 0 | I19: 0 | J19: 0 | K19: 0
G20: 0 | H20: 0 | I20: 0 | J20: 0 | K20: 0
G21: 0 | H21: 0 | I21: 0 | J21: 0 | K21: 0
G22: 0 | H22: 0 | I22: 0 | J22: 0 | K22: 0
G23: 0 | H23: 0 | I23: 0 | J23: 0 | K23: 0
G24: 0 | H24: 0 | I24: 0 | J24: 0 | K24: 0
G25: 0 | H25: 0 | I25: 0 | J25: 0 | K25: 0
G26: 0 | H26: 0 | I26: 0 | J26: 0 | K26: 0
G27: 0 | H27: 0 | I27: 0 | J27: 0 | K27: 0
G28: 0 | H28: 0 | I28: 0 | J28: 0 | K28: 0
G29: 0 | H29: 0 | I29: 0 | J29: 0 | K29: 0
G30: 0 | H30: 0 | I30: 0 | J30: 0 | K30: 0
G31: 0 | H31: 0 | I31: 0 | J31: 0 | K31: 0
G32: 0 | H32: 0 | I32: 0 | J32: 0 | K32: 0
G33: 0 | H33: 0 | I33: 0 | J33: 0 | K33: 0
G34: 0 | H34: 0 | I34: 0 | J34: 0 | K34: 0
G35: 0 | H35: 0 | I35: 0 | J35: 0 | K35: 0
G36: 0 | H36: 0 | I36: 0 | J36: 0 | K36: 0
G37: 0 | H37: 0 | I37: 0 | J37: 0 | K37: 0
G38: 0 | H38: 0 | I38: 0 | J38: 0 | K38: 0
G39: 0 | H39: 0 | I39: 0 | J39: 0 | K39: 0
G40: 0 | H40: =B40*$K$3 -> 0 | I40: =C40*$K$3 -> 0 | J40: =D40*$K$2 -> 0 | K40: 0
G41: 0 | H41: 0 | I41: 0 | J41: 0 | K41: 0
G42: 0 | H42: 0 | I42: 0 | J42: 0 | K42: 0
G43: 0 | H43: 0 | I43: 0 | J43: 0 | K43: 0
G44: 0 | H44: 0 | I44: 0 | J44: 0 | K44: 0
G45: 0 | H45: 0 | I45: 0 | J45: 0 | K45: 0
G46: 0 | H46: 0 | I46: 0 | J46: 0 | K46: 0
G47: 0 | H47: 0 | I47: 0 | J47: 0 | K47: 0
G48: 0 | H48: 0 | I48: 0 | J48: 0 | K48: 0
G49: 0 | H49: 0 | I49: 0 | J49: 0 | K49: 0
G50: 0 | H50: 0 | I50: 0 | J50: 0 | K50: 0
G51: 0 | H51: 0 | I51: 0 | J51: 0 | K51: 0
G52: 0 | H52: 0 | I52: 0 | J52: 0 | K52: 0

Sheet OWNERS
A1: First | B1: Last | C1: Address | D1: City | E1: State | F1: Zip Code | G1: Deed Book/Page | H1: Auditor Parcel Number | I1: Area | J1: Section | K1: Lot | L1: Tax Map Parcel

Sheet OSIP
B1: Project: | C1: =REPORT!B2 -> FRA-33-24.76
B2: Pid: | C2: =REPORT!E2 -> 119387
A4: Calculate the Project Coordinates for the corners of the Aerial Mapping Raster File
A5: To scale the Geo-referenced file to the Project Datum | N5: Project County: | P5: =REPORT!B2 -> FRA-33-24.76 | Q5: =MID(P5,1,3) -> FRA
O7: Photo Corners | Q7: Pixel Range
A8: INPUT: SP GRID - US SURVEY FEET | N8: COUNTY | O8: EASTING | P8: NORTHING | Q8: EASTING | R8: NORTHING
B9: X (East) | C9: Y (North) | N9: ADA | O9: 1620000 | P9: 215000 | Q9: 130000 | R9: 175000
A10: Lower left (SW) origin: | B10: =VLOOKUP(MID(REPORT!B2,1,3),OSIP!N9:R96,2,FALSE) -> 1755000 | C10: =VLOOKUP(MID(REPORT!B2,1,3),OSIP!N9:R96,3,FALSE) -> 650000 | D10: Enter X,Y from Georeferenced Raster File Header | N10: ALL | O10: 1440000 | P10: 355000 | Q10: 150000 | R10: 110000
A11: Pixel Range: | B11: =VLOOKUP(MID(REPORT!B2,1,3),OSIP!N9:R96,4,FALSE) -> 145000 | C11: =VLOOKUP(MID(REPORT!B2,1,3),OSIP!N9:R96,5,FALSE) -> 135000 | D11: Enter X,Y from Georeferenced Raster File Header | N11: ASD | O11: 1985000 | P11: 320000 | Q11: 90000 | R11: 195000
A12: Upper right (NE) origin: | B12: =B10+B11 -> 1900000 | C12: =C10+C11 -> 785000 | D12: Calculated NE ORIGIN using Delta X & Delta Y | N12: ASH | O12: 2375000 | P12: 670000 | Q12: 140000 | R12: 185000
N13: ATH | O13: 2025000 | P13: 430000 | Q13: 165000 | R13: 140000
A14: PAF (scale multiplier): | B14: =REPORT!C14 -> 1.000037 | D14: Enter Unitless Project Adjustment Factor for Project | N14: AUG | O14: 1420000 | P14: 255000 | Q14: 170000 | R14: 125000
N15: BEL | O15: 2320000 | P15: 675000 | Q15: 155000 | R15: 120000
A16: OUTPUT: PROJECT GROUND - US SURVEY FEET | N16: BRO | O16: 1525000 | P16: 230000 | Q16: 115000 | R16: 235000
B17: X (East) | C17: Y (North) | N17: BUT | O17: 1310000 | P17: 475000 | Q17: 145000 | R17: 115000
A18: Lower left (SW) origin (MAP01): | B18: =PRODUCT(B10,B14) -> 1755064.935 | C18: =PRODUCT(C10,B14) -> 650024.05 | D18: Calculated Scaled ORIGIN Coordinates | N18: CAR | O18: 2295000 | P18: 275000 | Q18: 130000 | R18: 120000
A19: Upper right (NE) origin (MAP02): | B19: =PRODUCT(B12,B14) -> 1900070.3 | C19: =PRODUCT(C12,B14) -> 785029.045 | D19: Calculated Scaled ORIGIN Coordinates | N19: CHP | O19: 1535000 | P19: 730000 | Q19: 160000 | R19: 105000
N20: CLA | O20: 1530000 | P20: 645000 | Q20: 160000 | R20: 105000
D21: (Edit Header & Footer for Printing File report copy) | N21: CLE | O21: 1450000 | P21: 280000 | Q21: 100000 | R21: 190000
N22: CLI | O22: 1540000 | P22: 445000 | Q22: 125000 | R22: 130000
A23: 1) Place a Shape (BOX) in the MicroStation file at the Project Origin Coordinates and use KEY-IN COMMAND XY= (X value),(Y value) for both corners | N23: COL | O23: 2355000 | P23: 335000 | Q23: 165000 | R23: 130000
A24: 2) Attach the Raster File using the "INTERACTIVE" Toggle & PLACE at the Corners of the BOX | N24: COS | O24: 2050000 | P24: 175000 | Q24: 165000 | R24: 115000
N25: CRA | O25: 1795000 | P25: 375000 | Q25: 115000 | R25: 115000
A26: This will scale the Aerial Mapping Ortho Photo to fit the PROJECT COORDINATES | N26: CUY | O26: 2110000 | P26: 585000 | Q26: 170000 | R26: 145000
N27: DAR | O27: 1315000 | P27: 700000 | Q27: 115000 | R27: 170000
N28: DEF | O28: 1330000 | P28: 550000 | Q28: 165000 | R28: 100000
N29: DEL | O29: 1755000 | P29: 165000 | Q29: 150000 | R29: 120000
N30: ERI | O30: 1855000 | P30: 585000 | Q30: 160000 | R30: 135000
N31: FAI | O31: 1870000 | P31: 565000 | Q31: 140000 | R31: 145000
N32: FAY | O32: 1635000 | P32: 500000 | Q32: 125000 | R32: 130000
N33: FRA | O33: 1755000 | P33: 650000 | Q33: 145000 | R33: 135000
N34: FUL | O34: 1445000 | P34: 665000 | Q34: 150000 | R34: 90000
N35: GAL | O35: 1940000 | P35: 210000 | Q35: 145000 | R35: 170000
N36: GEA | O36: 2270000 | P36: 610000 | Q36: 110000 | R36: 145000
N37: GRE | O37: 1510000 | P37: 565000 | Q37: 140000 | R37: 115000
N38: GUE | O38: 2180000 | P38: 670000 | Q38: 145000 | R38: 145000
N39: HAM | O39: 1305000 | P39: 375000 | Q39: 170000 | R39: 110000
N40: HAN | O40: 1585000 | P40: 420000 | Q40: 135000 | R40: 135000
N41: HAR | O41: 1580000 | P41: 305000 | Q41: 135000 | R41: 120000
N42: HAS | O42: 2290000 | P42: 180000 | Q42: 135000 | R42: 105000
N43: HEN | O43: 1460000 | P43: 545000 | Q43: 130000 | R43: 125000
N44: HIG | O44: 1575000 | P44: 370000 | Q44: 155000 | R44: 135000
N45: HOC | O45: 1895000 | P45: 495000 | Q45: 170000 | R45: 115000
N46: HOL | O46: 2045000 | P46: 280000 | Q46: 160000 | R46: 90000
N47: HUR | O47: 1870000 | P47: 480000 | Q47: 145000 | R47: 115000
N48: JAC | O48: 1880000 | P48: 305000 | Q48: 110000 | R48: 140000
N49: JEF | O49: 2400000 | P49: 180000 | Q49: 100000 | R49: 165000
N50: KNO | O50: 1895000 | P50: 205000 | Q50: 165000 | R50: 130000
N51: LAK | O51: 2240000 | P51: 690000 | Q51: 140000 | R51: 115000
N52: LAW | O52: 1875000 | P52: 145000 | Q52: 155000 | R52: 165000
N53: LIC | O53: 1885000 | P53: 695000 | Q53: 175000 | R53: 135000
N54: LOG | O54: 1545000 | P54: 205000 | Q54: 145000 | R54: 120000
N55: LOR | O55: 2005000 | P55: 505000 | Q55: 135000 | R55: 175000
N56: LUC | O56: 1585000 | P56: 635000 | Q56: 225000 | R56: 125000
N57: MAD | O57: 1640000 | P57: 615000 | Q57: 135000 | R57: 160000
N58: MAH | O58: 2355000 | P58: 450000 | Q58: 165000 | R58: 95000
N59: MAR | O59: 1710000 | P59: 275000 | Q59: 160000 | R59: 105000
N60: MED | O60: 2055000 | P60: 480000 | Q60: 140000 | R60: 110000
N61: MEG | O61: 2015000 | P61: 315000 | Q61: 175000 | R61: 125000
N62: MER | O62: 1325000 | P62: 255000 | Q62: 110000 | R62: 145000
N63: MIA | O63: 1425000 | P63: 685000 | Q63: 120000 | R63: 125000
N64: MOE | O64: 2300000 | P64: 560000 | Q64: 145000 | R64: 125000
N65: MOT | O65: 1410000 | P65: 575000 | Q65: 125000 | R65: 130000
N66: MRG | O66: 2085000 | P66: 525000 | Q66: 145000 | R66: 125000
N67: MRW | O67: 1820000 | P67: 245000 | Q67: 115000 | R67: 140000
N68: MUS | O68: 2040000 | P68: 640000 | Q68: 160000 | R68: 150000
N69: NOB | O69: 2190000 | P69: 575000 | Q69: 135000 | R69: 140000
N70: OTT | O70: 1715000 | P70: 650000 | Q70: 20000 | R70: 105000
N71: PAU | O71: 1330000 | P71: 485000 | Q71: 135000 | R71: 105000
N72: PER | O72: 1975000 | P72: 560000 | Q72: 130000 | R72: 145000
N73: PIC | O73: 1750000 | P73: 530000 | Q73: 155000 | R73: 135000
N74: PIK | O74: 1715000 | P74: 345000 | Q74: 175000 | R74: 95000
N75: POR | O75: 2270000 | P75: 480000 | Q75: 115000 | R75: 140000
N76: PRE | O76: 1310000 | P76: 575000 | Q76: 105000 | R76: 135000
N77: PUT | O77: 1440000 | P77: 435000 | Q77: 150000 | R77: 120000
N78: RIC | O78: 1900000 | P78: 320000 | Q78: 115000 | R78: 165000
N79: ROS | O79: 1715000 | P79: 425000 | Q79: 190000 | R79: 130000
N80: SAN | O80: 1715000 | P80: 575000 | Q80: 165000 | R80: 100000
N81: SCI | O81: 1745000 | P81: 205000 | Q81: 185000 | R81: 170000
N82: SEN | O82: 1710000 | P82: 480000 | Q82: 170000 | R82: 105000
N83: SHE | O83: 1425000 | P83: 190000 | Q83: 130000 | R83: 115000
N84: STA | O84: 2200000 | P84: 350000 | Q84: 165000 | R84: 135000
N85: SUM | O85: 2190000 | P85: 450000 | Q85: 85000 | R85: 175000
N86: TRU | O86: 2375000 | P86: 535000 | Q86: 145000 | R86: 140000
N87: TUS | O87: 2185000 | P87: 200000 | Q87: 130000 | R87: 170000
N88: UNI | O88: 1650000 | P88: 160000 | Q88: 265000 | R88: 295000
N89: VAN | O89: 1325000 | P89: 375000 | Q89: 135000 | R89: 120000
N90: VIN | O90: 1890000 | P90: 370000 | Q90: 150000 | R90: 140000
N91: WAR | O91: 1440000 | P91: 460000 | Q91: 115000 | R91: 125000
N92: WAS | O92: 2150000 | P92: 440000 | Q92: 235000 | R92: 165000
N93: WAY | O93: 2070000 | P93: 360000 | Q93: 135000 | R93: 125000
N94: WIL | O94: 1335000 | P94: 645000 | Q94: 130000 | R94: 105000
N95: WOO | O95: 1585000 | P95: 545000 | Q95: 135000 | R95: 170000
N96: WYA | O96: 1685000 | P96: 370000 | Q96: 115000 | R96: 115000

Sheet MON TABLE
A1: PROJECT: | F1: =REPORT!B2 -> FRA-33-24.76 | N1: PID: | O1: =REPORT!$E$2 -> 119387
A2: Import Units: | C2: LDP Coord? | D2: TRUE | E2: ="Unit Conversion Factor1 ("&D3&"->"&D4&"):" -> Unit Conversion Factor1 (sft->m): | H2: =INDEX(FactorValues,MATCH(D3&"->"&D4,FactorNames,0)) -> 0.3048006096 | I2: Scale Factor: | J2: County:
C3: U.S. Survey FT | D3: =INDEX(ShortUnits,MATCH($C$3,Units,0),1) -> sft | E3: ="Unit Conversion Factor2 ("&D3&"->"&D5&"):" -> Unit Conversion Factor2 (sft->sft): | H3: =INDEX(FactorValues,MATCH(D3&"->"&D5,FactorNames,0)) -> 1 | J3: =REPORT!C11 -> Franklin
A4: Output Unit1: | C4: Meters | D4: =INDEX(ShortUnits,MATCH($C$4,Units,0),1) -> m | E4: Adjustment Factor1: | H4: =IF(D2=TRUE,I4*H2,H2) -> 0.3047893324 | I4: =IF(D2=TRUE,1/REPORT!C14,"n/a") -> 0.9999630014 | J4: Primary Project Control:
A5: Output Unit2: | C5: U.S. Survey FT | D5: =INDEX(ShortUnits,MATCH($C$5,Units,0),1) -> sft | E5: Adjustment Factor2: | H5: =IF(D2=TRUE,I4*H3,H3) -> 0.9999630014 | J5: See list below
A6: =IF(D2=TRUE,REPORT!C11&" "&"County"&" "&"LDP","STATE PLANE GRID")&" Coordinates - "&C3 -> Franklin County LDP Coordinates - U.S. Survey FT | L6: STATE PLANE GRID COORDINATES | S6: MONUMENTS TO BE SET
S7: DURING CONSTRUCTION
L8: Horiz. Datum: | M8: =REPORT!C12 -> NAD83 (2011) | N8: =REPORT!C10 -> South | P8: Vert. Datum: | Q8: =REPORT!C16 -> NAVD88
L9: =REPORT!A44&" defined by GPS from CORS using "&REPORT!C16&". All other elevations are established by leveling from "&REPORT!A44&"." -> Trimble TSC7 Data collector defined by GPS from CORS using NAVD88. All other elevations are established by leveling from Trimble TSC7 Data collector. | S9: ITEM 623.05 | T9: ITEM 623.05
A10: NAME | B10: Alignment Name | C10: STATION | D10: ="OFFSET ("&D3&")" -> OFFSET (sft) | E10: RT/LT | F10: ="NORTH ("&D3&")" -> NORTH (sft) | G10: ="EAST ("&D3&")" -> EAST (sft) | H10: ="ELEVATION ("&D3&")" -> ELEVATION (sft) | I10: FEATURE | J10: POINT TYPE | K10: DESCRIPTION | L10: NAME | M10: ="NORTH ("&D4&")" -> NORTH (m) | N10: ="EAST ("&D4&")" -> EAST (m) | O10: ="ORTHO HT ("&D4&")" -> ORTHO HT (m) | P10: ="NORTH ("&D5&")" -> NORTH (sft) | Q10: ="EAST ("&D5&")" -> EAST (sft) | R10: ="ORTHO HT ("&D5&")" -> ORTHO HT (sft) | S10: MONUMENT ASSEMBLY | T10: REFERENCE MONUMENT
A11: 101 | B11: CLX_RW_4 | C11: 871+75.65 | D11: 2.62' | E11: RT | F11: 549132.59 | G11: 222110.745 | H11: 743.417 | I11: CMONS | J11: Project Control Points | K11: CONC. MON WITH 3" ALUMINUM DISC STAMPED "101 - ODOT SURVEY MARKER WOOLPERT" | L11: 101 | M11: 211824.538 | N11: 566394.235 | O11: 226.594 | P11: 694961.006 | Q11: 1858245.085 | R11: =H11*$H$5 -> 743.3894946
A12: 102 | B12: CLX_RW_4 | C12: 849+16.87 | D12: 8.19' | E12: LT | F12: 547343.874 | G12: 220731.564 | H12: 764.45 | I12: CMONS | J12: Project Control Points | K12: CONC. MON WITH 3" ALUMINUM DISC STAMPED "102 - ODOT SURVEY MARKER WOOLPERT" | L12: 102 | M12: 211282.187 | N12: 565970.259 | O12: 233.005 | P12: 693181.642 | Q12: 1856854.093 | R12: 764.4217164
A13: 103 | B13: CLX_RW_4 | C13: 826+49.62 | D13: 4.56' | E13: LT | F13: 545532.376 | G13: 219369.059 | H13: 737.431 | I13: CMONS | J13: Project Control Points | K13: CONC. MON WITH 3" ALUMINUM DISC STAMPED "103 - ODOT SURVEY MARKER WOOLPERT" | L13: 103 | M13: 210732.858 | N13: 565551.321 | O13: 224.769 | P13: 691379.386 | Q13: 1855479.626 | R13: 737.4037161
A14: 104 | B14: CLX_RW_4 | C14: 860+42.22 | D14: 4.20' | E14: LT | F14: 548239.593 | G14: 221412.836 | H14: 747.893 | I14: IPINS | J14: Project Control Points | K14: 3/4"REBAR WITH 2.5" ALUMINUM DISC STAMPED "104 - WOOLPERT" | L14: 104 | M14: 211553.794 | N14: 566179.714 | O14: 227.958 | P14: 694072.74 | Q14: 1857541.28 | R14: 747.865329
A15: 105 | B15: CLX_RW_4 | C15: 838+52.08 | D15: 6.47' | E15: LT | F15: 546493.049 | G15: 220091.35 | H15: 756.015 | I15: IPINS | J15: Project Control Points | K15: 3/4"REBAR WITH 2.5" ALUMINUM DISC STAMPED "105 - WOOLPERT" | L15: 105 | M15: 211024.179 | N15: 565773.409 | O15: 230.434 | P15: 692335.16 | Q15: 1856208.261 | R15: 755.9870285
A16: 206 | B16: CLX_RW_US33 | C16: 1280+31.44 | D16: 0.18' | E16: RT | F16: 548105.389 | G16: 218433.598 | H16: 750.315 | I16: CMON | J16: Existing Centerline Control Point | K16: MON0000671 1/2" PIN SET IN 8" CONCRETE MONUMENT. | L16: 206 | M16: 211518.948 | N16: 565271.446 | O16: 228.696 | P16: 693958.415 | Q16: 1854561.402 | R16: 750.2872394
A17: 211 | B17: CLX_RW_4 | C17: 857+99.78 | D17: 0.13' | E17: LT | F17: 548043.655 | G17: 221270 | H17: 751.502 | I17: CMON | J17: Existing Centerline Control Point | K17: MON0000472 (1/2" PIN SET IN 8" CONCRETE MONUMENT) | L17: 211 | M17: 211494.368 | N17: 566135.783 | O17: 229.058 | P17: 693877.772 | Q17: 1857397.149 | R17: 751.4741955
A18: 212 | B18: CLX_RW_4 | C18: 850+99.65 | D18: 0.09' | E18: LT | F18: 547484.865 | G18: 220848.163 | H18: 760.942 | I18: CMON | J18: Existing Centerline Control Point | K18: MON0000471 (1/2" PIN SET IN 8" CONCRETE MONUMENT) | L18: 212 | M18: 211324.92 | N18: 566006.082 | O18: 231.936 | P18: 693321.843 | Q18: 1856971.622 | R18: 760.9138462
A19: 213 | B19: CLX_RW_4 | C19: 844+99.67 | D19: 0.03' | E19: LT | F19: 547005.997 | G19: 220486.7 | H19: 762.842 | I19: CMON | J19: Existing Centerline Control Point | K19: NO MONUMENT NUMBER (1/2" PIN SET IN 8" CONCRETE MONUMENT) | L19: 213 | M19: 211179.708 | N19: 565894.944 | O19: 232.515 | P19: 692845.427 | Q19: 1856606.997 | R19: 762.8137759
A20: 214 | B20: CLX_RW_4 | C20: 839+99.99 | D20: 0.00' | E20: LT | F20: 546607.195 | G20: 220185.64 | H20: 757.108 | I20: CMON | J20: Existing Centerline Control Point | K20: MON0000469 (1/2" PIN SET IN 8" CONCRETE MONUMENT) | L20: 214 | M20: 211058.776 | N20: 565802.378 | O20: 230.767 | P20: 692448.666 | Q20: 1856303.303 | R20: 757.079988
A21: 215 | B21: CLX_RW_4 | C21: 834+00.18 | D21: 0.07' | E21: LT | F21: 546128.542 | G21: 219824.167 | H21: 745.889 | I21: CMON | J21: Existing Centerline Control Point | K21: MON0000468 (1/2" PIN SET IN 8" CONCRETE MONUMENT) | L21: 215 | M21: 210913.629 | N21: 565691.238 | O21: 227.347 | P21: 691972.466 | Q21: 1855938.67 | R21: 745.8614031
A22: 300 | B22: CLX_RW_4 | C22: 829+00.44 | D22: 0.13' | E22: LT | F22: 545729.744 | G22: 219523.004 | H22: 738.101 | I22: CMON | J22: Existing Centerline Control Point | K22: MON0000467 (1/2" PIN SET IN 8" CONCRETE MONUMENT) | L22: 300 | M22: 210792.698 | N22: 565598.641 | O22: 224.974 | P22: 691575.711 | Q22: 1855634.873 | R22: 738.0736913
A23: 301 | B23: CLX_RW_4 | C23: 823+00.57 | D23: 0.06' | E23: LT | F23: 545250.954 | G23: 219161.608 | H23: 735.798 | I23: CMON | J23: Existing Centerline Control Point | K23: MON0000438 (1/2" PIN SET IN 8" CONCRETE MONUMENT) | L23: 301 | M23: 210647.51 | N23: 565487.524 | O23: 224.272 | P23: 691099.372 | Q23: 1855270.317 | R23: 735.7707765
A24: 302 | B24: CLX_RW_4 | C24: 864+30.93 | D24: 0.07' | E24: LT | F24: 548547.329 | G24: 221650.346 | H24: 743.893 | I24: CMON | J24: Existing Centerline Control Point | K24: MON0000473 (1/2" PIN SET IN 8" CONCRETE MONUMENT) | L24: 302 | M24: 211647.102 | N24: 566252.727 | O24: 226.739 | P24: 694378.866 | Q24: 1857780.822 | R24: 743.865477
A25: 303 | B25: CLX_RW_4 | C25: 870+99.76 | D25: 0.52' | E25: LT | F25: 549075.435 | G25: 222060.722 | H25: 742.082 | I25: CMON | J25: Existing Centerline Control Point | K25: MON0000439 (1/2" PIN SET IN 8" CONCRETE MONUMENT) | L25: 303 | M25: 211807.22 | N25: 566378.873 | O25: 226.187 | P25: 694904.189 | Q25: 1858194.685 | R25: 742.054544
A26: 307 | B26: CLX_RW_US33 | C26: 1286+37.72 | D26: 0.32' | E26: LT | F26: 547901.075 | G26: 219004.408 | H26: 752.703 | I26: CMON | J26: Existing Centerline Control Point | K26: MON0000663 (1/2" PIN SET IN 8" CONCRETE MONUMENT) | L26: 307 | M26: 211455.518 | N26: 565444.999 | O26: 229.424 | P26: 693750.312 | Q26: 1855130.801 | R26: 752.675151
A27: FGCS ST12 | B27: CLX_RW_US33 | C27: 1292+83.73 | D27: 570.65' | E27: LT | F27: 548221.109 | G27: 219804.974 | H27: 755.786 | I27: CMON | J27: Existing Centerline Control Point | K27: 1" I-PIN IN MONUMENT BOX @ CENTERLINE OF WATKINS RD | L27: FGCS ST12 | M27: 211551.429 | N27: 565689.641 | O27: 230.364 | P27: 694064.98 | Q27: 1855933.432 | R27: 755.758037
A28: H46RESET | B28: CLX_RW_US33 | C28: 1292+61.55 | D28: 194.75' | E28: RT | F28: 547507.898 | G28: 219526.306 | H28: 773.654 | I28: CMON | J28: County Monument | K28: ALUM DISC SET IN PARAPET WALL OF BRIDGE @ WATKINS RD | L28: H46RESET | M28: 211334.627 | N28: 565603.261 | O28: 235.81 | P28: 693353.688 | Q28: 1855650.033 | R28: 773.6253759
A29: SE-8 | B29: CLX_RW_4 | C29: 862+53.98 | D29: 170.23' | E29: LT | F29: 548508.632 | G29: 221407.922 | H29: 768.755 | I29: CMON | J29: County Monument | K29: ALUM DISC SET IN PARAPET WALL OF BRIDGE @ WINCHESTER PIKE | L29: SE-8 | M29: 211635.801 | N29: 566178.764 | O29: 234.317 | P29: 694341.789 | Q29: 1857538.16 | R29: 768.7265571
A30: 20310 | B30: CLX_RW_US33 | C30: 1291+67.15 | D30: 294.29' | E30: RT | F30: 547445.971 | G30: 219403.898 | H30: 767.02 | I30: MONBOX | J30: Existing Centerline Control Point | K30: 1" I-PIN IN MONUMENT BOX @ CENTERLINE OF WATKINS RD | L30: 20310 | M30: 211316.002 | N30: 565565.828 | O30: 233.788 | P30: 693292.584 | Q30: 1855527.222 | R30: 766.9916213
R31: 0
R32: 0
R33: 0
R34: 0
R35: 0
R36: 0
R37: 0
R38: 0
R39: 0
R40: 0
R41: 0
R42: 0
R43: =H43*$H$5 -> 0
R44: 0
R45: 0
R46: 0
R47: 0
R48: 0
R49: 0
R50: 0
R51: 0
R52: 0
R53: 0
R54: 0
R55: 0
R56: 0
R57: 0
R58: 0
R59: 0
R60: 0
R61: 0
R62: 0
R63: 0
R64: 0
R65: 0
R66: 0
R67: 0
R68: 0
R69: 0
R70: 0
R71: 0
R72: 0
R73: 0
R74: 0
R75: =H75*$H$5 -> 0
R76: 0
R77: 0
R78: 0
R79: 0
R80: 0
R81: 0
R82: 0
R83: 0
R84: 0
R85: 0
R86: 0
R87: 0
R88: 0
R89: 0
R90: 0
R91: 0
R92: 0
R93: 0
R94: 0
R95: 0
R96: =H96*$H$5 -> 0
R97: 0
R98: 0
R99: 0
R100: 0
R101: 0
R102: 0
R103: 0
R104: 0
R105: 0
R106: 0
R107: 0
R108: 0
R109: 0
R110: 0
R111: 0
R112: 0
R113: 0
R114: =H114*$H$5 -> 0
R115: 0
R116: 0
R117: 0
R118: 0
R119: 0
R120: 0
R121: 0
R122: 0
R123: 0
R124: 0
R125: 0
R126: 0
R127: 0
R128: 0
R129: 0
R130: 0
R131: 0
R132: 0
R133: 0
R134: 0
R135: 0
R136: 0
R137: 0
R138: 0
R139: 0
R140: 0
R141: 0
R142: 0
R143: 0
R144: 0
R145: 0
R146: 0
R147: 0
R148: 0
R149: 0
R150: 0
R151: 0
R152: 0
R153: 0
R154: 0
R155: 0
R156: 0
R157: 0
R158: 0
R159: 0
R160: 0
R161: 0
R162: 0
R163: 0
R164: 0
R165: 0
R166: 0
R167: 0
R168: 0
R169: 0
R170: 0
R171: 0
R172: 0
R173: 0
R174: 0
R175: 0
R176: 0
R177: 0
R178: =H178*$H$5 -> 0
R179: 0
R180: 0
R181: 0
R182: 0
R183: 0
R184: 0
R185: 0
R186: 0
R187: 0
R188: 0
R189: 0
R190: 0
R191: 0
R192: 0
R193: 0
R194: 0
R195: 0
R196: 0
R197: 0
R198: 0
R199: 0
R200: 0
... 27 more rows

Sheet GPS_IMPORT
A1: NAME | B1: Date | C1: Time | D1: Northing | E1: Easting | F1: Elevation | G1: Code | I1: GPS Import Settings
A2: 101 | B2: 2024-04-26 | C2: 09:34:57 | D2: 694961.025 | E2: 1858245.092 | F2: 743.453 | G2: CMON | I2: Import | J2: LDP Coord? | K2: FALSE | L2: Factor
A3: 101 | B3: 2024-04-26 | C3: 09:35:55 | D3: 694961.02 | E3: 1858245.103 | F3: 743.422 | G3: CMON | J3: Units | K3: Short Unit | L3: =K4&"->"&K6 -> sft->sft
A4: 101 | B4: 2024-04-26 | C4: 09:37:38 | D4: 694960.992 | E4: 1858245.073 | F4: 743.414 | G4: CMON | J4: U.S. Survey FT | K4: =INDEX(ShortUnits,MATCH(GPS_IMPORT!$J$4,Units,0),1) -> sft
A5: 101 | B5: 2024-04-26 | C5: 09:38:26 | D5: 694961.016 | E5: 1858245.072 | F5: 743.403 | G5: CMON
A6: 101 | B6: 2024-04-26 | C6: 09:39:33 | D6: 694961.014 | E6: 1858245.099 | F6: 743.392 | G6: CMON | I6: Output | J6: U.S. Survey FT | K6: =INDEX(ShortUnits,MATCH(GPS_IMPORT!$J$6,Units,0),1) -> sft | L6: =INDEX(FactorValues,MATCH(L3,FactorNames,0)) -> 1
A7: 101 | B7: 2024-04-26 | C7: 09:40:16 | D7: 694960.981 | E7: 1858245.095 | F7: 743.404 | G7: CMON
A8: 101 | B8: 2024-04-26 | C8: 09:40:56 | D8: 694960.98 | E8: 1858245.078 | F8: 743.419 | G8: CMON
A9: 101 | B9: 2024-04-26 | C9: 09:41:41 | D9: 694960.995 | E9: 1858245.072 | F9: 743.437 | G9: CMON
A10: 101 | B10: 2024-04-26 | C10: 09:43:09 | D10: 694961.014 | E10: 1858245.09 | F10: 743.411 | G10: CMON
A11: 101 | B11: 2024-04-26 | C11: 09:44:51 | D11: 694960.988 | E11: 1858245.082 | F11: 743.449 | G11: CMON
A12: 101 | B12: 2024-04-26 | C12: 09:45:20 | D12: 694960.993 | E12: 1858245.081 | F12: 743.425 | G12: CMON
A13: 101 | B13: 2024-04-26 | C13: 09:45:56 | D13: 694961.006 | E13: 1858245.072 | F13: 743.449 | G13: CMON
A14: 101 | B14: 2024-04-26 | C14: 09:47:20 | D14: 694961.047 | E14: 1858245.088 | F14: 743.445 | G14: CMON
A15: 101 | B15: 2024-04-26 | C15: 09:47:52 | D15: 694961.024 | E15: 1858245.101 | F15: 743.442 | G15: CMON
A16: 101 | B16: 2024-04-26 | C16: 09:49:30 | D16: 694960.995 | E16: 1858245.069 | F16: 743.464 | G16: CMON
A17: 102 | B17: 2024-04-26 | C17: 10:48:21 | D17: 693181.663 | E17: 1856854.094 | F17: 764.396 | G17: CMON
A18: 102 | B18: 2024-04-26 | C18: 10:49:05 | D18: 693181.636 | E18: 1856854.11 | F18: 764.413 | G18: CMON
A19: 102 | B19: 2024-04-26 | C19: 10:49:33 | D19: 693181.638 | E19: 1856854.085 | F19: 764.417 | G19: CMON
A20: 102 | B20: 2024-04-26 | C20: 10:50:11 | D20: 693181.651 | E20: 1856854.066 | F20: 764.425 | G20: CMON
A21: 102 | B21: 2024-04-26 | C21: 10:51:21 | D21: 693181.659 | E21: 1856854.101 | F21: 764.463 | G21: CMON
A22: 102 | B22: 2024-04-26 | C22: 10:52:06 | D22: 693181.634 | E22: 1856854.117 | F22: 764.45 | G22: CMON
A23: 102 | B23: 2024-04-26 | C23: 10:52:40 | D23: 693181.636 | E23: 1856854.088 | F23: 764.457 | G23: CMON
A24: 102 | B24: 2024-04-26 | C24: 10:53:15 | D24: 693181.654 | E24: 1856854.075 | F24: 764.434 | G24: CMON
A25: 102 | B25: 2024-04-26 | C25: 10:54:14 | D25: 693181.658 | E25: 1856854.09 | F25: 764.471 | G25: CMON
A26: 102 | B26: 2024-04-26 | C26: 10:54:53 | D26: 693181.633 | E26: 1856854.114 | F26: 764.452 | G26: CMON
A27: 102 | B27: 2024-04-26 | C27: 10:55:30 | D27: 693181.625 | E27: 1856854.09 | F27: 764.462 | G27: CMON
A28: 102 | B28: 2024-04-26 | C28: 10:56:03 | D28: 693181.642 | E28: 1856854.082 | F28: 764.454 | G28: CMON
A29: 102 | B29: 2024-04-26 | C29: 10:57:27 | D29: 693181.653 | E29: 1856854.091 | F29: 764.423 | G29: CMON
A30: 102 | B30: 2024-04-26 | C30: 10:58:17 | D30: 693181.621 | E30: 1856854.102 | F30: 764.41 | G30: CMON
A31: 102 | B31: 2024-04-26 | C31: 10:58:46 | D31: 693181.62 | E31: 1856854.09 | F31: 764.421 | G31: CMON
A32: 103 | B32: 2024-04-26 | C32: 11:44:21 | D32: 691379.368 | E32: 1855479.624 | F32: 737.419 | G32: CMON
A33: 103 | B33: 2024-04-26 | C33: 11:44:52 | D33: 691379.358 | E33: 1855479.644 | F33: 737.407 | G33: CMON
A34: 103 | B34: 2024-04-26 | C34: 11:45:23 | D34: 691379.345 | E34: 1855479.641 | F34: 737.425 | G34: CMON
A35: 103 | B35: 2024-04-26 | C35: 11:45:51 | D35: 691379.371 | E35: 1855479.616 | F35: 737.422 | G35: CMON
A36: 103 | B36: 2024-04-26 | C36: 11:47:17 | D36: 691379.409 | E36: 1855479.622 | F36: 737.48 | G36: CMON
A37: 103 | B37: 2024-04-26 | C37: 11:47:53 | D37: 691379.404 | E37: 1855479.646 | F37: 737.491 | G37: CMON
A38: 103 | B38: 2024-04-26 | C38: 11:48:33 | D38: 691379.381 | E38: 1855479.637 | F38: 737.483 | G38: CMON
A39: 103 | B39: 2024-04-26 | C39: 11:49:16 | D39: 691379.395 | E39: 1855479.623 | F39: 737.493 | G39: CMON
A40: 103 | B40: 2024-04-26 | C40: 11:50:32 | D40: 691379.416 | E40: 1855479.603 | F40: 737.441 | G40: CMON
A41: 103 | B41: 2024-04-26 | C41: 11:51:15 | D41: 691379.398 | E41: 1855479.627 | F41: 737.428 | G41: CMON
A42: 103 | B42: 2024-04-26 | C42: 11:51:46 | D42: 691379.375 | E42: 1855479.62 | F42: 737.443 | G42: CMON
A43: 103 | B43: 2024-04-26 | C43: 11:52:28 | D43: 691379.377 | E43: 1855479.616 | F43: 737.458 | G43: CMON
A44: 103 | B44: 2024-04-26 | C44: 11:53:51 | D44: 691379.41 | E44: 1855479.623 | F44: 737.449 | G44: CMON
A45: 103 | B45: 2024-04-26 | C45: 11:54:36 | D45: 691379.405 | E45: 1855479.631 | F45: 737.433 | G45: CMON
A46: 103 | B46: 2024-04-26 | C46: 11:55:13 | D46: 691379.371 | E46: 1855479.612 | F46: 737.427 | G46: CMON
A47: 104 | B47: 2024-04-26 | C47: 10:14:49 | D47: 694072.763 | E47: 1857541.277 | F47: 747.877 | G47: CNPT
A48: 104 | B48: 2024-04-26 | C48: 10:15:22 | D48: 694072.752 | E48: 1857541.278 | F48: 747.904 | G48: CNPT
A49: 104 | B49: 2024-04-26 | C49: 10:15:50 | D49: 694072.749 | E49: 1857541.264 | F49: 747.907 | G49: CNPT
A50: 104 | B50: 2024-04-26 | C50: 10:16:25 | D50: 694072.763 | E50: 1857541.259 | F50: 747.919 | G50: CNPT
A51: 104 | B51: 2024-04-26 | C51: 10:17:41 | D51: 694072.74 | E51: 1857541.286 | F51: 747.918 | G51: CNPT
A52: 104 | B52: 2024-04-26 | C52: 10:18:16 | D52: 694072.73 | E52: 1857541.287 | F52: 747.917 | G52: CNPT
A53: 104 | B53: 2024-04-26 | C53: 10:18:43 | D53: 694072.73 | E53: 1857541.277 | F53: 747.91 | G53: CNPT
A54: 104 | B54: 2024-04-26 | C54: 10:19:12 | D54: 694072.75 | E54: 1857541.276 | F54: 747.906 | G54: CNPT
A55: 104 | B55: 2024-04-26 | C55: 10:21:07 | D55: 694072.756 | E55: 1857541.291 | F55: 747.883 | G55: CNPT
A56: 104 | B56: 2024-04-26 | C56: 10:21:46 | D56: 694072.73 | E56: 1857541.298 | F56: 747.843 | G56: CNPT
A57: 104 | B57: 2024-04-26 | C57: 10:22:11 | D57: 694072.725 | E57: 1857541.28 | F57: 747.838 | G57: CNPT
A58: 104 | B58: 2024-04-26 | C58: 10:23:38 | D58: 694072.741 | E58: 1857541.271 | F58: 747.844 | G58: CNPT
A59: 104 | B59: 2024-04-26 | C59: 10:25:41 | D59: 694072.727 | E59: 1857541.29 | F59: 747.852 | G59: CNPT
A60: 104 | B60: 2024-04-26 | C60: 10:26:19 | D60: 694072.722 | E60: 1857541.293 | F60: 747.833 | G60: CNPT
A61: 104 | B61: 2024-04-26 | C61: 10:27:05 | D61: 694072.717 | E61: 1857541.265 | F61: 747.817 | G61: CNPT
A62: 105 | B62: 2024-04-26 | C62: 11:14:31 | D62: 692335.144 | E62: 1856208.26 | F62: 756.054 | G62: CNPT
A63: 105 | B63: 2024-04-26 | C63: 11:15:14 | D63: 692335.143 | E63: 1856208.26 | F63: 756.038 | G63: CNPT
A64: 105 | B64: 2024-04-26 | C64: 11:15:46 | D64: 692335.152 | E64: 1856208.248 | F64: 756.012 | G64: CNPT
A65: 105 | B65: 2024-04-26 | C65: 11:16:28 | D65: 692335.166 | E65: 1856208.271 | F65: 756 | G65: CNPT
A66: 105 | B66: 2024-04-26 | C66: 11:17:45 | D66: 692335.173 | E66: 1856208.281 | F66: 756.008 | G66: CNPT
A67: 105 | B67: 2024-04-26 | C67: 11:18:19 | D67: 692335.152 | E67: 1856208.279 | F67: 756.036 | G67: CNPT
A68: 105 | B68: 2024-04-26 | C68: 11:19:16 | D68: 692335.156 | E68: 1856208.252 | F68: 756.064 | G68: CNPT
A69: 105 | B69: 2024-04-26 | C69: 11:19:50 | D69: 692335.174 | E69: 1856208.255 | F69: 756.068 | G69: CNPT
A70: 105 | B70: 2024-04-26 | C70: 11:21:37 | D70: 692335.163 | E70: 1856208.267 | F70: 756.106 | G70: CNPT
A71: 105 | B71: 2024-04-26 | C71: 11:22:21 | D71: 692335.145 | E71: 1856208.272 | F71: 756.105 | G71: CNPT
A72: 105 | B72: 2024-04-26 | C72: 11:23:08 | D72: 692335.158 | E72: 1856208.252 | F72: 756.066 | G72: CNPT
A73: 105 | B73: 2024-04-26 | C73: 11:23:46 | D73: 692335.179 | E73: 1856208.253 | F73: 756.027 | G73: CNPT
A74: 105 | B74: 2024-04-26 | C74: 11:25:04 | D74: 692335.175 | E74: 1856208.266 | F74: 756.016 | G74: CNPT
A75: 105 | B75: 2024-04-26 | C75: 11:25:42 | D75: 692335.15 | E75: 1856208.261 | F75: 756.043 | G75: CNPT
A76: 105 | B76: 2024-04-26 | C76: 11:26:56 | D76: 692335.162 | E76: 1856208.234 | F76: 756.022 | G76: CNPT

Sheet PointTemplate
A1: VRS GNSS Project Control Monument Coordinate Analysis
A3: Project: | B3: =REPORT!B2 -> FRA-33-24.76 | D3: GPS Antenna: | E3: =REPORT!A42 -> Trimble R12i | I3: Report Date: | J3: =REPORT!C49 -> 2024-06-25
A4: PID: | B4: =REPORT!E2 -> 119387 | D4: VRS Network: | E4: ODOT VRS | I4: Prepared By: | J4: =REPORT!C48 -> Mark Humphrey
A5: Point ID: | C5: No. of Sessions: | D5: =SUM(IF(GPS_IMPORT!A2:A1000=$B$5,1,0)) -> 0 | E5: =IF(GPS_IMPORT!K2,"(LDP)","(STATE PLANE)") -> (STATE PLANE) | I5: Checked By: | J5: =REPORT!C59 -> Mike Wilson
A6: SESSION # | B6: Point | C6: Observation Date | D6: Start Time | E6: ="Northing("&GPS_IMPORT!K4&")" -> Northing(sft) | F6: ="Easting("&GPS_IMPORT!K4&")" -> Easting(sft) | G6: ="Height("&GPS_IMPORT!K4&")" -> Height(sft) | H6: ="∆ Northing("&GPS_IMPORT!K4&")" -> ∆ Northing(sft) | I6: ="∆ Easting("&GPS_IMPORT!K4&")" -> ∆ Easting(sft) | J6: ="∆ Height("&GPS_IMPORT!K4&")" -> ∆ Height(sft) | K6: Include in Solution?
A7: 1 | B7: =IF(ROWS(GPS_IMPORT!$1:1)<=SUM(IF(GPS_IMPORT!$A$2:$A$10000=$B$5,1,0)),INDEX(GPS_IMPORT!$2:$10000,MATCH($B$5,(GPS_IMPORT!$A$2:$A$10000),0)+ROWS($1:1)-1,COLUMN()-1),0) -> 0 | C7: =IF(ROWS(GPS_IMPORT!$1:1)<=SUM(IF(GPS_IMPORT!$A$2:$A$10000=$B$5,1,0)),INDEX(GPS_IMPORT!$2:$10000,MATCH($B$5,(GPS_IMPORT!$A$2:$A$10000),0)+ROWS($1:1)-1,COLUMN()-1),0) -> 00:00:00 | D7: =IF(ROWS(GPS_IMPORT!$1:1)<=SUM(IF(GPS_IMPORT!$A$2:$A$10000=$B$5,1,0)),INDEX(GPS_IMPORT!$2:$10000,MATCH($B$5,(GPS_IMPORT!$A$2:$A$10000),0)+ROWS($1:1)-1,COLUMN()-1),0) -> 00:00:00 | E7: =IF(ROWS(GPS_IMPORT!$1:1)<=SUM(IF(GPS_IMPORT!$A$2:$A$10000=$B$5,1,0)),INDEX(GPS_IMPORT!$2:$10000,MATCH($B$5,(GPS_IMPORT!$A$2:$A$10000),0)+ROWS($1:1)-1,COLUMN()-1),0) -> 0 | F7: =IF(ROWS(GPS_IMPORT!$1:1)<=SUM(IF(GPS_IMPORT!$A$2:$A$10000=$B$5,1,0)),INDEX(GPS_IMPORT!$2:$10000,MATCH($B$5,(GPS_IMPORT!$A$2:$A$10000),0)+ROWS($1:1)-1,COLUMN()-1),0) -> 0 | G7: =IF(ROWS(GPS_IMPORT!$1:1)<=SUM(IF(GPS_IMPORT!$A$2:$A$10000=$B$5,1,0)),INDEX(GPS_IMPORT!$2:$10000,MATCH($B$5,(GPS_IMPORT!$A$2:$A$10000),0)+ROWS($1:1)-1,COLUMN()-1),0) -> 0 | H7: =IF(K7=TRUE,IF(E7>0,E$22-E7,0),0) -> 0 | I7: =IF(K7=TRUE,IF(F7>0,F$22-F7,0),0) -> 0 | J7: =IF(K7=TRUE,IF(G7>0,G$22-G7,0),0) -> 0 | K7: TRUE | L7: =IF(OR(ABS(H7)>$H$24,ABS(I7)>$H$24,ABS(SQRT((H7^2)+(I7^2)))>$H$24),IF(K7=TRUE,IF(E7>0,E$22-E7,0),0),0) -> 0 | M7: =IF(OR(ABS(H7)>$H$24,ABS(I7)>$H$24,ABS(SQRT((H7^2)+(I7^2)))>$H$24),IF(K7=TRUE,IF(E7>0,F$22-F7,0),0),0) -> 0
A8: 2 | B8: =IF(ROWS(GPS_IMPORT!$1:2)<=SUM(IF(GPS_IMPORT!$A$2:$A$10000=$B$5,1,0)),INDEX(GPS_IMPORT!$2:$10000,MATCH($B$5,(GPS_IMPORT!$A$2:$A$10000),0)+ROWS($1:2)-1,COLUMN()-1),0) -> 0 | C8: =IF(ROWS(GPS_IMPORT!$1:2)<=SUM(IF(GPS_IMPORT!$A$2:$A$10000=$B$5,1,0)),INDEX(GPS_IMPORT!$2:$10000,MATCH($B$5,(GPS_IMPORT!$A$2:$A$10000),0)+ROWS($1:2)-1,COLUMN()-1),0) -> 00:00:00 | D8: =IF(ROWS(GPS_IMPORT!$1:2)<=SUM(IF(GPS_IMPORT!$A$2:$A$10000=$B$5,1,0)),INDEX(GPS_IMPORT!$2:$10000,MATCH($B$5,(GPS_IMPORT!$A$2:$A$10000),0)+ROWS($1:2)-1,COLUMN()-1),0) -> 00:00:00 | E8: =IF(ROWS(GPS_IMPORT!$1:2)<=SUM(IF(GPS_IMPORT!$A$2:$A$10000=$B$5,1,0)),INDEX(GPS_IMPORT!$2:$10000,MATCH($B$5,(GPS_IMPORT!$A$2:$A$10000),0)+ROWS($1:2)-1,COLUMN()-1),0) -> 0 | F8: =IF(ROWS(GPS_IMPORT!$1:2)<=SUM(IF(GPS_IMPORT!$A$2:$A$10000=$B$5,1,0)),INDEX(GPS_IMPORT!$2:$10000,MATCH($B$5,(GPS_IMPORT!$A$2:$A$10000),0)+ROWS($1:2)-1,COLUMN()-1),0) -> 0 | G8: =IF(ROWS(GPS_IMPORT!$1:2)<=SUM(IF(GPS_IMPORT!$A$2:$A$10000=$B$5,1,0)),INDEX(GPS_IMPORT!$2:$10000,MATCH($B$5,(GPS_IMPORT!$A$2:$A$10000),0)+ROWS($1:2)-1,COLUMN()-1),0) -> 0 | H8: =IF(K8=TRUE,IF(E8>0,E$22-E8,0),0) -> 0 | I8: =IF(K8=TRUE,IF(F8>0,F$22-F8,0),0) -> 0 | J8: =IF(K8=TRUE,IF(G8>0,G$22-G8,0),0) -> 0 | K8: TRUE | L8: 0 | M8: 0
A9: 3 | B9: =IF(ROWS(GPS_IMPORT!$1:3)<=SUM(IF(GPS_IMPORT!$A$2:$A$10000=$B$5,1,0)),INDEX(GPS_IMPORT!$2:$10000,MATCH($B$5,(GPS_IMPORT!$A$2:$A$10000),0)+ROWS($1:3)-1,COLUMN()-1),0) -> 0 | C9: =IF(ROWS(GPS_IMPORT!$1:3)<=SUM(IF(GPS_IMPORT!$A$2:$A$10000=$B$5,1,0)),INDEX(GPS_IMPORT!$2:$10000,MATCH($B$5,(GPS_IMPORT!$A$2:$A$10000),0)+ROWS($1:3)-1,COLUMN()-1),0) -> 00:00:00 | D9: =IF(ROWS(GPS_IMPORT!$1:3)<=SUM(IF(GPS_IMPORT!$A$2:$A$10000=$B$5,1,0)),INDEX(GPS_IMPORT!$2:$10000,MATCH($B$5,(GPS_IMPORT!$A$2:$A$10000),0)+ROWS($1:3)-1,COLUMN()-1),0) -> 00:00:00 | E9: =IF(ROWS(GPS_IMPORT!$1:3)<=SUM(IF(GPS_IMPORT!$A$2:$A$10000=$B$5,1,0)),INDEX(GPS_IMPORT!$2:$10000,MATCH($B$5,(GPS_IMPORT!$A$2:$A$10000),0)+ROWS($1:3)-1,COLUMN()-1),0) -> 0 | F9: =IF(ROWS(GPS_IMPORT!$1:3)<=SUM(IF(GPS_IMPORT!$A$2:$A$10000=$B$5,1,0)),INDEX(GPS_IMPORT!$2:$10000,MATCH($B$5,(GPS_IMPORT!$A$2:$A$10000),0)+ROWS($1:3)-1,COLUMN()-1),0) -> 0 | G9: =IF(ROWS(GPS_IMPORT!$1:3)<=SUM(IF(GPS_IMPORT!$A$2:$A$10000=$B$5,1,0)),INDEX(GPS_IMPORT!$2:$10000,MATCH($B$5,(GPS_IMPORT!$A$2:$A$10000),0)+ROWS($1:3)-1,COLUMN()-1),0) -> 0 | H9: 0 | I9: 0 | J9: 0 | K9: TRUE | L9: 0 | M9: 0
A10: 4 | B10: =IF(ROWS(GPS_IMPORT!$1:4)<=SUM(IF(GPS_IMPORT!$A$2:$A$10000=$B$5,1,0)),INDEX(GPS_IMPORT!$2:$10000,MATCH($B$5,(GPS_IMPORT!$A$2:$A$10000),0)+ROWS($1:4)-1,COLUMN()-1),0) -> 0 | C10: =IF(ROWS(GPS_IMPORT!$1:4)<=SUM(IF(GPS_IMPORT!$A$2:$A$10000=$B$5,1,0)),INDEX(GPS_IMPORT!$2:$10000,MATCH($B$5,(GPS_IMPORT!$A$2:$A$10000),0)+ROWS($1:4)-1,COLUMN()-1),0) -> 00:00:00 | D10: =IF(ROWS(GPS_IMPORT!$1:4)<=SUM(IF(GPS_IMPORT!$A$2:$A$10000=$B$5,1,0)),INDEX(GPS_IMPORT!$2:$10000,MATCH($B$5,(GPS_IMPORT!$A$2:$A$10000),0)+ROWS($1:4)-1,COLUMN()-1),0) -> 00:00:00 | E10: =IF(ROWS(GPS_IMPORT!$1:4)<=SUM(IF(GPS_IMPORT!$A$2:$A$10000=$B$5,1,0)),INDEX(GPS_IMPORT!$2:$10000,MATCH($B$5,(GPS_IMPORT!$A$2:$A$10000),0)+ROWS($1:4)-1,COLUMN()-1),0) -> 0 | F10: =IF(ROWS(GPS_IMPORT!$1:4)<=SUM(IF(GPS_IMPORT!$A$2:$A$10000=$B$5,1,0)),INDEX(GPS_IMPORT!$2:$10000,MATCH($B$5,(GPS_IMPORT!$A$2:$A$10000),0)+ROWS($1:4)-1,COLUMN()-1),0) -> 0 | G10: =IF(ROWS(GPS_IMPORT!$1:4)<=SUM(IF(GPS_IMPORT!$A$2:$A$10000=$B$5,1,0)),INDEX(GPS_IMPORT!$2:$10000,MATCH($B$5,(GPS_IMPORT!$A$2:$A$10000),0)+ROWS($1:4)-1,COLUMN()-1),0) -> 0 | H10: 0 | I10: 0 | J10: 0 | K10: TRUE | L10: 0 | M10: 0
A11: 5 | B11: =IF(ROWS(GPS_IMPORT!$1:5)<=SUM(IF(GPS_IMPORT!$A$2:$A$10000=$B$5,1,0)),INDEX(GPS_IMPORT!$2:$10000,MATCH($B$5,(GPS_IMPORT!$A$2:$A$10000),0)+ROWS($1:5)-1,COLUMN()-1),0) -> 0 | C11: =IF(ROWS(GPS_IMPORT!$1:5)<=SUM(IF(GPS_IMPORT!$A$2:$A$10000=$B$5,1,0)),INDEX(GPS_IMPORT!$2:$10000,MATCH($B$5,(GPS_IMPORT!$A$2:$A$10000),0)+ROWS($1:5)-1,COLUMN()-1),0) -> 00:00:00 | D11: =IF(ROWS(GPS_IMPORT!$1:5)<=SUM(IF(GPS_IMPORT!$A$2:$A$10000=$B$5,1,0)),INDEX(GPS_IMPORT!$2:$10000,MATCH($B$5,(GPS_IMPORT!$A$2:$A$10000),0)+ROWS($1:5)-1,COLUMN()-1),0) -> 00:00:00 | E11: =IF(ROWS(GPS_IMPORT!$1:5)<=SUM(IF(GPS_IMPORT!$A$2:$A$10000=$B$5,1,0)),INDEX(GPS_IMPORT!$2:$10000,MATCH($B$5,(GPS_IMPORT!$A$2:$A$10000),0)+ROWS($1:5)-1,COLUMN()-1),0) -> 0 | F11: =IF(ROWS(GPS_IMPORT!$1:5)<=SUM(IF(GPS_IMPORT!$A$2:$A$10000=$B$5,1,0)),INDEX(GPS_IMPORT!$2:$10000,MATCH($B$5,(GPS_IMPORT!$A$2:$A$10000),0)+ROWS($1:5)-1,COLUMN()-1),0) -> 0 | G11: =IF(ROWS(GPS_IMPORT!$1:5)<=SUM(IF(GPS_IMPORT!$A$2:$A$10000=$B$5,1,0)),INDEX(GPS_IMPORT!$2:$10000,MATCH($B$5,(GPS_IMPORT!$A$2:$A$10000),0)+ROWS($1:5)-1,COLUMN()-1),0) -> 0 | H11: 0 | I11: 0 | J11: 0 | K11: TRUE | L11: 0 | M11: 0
A12: 6 | B12: =IF(ROWS(GPS_IMPORT!$1:6)<=SUM(IF(GPS_IMPORT!$A$2:$A$10000=$B$5,1,0)),INDEX(GPS_IMPORT!$2:$10000,MATCH($B$5,(GPS_IMPORT!$A$2:$A$10000),0)+ROWS($1:6)-1,COLUMN()-1),0) -> 0 | C12: =IF(ROWS(GPS_IMPORT!$1:6)<=SUM(IF(GPS_IMPORT!$A$2:$A$10000=$B$5,1,0)),INDEX(GPS_IMPORT!$2:$10000,MATCH($B$5,(GPS_IMPORT!$A$2:$A$10000),0)+ROWS($1:6)-1,COLUMN()-1),0) -> 00:00:00 | D12: =IF(ROWS(GPS_IMPORT!$1:6)<=SUM(IF(GPS_IMPORT!$A$2:$A$10000=$B$5,1,0)),INDEX(GPS_IMPORT!$2:$10000,MATCH($B$5,(GPS_IMPORT!$A$2:$A$10000),0)+ROWS($1:6)-1,COLUMN()-1),0) -> 00:00:00 | E12: =IF(ROWS(GPS_IMPORT!$1:6)<=SUM(IF(GPS_IMPORT!$A$2:$A$10000=$B$5,1,0)),INDEX(GPS_IMPORT!$2:$10000,MATCH($B$5,(GPS_IMPORT!$A$2:$A$10000),0)+ROWS($1:6)-1,COLUMN()-1),0) -> 0 | F12: =IF(ROWS(GPS_IMPORT!$1:6)<=SUM(IF(GPS_IMPORT!$A$2:$A$10000=$B$5,1,0)),INDEX(GPS_IMPORT!$2:$10000,MATCH($B$5,(GPS_IMPORT!$A$2:$A$10000),0)+ROWS($1:6)-1,COLUMN()-1),0) -> 0 | G12: =IF(ROWS(GPS_IMPORT!$1:6)<=SUM(IF(GPS_IMPORT!$A$2:$A$10000=$B$5,1,0)),INDEX(GPS_IMPORT!$2:$10000,MATCH($B$5,(GPS_IMPORT!$A$2:$A$10000),0)+ROWS($1:6)-1,COLUMN()-1),0) -> 0 | H12: 0 | I12: 0 | J12: 0 | K12: TRUE | L12: 0 | M12: 0
A13: 7 | B13: =IF(ROWS(GPS_IMPORT!$1:7)<=SUM(IF(GPS_IMPORT!$A$2:$A$10000=$B$5,1,0)),INDEX(GPS_IMPORT!$2:$10000,MATCH($B$5,(GPS_IMPORT!$A$2:$A$10000),0)+ROWS($1:7)-1,COLUMN()-1),0) -> 0 | C13: =IF(ROWS(GPS_IMPORT!$1:7)<=SUM(IF(GPS_IMPORT!$A$2:$A$10000=$B$5,1,0)),INDEX(GPS_IMPORT!$2:$10000,MATCH($B$5,(GPS_IMPORT!$A$2:$A$10000),0)+ROWS($1:7)-1,COLUMN()-1),0) -> 00:00:00 | D13: =IF(ROWS(GPS_IMPORT!$1:7)<=SUM(IF(GPS_IMPORT!$A$2:$A$10000=$B$5,1,0)),INDEX(GPS_IMPORT!$2:$10000,MATCH($B$5,(GPS_IMPORT!$A$2:$A$10000),0)+ROWS($1:7)-1,COLUMN()-1),0) -> 00:00:00 | E13: =IF(ROWS(GPS_IMPORT!$1:7)<=SUM(IF(GPS_IMPORT!$A$2:$A$10000=$B$5,1,0)),INDEX(GPS_IMPORT!$2:$10000,MATCH($B$5,(GPS_IMPORT!$A$2:$A$10000),0)+ROWS($1:7)-1,COLUMN()-1),0) -> 0 | F13: =IF(ROWS(GPS_IMPORT!$1:7)<=SUM(IF(GPS_IMPORT!$A$2:$A$10000=$B$5,1,0)),INDEX(GPS_IMPORT!$2:$10000,MATCH($B$5,(GPS_IMPORT!$A$2:$A$10000),0)+ROWS($1:7)-1,COLUMN()-1),0) -> 0 | G13: =IF(ROWS(GPS_IMPORT!$1:7)<=SUM(IF(GPS_IMPORT!$A$2:$A$10000=$B$5,1,0)),INDEX(GPS_IMPORT!$2:$10000,MATCH($B$5,(GPS_IMPORT!$A$2:$A$10000),0)+ROWS($1:7)-1,COLUMN()-1),0) -> 0 | H13: 0 | I13: 0 | J13: 0 | K13: TRUE | L13: 0 | M13: 0
A14: 8 | B14: =IF(ROWS(GPS_IMPORT!$1:8)<=SUM(IF(GPS_IMPORT!$A$2:$A$10000=$B$5,1,0)),INDEX(GPS_IMPORT!$2:$10000,MATCH($B$5,(GPS_IMPORT!$A$2:$A$10000),0)+ROWS($1:8)-1,COLUMN()-1),0) -> 0 | C14: =IF(ROWS(GPS_IMPORT!$1:8)<=SUM(IF(GPS_IMPORT!$A$2:$A$10000=$B$5,1,0)),INDEX(GPS_IMPORT!$2:$10000,MATCH($B$5,(GPS_IMPORT!$A$2:$A$10000),0)+ROWS($1:8)-1,COLUMN()-1),0) -> 00:00:00 | D14: =IF(ROWS(GPS_IMPORT!$1:8)<=SUM(IF(GPS_IMPORT!$A$2:$A$10000=$B$5,1,0)),INDEX(GPS_IMPORT!$2:$10000,MATCH($B$5,(GPS_IMPORT!$A$2:$A$10000),0)+ROWS($1:8)-1,COLUMN()-1),0) -> 00:00:00 | E14: =IF(ROWS(GPS_IMPORT!$1:8)<=SUM(IF(GPS_IMPORT!$A$2:$A$10000=$B$5,1,0)),INDEX(GPS_IMPORT!$2:$10000,MATCH($B$5,(GPS_IMPORT!$A$2:$A$10000),0)+ROWS($1:8)-1,COLUMN()-1),0) -> 0 | F14: =IF(ROWS(GPS_IMPORT!$1:8)<=SUM(IF(GPS_IMPORT!$A$2:$A$10000=$B$5,1,0)),INDEX(GPS_IMPORT!$2:$10000,MATCH($B$5,(GPS_IMPORT!$A$2:$A$10000),0)+ROWS($1:8)-1,COLUMN()-1),0) -> 0 | G14: =IF(ROWS(GPS_IMPORT!$1:8)<=SUM(IF(GPS_IMPORT!$A$2:$A$10000=$B$5,1,0)),INDEX(GPS_IMPORT!$2:$10000,MATCH($B$5,(GPS_IMPORT!$A$2:$A$10000),0)+ROWS($1:8)-1,COLUMN()-1),0) -> 0 | H14: 0 | I14: 0 | J14: 0 | K14: TRUE | L14: 0 | M14: 0
A15: 9 | B15: =IF(ROWS(GPS_IMPORT!$1:9)<=SUM(IF(GPS_IMPORT!$A$2:$A$10000=$B$5,1,0)),INDEX(GPS_IMPORT!$2:$10000,MATCH($B$5,(GPS_IMPORT!$A$2:$A$10000),0)+ROWS($1:9)-1,COLUMN()-1),0) -> 0 | C15: =IF(ROWS(GPS_IMPORT!$1:9)<=SUM(IF(GPS_IMPORT!$A$2:$A$10000=$B$5,1,0)),INDEX(GPS_IMPORT!$2:$10000,MATCH($B$5,(GPS_IMPORT!$A$2:$A$10000),0)+ROWS($1:9)-1,COLUMN()-1),0) -> 00:00:00 | D15: =IF(ROWS(GPS_IMPORT!$1:9)<=SUM(IF(GPS_IMPORT!$A$2:$A$10000=$B$5,1,0)),INDEX(GPS_IMPORT!$2:$10000,MATCH($B$5,(GPS_IMPORT!$A$2:$A$10000),0)+ROWS($1:9)-1,COLUMN()-1),0) -> 00:00:00 | E15: =IF(ROWS(GPS_IMPORT!$1:9)<=SUM(IF(GPS_IMPORT!$A$2:$A$10000=$B$5,1,0)),INDEX(GPS_IMPORT!$2:$10000,MATCH($B$5,(GPS_IMPORT!$A$2:$A$10000),0)+ROWS($1:9)-1,COLUMN()-1),0) -> 0 | F15: =IF(ROWS(GPS_IMPORT!$1:9)<=SUM(IF(GPS_IMPORT!$A$2:$A$10000=$B$5,1,0)),INDEX(GPS_IMPORT!$2:$10000,MATCH($B$5,(GPS_IMPORT!$A$2:$A$10000),0)+ROWS($1:9)-1,COLUMN()-1),0) -> 0 | G15: =IF(ROWS(GPS_IMPORT!$1:9)<=SUM(IF(GPS_IMPORT!$A$2:$A$10000=$B$5,1,0)),INDEX(GPS_IMPORT!$2:$10000,MATCH($B$5,(GPS_IMPORT!$A$2:$A$10000),0)+ROWS($1:9)-1,COLUMN()-1),0) -> 0 | H15: 0 | I15: 0 | J15: 0 | K15: TRUE | L15: 0 | M15: 0
A16: 10 | B16: =IF(ROWS(GPS_IMPORT!$1:10)<=SUM(IF(GPS_IMPORT!$A$2:$A$10000=$B$5,1,0)),INDEX(GPS_IMPORT!$2:$10000,MATCH($B$5,(GPS_IMPORT!$A$2:$A$10000),0)+ROWS($1:10)-1,COLUMN()-1),0) -> 0 | C16: =IF(ROWS(GPS_IMPORT!$1:10)<=SUM(IF(GPS_IMPORT!$A$2:$A$10000=$B$5,1,0)),INDEX(GPS_IMPORT!$2:$10000,MATCH($B$5,(GPS_IMPORT!$A$2:$A$10000),0)+ROWS($1:10)-1,COLUMN()-1),0) -> 00:00:00 | D16: =IF(ROWS(GPS_IMPORT!$1:10)<=SUM(IF(GPS_IMPORT!$A$2:$A$10000=$B$5,1,0)),INDEX(GPS_IMPORT!$2:$10000,MATCH($B$5,(GPS_IMPORT!$A$2:$A$10000),0)+ROWS($1:10)-1,COLUMN()-1),0) -> 00:00:00 | E16: =IF(ROWS(GPS_IMPORT!$1:10)<=SUM(IF(GPS_IMPORT!$A$2:$A$10000=$B$5,1,0)),INDEX(GPS_IMPORT!$2:$10000,MATCH($B$5,(GPS_IMPORT!$A$2:$A$10000),0)+ROWS($1:10)-1,COLUMN()-1),0) -> 0 | F16: =IF(ROWS(GPS_IMPORT!$1:10)<=SUM(IF(GPS_IMPORT!$A$2:$A$10000=$B$5,1,0)),INDEX(GPS_IMPORT!$2:$10000,MATCH($B$5,(GPS_IMPORT!$A$2:$A$10000),0)+ROWS($1:10)-1,COLUMN()-1),0) -> 0 | G16: =IF(ROWS(GPS_IMPORT!$1:10)<=SUM(IF(GPS_IMPORT!$A$2:$A$10000=$B$5,1,0)),INDEX(GPS_IMPORT!$2:$10000,MATCH($B$5,(GPS_IMPORT!$A$2:$A$10000),0)+ROWS($1:10)-1,COLUMN()-1),0) -> 0 | H16: 0 | I16: 0 | J16: 0 | K16: TRUE | L16: 0 | M16: 0
A17: 11 | B17: =IF(ROWS(GPS_IMPORT!$1:11)<=SUM(IF(GPS_IMPORT!$A$2:$A$10000=$B$5,1,0)),INDEX(GPS_IMPORT!$2:$10000,MATCH($B$5,(GPS_IMPORT!$A$2:$A$10000),0)+ROWS($1:11)-1,COLUMN()-1),0) -> 0 | C17: =IF(ROWS(GPS_IMPORT!$1:11)<=SUM(IF(GPS_IMPORT!$A$2:$A$10000=$B$5,1,0)),INDEX(GPS_IMPORT!$2:$10000,MATCH($B$5,(GPS_IMPORT!$A$2:$A$10000),0)+ROWS($1:11)-1,COLUMN()-1),0) -> 00:00:00 | D17: =IF(ROWS(GPS_IMPORT!$1:11)<=SUM(IF(GPS_IMPORT!$A$2:$A$10000=$B$5,1,0)),INDEX(GPS_IMPORT!$2:$10000,MATCH($B$5,(GPS_IMPORT!$A$2:$A$10000),0)+ROWS($1:11)-1,COLUMN()-1),0) -> 00:00:00 | E17: =IF(ROWS(GPS_IMPORT!$1:11)<=SUM(IF(GPS_IMPORT!$A$2:$A$10000=$B$5,1,0)),INDEX(GPS_IMPORT!$2:$10000,MATCH($B$5,(GPS_IMPORT!$A$2:$A$10000),0)+ROWS($1:11)-1,COLUMN()-1),0) -> 0 | F17: =IF(ROWS(GPS_IMPORT!$1:11)<=SUM(IF(GPS_IMPORT!$A$2:$A$10000=$B$5,1,0)),INDEX(GPS_IMPORT!$2:$10000,MATCH($B$5,(GPS_IMPORT!$A$2:$A$10000),0)+ROWS($1:11)-1,COLUMN()-1),0) -> 0 | G17: =IF(ROWS(GPS_IMPORT!$1:11)<=SUM(IF(GPS_IMPORT!$A$2:$A$10000=$B$5,1,0)),INDEX(GPS_IMPORT!$2:$10000,MATCH($B$5,(GPS_IMPORT!$A$2:$A$10000),0)+ROWS($1:11)-1,COLUMN()-1),0) -> 0 | H17: 0 | I17: 0 | J17: 0 | K17: TRUE | L17: 0 | M17: 0
A18: 12 | B18: =IF(ROWS(GPS_IMPORT!$1:12)<=SUM(IF(GPS_IMPORT!$A$2:$A$10000=$B$5,1,0)),INDEX(GPS_IMPORT!$2:$10000,MATCH($B$5,(GPS_IMPORT!$A$2:$A$10000),0)+ROWS($1:12)-1,COLUMN()-1),0) -> 0 | C18: =IF(ROWS(GPS_IMPORT!$1:12)<=SUM(IF(GPS_IMPORT!$A$2:$A$10000=$B$5,1,0)),INDEX(GPS_IMPORT!$2:$10000,MATCH($B$5,(GPS_IMPORT!$A$2:$A$10000),0)+ROWS($1:12)-1,COLUMN()-1),0) -> 00:00:00 | D18: =IF(ROWS(GPS_IMPORT!$1:12)<=SUM(IF(GPS_IMPORT!$A$2:$A$10000=$B$5,1,0)),INDEX(GPS_IMPORT!$2:$10000,MATCH($B$5,(GPS_IMPORT!$A$2:$A$10000),0)+ROWS($1:12)-1,COLUMN()-1),0) -> 00:00:00 | E18: =IF(ROWS(GPS_IMPORT!$1:12)<=SUM(IF(GPS_IMPORT!$A$2:$A$10000=$B$5,1,0)),INDEX(GPS_IMPORT!$2:$10000,MATCH($B$5,(GPS_IMPORT!$A$2:$A$10000),0)+ROWS($1:12)-1,COLUMN()-1),0) -> 0 | F18: =IF(ROWS(GPS_IMPORT!$1:12)<=SUM(IF(GPS_IMPORT!$A$2:$A$10000=$B$5,1,0)),INDEX(GPS_IMPORT!$2:$10000,MATCH($B$5,(GPS_IMPORT!$A$2:$A$10000),0)+ROWS($1:12)-1,COLUMN()-1),0) -> 0 | G18: =IF(ROWS(GPS_IMPORT!$1:12)<=SUM(IF(GPS_IMPORT!$A$2:$A$10000=$B$5,1,0)),INDEX(GPS_IMPORT!$2:$10000,MATCH($B$5,(GPS_IMPORT!$A$2:$A$10000),0)+ROWS($1:12)-1,COLUMN()-1),0) -> 0 | H18: 0 | I18: 0 | J18: 0 | K18: TRUE | L18: 0 | M18: 0
A19: 13 | B19: =IF(ROWS(GPS_IMPORT!$1:13)<=SUM(IF(GPS_IMPORT!$A$2:$A$10000=$B$5,1,0)),INDEX(GPS_IMPORT!$2:$10000,MATCH($B$5,(GPS_IMPORT!$A$2:$A$10000),0)+ROWS($1:13)-1,COLUMN()-1),0) -> 0 | C19: =IF(ROWS(GPS_IMPORT!$1:13)<=SUM(IF(GPS_IMPORT!$A$2:$A$10000=$B$5,1,0)),INDEX(GPS_IMPORT!$2:$10000,MATCH($B$5,(GPS_IMPORT!$A$2:$A$10000),0)+ROWS($1:13)-1,COLUMN()-1),0) -> 00:00:00 | D19: =IF(ROWS(GPS_IMPORT!$1:13)<=SUM(IF(GPS_IMPORT!$A$2:$A$10000=$B$5,1,0)),INDEX(GPS_IMPORT!$2:$10000,MATCH($B$5,(GPS_IMPORT!$A$2:$A$10000),0)+ROWS($1:13)-1,COLUMN()-1),0) -> 00:00:00 | E19: =IF(ROWS(GPS_IMPORT!$1:13)<=SUM(IF(GPS_IMPORT!$A$2:$A$10000=$B$5,1,0)),INDEX(GPS_IMPORT!$2:$10000,MATCH($B$5,(GPS_IMPORT!$A$2:$A$10000),0)+ROWS($1:13)-1,COLUMN()-1),0) -> 0 | F19: =IF(ROWS(GPS_IMPORT!$1:13)<=SUM(IF(GPS_IMPORT!$A$2:$A$10000=$B$5,1,0)),INDEX(GPS_IMPORT!$2:$10000,MATCH($B$5,(GPS_IMPORT!$A$2:$A$10000),0)+ROWS($1:13)-1,COLUMN()-1),0) -> 0 | G19: =IF(ROWS(GPS_IMPORT!$1:13)<=SUM(IF(GPS_IMPORT!$A$2:$A$10000=$B$5,1,0)),INDEX(GPS_IMPORT!$2:$10000,MATCH($B$5,(GPS_IMPORT!$A$2:$A$10000),0)+ROWS($1:13)-1,COLUMN()-1),0) -> 0 | H19: 0 | I19: 0 | J19: 0 | K19: FALSE | L19: 0 | M19: 0
A20: 14 | B20: =IF(ROWS(GPS_IMPORT!$1:14)<=SUM(IF(GPS_IMPORT!$A$2:$A$10000=$B$5,1,0)),INDEX(GPS_IMPORT!$2:$10000,MATCH($B$5,(GPS_IMPORT!$A$2:$A$10000),0)+ROWS($1:14)-1,COLUMN()-1),0) -> 0 | C20: =IF(ROWS(GPS_IMPORT!$1:14)<=SUM(IF(GPS_IMPORT!$A$2:$A$10000=$B$5,1,0)),INDEX(GPS_IMPORT!$2:$10000,MATCH($B$5,(GPS_IMPORT!$A$2:$A$10000),0)+ROWS($1:14)-1,COLUMN()-1),0) -> 00:00:00 | D20: =IF(ROWS(GPS_IMPORT!$1:14)<=SUM(IF(GPS_IMPORT!$A$2:$A$10000=$B$5,1,0)),INDEX(GPS_IMPORT!$2:$10000,MATCH($B$5,(GPS_IMPORT!$A$2:$A$10000),0)+ROWS($1:14)-1,COLUMN()-1),0) -> 00:00:00 | E20: =IF(ROWS(GPS_IMPORT!$1:14)<=SUM(IF(GPS_IMPORT!$A$2:$A$10000=$B$5,1,0)),INDEX(GPS_IMPORT!$2:$10000,MATCH($B$5,(GPS_IMPORT!$A$2:$A$10000),0)+ROWS($1:14)-1,COLUMN()-1),0) -> 0 | F20: =IF(ROWS(GPS_IMPORT!$1:14)<=SUM(IF(GPS_IMPORT!$A$2:$A$10000=$B$5,1,0)),INDEX(GPS_IMPORT!$2:$10000,MATCH($B$5,(GPS_IMPORT!$A$2:$A$10000),0)+ROWS($1:14)-1,COLUMN()-1),0) -> 0 | G20: =IF(ROWS(GPS_IMPORT!$1:14)<=SUM(IF(GPS_IMPORT!$A$2:$A$10000=$B$5,1,0)),INDEX(GPS_IMPORT!$2:$10000,MATCH($B$5,(GPS_IMPORT!$A$2:$A$10000),0)+ROWS($1:14)-1,COLUMN()-1),0) -> 0 | H20: 0 | I20: 0 | J20: 0 | K20: FALSE | L20: 0 | M20: 0
A21: 15 | B21: =IF(ROWS(GPS_IMPORT!$1:15)<=SUM(IF(GPS_IMPORT!$A$2:$A$10000=$B$5,1,0)),INDEX(GPS_IMPORT!$2:$10000,MATCH($B$5,(GPS_IMPORT!$A$2:$A$10000),0)+ROWS($1:15)-1,COLUMN()-1),0) -> 0 | C21: =IF(ROWS(GPS_IMPORT!$1:15)<=SUM(IF(GPS_IMPORT!$A$2:$A$10000=$B$5,1,0)),INDEX(GPS_IMPORT!$2:$10000,MATCH($B$5,(GPS_IMPORT!$A$2:$A$10000),0)+ROWS($1:15)-1,COLUMN()-1),0) -> 00:00:00 | D21: =IF(ROWS(GPS_IMPORT!$1:15)<=SUM(IF(GPS_IMPORT!$A$2:$A$10000=$B$5,1,0)),INDEX(GPS_IMPORT!$2:$10000,MATCH($B$5,(GPS_IMPORT!$A$2:$A$10000),0)+ROWS($1:15)-1,COLUMN()-1),0) -> 00:00:00 | E21: =IF(ROWS(GPS_IMPORT!$1:15)<=SUM(IF(GPS_IMPORT!$A$2:$A$10000=$B$5,1,0)),INDEX(GPS_IMPORT!$2:$10000,MATCH($B$5,(GPS_IMPORT!$A$2:$A$10000),0)+ROWS($1:15)-1,COLUMN()-1),0) -> 0 | F21: =IF(ROWS(GPS_IMPORT!$1:15)<=SUM(IF(GPS_IMPORT!$A$2:$A$10000=$B$5,1,0)),INDEX(GPS_IMPORT!$2:$10000,MATCH($B$5,(GPS_IMPORT!$A$2:$A$10000),0)+ROWS($1:15)-1,COLUMN()-1),0) -> 0 | G21: =IF(ROWS(GPS_IMPORT!$1:15)<=SUM(IF(GPS_IMPORT!$A$2:$A$10000=$B$5,1,0)),INDEX(GPS_IMPORT!$2:$10000,MATCH($B$5,(GPS_IMPORT!$A$2:$A$10000),0)+ROWS($1:15)-1,COLUMN()-1),0) -> 0 | H21: =IF(K21=TRUE,IF(E21>0,E$22-E21,0),0) -> 0 | I21: 0 | J21: 0 | K21: FALSE | L21: 0 | M21: 0
D22: AVERAGE | E22: =(IF($K$7=TRUE,E7,0)+IF($K$8=TRUE,E8,0)+IF($K$9=TRUE,E9,0)+IF($K$10=TRUE,E10,0)+IF($K$11=TRUE,E11,0)+IF($K$12=TRUE,E12,0)+IF($K$13=TRUE,E13,0)+IF($K$14=TRUE,E14,0)+IF($K$15=TRUE,E15,0)+IF($K$16=TRUE,E16,0)+IF($K$17=TRUE,E17,0)+IF($K$18=TRUE,E18,0)+IF($K$19=TRUE,E19,0)+IF($K$20=TRUE,E20,0)+IF($K$21=TRUE,E21,0))/(IF($K$7=TRUE,1,0)+IF($K$8=TRUE,1,0)+IF($K$9=TRUE,1,0)+IF($K$10=TRUE,1,0)+IF($K$11=TRUE,1,0)+IF($K$12=TRUE,1,0)+IF($K$13=TRUE,1,0)+IF($K$14=TRUE,1,0)+IF($K$15=TRUE,1,0)+IF($K$16=TRUE,1,0)+IF($K$17=TRUE,1,0)+IF($K$18=TRUE,1,0)+IF($K$19=TRUE,1,0)+IF($K$20=TRUE,1,0)+IF($K$21=TRUE,1,0)) -> 0 | F22: =(IF($K$7=TRUE,F7,0)+IF($K$8=TRUE,F8,0)+IF($K$9=TRUE,F9,0)+IF($K$10=TRUE,F10,0)+IF($K$11=TRUE,F11,0)+IF($K$12=TRUE,F12,0)+IF($K$13=TRUE,F13,0)+IF($K$14=TRUE,F14,0)+IF($K$15=TRUE,F15,0)+IF($K$16=TRUE,F16,0)+IF($K$17=TRUE,F17,0)+IF($K$18=TRUE,F18,0)+IF($K$19=TRUE,F19,0)+IF($K$20=TRUE,F20,0)+IF($K$21=TRUE,F21,0))/(IF($K$7=TRUE,1,0)+IF($K$8=TRUE,1,0)+IF($K$9=TRUE,1,0)+IF($K$10=TRUE,1,0)+IF($K$11=TRUE,1,0)+IF($K$12=TRUE,1,0)+IF($K$13=TRUE,1,0)+IF($K$14=TRUE,1,0)+IF($K$15=TRUE,1,0)+IF($K$16=TRUE,1,0)+IF($K$17=TRUE,1,0)+IF($K$18=TRUE,1,0)+IF($K$19=TRUE,1,0)+IF($K$20=TRUE,1,0)+IF($K$21=TRUE,1,0)) -> 0 | G22: =(IF($K$7=TRUE,G7,0)+IF($K$8=TRUE,G8,0)+IF($K$9=TRUE,G9,0)+IF($K$10=TRUE,G10,0)+IF($K$11=TRUE,G11,0)+IF($K$12=TRUE,G12,0)+IF($K$13=TRUE,G13,0)+IF($K$14=TRUE,G14,0)+IF($K$15=TRUE,G15,0)+IF($K$16=TRUE,G16,0)+IF($K$17=TRUE,G17,0)+IF($K$18=TRUE,G18,0)+IF($K$19=TRUE,G19,0)+IF($K$20=TRUE,G20,0)+IF($K$21=TRUE,G21,0))/ (IF($K$7=TRUE,1,0)+IF($K$8=TRUE,1,0)+IF($K$9=TRUE,1,0)+IF($K$10=TRUE,1,0)+IF($K$11=TRUE,1,0)+IF($K$12=TRUE,1,0)+IF($K$13=TRUE,1,0)+IF($K$14=TRUE,1,0)+IF($K$15=TRUE,1,0)+IF($K$16=TRUE,1,0)+IF($K$17=TRUE,1,0)+IF($K$18=TRUE,1,0)+IF($K$19=TRUE,1,0)+IF($K$20=TRUE,1,0)+IF($K$21=TRUE,1,0)) -> 0 | H22: RMSE: | I22: RMSE: | J22: RMSE:
G23: ="RMSE IN "&GPS_IMPORT!J4&":" -> RMSE IN U.S. Survey FT: | H23: =SQRT(SUMSQ((IF(K7:K21=TRUE,H7:H21)))/SUM(IF(K7:K21=TRUE,1,0))) -> 0 | I23: =SQRT(SUMSQ((IF(K7:K21=TRUE,I7:I21)))/SUM(IF(K7:K21=TRUE,1,0))) -> 0 | J23: =SQRT(SUMSQ((IF(K7:K21=TRUE,J7:J21)))/SUM(IF(K7:K21=TRUE,1,0))) -> 0
G24: Tolerance: | H24: =VLOOKUP(GPS_IMPORT!$K$4,Lists!H3:I5,2,FALSE) -> 0.029 | J24: =VLOOKUP(GPS_IMPORT!$K$4,Lists!H3:J5,3,FALSE) -> 0.039
H25: =IF(H23<=H24,"PASS","FAIL") -> PASS | I25: =IF(I23<=H24,"PASS","FAIL") -> PASS | J25: =IF(J23<=J24,"PASS","FAIL") -> PASS
A27: AVERAGED GPS-DERIVED POSITION | I27: Notes:
B28: MONUMENT COORDINATES | D28: NORTHING | E28: EASTING | F28: ORTHO HEIGHT | N28: Degrees | O28: Radians | P28: SIN | Q28: COS
B29: =GPS_IMPORT!J4&" ("&IF(GPS_IMPORT!K2,"GROUND","State Plane")&")" -> U.S. Survey FT (State Plane) | D29: =$E$22 -> 0 | E29: =$F$22 -> 0 | F29: =$G$22 -> 0 | N29: 1 | O29: =N29*(PI()/180) -> 0.01745329252 | P29: =SIN(O29)*H$24 -> 0.0005061197867 | Q29: =COS(O29)*H$24 -> 0.02899558316
N30: =N29+1 -> 2 | O30: =N30*(PI()/180) -> 0.03490658504 | P30: 0.001012085404 | Q30: 0.02898233398
A31: LEVELED ELEVATION | N31: =N30+1 -> 3 | O31: 0.05235987756 | P31: 0.001517742731 | Q31: 0.02896025651
A32: ='LEVEL RUN'!B5 -> U.S. Survey FT | C32: =IFERROR(VLOOKUP(B5,'LEVEL RUN'!A7:I59,9,FALSE),"N/A") -> N/A | D32: (Fill out Level Run Sheet or N/A if no leveled elevation is available) | N32: 4 | O32: 0.06981317008 | P32: 0.002022937739 | Q32: 0.02892935746
A33: MONUMENT HELD | C33: =IF('LEVEL RUN'!A7="","",'LEVEL RUN'!A7) -> CP13 | D33: (Type the monument name from which leveling originated) | N33: 5 | O33: 0.0872664626 | P33: 0.00252751654 | Q33: 0.02888964624
A34: LEVELED ELEVATION - GPS DERIVED ELEVATION = | E34: =IF(C32="N/A","N/A",C32-(F29*'LEVEL RUN'!F5)) -> N/A | F34: ='LEVEL RUN'!D5 -> sft | N34: 6 | O34: 0.1047197551 | P34: 0.003031325435 | Q34: 0.02884113497
N35: 7 | O35: 0.1221730476 | P35: 0.003534210959 | Q35: 0.0287838384
A36: FINAL MONUMENT COORDINATES | N36: 8 | O36: 0.1396263402 | P36: 0.004036019928 | Q36: 0.02871777399
B37: MONUMENT COORDINATES | D37: NORTHING | E37: EASTING | F37: ELEVATION | G37: FEATURE CODE | N37: 9 | O37: 0.1570796327 | P37: 0.004536599486 | Q37: 0.02864296188
B38: =GPS_IMPORT!J6&" "&REPORT!C10 -> U.S. Survey FT South | D38: =IF(GPS_IMPORT!K2,($E$22*GPS_IMPORT!$L$6)*(1/REPORT!C14),$E$22*GPS_IMPORT!$L$6) -> 0 | E38: =IF(GPS_IMPORT!K2,($F$22*GPS_IMPORT!$L$6)*(1/REPORT!C14),$F$22*GPS_IMPORT!$L$6) -> 0 | F38: =IF($C$32="N/A",($G$22*GPS_IMPORT!$L$6),$C$32*#REF!) -> 0 | G38: =VLOOKUP($B$5,GPS_IMPORT!$A$2:$G$2000,7,FALSE) ->  | N38: 10 | O38: 0.1745329252 | P38: 0.005035797152 | Q38: 0.02855942484
B39: =GPS_IMPORT!J6&" "&REPORT!C11&" "&"County" -> U.S. Survey FT Franklin County | D39: =VLOOKUP($B$5,'MON TABLE'!$A$11:$I$35,6,FALSE) ->  | E39: =VLOOKUP($B$5,'MON TABLE'!$A$11:$I$35,7,FALSE) ->  | F39: =VLOOKUP($B$5,'MON TABLE'!$A$11:$I$35,8,FALSE) ->  | G39: =$G$38 ->  | N39: 11 | O39: 0.1919862177 | P39: 0.005533460866 | Q39: 0.02846718832
N40: 12 | O40: 0.2094395102 | P40: 0.006029439034 | Q40: 0.02836628042
A41: ∆ North, ∆ East, and ∆ Ht. are the difference between the average northing, easting, and height for each observation. | I41: Mask Angle: | J41: 10° | N41: 13 | O41: 0.2268928028 | P41: 0.006523580576 | Q41: 0.02825673188
N42: 14 | O42: 0.2443460953 | P42: 0.007015734972 | Q42: 0.02813857606
N43: 15 | O43: 0.2617993878 | P43: 0.007505752308 | Q43: 0.02801184896
N44: 16 | O44: 0.2792526803 | P44: 0.007993483319 | Q44: 0.02787658918
N45: 17 | O45: 0.2967059728 | P45: 0.008478779437 | Q45: 0.02773283792
N46: 18 | O46: 0.3141592654 | P46: 0.008961492837 | Q46: 0.02758063897
N47: 19 | O47: 0.3316125579 | P47: 0.009441476479 | Q47: 0.02742003869
N48: 20 | O48: 0.3490658504 | P48: 0.009918584156 | Q48: 0.027251086
N49: 21 | O49: 0.3665191429 | P49: 0.01039267054 | Q49: 0.02707383237
N50: 22 | O50: 0.3839724354 | P50: 0.01086359121 | Q50: 0.02688833178
N51: 23 | O51: 0.401425728 | P51: 0.01133120273 | Q51: 0.02669464075
N52: 24 | O52: 0.4188790205 | P52: 0.01179536265 | Q52: 0.02649281827
N53: 25 | O53: 0.436332313 | P53: 0.01225592959 | Q53: 0.02628292582
N54: 26 | O54: 0.4537856055 | P54: 0.01271276326 | Q54: 0.02606502734
N55: 27 | O55: 0.471238898 | P55: 0.01316572449 | Q55: 0.0258391892
N56: 28 | O56: 0.4886921906 | P56: 0.01361467532 | Q56: 0.02560548019
N57: 29 | O57: 0.5061454831 | P57: 0.01405947899 | Q57: 0.02536397151
N58: 30 | O58: 0.5235987756 | P58: 0.0145 | Q58: 0.02511473671
N59: 31 | O59: 0.5410520681 | P59: 0.01493610417 | Q59: 0.02485785172
N60: 32 | O60: 0.5585053606 | P60: 0.01536765866 | Q60: 0.02459339479
N61: 33 | O61: 0.5759586532 | P61: 0.01579453202 | Q61: 0.02432144647
N62: 34 | O62: 0.5934119457 | P62: 0.0162165942 | Q62: 0.0240420896
N63: 35 | O63: 0.6108652382 | P63: 0.01663371665 | Q63: 0.02375540928
N64: 36 | O64: 0.6283185307 | P64: 0.01704577232 | Q64: 0.02346149284
N65: 37 | O65: 0.6457718232 | P65: 0.01745263567 | Q65: 0.02316042979
N66: 38 | O66: 0.6632251158 | P66: 0.01785418278 | Q66: 0.02285231185
N67: 39 | O67: 0.6806784083 | P67: 0.01825029134 | Q67: 0.02253723288
N68: 40 | O68: 0.6981317008 | P68: 0.01864084068 | Q68: 0.02221528885
N69: 41 | O69: 0.7155849933 | P69: 0.01902571184 | Q69: 0.02188657783
N70: 42 | O70: 0.7330382858 | P70: 0.01940478758 | Q70: 0.02155119994
N71: 43 | O71: 0.7504915784 | P71: 0.01977795244 | Q71: 0.02120925735
N72: 44 | O72: 0.7679448709 | P72: 0.02014509274 | Q72: 0.02086085421
N73: 45 | O73: 0.7853981634 | P73: 0.02050609665 | Q73: 0.02050609665
N74: 46 | O74: 0.8028514559 | P74: 0.02086085421 | Q74: 0.02014509274
N75: 47 | O75: 0.8203047484 | P75: 0.02120925735 | Q75: 0.01977795244
N76: 48 | O76: 0.837758041 | P76: 0.02155119994 | Q76: 0.01940478758
N77: 49 | O77: 0.8552113335 | P77: 0.02188657783 | Q77: 0.01902571184
N78: 50 | O78: 0.872664626 | P78: 0.02221528885 | Q78: 0.01864084068
N79: 51 | O79: 0.8901179185 | P79: 0.02253723288 | Q79: 0.01825029134
N80: 52 | O80: 0.907571211 | P80: 0.02285231185 | Q80: 0.01785418278
N81: 53 | O81: 0.9250245036 | P81: 0.02316042979 | Q81: 0.01745263567
N82: 54 | O82: 0.9424777961 | P82: 0.02346149284 | Q82: 0.01704577232
N83: 55 | O83: 0.9599310886 | P83: 0.02375540928 | Q83: 0.01663371665
N84: 56 | O84: 0.9773843811 | P84: 0.0240420896 | Q84: 0.0162165942
N85: 57 | O85: 0.9948376736 | P85: 0.02432144647 | Q85: 0.01579453202
N86: 58 | O86: 1.012290966 | P86: 0.02459339479 | Q86: 0.01536765866
N87: 59 | O87: 1.029744259 | P87: 0.02485785172 | Q87: 0.01493610417
N88: 60 | O88: 1.047197551 | P88: 0.02511473671 | Q88: 0.0145
N89: 61 | O89: 1.064650844 | P89: 0.02536397151 | Q89: 0.01405947899
N90: 62 | O90: 1.082104136 | P90: 0.02560548019 | Q90: 0.01361467532
N91: 63 | O91: 1.099557429 | P91: 0.0258391892 | Q91: 0.01316572449
N92: 64 | O92: 1.117010721 | P92: 0.02606502734 | Q92: 0.01271276326
N93: 65 | O93: 1.134464014 | P93: =SIN(O93)*H$24 -> 0.02628292582 | Q93: =COS(O93)*H$24 -> 0.01225592959
N94: 66 | O94: =N94*(PI()/180) -> 1.151917306 | P94: 0.02649281827 | Q94: 0.01179536265
N95: =N94+1 -> 67 | O95: 1.169370599 | P95: 0.02669464075 | Q95: 0.01133120273
N96: 68 | O96: 1.186823891 | P96: 0.02688833178 | Q96: 0.01086359121
N97: 69 | O97: 1.204277184 | P97: 0.02707383237 | Q97: 0.01039267054
N98: 70 | O98: 1.221730476 | P98: 0.027251086 | Q98: 0.009918584156
N99: 71 | O99: 1.239183769 | P99: 0.02742003869 | Q99: 0.009441476479
N100: 72 | O100: 1.256637061 | P100: 0.02758063897 | Q100: 0.008961492837
N101: 73 | O101: 1.274090354 | P101: 0.02773283792 | Q101: 0.008478779437
N102: 74 | O102: 1.291543646 | P102: 0.02787658918 | Q102: 0.007993483319
N103: 75 | O103: 1.308996939 | P103: 0.02801184896 | Q103: 0.007505752308
N104: 76 | O104: 1.326450232 | P104: 0.02813857606 | Q104: 0.007015734972
N105: 77 | O105: 1.343903524 | P105: 0.02825673188 | Q105: 0.006523580576
N106: 78 | O106: 1.361356817 | P106: 0.02836628042 | Q106: 0.006029439034
N107: 79 | O107: 1.378810109 | P107: 0.02846718832 | Q107: 0.005533460866
N108: 80 | O108: 1.396263402 | P108: 0.02855942484 | Q108: 0.005035797152
N109: 81 | O109: 1.413716694 | P109: 0.02864296188 | Q109: 0.004536599486
N110: 82 | O110: 1.431169987 | P110: 0.02871777399 | Q110: 0.004036019928
N111: 83 | O111: 1.448623279 | P111: 0.0287838384 | Q111: 0.003534210959
N112: 84 | O112: 1.466076572 | P112: 0.02884113497 | Q112: 0.003031325435
N113: 85 | O113: 1.483529864 | P113: 0.02888964624 | Q113: 0.00252751654
N114: 86 | O114: 1.500983157 | P114: 0.02892935746 | Q114: 0.002022937739
N115: 87 | O115: 1.518436449 | P115: 0.02896025651 | Q115: 0.001517742731
N116: 88 | O116: 1.535889742 | P116: 0.02898233398 | Q116: 0.001012085404
N117: 89 | O117: 1.553343034 | P117: 0.02899558316 | Q117: 0.0005061197867
N118: 90 | O118: 1.570796327 | P118: 0.029 | Q118: 1.77646526e-18
N119: 91 | O119: 1.588249619 | P119: 0.02899558316 | Q119: -0.0005061197867
N120: 92 | O120: 1.605702912 | P120: 0.02898233398 | Q120: -0.001012085404
N121: 93 | O121: 1.623156204 | P121: 0.02896025651 | Q121: -0.001517742731
N122: 94 | O122: 1.640609497 | P122: 0.02892935746 | Q122: -0.002022937739
N123: 95 | O123: 1.658062789 | P123: 0.02888964624 | Q123: -0.00252751654
N124: 96 | O124: 1.675516082 | P124: 0.02884113497 | Q124: -0.003031325435
N125: 97 | O125: 1.692969374 | P125: 0.0287838384 | Q125: -0.003534210959
N126: 98 | O126: 1.710422667 | P126: 0.02871777399 | Q126: -0.004036019928
N127: 99 | O127: 1.727875959 | P127: 0.02864296188 | Q127: -0.004536599486
N128: 100 | O128: 1.745329252 | P128: 0.02855942484 | Q128: -0.005035797152
N129: 101 | O129: 1.762782545 | P129: 0.02846718832 | Q129: -0.005533460866
N130: 102 | O130: 1.780235837 | P130: 0.02836628042 | Q130: -0.006029439034
N131: 103 | O131: 1.79768913 | P131: 0.02825673188 | Q131: -0.006523580576
N132: 104 | O132: 1.815142422 | P132: 0.02813857606 | Q132: -0.007015734972
N133: 105 | O133: 1.832595715 | P133: 0.02801184896 | Q133: -0.007505752308
N134: 106 | O134: 1.850049007 | P134: 0.02787658918 | Q134: -0.007993483319
N135: 107 | O135: 1.8675023 | P135: 0.02773283792 | Q135: -0.008478779437
N136: 108 | O136: 1.884955592 | P136: 0.02758063897 | Q136: -0.008961492837
N137: 109 | O137: 1.902408885 | P137: 0.02742003869 | Q137: -0.009441476479
N138: 110 | O138: 1.919862177 | P138: 0.027251086 | Q138: -0.009918584156
N139: 111 | O139: 1.93731547 | P139: 0.02707383237 | Q139: -0.01039267054
N140: 112 | O140: 1.954768762 | P140: 0.02688833178 | Q140: -0.01086359121
N141: 113 | O141: 1.972222055 | P141: 0.02669464075 | Q141: -0.01133120273
N142: 114 | O142: 1.989675347 | P142: 0.02649281827 | Q142: -0.01179536265
N143: 115 | O143: 2.00712864 | P143: 0.02628292582 | Q143: -0.01225592959
N144: 116 | O144: 2.024581932 | P144: 0.02606502734 | Q144: -0.01271276326
N145: 117 | O145: 2.042035225 | P145: 0.0258391892 | Q145: -0.01316572449
N146: 118 | O146: 2.059488517 | P146: 0.02560548019 | Q146: -0.01361467532
N147: 119 | O147: 2.07694181 | P147: 0.02536397151 | Q147: -0.01405947899
N148: 120 | O148: 2.094395102 | P148: 0.02511473671 | Q148: -0.0145
N149: 121 | O149: 2.111848395 | P149: 0.02485785172 | Q149: -0.01493610417
N150: 122 | O150: 2.129301687 | P150: 0.02459339479 | Q150: -0.01536765866
N151: 123 | O151: 2.14675498 | P151: 0.02432144647 | Q151: -0.01579453202
N152: 124 | O152: 2.164208272 | P152: 0.0240420896 | Q152: -0.0162165942
N153: 125 | O153: 2.181661565 | P153: 0.02375540928 | Q153: -0.01663371665
N154: 126 | O154: 2.199114858 | P154: 0.02346149284 | Q154: -0.01704577232
N155: 127 | O155: 2.21656815 | P155: 0.02316042979 | Q155: -0.01745263567
N156: 128 | O156: 2.234021443 | P156: 0.02285231185 | Q156: -0.01785418278
N157: 129 | O157: 2.251474735 | P157: =SIN(O157)*H$24 -> 0.02253723288 | Q157: =COS(O157)*H$24 -> -0.01825029134
N158: 130 | O158: =N158*(PI()/180) -> 2.268928028 | P158: 0.02221528885 | Q158: -0.01864084068
N159: =N158+1 -> 131 | O159: 2.28638132 | P159: 0.02188657783 | Q159: -0.01902571184
N160: 132 | O160: 2.303834613 | P160: 0.02155119994 | Q160: -0.01940478758
N161: 133 | O161: 2.321287905 | P161: 0.02120925735 | Q161: -0.01977795244
N162: 134 | O162: 2.338741198 | P162: 0.02086085421 | Q162: -0.02014509274
N163: 135 | O163: 2.35619449 | P163: 0.02050609665 | Q163: -0.02050609665
N164: 136 | O164: 2.373647783 | P164: 0.02014509274 | Q164: -0.02086085421
N165: 137 | O165: 2.391101075 | P165: 0.01977795244 | Q165: -0.02120925735
N166: 138 | O166: 2.408554368 | P166: 0.01940478758 | Q166: -0.02155119994
N167: 139 | O167: 2.42600766 | P167: 0.01902571184 | Q167: -0.02188657783
N168: 140 | O168: 2.443460953 | P168: 0.01864084068 | Q168: -0.02221528885
N169: 141 | O169: 2.460914245 | P169: 0.01825029134 | Q169: -0.02253723288
N170: 142 | O170: 2.478367538 | P170: 0.01785418278 | Q170: -0.02285231185
N171: 143 | O171: 2.49582083 | P171: 0.01745263567 | Q171: -0.02316042979
N172: 144 | O172: 2.513274123 | P172: 0.01704577232 | Q172: -0.02346149284
N173: 145 | O173: 2.530727415 | P173: 0.01663371665 | Q173: -0.02375540928
N174: 146 | O174: 2.548180708 | P174: 0.0162165942 | Q174: -0.0240420896
N175: 147 | O175: 2.565634 | P175: 0.01579453202 | Q175: -0.02432144647
N176: 148 | O176: 2.583087293 | P176: 0.01536765866 | Q176: -0.02459339479
N177: 149 | O177: 2.600540585 | P177: 0.01493610417 | Q177: -0.02485785172
N178: 150 | O178: 2.617993878 | P178: 0.0145 | Q178: -0.02511473671
N179: 151 | O179: 2.635447171 | P179: 0.01405947899 | Q179: -0.02536397151
N180: 152 | O180: 2.652900463 | P180: 0.01361467532 | Q180: -0.02560548019
N181: 153 | O181: 2.670353756 | P181: 0.01316572449 | Q181: -0.0258391892
N182: 154 | O182: 2.687807048 | P182: 0.01271276326 | Q182: -0.02606502734
N183: 155 | O183: 2.705260341 | P183: 0.01225592959 | Q183: -0.02628292582
N184: 156 | O184: 2.722713633 | P184: 0.01179536265 | Q184: -0.02649281827
N185: 157 | O185: 2.740166926 | P185: 0.01133120273 | Q185: -0.02669464075
N186: 158 | O186: 2.757620218 | P186: 0.01086359121 | Q186: -0.02688833178
N187: 159 | O187: 2.775073511 | P187: 0.01039267054 | Q187: -0.02707383237
N188: 160 | O188: 2.792526803 | P188: 0.009918584156 | Q188: -0.027251086
N189: 161 | O189: 2.809980096 | P189: 0.009441476479 | Q189: -0.02742003869
N190: 162 | O190: 2.827433388 | P190: 0.008961492837 | Q190: -0.02758063897
N191: 163 | O191: 2.844886681 | P191: 0.008478779437 | Q191: -0.02773283792
N192: 164 | O192: 2.862339973 | P192: 0.007993483319 | Q192: -0.02787658918
N193: 165 | O193: 2.879793266 | P193: 0.007505752308 | Q193: -0.02801184896
N194: 166 | O194: 2.897246558 | P194: 0.007015734972 | Q194: -0.02813857606
N195: 167 | O195: 2.914699851 | P195: 0.006523580576 | Q195: -0.02825673188
N196: 168 | O196: 2.932153143 | P196: 0.006029439034 | Q196: -0.02836628042
N197: 169 | O197: 2.949606436 | P197: 0.005533460866 | Q197: -0.02846718832
N198: 170 | O198: 2.967059728 | P198: 0.005035797152 | Q198: -0.02855942484
N199: 171 | O199: 2.984513021 | P199: 0.004536599486 | Q199: -0.02864296188
N200: 172 | O200: 3.001966313 | P200: 0.004036019928 | Q200: -0.02871777399
N201: 173 | O201: 3.019419606 | P201: 0.003534210959 | Q201: -0.0287838384
N202: 174 | O202: 3.036872898 | P202: 0.003031325435 | Q202: -0.02884113497
... 186 more rows

Sheet 101
A1: VRS GNSS Project Control Monument Coordinate Analysis
A3: Project: | B3: =REPORT!B2 -> FRA-33-24.76 | D3: GPS Antenna: | E3: =REPORT!A42 -> Trimble R12i | I3: Report Date: | J3: =REPORT!C49 -> 2024-06-25
A4: PID: | B4: =REPORT!E2 -> 119387 | D4: VRS Network: | E4: ODOT VRS | I4: Prepared By: | J4: =REPORT!C48 -> Mark Humphrey
A5: Point ID: | B5: 101 | C5: No. of Sessions: | D5: =SUM(IF(GPS_IMPORT!A2:A1000=$B$5,1,0)) -> 15 | E5: =IF(GPS_IMPORT!K2,"(LDP)","(STATE PLANE)") -> (STATE PLANE) | I5: Checked By: | J5: =REPORT!C59 -> Mike Wilson
A6: SESSION # | B6: Point | C6: Observation Date | D6: Start Time | E6: ="Northing("&GPS_IMPORT!K4&")" -> Northing(sft) | F6: ="Easting("&GPS_IMPORT!K4&")" -> Easting(sft) | G6: ="Height("&GPS_IMPORT!K4&")" -> Height(sft) | H6: ="∆ Northing("&GPS_IMPORT!K4&")" -> ∆ Northing(sft) | I6: ="∆ Easting("&GPS_IMPORT!K4&")" -> ∆ Easting(sft) | J6: ="∆ Height("&GPS_IMPORT!K4&")" -> ∆ Height(sft) | K6: Include in Solution?
A7: 1 | B7: =IF(ROWS(GPS_IMPORT!$1:1)<=SUM(IF(GPS_IMPORT!$A$2:$A$10000=$B$5,1,0)),INDEX(GPS_IMPORT!$2:$10000,MATCH($B$5,(GPS_IMPORT!$A$2:$A$10000),0)+ROWS($1:1)-1,COLUMN()-1),0) -> 101 | C7: =IF(ROWS(GPS_IMPORT!$1:1)<=SUM(IF(GPS_IMPORT!$A$2:$A$10000=$B$5,1,0)),INDEX(GPS_IMPORT!$2:$10000,MATCH($B$5,(GPS_IMPORT!$A$2:$A$10000),0)+ROWS($1:1)-1,COLUMN()-1),0) -> 45408 | D7: =IF(ROWS(GPS_IMPORT!$1:1)<=SUM(IF(GPS_IMPORT!$A$2:$A$10000=$B$5,1,0)),INDEX(GPS_IMPORT!$2:$10000,MATCH($B$5,(GPS_IMPORT!$A$2:$A$10000),0)+ROWS($1:1)-1,COLUMN()-1),0) -> 09:34:57 | E7: =IF(ROWS(GPS_IMPORT!$1:1)<=SUM(IF(GPS_IMPORT!$A$2:$A$10000=$B$5,1,0)),INDEX(GPS_IMPORT!$2:$10000,MATCH($B$5,(GPS_IMPORT!$A$2:$A$10000),0)+ROWS($1:1)-1,COLUMN()-1),0) -> 694961.025 | F7: =IF(ROWS(GPS_IMPORT!$1:1)<=SUM(IF(GPS_IMPORT!$A$2:$A$10000=$B$5,1,0)),INDEX(GPS_IMPORT!$2:$10000,MATCH($B$5,(GPS_IMPORT!$A$2:$A$10000),0)+ROWS($1:1)-1,COLUMN()-1),0) -> 1858245.092 | G7: =IF(ROWS(GPS_IMPORT!$1:1)<=SUM(IF(GPS_IMPORT!$A$2:$A$10000=$B$5,1,0)),INDEX(GPS_IMPORT!$2:$10000,MATCH($B$5,(GPS_IMPORT!$A$2:$A$10000),0)+ROWS($1:1)-1,COLUMN()-1),0) -> 743.453 | H7: =IF(K7=TRUE,IF(E7>0,E$22-E7,0),0) -> -0.01900000009 | I7: =IF(K7=TRUE,IF(F7>0,F$22-F7,0),0) -> -0.007533333497 | J7: =IF(K7=TRUE,IF(G7>0,G$22-G7,0),0) -> -0.0244 | K7: TRUE | L7: =IF(OR(ABS(H7)>$H$24,ABS(I7)>$H$24,ABS(SQRT((H7^2)+(I7^2)))>$H$24),IF(K7=TRUE,IF(E7>0,E$22-E7,0),0),0) -> 0 | M7: =IF(OR(ABS(H7)>$H$24,ABS(I7)>$H$24,ABS(SQRT((H7^2)+(I7^2)))>$H$24),IF(K7=TRUE,IF(E7>0,F$22-F7,0),0),0) -> 0
A8: 2 | B8: =IF(ROWS(GPS_IMPORT!$1:2)<=SUM(IF(GPS_IMPORT!$A$2:$A$10000=$B$5,1,0)),INDEX(GPS_IMPORT!$2:$10000,MATCH($B$5,(GPS_IMPORT!$A$2:$A$10000),0)+ROWS($1:2)-1,COLUMN()-1),0) -> 101 | C8: =IF(ROWS(GPS_IMPORT!$1:2)<=SUM(IF(GPS_IMPORT!$A$2:$A$10000=$B$5,1,0)),INDEX(GPS_IMPORT!$2:$10000,MATCH($B$5,(GPS_IMPORT!$A$2:$A$10000),0)+ROWS($1:2)-1,COLUMN()-1),0) -> 45408 | D8: =IF(ROWS(GPS_IMPORT!$1:2)<=SUM(IF(GPS_IMPORT!$A$2:$A$10000=$B$5,1,0)),INDEX(GPS_IMPORT!$2:$10000,MATCH($B$5,(GPS_IMPORT!$A$2:$A$10000),0)+ROWS($1:2)-1,COLUMN()-1),0) -> 09:35:55 | E8: =IF(ROWS(GPS_IMPORT!$1:2)<=SUM(IF(GPS_IMPORT!$A$2:$A$10000=$B$5,1,0)),INDEX(GPS_IMPORT!$2:$10000,MATCH($B$5,(GPS_IMPORT!$A$2:$A$10000),0)+ROWS($1:2)-1,COLUMN()-1),0) -> 694961.02 | F8: =IF(ROWS(GPS_IMPORT!$1:2)<=SUM(IF(GPS_IMPORT!$A$2:$A$10000=$B$5,1,0)),INDEX(GPS_IMPORT!$2:$10000,MATCH($B$5,(GPS_IMPORT!$A$2:$A$10000),0)+ROWS($1:2)-1,COLUMN()-1),0) -> 1858245.103 | G8: =IF(ROWS(GPS_IMPORT!$1:2)<=SUM(IF(GPS_IMPORT!$A$2:$A$10000=$B$5,1,0)),INDEX(GPS_IMPORT!$2:$10000,MATCH($B$5,(GPS_IMPORT!$A$2:$A$10000),0)+ROWS($1:2)-1,COLUMN()-1),0) -> 743.422 | H8: =IF(K8=TRUE,IF(E8>0,E$22-E8,0),0) -> -0.01400000008 | I8: =IF(K8=TRUE,IF(F8>0,F$22-F8,0),0) -> -0.01853333344 | J8: =IF(K8=TRUE,IF(G8>0,G$22-G8,0),0) -> 0.0066 | K8: TRUE | L8: 0 | M8: 0
A9: 3 | B9: =IF(ROWS(GPS_IMPORT!$1:3)<=SUM(IF(GPS_IMPORT!$A$2:$A$10000=$B$5,1,0)),INDEX(GPS_IMPORT!$2:$10000,MATCH($B$5,(GPS_IMPORT!$A$2:$A$10000),0)+ROWS($1:3)-1,COLUMN()-1),0) -> 101 | C9: =IF(ROWS(GPS_IMPORT!$1:3)<=SUM(IF(GPS_IMPORT!$A$2:$A$10000=$B$5,1,0)),INDEX(GPS_IMPORT!$2:$10000,MATCH($B$5,(GPS_IMPORT!$A$2:$A$10000),0)+ROWS($1:3)-1,COLUMN()-1),0) -> 45408 | D9: =IF(ROWS(GPS_IMPORT!$1:3)<=SUM(IF(GPS_IMPORT!$A$2:$A$10000=$B$5,1,0)),INDEX(GPS_IMPORT!$2:$10000,MATCH($B$5,(GPS_IMPORT!$A$2:$A$10000),0)+ROWS($1:3)-1,COLUMN()-1),0) -> 09:37:38 | E9: =IF(ROWS(GPS_IMPORT!$1:3)<=SUM(IF(GPS_IMPORT!$A$2:$A$10000=$B$5,1,0)),INDEX(GPS_IMPORT!$2:$10000,MATCH($B$5,(GPS_IMPORT!$A$2:$A$10000),0)+ROWS($1:3)-1,COLUMN()-1),0) -> 694960.992 | F9: =IF(ROWS(GPS_IMPORT!$1:3)<=SUM(IF(GPS_IMPORT!$A$2:$A$10000=$B$5,1,0)),INDEX(GPS_IMPORT!$2:$10000,MATCH($B$5,(GPS_IMPORT!$A$2:$A$10000),0)+ROWS($1:3)-1,COLUMN()-1),0) -> 1858245.073 | G9: =IF(ROWS(GPS_IMPORT!$1:3)<=SUM(IF(GPS_IMPORT!$A$2:$A$10000=$B$5,1,0)),INDEX(GPS_IMPORT!$2:$10000,MATCH($B$5,(GPS_IMPORT!$A$2:$A$10000),0)+ROWS($1:3)-1,COLUMN()-1),0) -> 743.414 | H9: 0.01399999997 | I9: 0.01146666636 | J9: 0.0146 | K9: TRUE | L9: 0 | M9: 0
A10: 4 | B10: =IF(ROWS(GPS_IMPORT!$1:4)<=SUM(IF(GPS_IMPORT!$A$2:$A$10000=$B$5,1,0)),INDEX(GPS_IMPORT!$2:$10000,MATCH($B$5,(GPS_IMPORT!$A$2:$A$10000),0)+ROWS($1:4)-1,COLUMN()-1),0) -> 101 | C10: =IF(ROWS(GPS_IMPORT!$1:4)<=SUM(IF(GPS_IMPORT!$A$2:$A$10000=$B$5,1,0)),INDEX(GPS_IMPORT!$2:$10000,MATCH($B$5,(GPS_IMPORT!$A$2:$A$10000),0)+ROWS($1:4)-1,COLUMN()-1),0) -> 45408 | D10: =IF(ROWS(GPS_IMPORT!$1:4)<=SUM(IF(GPS_IMPORT!$A$2:$A$10000=$B$5,1,0)),INDEX(GPS_IMPORT!$2:$10000,MATCH($B$5,(GPS_IMPORT!$A$2:$A$10000),0)+ROWS($1:4)-1,COLUMN()-1),0) -> 09:38:26 | E10: =IF(ROWS(GPS_IMPORT!$1:4)<=SUM(IF(GPS_IMPORT!$A$2:$A$10000=$B$5,1,0)),INDEX(GPS_IMPORT!$2:$10000,MATCH($B$5,(GPS_IMPORT!$A$2:$A$10000),0)+ROWS($1:4)-1,COLUMN()-1),0) -> 694961.016 | F10: =IF(ROWS(GPS_IMPORT!$1:4)<=SUM(IF(GPS_IMPORT!$A$2:$A$10000=$B$5,1,0)),INDEX(GPS_IMPORT!$2:$10000,MATCH($B$5,(GPS_IMPORT!$A$2:$A$10000),0)+ROWS($1:4)-1,COLUMN()-1),0) -> 1858245.072 | G10: =IF(ROWS(GPS_IMPORT!$1:4)<=SUM(IF(GPS_IMPORT!$A$2:$A$10000=$B$5,1,0)),INDEX(GPS_IMPORT!$2:$10000,MATCH($B$5,(GPS_IMPORT!$A$2:$A$10000),0)+ROWS($1:4)-1,COLUMN()-1),0) -> 743.403 | H10: -0.01000000001 | I10: 0.01246666652 | J10: 0.0256 | K10: TRUE | L10: 0 | M10: 0
A11: 5 | B11: =IF(ROWS(GPS_IMPORT!$1:5)<=SUM(IF(GPS_IMPORT!$A$2:$A$10000=$B$5,1,0)),INDEX(GPS_IMPORT!$2:$10000,MATCH($B$5,(GPS_IMPORT!$A$2:$A$10000),0)+ROWS($1:5)-1,COLUMN()-1),0) -> 101 | C11: =IF(ROWS(GPS_IMPORT!$1:5)<=SUM(IF(GPS_IMPORT!$A$2:$A$10000=$B$5,1,0)),INDEX(GPS_IMPORT!$2:$10000,MATCH($B$5,(GPS_IMPORT!$A$2:$A$10000),0)+ROWS($1:5)-1,COLUMN()-1),0) -> 45408 | D11: =IF(ROWS(GPS_IMPORT!$1:5)<=SUM(IF(GPS_IMPORT!$A$2:$A$10000=$B$5,1,0)),INDEX(GPS_IMPORT!$2:$10000,MATCH($B$5,(GPS_IMPORT!$A$2:$A$10000),0)+ROWS($1:5)-1,COLUMN()-1),0) -> 09:39:33 | E11: =IF(ROWS(GPS_IMPORT!$1:5)<=SUM(IF(GPS_IMPORT!$A$2:$A$10000=$B$5,1,0)),INDEX(GPS_IMPORT!$2:$10000,MATCH($B$5,(GPS_IMPORT!$A$2:$A$10000),0)+ROWS($1:5)-1,COLUMN()-1),0) -> 694961.014 | F11: =IF(ROWS(GPS_IMPORT!$1:5)<=SUM(IF(GPS_IMPORT!$A$2:$A$10000=$B$5,1,0)),INDEX(GPS_IMPORT!$2:$10000,MATCH($B$5,(GPS_IMPORT!$A$2:$A$10000),0)+ROWS($1:5)-1,COLUMN()-1),0) -> 1858245.099 | G11: =IF(ROWS(GPS_IMPORT!$1:5)<=SUM(IF(GPS_IMPORT!$A$2:$A$10000=$B$5,1,0)),INDEX(GPS_IMPORT!$2:$10000,MATCH($B$5,(GPS_IMPORT!$A$2:$A$10000),0)+ROWS($1:5)-1,COLUMN()-1),0) -> 743.392 | H11: -0.008000000031 | I11: -0.01453333348 | J11: 0.0366 | K11: TRUE | L11: 0 | M11: 0
A12: 6 | B12: =IF(ROWS(GPS_IMPORT!$1:6)<=SUM(IF(GPS_IMPORT!$A$2:$A$10000=$B$5,1,0)),INDEX(GPS_IMPORT!$2:$10000,MATCH($B$5,(GPS_IMPORT!$A$2:$A$10000),0)+ROWS($1:6)-1,COLUMN()-1),0) -> 101 | C12: =IF(ROWS(GPS_IMPORT!$1:6)<=SUM(IF(GPS_IMPORT!$A$2:$A$10000=$B$5,1,0)),INDEX(GPS_IMPORT!$2:$10000,MATCH($B$5,(GPS_IMPORT!$A$2:$A$10000),0)+ROWS($1:6)-1,COLUMN()-1),0) -> 45408 | D12: =IF(ROWS(GPS_IMPORT!$1:6)<=SUM(IF(GPS_IMPORT!$A$2:$A$10000=$B$5,1,0)),INDEX(GPS_IMPORT!$2:$10000,MATCH($B$5,(GPS_IMPORT!$A$2:$A$10000),0)+ROWS($1:6)-1,COLUMN()-1),0) -> 09:40:16 | E12: =IF(ROWS(GPS_IMPORT!$1:6)<=SUM(IF(GPS_IMPORT!$A$2:$A$10000=$B$5,1,0)),INDEX(GPS_IMPORT!$2:$10000,MATCH($B$5,(GPS_IMPORT!$A$2:$A$10000),0)+ROWS($1:6)-1,COLUMN()-1),0) -> 694960.981 | F12: =IF(ROWS(GPS_IMPORT!$1:6)<=SUM(IF(GPS_IMPORT!$A$2:$A$10000=$B$5,1,0)),INDEX(GPS_IMPORT!$2:$10000,MATCH($B$5,(GPS_IMPORT!$A$2:$A$10000),0)+ROWS($1:6)-1,COLUMN()-1),0) -> 1858245.095 | G12: =IF(ROWS(GPS_IMPORT!$1:6)<=SUM(IF(GPS_IMPORT!$A$2:$A$10000=$B$5,1,0)),INDEX(GPS_IMPORT!$2:$10000,MATCH($B$5,(GPS_IMPORT!$A$2:$A$10000),0)+ROWS($1:6)-1,COLUMN()-1),0) -> 743.404 | H12: 0.02499999991 | I12: -0.01053333352 | J12: 0.0246 | K12: TRUE | L12: 0 | M12: 0
A13: 7 | B13: =IF(ROWS(GPS_IMPORT!$1:7)<=SUM(IF(GPS_IMPORT!$A$2:$A$10000=$B$5,1,0)),INDEX(GPS_IMPORT!$2:$10000,MATCH($B$5,(GPS_IMPORT!$A$2:$A$10000),0)+ROWS($1:7)-1,COLUMN()-1),0) -> 101 | C13: =IF(ROWS(GPS_IMPORT!$1:7)<=SUM(IF(GPS_IMPORT!$A$2:$A$10000=$B$5,1,0)),INDEX(GPS_IMPORT!$2:$10000,MATCH($B$5,(GPS_IMPORT!$A$2:$A$10000),0)+ROWS($1:7)-1,COLUMN()-1),0) -> 45408 | D13: =IF(ROWS(GPS_IMPORT!$1:7)<=SUM(IF(GPS_IMPORT!$A$2:$A$10000=$B$5,1,0)),INDEX(GPS_IMPORT!$2:$10000,MATCH($B$5,(GPS_IMPORT!$A$2:$A$10000),0)+ROWS($1:7)-1,COLUMN()-1),0) -> 09:40:56 | E13: =IF(ROWS(GPS_IMPORT!$1:7)<=SUM(IF(GPS_IMPORT!$A$2:$A$10000=$B$5,1,0)),INDEX(GPS_IMPORT!$2:$10000,MATCH($B$5,(GPS_IMPORT!$A$2:$A$10000),0)+ROWS($1:7)-1,COLUMN()-1),0) -> 694960.98 | F13: =IF(ROWS(GPS_IMPORT!$1:7)<=SUM(IF(GPS_IMPORT!$A$2:$A$10000=$B$5,1,0)),INDEX(GPS_IMPORT!$2:$10000,MATCH($B$5,(GPS_IMPORT!$A$2:$A$10000),0)+ROWS($1:7)-1,COLUMN()-1),0) -> 1858245.078 | G13: =IF(ROWS(GPS_IMPORT!$1:7)<=SUM(IF(GPS_IMPORT!$A$2:$A$10000=$B$5,1,0)),INDEX(GPS_IMPORT!$2:$10000,MATCH($B$5,(GPS_IMPORT!$A$2:$A$10000),0)+ROWS($1:7)-1,COLUMN()-1),0) -> 743.419 | H13: 0.02599999995 | I13: 0.006466666469 | J13: 0.0096 | K13: TRUE | L13: 0 | M13: 0
A14: 8 | B14: =IF(ROWS(GPS_IMPORT!$1:8)<=SUM(IF(GPS_IMPORT!$A$2:$A$10000=$B$5,1,0)),INDEX(GPS_IMPORT!$2:$10000,MATCH($B$5,(GPS_IMPORT!$A$2:$A$10000),0)+ROWS($1:8)-1,COLUMN()-1),0) -> 101 | C14: =IF(ROWS(GPS_IMPORT!$1:8)<=SUM(IF(GPS_IMPORT!$A$2:$A$10000=$B$5,1,0)),INDEX(GPS_IMPORT!$2:$10000,MATCH($B$5,(GPS_IMPORT!$A$2:$A$10000),0)+ROWS($1:8)-1,COLUMN()-1),0) -> 45408 | D14: =IF(ROWS(GPS_IMPORT!$1:8)<=SUM(IF(GPS_IMPORT!$A$2:$A$10000=$B$5,1,0)),INDEX(GPS_IMPORT!$2:$10000,MATCH($B$5,(GPS_IMPORT!$A$2:$A$10000),0)+ROWS($1:8)-1,COLUMN()-1),0) -> 09:41:41 | E14: =IF(ROWS(GPS_IMPORT!$1:8)<=SUM(IF(GPS_IMPORT!$A$2:$A$10000=$B$5,1,0)),INDEX(GPS_IMPORT!$2:$10000,MATCH($B$5,(GPS_IMPORT!$A$2:$A$10000),0)+ROWS($1:8)-1,COLUMN()-1),0) -> 694960.995 | F14: =IF(ROWS(GPS_IMPORT!$1:8)<=SUM(IF(GPS_IMPORT!$A$2:$A$10000=$B$5,1,0)),INDEX(GPS_IMPORT!$2:$10000,MATCH($B$5,(GPS_IMPORT!$A$2:$A$10000),0)+ROWS($1:8)-1,COLUMN()-1),0) -> 1858245.072 | G14: =IF(ROWS(GPS_IMPORT!$1:8)<=SUM(IF(GPS_IMPORT!$A$2:$A$10000=$B$5,1,0)),INDEX(GPS_IMPORT!$2:$10000,MATCH($B$5,(GPS_IMPORT!$A$2:$A$10000),0)+ROWS($1:8)-1,COLUMN()-1),0) -> 743.437 | H14: 0.01099999994 | I14: 0.01246666652 | J14: -0.0084 | K14: TRUE | L14: 0 | M14: 0
A15: 9 | B15: =IF(ROWS(GPS_IMPORT!$1:9)<=SUM(IF(GPS_IMPORT!$A$2:$A$10000=$B$5,1,0)),INDEX(GPS_IMPORT!$2:$10000,MATCH($B$5,(GPS_IMPORT!$A$2:$A$10000),0)+ROWS($1:9)-1,COLUMN()-1),0) -> 101 | C15: =IF(ROWS(GPS_IMPORT!$1:9)<=SUM(IF(GPS_IMPORT!$A$2:$A$10000=$B$5,1,0)),INDEX(GPS_IMPORT!$2:$10000,MATCH($B$5,(GPS_IMPORT!$A$2:$A$10000),0)+ROWS($1:9)-1,COLUMN()-1),0) -> 45408 | D15: =IF(ROWS(GPS_IMPORT!$1:9)<=SUM(IF(GPS_IMPORT!$A$2:$A$10000=$B$5,1,0)),INDEX(GPS_IMPORT!$2:$10000,MATCH($B$5,(GPS_IMPORT!$A$2:$A$10000),0)+ROWS($1:9)-1,COLUMN()-1),0) -> 09:43:09 | E15: =IF(ROWS(GPS_IMPORT!$1:9)<=SUM(IF(GPS_IMPORT!$A$2:$A$10000=$B$5,1,0)),INDEX(GPS_IMPORT!$2:$10000,MATCH($B$5,(GPS_IMPORT!$A$2:$A$10000),0)+ROWS($1:9)-1,COLUMN()-1),0) -> 694961.014 | F15: =IF(ROWS(GPS_IMPORT!$1:9)<=SUM(IF(GPS_IMPORT!$A$2:$A$10000=$B$5,1,0)),INDEX(GPS_IMPORT!$2:$10000,MATCH($B$5,(GPS_IMPORT!$A$2:$A$10000),0)+ROWS($1:9)-1,COLUMN()-1),0) -> 1858245.09 | G15: =IF(ROWS(GPS_IMPORT!$1:9)<=SUM(IF(GPS_IMPORT!$A$2:$A$10000=$B$5,1,0)),INDEX(GPS_IMPORT!$2:$10000,MATCH($B$5,(GPS_IMPORT!$A$2:$A$10000),0)+ROWS($1:9)-1,COLUMN()-1),0) -> 743.411 | H15: -0.008000000031 | I15: -0.005533333635 | J15: 0.0176 | K15: TRUE | L15: 0 | M15: 0
A16: 10 | B16: =IF(ROWS(GPS_IMPORT!$1:10)<=SUM(IF(GPS_IMPORT!$A$2:$A$10000=$B$5,1,0)),INDEX(GPS_IMPORT!$2:$10000,MATCH($B$5,(GPS_IMPORT!$A$2:$A$10000),0)+ROWS($1:10)-1,COLUMN()-1),0) -> 101 | C16: =IF(ROWS(GPS_IMPORT!$1:10)<=SUM(IF(GPS_IMPORT!$A$2:$A$10000=$B$5,1,0)),INDEX(GPS_IMPORT!$2:$10000,MATCH($B$5,(GPS_IMPORT!$A$2:$A$10000),0)+ROWS($1:10)-1,COLUMN()-1),0) -> 45408 | D16: =IF(ROWS(GPS_IMPORT!$1:10)<=SUM(IF(GPS_IMPORT!$A$2:$A$10000=$B$5,1,0)),INDEX(GPS_IMPORT!$2:$10000,MATCH($B$5,(GPS_IMPORT!$A$2:$A$10000),0)+ROWS($1:10)-1,COLUMN()-1),0) -> 09:44:51 | E16: =IF(ROWS(GPS_IMPORT!$1:10)<=SUM(IF(GPS_IMPORT!$A$2:$A$10000=$B$5,1,0)),INDEX(GPS_IMPORT!$2:$10000,MATCH($B$5,(GPS_IMPORT!$A$2:$A$10000),0)+ROWS($1:10)-1,COLUMN()-1),0) -> 694960.988 | F16: =IF(ROWS(GPS_IMPORT!$1:10)<=SUM(IF(GPS_IMPORT!$A$2:$A$10000=$B$5,1,0)),INDEX(GPS_IMPORT!$2:$10000,MATCH($B$5,(GPS_IMPORT!$A$2:$A$10000),0)+ROWS($1:10)-1,COLUMN()-1),0) -> 1858245.082 | G16: =IF(ROWS(GPS_IMPORT!$1:10)<=SUM(IF(GPS_IMPORT!$A$2:$A$10000=$B$5,1,0)),INDEX(GPS_IMPORT!$2:$10000,MATCH($B$5,(GPS_IMPORT!$A$2:$A$10000),0)+ROWS($1:10)-1,COLUMN()-1),0) -> 743.449 | H16: 0.01799999992 | I16: 0.002466666512 | J16: -0.0204 | K16: TRUE | L16: 0 | M16: 0
A17: 11 | B17: =IF(ROWS(GPS_IMPORT!$1:11)<=SUM(IF(GPS_IMPORT!$A$2:$A$10000=$B$5,1,0)),INDEX(GPS_IMPORT!$2:$10000,MATCH($B$5,(GPS_IMPORT!$A$2:$A$10000),0)+ROWS($1:11)-1,COLUMN()-1),0) -> 101 | C17: =IF(ROWS(GPS_IMPORT!$1:11)<=SUM(IF(GPS_IMPORT!$A$2:$A$10000=$B$5,1,0)),INDEX(GPS_IMPORT!$2:$10000,MATCH($B$5,(GPS_IMPORT!$A$2:$A$10000),0)+ROWS($1:11)-1,COLUMN()-1),0) -> 45408 | D17: =IF(ROWS(GPS_IMPORT!$1:11)<=SUM(IF(GPS_IMPORT!$A$2:$A$10000=$B$5,1,0)),INDEX(GPS_IMPORT!$2:$10000,MATCH($B$5,(GPS_IMPORT!$A$2:$A$10000),0)+ROWS($1:11)-1,COLUMN()-1),0) -> 09:45:20 | E17: =IF(ROWS(GPS_IMPORT!$1:11)<=SUM(IF(GPS_IMPORT!$A$2:$A$10000=$B$5,1,0)),INDEX(GPS_IMPORT!$2:$10000,MATCH($B$5,(GPS_IMPORT!$A$2:$A$10000),0)+ROWS($1:11)-1,COLUMN()-1),0) -> 694960.993 | F17: =IF(ROWS(GPS_IMPORT!$1:11)<=SUM(IF(GPS_IMPORT!$A$2:$A$10000=$B$5,1,0)),INDEX(GPS_IMPORT!$2:$10000,MATCH($B$5,(GPS_IMPORT!$A$2:$A$10000),0)+ROWS($1:11)-1,COLUMN()-1),0) -> 1858245.081 | G17: =IF(ROWS(GPS_IMPORT!$1:11)<=SUM(IF(GPS_IMPORT!$A$2:$A$10000=$B$5,1,0)),INDEX(GPS_IMPORT!$2:$10000,MATCH($B$5,(GPS_IMPORT!$A$2:$A$10000),0)+ROWS($1:11)-1,COLUMN()-1),0) -> 743.425 | H17: 0.01299999992 | I17: 0.003466666443 | J17: 0.0036 | K17: TRUE | L17: 0 | M17: 0
A18: 12 | B18: =IF(ROWS(GPS_IMPORT!$1:12)<=SUM(IF(GPS_IMPORT!$A$2:$A$10000=$B$5,1,0)),INDEX(GPS_IMPORT!$2:$10000,MATCH($B$5,(GPS_IMPORT!$A$2:$A$10000),0)+ROWS($1:12)-1,COLUMN()-1),0) -> 101 | C18: =IF(ROWS(GPS_IMPORT!$1:12)<=SUM(IF(GPS_IMPORT!$A$2:$A$10000=$B$5,1,0)),INDEX(GPS_IMPORT!$2:$10000,MATCH($B$5,(GPS_IMPORT!$A$2:$A$10000),0)+ROWS($1:12)-1,COLUMN()-1),0) -> 45408 | D18: =IF(ROWS(GPS_IMPORT!$1:12)<=SUM(IF(GPS_IMPORT!$A$2:$A$10000=$B$5,1,0)),INDEX(GPS_IMPORT!$2:$10000,MATCH($B$5,(GPS_IMPORT!$A$2:$A$10000),0)+ROWS($1:12)-1,COLUMN()-1),0) -> 09:45:56 | E18: =IF(ROWS(GPS_IMPORT!$1:12)<=SUM(IF(GPS_IMPORT!$A$2:$A$10000=$B$5,1,0)),INDEX(GPS_IMPORT!$2:$10000,MATCH($B$5,(GPS_IMPORT!$A$2:$A$10000),0)+ROWS($1:12)-1,COLUMN()-1),0) -> 694961.006 | F18: =IF(ROWS(GPS_IMPORT!$1:12)<=SUM(IF(GPS_IMPORT!$A$2:$A$10000=$B$5,1,0)),INDEX(GPS_IMPORT!$2:$10000,MATCH($B$5,(GPS_IMPORT!$A$2:$A$10000),0)+ROWS($1:12)-1,COLUMN()-1),0) -> 1858245.072 | G18: =IF(ROWS(GPS_IMPORT!$1:12)<=SUM(IF(GPS_IMPORT!$A$2:$A$10000=$B$5,1,0)),INDEX(GPS_IMPORT!$2:$10000,MATCH($B$5,(GPS_IMPORT!$A$2:$A$10000),0)+ROWS($1:12)-1,COLUMN()-1),0) -> 743.449 | H18: -1.164153218e-10 | I18: 0.01246666652 | J18: -0.0204 | K18: TRUE | L18: 0 | M18: 0
A19: 13 | B19: =IF(ROWS(GPS_IMPORT!$1:13)<=SUM(IF(GPS_IMPORT!$A$2:$A$10000=$B$5,1,0)),INDEX(GPS_IMPORT!$2:$10000,MATCH($B$5,(GPS_IMPORT!$A$2:$A$10000),0)+ROWS($1:13)-1,COLUMN()-1),0) -> 101 | C19: =IF(ROWS(GPS_IMPORT!$1:13)<=SUM(IF(GPS_IMPORT!$A$2:$A$10000=$B$5,1,0)),INDEX(GPS_IMPORT!$2:$10000,MATCH($B$5,(GPS_IMPORT!$A$2:$A$10000),0)+ROWS($1:13)-1,COLUMN()-1),0) -> 45408 | D19: =IF(ROWS(GPS_IMPORT!$1:13)<=SUM(IF(GPS_IMPORT!$A$2:$A$10000=$B$5,1,0)),INDEX(GPS_IMPORT!$2:$10000,MATCH($B$5,(GPS_IMPORT!$A$2:$A$10000),0)+ROWS($1:13)-1,COLUMN()-1),0) -> 09:47:20 | E19: =IF(ROWS(GPS_IMPORT!$1:13)<=SUM(IF(GPS_IMPORT!$A$2:$A$10000=$B$5,1,0)),INDEX(GPS_IMPORT!$2:$10000,MATCH($B$5,(GPS_IMPORT!$A$2:$A$10000),0)+ROWS($1:13)-1,COLUMN()-1),0) -> 694961.047 | F19: =IF(ROWS(GPS_IMPORT!$1:13)<=SUM(IF(GPS_IMPORT!$A$2:$A$10000=$B$5,1,0)),INDEX(GPS_IMPORT!$2:$10000,MATCH($B$5,(GPS_IMPORT!$A$2:$A$10000),0)+ROWS($1:13)-1,COLUMN()-1),0) -> 1858245.088 | G19: =IF(ROWS(GPS_IMPORT!$1:13)<=SUM(IF(GPS_IMPORT!$A$2:$A$10000=$B$5,1,0)),INDEX(GPS_IMPORT!$2:$10000,MATCH($B$5,(GPS_IMPORT!$A$2:$A$10000),0)+ROWS($1:13)-1,COLUMN()-1),0) -> 743.445 | H19: -0.04100000008 | I19: -0.00353333354 | J19: -0.0164 | K19: TRUE | L19: -0.04100000008 | M19: -0.00353333354
A20: 14 | B20: =IF(ROWS(GPS_IMPORT!$1:14)<=SUM(IF(GPS_IMPORT!$A$2:$A$10000=$B$5,1,0)),INDEX(GPS_IMPORT!$2:$10000,MATCH($B$5,(GPS_IMPORT!$A$2:$A$10000),0)+ROWS($1:14)-1,COLUMN()-1),0) -> 101 | C20: =IF(ROWS(GPS_IMPORT!$1:14)<=SUM(IF(GPS_IMPORT!$A$2:$A$10000=$B$5,1,0)),INDEX(GPS_IMPORT!$2:$10000,MATCH($B$5,(GPS_IMPORT!$A$2:$A$10000),0)+ROWS($1:14)-1,COLUMN()-1),0) -> 45408 | D20: =IF(ROWS(GPS_IMPORT!$1:14)<=SUM(IF(GPS_IMPORT!$A$2:$A$10000=$B$5,1,0)),INDEX(GPS_IMPORT!$2:$10000,MATCH($B$5,(GPS_IMPORT!$A$2:$A$10000),0)+ROWS($1:14)-1,COLUMN()-1),0) -> 09:47:52 | E20: =IF(ROWS(GPS_IMPORT!$1:14)<=SUM(IF(GPS_IMPORT!$A$2:$A$10000=$B$5,1,0)),INDEX(GPS_IMPORT!$2:$10000,MATCH($B$5,(GPS_IMPORT!$A$2:$A$10000),0)+ROWS($1:14)-1,COLUMN()-1),0) -> 694961.024 | F20: =IF(ROWS(GPS_IMPORT!$1:14)<=SUM(IF(GPS_IMPORT!$A$2:$A$10000=$B$5,1,0)),INDEX(GPS_IMPORT!$2:$10000,MATCH($B$5,(GPS_IMPORT!$A$2:$A$10000),0)+ROWS($1:14)-1,COLUMN()-1),0) -> 1858245.101 | G20: =IF(ROWS(GPS_IMPORT!$1:14)<=SUM(IF(GPS_IMPORT!$A$2:$A$10000=$B$5,1,0)),INDEX(GPS_IMPORT!$2:$10000,MATCH($B$5,(GPS_IMPORT!$A$2:$A$10000),0)+ROWS($1:14)-1,COLUMN()-1),0) -> 743.442 | H20: -0.01800000004 | I20: -0.01653333358 | J20: -0.0134 | K20: TRUE | L20: 0 | M20: 0
A21: 15 | B21: =IF(ROWS(GPS_IMPORT!$1:15)<=SUM(IF(GPS_IMPORT!$A$2:$A$10000=$B$5,1,0)),INDEX(GPS_IMPORT!$2:$10000,MATCH($B$5,(GPS_IMPORT!$A$2:$A$10000),0)+ROWS($1:15)-1,COLUMN()-1),0) -> 101 | C21: =IF(ROWS(GPS_IMPORT!$1:15)<=SUM(IF(GPS_IMPORT!$A$2:$A$10000=$B$5,1,0)),INDEX(GPS_IMPORT!$2:$10000,MATCH($B$5,(GPS_IMPORT!$A$2:$A$10000),0)+ROWS($1:15)-1,COLUMN()-1),0) -> 45408 | D21: =IF(ROWS(GPS_IMPORT!$1:15)<=SUM(IF(GPS_IMPORT!$A$2:$A$10000=$B$5,1,0)),INDEX(GPS_IMPORT!$2:$10000,MATCH($B$5,(GPS_IMPORT!$A$2:$A$10000),0)+ROWS($1:15)-1,COLUMN()-1),0) -> 09:49:30 | E21: =IF(ROWS(GPS_IMPORT!$1:15)<=SUM(IF(GPS_IMPORT!$A$2:$A$10000=$B$5,1,0)),INDEX(GPS_IMPORT!$2:$10000,MATCH($B$5,(GPS_IMPORT!$A$2:$A$10000),0)+ROWS($1:15)-1,COLUMN()-1),0) -> 694960.995 | F21: =IF(ROWS(GPS_IMPORT!$1:15)<=SUM(IF(GPS_IMPORT!$A$2:$A$10000=$B$5,1,0)),INDEX(GPS_IMPORT!$2:$10000,MATCH($B$5,(GPS_IMPORT!$A$2:$A$10000),0)+ROWS($1:15)-1,COLUMN()-1),0) -> 1858245.069 | G21: =IF(ROWS(GPS_IMPORT!$1:15)<=SUM(IF(GPS_IMPORT!$A$2:$A$10000=$B$5,1,0)),INDEX(GPS_IMPORT!$2:$10000,MATCH($B$5,(GPS_IMPORT!$A$2:$A$10000),0)+ROWS($1:15)-1,COLUMN()-1),0) -> 743.464 | H21: =IF(K21=TRUE,IF(E21>0,E$22-E21,0),0) -> 0.01099999994 | I21: 0.01546666655 | J21: -0.0354 | K21: TRUE | L21: 0 | M21: 0
D22: AVERAGE | E22: =(IF($K$7=TRUE,E7,0)+IF($K$8=TRUE,E8,0)+IF($K$9=TRUE,E9,0)+IF($K$10=TRUE,E10,0)+IF($K$11=TRUE,E11,0)+IF($K$12=TRUE,E12,0)+IF($K$13=TRUE,E13,0)+IF($K$14=TRUE,E14,0)+IF($K$15=TRUE,E15,0)+IF($K$16=TRUE,E16,0)+IF($K$17=TRUE,E17,0)+IF($K$18=TRUE,E18,0)+IF($K$19=TRUE,E19,0)+IF($K$20=TRUE,E20,0)+IF($K$21=TRUE,E21,0))/(IF($K$7=TRUE,1,0)+IF($K$8=TRUE,1,0)+IF($K$9=TRUE,1,0)+IF($K$10=TRUE,1,0)+IF($K$11=TRUE,1,0)+IF($K$12=TRUE,1,0)+IF($K$13=TRUE,1,0)+IF($K$14=TRUE,1,0)+IF($K$15=TRUE,1,0)+IF($K$16=TRUE,1,0)+IF($K$17=TRUE,1,0)+IF($K$18=TRUE,1,0)+IF($K$19=TRUE,1,0)+IF($K$20=TRUE,1,0)+IF($K$21=TRUE,1,0)) -> 694961.006 | F22: =(IF($K$7=TRUE,F7,0)+IF($K$8=TRUE,F8,0)+IF($K$9=TRUE,F9,0)+IF($K$10=TRUE,F10,0)+IF($K$11=TRUE,F11,0)+IF($K$12=TRUE,F12,0)+IF($K$13=TRUE,F13,0)+IF($K$14=TRUE,F14,0)+IF($K$15=TRUE,F15,0)+IF($K$16=TRUE,F16,0)+IF($K$17=TRUE,F17,0)+IF($K$18=TRUE,F18,0)+IF($K$19=TRUE,F19,0)+IF($K$20=TRUE,F20,0)+IF($K$21=TRUE,F21,0))/(IF($K$7=TRUE,1,0)+IF($K$8=TRUE,1,0)+IF($K$9=TRUE,1,0)+IF($K$10=TRUE,1,0)+IF($K$11=TRUE,1,0)+IF($K$12=TRUE,1,0)+IF($K$13=TRUE,1,0)+IF($K$14=TRUE,1,0)+IF($K$15=TRUE,1,0)+IF($K$16=TRUE,1,0)+IF($K$17=TRUE,1,0)+IF($K$18=TRUE,1,0)+IF($K$19=TRUE,1,0)+IF($K$20=TRUE,1,0)+IF($K$21=TRUE,1,0)) -> 1858245.084 | G22: =(IF($K$7=TRUE,G7,0)+IF($K$8=TRUE,G8,0)+IF($K$9=TRUE,G9,0)+IF($K$10=TRUE,G10,0)+IF($K$11=TRUE,G11,0)+IF($K$12=TRUE,G12,0)+IF($K$13=TRUE,G13,0)+IF($K$14=TRUE,G14,0)+IF($K$15=TRUE,G15,0)+IF($K$16=TRUE,G16,0)+IF($K$17=TRUE,G17,0)+IF($K$18=TRUE,G18,0)+IF($K$19=TRUE,G19,0)+IF($K$20=TRUE,G20,0)+IF($K$21=TRUE,G21,0))/ (IF($K$7=TRUE,1,0)+IF($K$8=TRUE,1,0)+IF($K$9=TRUE,1,0)+IF($K$10=TRUE,1,0)+IF($K$11=TRUE,1,0)+IF($K$12=TRUE,1,0)+IF($K$13=TRUE,1,0)+IF($K$14=TRUE,1,0)+IF($K$15=TRUE,1,0)+IF($K$16=TRUE,1,0)+IF($K$17=TRUE,1,0)+IF($K$18=TRUE,1,0)+IF($K$19=TRUE,1,0)+IF($K$20=TRUE,1,0)+IF($K$21=TRUE,1,0)) -> 743.4286 | H22: RMSE: | I22: RMSE: | J22: RMSE:
G23: ="RMSE IN "&GPS_IMPORT!J4&":" -> RMSE IN U.S. Survey FT: | H23: =SQRT(SUMSQ((IF(K7:K21=TRUE,H7:H21)))/SUM(IF(K7:K21=TRUE,1,0))) -> 0.01829754082 | I23: =SQRT(SUMSQ((IF(K7:K21=TRUE,I7:I21)))/SUM(IF(K7:K21=TRUE,1,0))) -> 0.0113599687 | J23: =SQRT(SUMSQ((IF(K7:K21=TRUE,J7:J21)))/SUM(IF(K7:K21=TRUE,1,0))) -> 0.02077113382
G24: Tolerance: | H24: =VLOOKUP(GPS_IMPORT!$K$4,Lists!H3:I5,2,FALSE) -> 0.029 | J24: =VLOOKUP(GPS_IMPORT!$K$4,Lists!H3:J5,3,FALSE) -> 0.039
H25: =IF(H23<=H24,"PASS","FAIL") -> PASS | I25: =IF(I23<=H24,"PASS","FAIL") -> PASS | J25: =IF(J23<=J24,"PASS","FAIL") -> PASS
A27: AVERAGED GPS-DERIVED POSITION | I27: Notes:
B28: MONUMENT COORDINATES | D28: NORTHING | E28: EASTING | F28: ORTHO HEIGHT | N28: Degrees | O28: Radians | P28: SIN | Q28: COS
B29: =GPS_IMPORT!J4&" ("&IF(GPS_IMPORT!K2,"GROUND","State Plane")&")" -> U.S. Survey FT (State Plane) | D29: =$E$22 -> 694961.006 | E29: =$F$22 -> 1858245.084 | F29: =$G$22 -> 743.4286 | N29: 1 | O29: =N29*(PI()/180) -> 0.01745329252 | P29: =SIN(O29)*H$24 -> 0.0005061197867 | Q29: =COS(O29)*H$24 -> 0.02899558316
N30: =N29+1 -> 2 | O30: =N30*(PI()/180) -> 0.03490658504 | P30: 0.001012085404 | Q30: 0.02898233398
A31: LEVELED ELEVATION | N31: =N30+1 -> 3 | O31: 0.05235987756 | P31: 0.001517742731 | Q31: 0.02896025651
A32: ='LEVEL RUN'!B5 -> U.S. Survey FT | C32: =IFERROR(VLOOKUP(B5,'LEVEL RUN'!A7:I59,9,FALSE),"N/A") -> 743.4172568 | D32: (Fill out Level Run Sheet or N/A if no leveled elevation is available) | N32: 4 | O32: 0.06981317008 | P32: 0.002022937739 | Q32: 0.02892935746
A33: MONUMENT HELD | C33: =IF('LEVEL RUN'!A7="","",'LEVEL RUN'!A7) -> CP13 | D33: (Type the monument name from which leveling originated) | N33: 5 | O33: 0.0872664626 | P33: 0.00252751654 | Q33: 0.02888964624
A34: LEVELED ELEVATION - GPS DERIVED ELEVATION = | E34: =IF(C32="N/A","N/A",C32-(F29*'LEVEL RUN'!F5)) -> -0.01134318182 | F34: ='LEVEL RUN'!D5 -> sft | N34: 6 | O34: 0.1047197551 | P34: 0.003031325435 | Q34: 0.02884113497
N35: 7 | O35: 0.1221730476 | P35: 0.003534210959 | Q35: 0.0287838384
A36: FINAL MONUMENT COORDINATES | N36: 8 | O36: 0.1396263402 | P36: 0.004036019928 | Q36: 0.02871777399
B37: MONUMENT COORDINATES | D37: NORTHING | E37: EASTING | F37: ELEVATION | G37: FEATURE CODE | N37: 9 | O37: 0.1570796327 | P37: 0.004536599486 | Q37: 0.02864296188
B38: =GPS_IMPORT!J6&" "&REPORT!C10 -> U.S. Survey FT South | D38: =IF(GPS_IMPORT!K2,($E$22*GPS_IMPORT!$L$6)*(1/REPORT!C14),$E$22*GPS_IMPORT!$L$6) -> 694961.006 | E38: =IF(GPS_IMPORT!K2,($F$22*GPS_IMPORT!$L$6)*(1/REPORT!C14),$F$22*GPS_IMPORT!$L$6) -> 1858245.084 | F38: =IF($C$32="N/A",($G$22*GPS_IMPORT!$L$6),$C$32*'LEVEL RUN'!H5) -> 743.4172568 | G38: =VLOOKUP($B$5,GPS_IMPORT!$A$2:$G$2000,7,FALSE) -> CMON | N38: 10 | O38: 0.1745329252 | P38: 0.005035797152 | Q38: 0.02855942484
B39: =GPS_IMPORT!J6&" "&REPORT!C11&" "&"County" -> U.S. Survey FT Franklin County | D39: =VLOOKUP($B$5,'MON TABLE'!$A$11:$I$35,6,FALSE) -> 549132.59 | E39: =VLOOKUP($B$5,'MON TABLE'!$A$11:$I$35,7,FALSE) -> 222110.745 | F39: =VLOOKUP($B$5,'MON TABLE'!$A$11:$I$35,8,FALSE) -> 743.417 | G39: =$G$38 -> CMON | N39: 11 | O39: 0.1919862177 | P39: 0.005533460866 | Q39: 0.02846718832
N40: 12 | O40: 0.2094395102 | P40: 0.006029439034 | Q40: 0.02836628042
A41: ∆ North, ∆ East, and ∆ Ht. are the difference between the average northing, easting, and height for each observation. | I41: Mask Angle: | J41: 10° | N41: 13 | O41: 0.2268928028 | P41: 0.006523580576 | Q41: 0.02825673188
N42: 14 | O42: 0.2443460953 | P42: 0.007015734972 | Q42: 0.02813857606
N43: 15 | O43: 0.2617993878 | P43: 0.007505752308 | Q43: 0.02801184896
N44: 16 | O44: 0.2792526803 | P44: 0.007993483319 | Q44: 0.02787658918
N45: 17 | O45: 0.2967059728 | P45: 0.008478779437 | Q45: 0.02773283792
N46: 18 | O46: 0.3141592654 | P46: 0.008961492837 | Q46: 0.02758063897
N47: 19 | O47: 0.3316125579 | P47: 0.009441476479 | Q47: 0.02742003869
N48: 20 | O48: 0.3490658504 | P48: 0.009918584156 | Q48: 0.027251086
N49: 21 | O49: 0.3665191429 | P49: 0.01039267054 | Q49: 0.02707383237
N50: 22 | O50: 0.3839724354 | P50: 0.01086359121 | Q50: 0.02688833178
N51: 23 | O51: 0.401425728 | P51: 0.01133120273 | Q51: 0.02669464075
N52: 24 | O52: 0.4188790205 | P52: 0.01179536265 | Q52: 0.02649281827
N53: 25 | O53: 0.436332313 | P53: 0.01225592959 | Q53: 0.02628292582
N54: 26 | O54: 0.4537856055 | P54: 0.01271276326 | Q54: 0.02606502734
N55: 27 | O55: 0.471238898 | P55: 0.01316572449 | Q55: 0.0258391892
N56: 28 | O56: 0.4886921906 | P56: 0.01361467532 | Q56: 0.02560548019
N57: 29 | O57: 0.5061454831 | P57: 0.01405947899 | Q57: 0.02536397151
N58: 30 | O58: 0.5235987756 | P58: 0.0145 | Q58: 0.02511473671
N59: 31 | O59: 0.5410520681 | P59: 0.01493610417 | Q59: 0.02485785172
N60: 32 | O60: 0.5585053606 | P60: 0.01536765866 | Q60: 0.02459339479
N61: 33 | O61: 0.5759586532 | P61: 0.01579453202 | Q61: 0.02432144647
N62: 34 | O62: 0.5934119457 | P62: 0.0162165942 | Q62: 0.0240420896
N63: 35 | O63: 0.6108652382 | P63: 0.01663371665 | Q63: 0.02375540928
N64: 36 | O64: 0.6283185307 | P64: 0.01704577232 | Q64: 0.02346149284
N65: 37 | O65: 0.6457718232 | P65: 0.01745263567 | Q65: 0.02316042979
N66: 38 | O66: 0.6632251158 | P66: 0.01785418278 | Q66: 0.02285231185
N67: 39 | O67: 0.6806784083 | P67: 0.01825029134 | Q67: 0.02253723288
N68: 40 | O68: 0.6981317008 | P68: 0.01864084068 | Q68: 0.02221528885
N69: 41 | O69: 0.7155849933 | P69: 0.01902571184 | Q69: 0.02188657783
N70: 42 | O70: 0.7330382858 | P70: 0.01940478758 | Q70: 0.02155119994
N71: 43 | O71: 0.7504915784 | P71: 0.01977795244 | Q71: 0.02120925735
N72: 44 | O72: 0.7679448709 | P72: 0.02014509274 | Q72: 0.02086085421
N73: 45 | O73: 0.7853981634 | P73: 0.02050609665 | Q73: 0.02050609665
N74: 46 | O74: 0.8028514559 | P74: 0.02086085421 | Q74: 0.02014509274
N75: 47 | O75: 0.8203047484 | P75: 0.02120925735 | Q75: 0.01977795244
N76: 48 | O76: 0.837758041 | P76: 0.02155119994 | Q76: 0.01940478758
N77: 49 | O77: 0.8552113335 | P77: 0.02188657783 | Q77: 0.01902571184
N78: 50 | O78: 0.872664626 | P78: 0.02221528885 | Q78: 0.01864084068
N79: 51 | O79: 0.8901179185 | P79: 0.02253723288 | Q79: 0.01825029134
N80: 52 | O80: 0.907571211 | P80: 0.02285231185 | Q80: 0.01785418278
N81: 53 | O81: 0.9250245036 | P81: 0.02316042979 | Q81: 0.01745263567
N82: 54 | O82: 0.9424777961 | P82: 0.02346149284 | Q82: 0.01704577232
N83: 55 | O83: 0.9599310886 | P83: 0.02375540928 | Q83: 0.01663371665
N84: 56 | O84: 0.9773843811 | P84: 0.0240420896 | Q84: 0.0162165942
N85: 57 | O85: 0.9948376736 | P85: 0.02432144647 | Q85: 0.01579453202
N86: 58 | O86: 1.012290966 | P86: 0.02459339479 | Q86: 0.01536765866
N87: 59 | O87: 1.029744259 | P87: 0.02485785172 | Q87: 0.01493610417
N88: 60 | O88: 1.047197551 | P88: 0.02511473671 | Q88: 0.0145
N89: 61 | O89: 1.064650844 | P89: 0.02536397151 | Q89: 0.01405947899
N90: 62 | O90: 1.082104136 | P90: 0.02560548019 | Q90: 0.01361467532
N91: 63 | O91: 1.099557429 | P91: 0.0258391892 | Q91: 0.01316572449
N92: 64 | O92: 1.117010721 | P92: 0.02606502734 | Q92: 0.01271276326
N93: 65 | O93: 1.134464014 | P93: =SIN(O93)*H$24 -> 0.02628292582 | Q93: =COS(O93)*H$24 -> 0.01225592959
N94: 66 | O94: =N94*(PI()/180) -> 1.151917306 | P94: 0.02649281827 | Q94: 0.01179536265
N95: =N94+1 -> 67 | O95: 1.169370599 | P95: 0.02669464075 | Q95: 0.01133120273
N96: 68 | O96: 1.186823891 | P96: 0.02688833178 | Q96: 0.01086359121
N97: 69 | O97: 1.204277184 | P97: 0.02707383237 | Q97: 0.01039267054
N98: 70 | O98: 1.221730476 | P98: 0.027251086 | Q98: 0.009918584156
N99: 71 | O99: 1.239183769 | P99: 0.02742003869 | Q99: 0.009441476479
N100: 72 | O100: 1.256637061 | P100: 0.02758063897 | Q100: 0.008961492837
N101: 73 | O101: 1.274090354 | P101: 0.02773283792 | Q101: 0.008478779437
N102: 74 | O102: 1.291543646 | P102: 0.02787658918 | Q102: 0.007993483319
N103: 75 | O103: 1.308996939 | P103: 0.02801184896 | Q103: 0.007505752308
N104: 76 | O104: 1.326450232 | P104: 0.02813857606 | Q104: 0.007015734972
N105: 77 | O105: 1.343903524 | P105: 0.02825673188 | Q105: 0.006523580576
N106: 78 | O106: 1.361356817 | P106: 0.02836628042 | Q106: 0.006029439034
N107: 79 | O107: 1.378810109 | P107: 0.02846718832 | Q107: 0.005533460866
N108: 80 | O108: 1.396263402 | P108: 0.02855942484 | Q108: 0.005035797152
N109: 81 | O109: 1.413716694 | P109: 0.02864296188 | Q109: 0.004536599486
N110: 82 | O110: 1.431169987 | P110: 0.02871777399 | Q110: 0.004036019928
N111: 83 | O111: 1.448623279 | P111: 0.0287838384 | Q111: 0.003534210959
N112: 84 | O112: 1.466076572 | P112: 0.02884113497 | Q112: 0.003031325435
N113: 85 | O113: 1.483529864 | P113: 0.02888964624 | Q113: 0.00252751654
N114: 86 | O114: 1.500983157 | P114: 0.02892935746 | Q114: 0.002022937739
N115: 87 | O115: 1.518436449 | P115: 0.02896025651 | Q115: 0.001517742731
N116: 88 | O116: 1.535889742 | P116: 0.02898233398 | Q116: 0.001012085404
N117: 89 | O117: 1.553343034 | P117: 0.02899558316 | Q117: 0.0005061197867
N118: 90 | O118: 1.570796327 | P118: 0.029 | Q118: 1.77646526e-18
N119: 91 | O119: 1.588249619 | P119: 0.02899558316 | Q119: -0.0005061197867
N120: 92 | O120: 1.605702912 | P120: 0.02898233398 | Q120: -0.001012085404
N121: 93 | O121: 1.623156204 | P121: 0.02896025651 | Q121: -0.001517742731
N122: 94 | O122: 1.640609497 | P122: 0.02892935746 | Q122: -0.002022937739
N123: 95 | O123: 1.658062789 | P123: 0.02888964624 | Q123: -0.00252751654
N124: 96 | O124: 1.675516082 | P124: 0.02884113497 | Q124: -0.003031325435
N125: 97 | O125: 1.692969374 | P125: 0.0287838384 | Q125: -0.003534210959
N126: 98 | O126: 1.710422667 | P126: 0.02871777399 | Q126: -0.004036019928
N127: 99 | O127: 1.727875959 | P127: 0.02864296188 | Q127: -0.004536599486
N128: 100 | O128: 1.745329252 | P128: 0.02855942484 | Q128: -0.005035797152
N129: 101 | O129: 1.762782545 | P129: 0.02846718832 | Q129: -0.005533460866
N130: 102 | O130: 1.780235837 | P130: 0.02836628042 | Q130: -0.006029439034
N131: 103 | O131: 1.79768913 | P131: 0.02825673188 | Q131: -0.006523580576
N132: 104 | O132: 1.815142422 | P132: 0.02813857606 | Q132: -0.007015734972
N133: 105 | O133: 1.832595715 | P133: 0.02801184896 | Q133: -0.007505752308
N134: 106 | O134: 1.850049007 | P134: 0.02787658918 | Q134: -0.007993483319
N135: 107 | O135: 1.8675023 | P135: 0.02773283792 | Q135: -0.008478779437
N136: 108 | O136: 1.884955592 | P136: 0.02758063897 | Q136: -0.008961492837
N137: 109 | O137: 1.902408885 | P137: 0.02742003869 | Q137: -0.009441476479
N138: 110 | O138: 1.919862177 | P138: 0.027251086 | Q138: -0.009918584156
N139: 111 | O139: 1.93731547 | P139: 0.02707383237 | Q139: -0.01039267054
N140: 112 | O140: 1.954768762 | P140: 0.02688833178 | Q140: -0.01086359121
N141: 113 | O141: 1.972222055 | P141: 0.02669464075 | Q141: -0.01133120273
N142: 114 | O142: 1.989675347 | P142: 0.02649281827 | Q142: -0.01179536265
N143: 115 | O143: 2.00712864 | P143: 0.02628292582 | Q143: -0.01225592959
N144: 116 | O144: 2.024581932 | P144: 0.02606502734 | Q144: -0.01271276326
N145: 117 | O145: 2.042035225 | P145: 0.0258391892 | Q145: -0.01316572449
N146: 118 | O146: 2.059488517 | P146: 0.02560548019 | Q146: -0.01361467532
N147: 119 | O147: 2.07694181 | P147: 0.02536397151 | Q147: -0.01405947899
N148: 120 | O148: 2.094395102 | P148: 0.02511473671 | Q148: -0.0145
N149: 121 | O149: 2.111848395 | P149: 0.02485785172 | Q149: -0.01493610417
N150: 122 | O150: 2.129301687 | P150: 0.02459339479 | Q150: -0.01536765866
N151: 123 | O151: 2.14675498 | P151: 0.02432144647 | Q151: -0.01579453202
N152: 124 | O152: 2.164208272 | P152: 0.0240420896 | Q152: -0.0162165942
N153: 125 | O153: 2.181661565 | P153: 0.02375540928 | Q153: -0.01663371665
N154: 126 | O154: 2.199114858 | P154: 0.02346149284 | Q154: -0.01704577232
N155: 127 | O155: 2.21656815 | P155: 0.02316042979 | Q155: -0.01745263567
N156: 128 | O156: 2.234021443 | P156: 0.02285231185 | Q156: -0.01785418278
N157: 129 | O157: 2.251474735 | P157: =SIN(O157)*H$24 -> 0.02253723288 | Q157: =COS(O157)*H$24 -> -0.01825029134
N158: 130 | O158: =N158*(PI()/180) -> 2.268928028 | P158: 0.02221528885 | Q158: -0.01864084068
N159: =N158+1 -> 131 | O159: 2.28638132 | P159: 0.02188657783 | Q159: -0.01902571184
N160: 132 | O160: 2.303834613 | P160: 0.02155119994 | Q160: -0.01940478758
N161: 133 | O161: 2.321287905 | P161: 0.02120925735 | Q161: -0.01977795244
N162: 134 | O162: 2.338741198 | P162: 0.02086085421 | Q162: -0.02014509274
N163: 135 | O163: 2.35619449 | P163: 0.02050609665 | Q163: -0.02050609665
N164: 136 | O164: 2.373647783 | P164: 0.02014509274 | Q164: -0.02086085421
N165: 137 | O165: 2.391101075 | P165: 0.01977795244 | Q165: -0.02120925735
N166: 138 | O166: 2.408554368 | P166: 0.01940478758 | Q166: -0.02155119994
N167: 139 | O167: 2.42600766 | P167: 0.01902571184 | Q167: -0.02188657783
N168: 140 | O168: 2.443460953 | P168: 0.01864084068 | Q168: -0.02221528885
N169: 141 | O169: 2.460914245 | P169: 0.01825029134 | Q169: -0.02253723288
N170: 142 | O170: 2.478367538 | P170: 0.01785418278 | Q170: -0.02285231185
N171: 143 | O171: 2.49582083 | P171: 0.01745263567 | Q171: -0.02316042979
N172: 144 | O172: 2.513274123 | P172: 0.01704577232 | Q172: -0.02346149284
N173: 145 | O173: 2.530727415 | P173: 0.01663371665 | Q173: -0.02375540928
N174: 146 | O174: 2.548180708 | P174: 0.0162165942 | Q174: -0.0240420896
N175: 147 | O175: 2.565634 | P175: 0.01579453202 | Q175: -0.02432144647
N176: 148 | O176: 2.583087293 | P176: 0.01536765866 | Q176: -0.02459339479
N177: 149 | O177: 2.600540585 | P177: 0.01493610417 | Q177: -0.02485785172
N178: 150 | O178: 2.617993878 | P178: 0.0145 | Q178: -0.02511473671
N179: 151 | O179: 2.635447171 | P179: 0.01405947899 | Q179: -0.02536397151
N180: 152 | O180: 2.652900463 | P180: 0.01361467532 | Q180: -0.02560548019
N181: 153 | O181: 2.670353756 | P181: 0.01316572449 | Q181: -0.0258391892
N182: 154 | O182: 2.687807048 | P182: 0.01271276326 | Q182: -0.02606502734
N183: 155 | O183: 2.705260341 | P183: 0.01225592959 | Q183: -0.02628292582
N184: 156 | O184: 2.722713633 | P184: 0.01179536265 | Q184: -0.02649281827
N185: 157 | O185: 2.740166926 | P185: 0.01133120273 | Q185: -0.02669464075
N186: 158 | O186: 2.757620218 | P186: 0.01086359121 | Q186: -0.02688833178
N187: 159 | O187: 2.775073511 | P187: 0.01039267054 | Q187: -0.02707383237
N188: 160 | O188: 2.792526803 | P188: 0.009918584156 | Q188: -0.027251086
N189: 161 | O189: 2.809980096 | P189: 0.009441476479 | Q189: -0.02742003869
N190: 162 | O190: 2.827433388 | P190: 0.008961492837 | Q190: -0.02758063897
N191: 163 | O191: 2.844886681 | P191: 0.008478779437 | Q191: -0.02773283792
N192: 164 | O192: 2.862339973 | P192: 0.007993483319 | Q192: -0.02787658918
N193: 165 | O193: 2.879793266 | P193: 0.007505752308 | Q193: -0.02801184896
N194: 166 | O194: 2.897246558 | P194: 0.007015734972 | Q194: -0.02813857606
N195: 167 | O195: 2.914699851 | P195: 0.006523580576 | Q195: -0.02825673188
N196: 168 | O196: 2.932153143 | P196: 0.006029439034 | Q196: -0.02836628042
N197: 169 | O197: 2.949606436 | P197: 0.005533460866 | Q197: -0.02846718832
N198: 170 | O198: 2.967059728 | P198: 0.005035797152 | Q198: -0.02855942484
N199: 171 | O199: 2.984513021 | P199: 0.004536599486 | Q199: -0.02864296188
N200: 172 | O200: 3.001966313 | P200: 0.004036019928 | Q200: -0.02871777399
N201: 173 | O201: 3.019419606 | P201: 0.003534210959 | Q201: -0.0287838384
N202: 174 | O202: 3.036872898 | P202: 0.003031325435 | Q202: -0.02884113497
... 186 more rows

Sheet 102
A1: VRS GNSS Project Control Monument Coordinate Analysis
A3: Project: | B3: =REPORT!B2 -> FRA-33-24.76 | D3: GPS Antenna: | E3: =REPORT!A42 -> Trimble R12i | I3: Report Date: | J3: =REPORT!C49 -> 2024-06-25
A4: PID: | B4: =REPORT!E2 -> 119387 | D4: VRS Network: | E4: ODOT VRS | I4: Prepared By: | J4: =REPORT!C48 -> Mark Humphrey
A5: Point ID: | B5: 102 | C5: No. of Sessions: | D5: =SUM(IF(GPS_IMPORT!A2:A1000=$B$5,1,0)) -> 15 | E5: =IF(GPS_IMPORT!K2,"(LDP)","(STATE PLANE)") -> (STATE PLANE) | I5: Checked By: | J5: =REPORT!C59 -> Mike Wilson
A6: SESSION # | B6: Point | C6: Observation Date | D6: Start Time | E6: ="Northing("&GPS_IMPORT!K4&")" -> Northing(sft) | F6: ="Easting("&GPS_IMPORT!K4&")" -> Easting(sft) | G6: ="Height("&GPS_IMPORT!K4&")" -> Height(sft) | H6: ="∆ Northing("&GPS_IMPORT!K4&")" -> ∆ Northing(sft) | I6: ="∆ Easting("&GPS_IMPORT!K4&")" -> ∆ Easting(sft) | J6: ="∆ Height("&GPS_IMPORT!K4&")" -> ∆ Height(sft) | K6: Include in Solution?
A7: 1 | B7: =IF(ROWS(GPS_IMPORT!$1:1)<=SUM(IF(GPS_IMPORT!$A$2:$A$10000=$B$5,1,0)),INDEX(GPS_IMPORT!$2:$10000,MATCH($B$5,(GPS_IMPORT!$A$2:$A$10000),0)+ROWS($1:1)-1,COLUMN()-1),0) -> 102 | C7: =IF(ROWS(GPS_IMPORT!$1:1)<=SUM(IF(GPS_IMPORT!$A$2:$A$10000=$B$5,1,0)),INDEX(GPS_IMPORT!$2:$10000,MATCH($B$5,(GPS_IMPORT!$A$2:$A$10000),0)+ROWS($1:1)-1,COLUMN()-1),0) -> 45408 | D7: =IF(ROWS(GPS_IMPORT!$1:1)<=SUM(IF(GPS_IMPORT!$A$2:$A$10000=$B$5,1,0)),INDEX(GPS_IMPORT!$2:$10000,MATCH($B$5,(GPS_IMPORT!$A$2:$A$10000),0)+ROWS($1:1)-1,COLUMN()-1),0) -> 10:48:21 | E7: =IF(ROWS(GPS_IMPORT!$1:1)<=SUM(IF(GPS_IMPORT!$A$2:$A$10000=$B$5,1,0)),INDEX(GPS_IMPORT!$2:$10000,MATCH($B$5,(GPS_IMPORT!$A$2:$A$10000),0)+ROWS($1:1)-1,COLUMN()-1),0) -> 693181.663 | F7: =IF(ROWS(GPS_IMPORT!$1:1)<=SUM(IF(GPS_IMPORT!$A$2:$A$10000=$B$5,1,0)),INDEX(GPS_IMPORT!$2:$10000,MATCH($B$5,(GPS_IMPORT!$A$2:$A$10000),0)+ROWS($1:1)-1,COLUMN()-1),0) -> 1856854.094 | G7: =IF(ROWS(GPS_IMPORT!$1:1)<=SUM(IF(GPS_IMPORT!$A$2:$A$10000=$B$5,1,0)),INDEX(GPS_IMPORT!$2:$10000,MATCH($B$5,(GPS_IMPORT!$A$2:$A$10000),0)+ROWS($1:1)-1,COLUMN()-1),0) -> 764.396 | H7: =IF(K7=TRUE,IF(E7>0,E$22-E7,0),0) -> -0.0214666666 | I7: =IF(K7=TRUE,IF(F7>0,F$22-F7,0),0) -> -0.00100000063 | J7: =IF(K7=TRUE,IF(G7>0,G$22-G7,0),0) -> 0.04053333333 | K7: TRUE | L7: =IF(OR(ABS(H7)>$H$24,ABS(I7)>$H$24,ABS(SQRT((H7^2)+(I7^2)))>$H$24),IF(K7=TRUE,IF(E7>0,E$22-E7,0),0),0) -> 0 | M7: =IF(OR(ABS(H7)>$H$24,ABS(I7)>$H$24,ABS(SQRT((H7^2)+(I7^2)))>$H$24),IF(K7=TRUE,IF(E7>0,F$22-F7,0),0),0) -> 0
A8: 2 | B8: =IF(ROWS(GPS_IMPORT!$1:2)<=SUM(IF(GPS_IMPORT!$A$2:$A$10000=$B$5,1,0)),INDEX(GPS_IMPORT!$2:$10000,MATCH($B$5,(GPS_IMPORT!$A$2:$A$10000),0)+ROWS($1:2)-1,COLUMN()-1),0) -> 102 | C8: =IF(ROWS(GPS_IMPORT!$1:2)<=SUM(IF(GPS_IMPORT!$A$2:$A$10000=$B$5,1,0)),INDEX(GPS_IMPORT!$2:$10000,MATCH($B$5,(GPS_IMPORT!$A$2:$A$10000),0)+ROWS($1:2)-1,COLUMN()-1),0) -> 45408 | D8: =IF(ROWS(GPS_IMPORT!$1:2)<=SUM(IF(GPS_IMPORT!$A$2:$A$10000=$B$5,1,0)),INDEX(GPS_IMPORT!$2:$10000,MATCH($B$5,(GPS_IMPORT!$A$2:$A$10000),0)+ROWS($1:2)-1,COLUMN()-1),0) -> 10:49:05 | E8: =IF(ROWS(GPS_IMPORT!$1:2)<=SUM(IF(GPS_IMPORT!$A$2:$A$10000=$B$5,1,0)),INDEX(GPS_IMPORT!$2:$10000,MATCH($B$5,(GPS_IMPORT!$A$2:$A$10000),0)+ROWS($1:2)-1,COLUMN()-1),0) -> 693181.636 | F8: =IF(ROWS(GPS_IMPORT!$1:2)<=SUM(IF(GPS_IMPORT!$A$2:$A$10000=$B$5,1,0)),INDEX(GPS_IMPORT!$2:$10000,MATCH($B$5,(GPS_IMPORT!$A$2:$A$10000),0)+ROWS($1:2)-1,COLUMN()-1),0) -> 1856854.11 | G8: =IF(ROWS(GPS_IMPORT!$1:2)<=SUM(IF(GPS_IMPORT!$A$2:$A$10000=$B$5,1,0)),INDEX(GPS_IMPORT!$2:$10000,MATCH($B$5,(GPS_IMPORT!$A$2:$A$10000),0)+ROWS($1:2)-1,COLUMN()-1),0) -> 764.413 | H8: =IF(K8=TRUE,IF(E8>0,E$22-E8,0),0) -> 0.005533333286 | I8: =IF(K8=TRUE,IF(F8>0,F$22-F8,0),0) -> -0.01700000069 | J8: =IF(K8=TRUE,IF(G8>0,G$22-G8,0),0) -> 0.02353333333 | K8: TRUE | L8: 0 | M8: 0
A9: 3 | B9: =IF(ROWS(GPS_IMPORT!$1:3)<=SUM(IF(GPS_IMPORT!$A$2:$A$10000=$B$5,1,0)),INDEX(GPS_IMPORT!$2:$10000,MATCH($B$5,(GPS_IMPORT!$A$2:$A$10000),0)+ROWS($1:3)-1,COLUMN()-1),0) -> 102 | C9: =IF(ROWS(GPS_IMPORT!$1:3)<=SUM(IF(GPS_IMPORT!$A$2:$A$10000=$B$5,1,0)),INDEX(GPS_IMPORT!$2:$10000,MATCH($B$5,(GPS_IMPORT!$A$2:$A$10000),0)+ROWS($1:3)-1,COLUMN()-1),0) -> 45408 | D9: =IF(ROWS(GPS_IMPORT!$1:3)<=SUM(IF(GPS_IMPORT!$A$2:$A$10000=$B$5,1,0)),INDEX(GPS_IMPORT!$2:$10000,MATCH($B$5,(GPS_IMPORT!$A$2:$A$10000),0)+ROWS($1:3)-1,COLUMN()-1),0) -> 10:49:33 | E9: =IF(ROWS(GPS_IMPORT!$1:3)<=SUM(IF(GPS_IMPORT!$A$2:$A$10000=$B$5,1,0)),INDEX(GPS_IMPORT!$2:$10000,MATCH($B$5,(GPS_IMPORT!$A$2:$A$10000),0)+ROWS($1:3)-1,COLUMN()-1),0) -> 693181.638 | F9: =IF(ROWS(GPS_IMPORT!$1:3)<=SUM(IF(GPS_IMPORT!$A$2:$A$10000=$B$5,1,0)),INDEX(GPS_IMPORT!$2:$10000,MATCH($B$5,(GPS_IMPORT!$A$2:$A$10000),0)+ROWS($1:3)-1,COLUMN()-1),0) -> 1856854.085 | G9: =IF(ROWS(GPS_IMPORT!$1:3)<=SUM(IF(GPS_IMPORT!$A$2:$A$10000=$B$5,1,0)),INDEX(GPS_IMPORT!$2:$10000,MATCH($B$5,(GPS_IMPORT!$A$2:$A$10000),0)+ROWS($1:3)-1,COLUMN()-1),0) -> 764.417 | H9: 0.003533333307 | I9: 0.007999999449 | J9: 0.01953333333 | K9: TRUE | L9: 0 | M9: 0
A10: 4 | B10: =IF(ROWS(GPS_IMPORT!$1:4)<=SUM(IF(GPS_IMPORT!$A$2:$A$10000=$B$5,1,0)),INDEX(GPS_IMPORT!$2:$10000,MATCH($B$5,(GPS_IMPORT!$A$2:$A$10000),0)+ROWS($1:4)-1,COLUMN()-1),0) -> 102 | C10: =IF(ROWS(GPS_IMPORT!$1:4)<=SUM(IF(GPS_IMPORT!$A$2:$A$10000=$B$5,1,0)),INDEX(GPS_IMPORT!$2:$10000,MATCH($B$5,(GPS_IMPORT!$A$2:$A$10000),0)+ROWS($1:4)-1,COLUMN()-1),0) -> 45408 | D10: =IF(ROWS(GPS_IMPORT!$1:4)<=SUM(IF(GPS_IMPORT!$A$2:$A$10000=$B$5,1,0)),INDEX(GPS_IMPORT!$2:$10000,MATCH($B$5,(GPS_IMPORT!$A$2:$A$10000),0)+ROWS($1:4)-1,COLUMN()-1),0) -> 10:50:11 | E10: =IF(ROWS(GPS_IMPORT!$1:4)<=SUM(IF(GPS_IMPORT!$A$2:$A$10000=$B$5,1,0)),INDEX(GPS_IMPORT!$2:$10000,MATCH($B$5,(GPS_IMPORT!$A$2:$A$10000),0)+ROWS($1:4)-1,COLUMN()-1),0) -> 693181.651 | F10: =IF(ROWS(GPS_IMPORT!$1:4)<=SUM(IF(GPS_IMPORT!$A$2:$A$10000=$B$5,1,0)),INDEX(GPS_IMPORT!$2:$10000,MATCH($B$5,(GPS_IMPORT!$A$2:$A$10000),0)+ROWS($1:4)-1,COLUMN()-1),0) -> 1856854.066 | G10: =IF(ROWS(GPS_IMPORT!$1:4)<=SUM(IF(GPS_IMPORT!$A$2:$A$10000=$B$5,1,0)),INDEX(GPS_IMPORT!$2:$10000,MATCH($B$5,(GPS_IMPORT!$A$2:$A$10000),0)+ROWS($1:4)-1,COLUMN()-1),0) -> 764.425 | H10: -0.009466666612 | I10: 0.0269999993 | J10: 0.01153333333 | K10: TRUE | L10: 0 | M10: 0
A11: 5 | B11: =IF(ROWS(GPS_IMPORT!$1:5)<=SUM(IF(GPS_IMPORT!$A$2:$A$10000=$B$5,1,0)),INDEX(GPS_IMPORT!$2:$10000,MATCH($B$5,(GPS_IMPORT!$A$2:$A$10000),0)+ROWS($1:5)-1,COLUMN()-1),0) -> 102 | C11: =IF(ROWS(GPS_IMPORT!$1:5)<=SUM(IF(GPS_IMPORT!$A$2:$A$10000=$B$5,1,0)),INDEX(GPS_IMPORT!$2:$10000,MATCH($B$5,(GPS_IMPORT!$A$2:$A$10000),0)+ROWS($1:5)-1,COLUMN()-1),0) -> 45408 | D11: =IF(ROWS(GPS_IMPORT!$1:5)<=SUM(IF(GPS_IMPORT!$A$2:$A$10000=$B$5,1,0)),INDEX(GPS_IMPORT!$2:$10000,MATCH($B$5,(GPS_IMPORT!$A$2:$A$10000),0)+ROWS($1:5)-1,COLUMN()-1),0) -> 10:51:21 | E11: =IF(ROWS(GPS_IMPORT!$1:5)<=SUM(IF(GPS_IMPORT!$A$2:$A$10000=$B$5,1,0)),INDEX(GPS_IMPORT!$2:$10000,MATCH($B$5,(GPS_IMPORT!$A$2:$A$10000),0)+ROWS($1:5)-1,COLUMN()-1),0) -> 693181.659 | F11: =IF(ROWS(GPS_IMPORT!$1:5)<=SUM(IF(GPS_IMPORT!$A$2:$A$10000=$B$5,1,0)),INDEX(GPS_IMPORT!$2:$10000,MATCH($B$5,(GPS_IMPORT!$A$2:$A$10000),0)+ROWS($1:5)-1,COLUMN()-1),0) -> 1856854.101 | G11: =IF(ROWS(GPS_IMPORT!$1:5)<=SUM(IF(GPS_IMPORT!$A$2:$A$10000=$B$5,1,0)),INDEX(GPS_IMPORT!$2:$10000,MATCH($B$5,(GPS_IMPORT!$A$2:$A$10000),0)+ROWS($1:5)-1,COLUMN()-1),0) -> 764.463 | H11: -0.01746666664 | I11: -0.008000000613 | J11: -0.02646666667 | K11: TRUE | L11: 0 | M11: 0
A12: 6 | B12: =IF(ROWS(GPS_IMPORT!$1:6)<=SUM(IF(GPS_IMPORT!$A$2:$A$10000=$B$5,1,0)),INDEX(GPS_IMPORT!$2:$10000,MATCH($B$5,(GPS_IMPORT!$A$2:$A$10000),0)+ROWS($1:6)-1,COLUMN()-1),0) -> 102 | C12: =IF(ROWS(GPS_IMPORT!$1:6)<=SUM(IF(GPS_IMPORT!$A$2:$A$10000=$B$5,1,0)),INDEX(GPS_IMPORT!$2:$10000,MATCH($B$5,(GPS_IMPORT!$A$2:$A$10000),0)+ROWS($1:6)-1,COLUMN()-1),0) -> 45408 | D12: =IF(ROWS(GPS_IMPORT!$1:6)<=SUM(IF(GPS_IMPORT!$A$2:$A$10000=$B$5,1,0)),INDEX(GPS_IMPORT!$2:$10000,MATCH($B$5,(GPS_IMPORT!$A$2:$A$10000),0)+ROWS($1:6)-1,COLUMN()-1),0) -> 10:52:06 | E12: =IF(ROWS(GPS_IMPORT!$1:6)<=SUM(IF(GPS_IMPORT!$A$2:$A$10000=$B$5,1,0)),INDEX(GPS_IMPORT!$2:$10000,MATCH($B$5,(GPS_IMPORT!$A$2:$A$10000),0)+ROWS($1:6)-1,COLUMN()-1),0) -> 693181.634 | F12: =IF(ROWS(GPS_IMPORT!$1:6)<=SUM(IF(GPS_IMPORT!$A$2:$A$10000=$B$5,1,0)),INDEX(GPS_IMPORT!$2:$10000,MATCH($B$5,(GPS_IMPORT!$A$2:$A$10000),0)+ROWS($1:6)-1,COLUMN()-1),0) -> 1856854.117 | G12: =IF(ROWS(GPS_IMPORT!$1:6)<=SUM(IF(GPS_IMPORT!$A$2:$A$10000=$B$5,1,0)),INDEX(GPS_IMPORT!$2:$10000,MATCH($B$5,(GPS_IMPORT!$A$2:$A$10000),0)+ROWS($1:6)-1,COLUMN()-1),0) -> 764.45 | H12: 0.007533333381 | I12: -0.02400000067 | J12: -0.01346666667 | K12: TRUE | L12: 0 | M12: 0
A13: 7 | B13: =IF(ROWS(GPS_IMPORT!$1:7)<=SUM(IF(GPS_IMPORT!$A$2:$A$10000=$B$5,1,0)),INDEX(GPS_IMPORT!$2:$10000,MATCH($B$5,(GPS_IMPORT!$A$2:$A$10000),0)+ROWS($1:7)-1,COLUMN()-1),0) -> 102 | C13: =IF(ROWS(GPS_IMPORT!$1:7)<=SUM(IF(GPS_IMPORT!$A$2:$A$10000=$B$5,1,0)),INDEX(GPS_IMPORT!$2:$10000,MATCH($B$5,(GPS_IMPORT!$A$2:$A$10000),0)+ROWS($1:7)-1,COLUMN()-1),0) -> 45408 | D13: =IF(ROWS(GPS_IMPORT!$1:7)<=SUM(IF(GPS_IMPORT!$A$2:$A$10000=$B$5,1,0)),INDEX(GPS_IMPORT!$2:$10000,MATCH($B$5,(GPS_IMPORT!$A$2:$A$10000),0)+ROWS($1:7)-1,COLUMN()-1),0) -> 10:52:40 | E13: =IF(ROWS(GPS_IMPORT!$1:7)<=SUM(IF(GPS_IMPORT!$A$2:$A$10000=$B$5,1,0)),INDEX(GPS_IMPORT!$2:$10000,MATCH($B$5,(GPS_IMPORT!$A$2:$A$10000),0)+ROWS($1:7)-1,COLUMN()-1),0) -> 693181.636 | F13: =IF(ROWS(GPS_IMPORT!$1:7)<=SUM(IF(GPS_IMPORT!$A$2:$A$10000=$B$5,1,0)),INDEX(GPS_IMPORT!$2:$10000,MATCH($B$5,(GPS_IMPORT!$A$2:$A$10000),0)+ROWS($1:7)-1,COLUMN()-1),0) -> 1856854.088 | G13: =IF(ROWS(GPS_IMPORT!$1:7)<=SUM(IF(GPS_IMPORT!$A$2:$A$10000=$B$5,1,0)),INDEX(GPS_IMPORT!$2:$10000,MATCH($B$5,(GPS_IMPORT!$A$2:$A$10000),0)+ROWS($1:7)-1,COLUMN()-1),0) -> 764.457 | H13: 0.005533333286 | I13: 0.004999999423 | J13: -0.02046666667 | K13: TRUE | L13: 0 | M13: 0
A14: 8 | B14: =IF(ROWS(GPS_IMPORT!$1:8)<=SUM(IF(GPS_IMPORT!$A$2:$A$10000=$B$5,1,0)),INDEX(GPS_IMPORT!$2:$10000,MATCH($B$5,(GPS_IMPORT!$A$2:$A$10000),0)+ROWS($1:8)-1,COLUMN()-1),0) -> 102 | C14: =IF(ROWS(GPS_IMPORT!$1:8)<=SUM(IF(GPS_IMPORT!$A$2:$A$10000=$B$5,1,0)),INDEX(GPS_IMPORT!$2:$10000,MATCH($B$5,(GPS_IMPORT!$A$2:$A$10000),0)+ROWS($1:8)-1,COLUMN()-1),0) -> 45408 | D14: =IF(ROWS(GPS_IMPORT!$1:8)<=SUM(IF(GPS_IMPORT!$A$2:$A$10000=$B$5,1,0)),INDEX(GPS_IMPORT!$2:$10000,MATCH($B$5,(GPS_IMPORT!$A$2:$A$10000),0)+ROWS($1:8)-1,COLUMN()-1),0) -> 10:53:15 | E14: =IF(ROWS(GPS_IMPORT!$1:8)<=SUM(IF(GPS_IMPORT!$A$2:$A$10000=$B$5,1,0)),INDEX(GPS_IMPORT!$2:$10000,MATCH($B$5,(GPS_IMPORT!$A$2:$A$10000),0)+ROWS($1:8)-1,COLUMN()-1),0) -> 693181.654 | F14: =IF(ROWS(GPS_IMPORT!$1:8)<=SUM(IF(GPS_IMPORT!$A$2:$A$10000=$B$5,1,0)),INDEX(GPS_IMPORT!$2:$10000,MATCH($B$5,(GPS_IMPORT!$A$2:$A$10000),0)+ROWS($1:8)-1,COLUMN()-1),0) -> 1856854.075 | G14: =IF(ROWS(GPS_IMPORT!$1:8)<=SUM(IF(GPS_IMPORT!$A$2:$A$10000=$B$5,1,0)),INDEX(GPS_IMPORT!$2:$10000,MATCH($B$5,(GPS_IMPORT!$A$2:$A$10000),0)+ROWS($1:8)-1,COLUMN()-1),0) -> 764.434 | H14: -0.01246666664 | I14: 0.01799999946 | J14: 0.002533333333 | K14: TRUE | L14: 0 | M14: 0
A15: 9 | B15: =IF(ROWS(GPS_IMPORT!$1:9)<=SUM(IF(GPS_IMPORT!$A$2:$A$10000=$B$5,1,0)),INDEX(GPS_IMPORT!$2:$10000,MATCH($B$5,(GPS_IMPORT!$A$2:$A$10000),0)+ROWS($1:9)-1,COLUMN()-1),0) -> 102 | C15: =IF(ROWS(GPS_IMPORT!$1:9)<=SUM(IF(GPS_IMPORT!$A$2:$A$10000=$B$5,1,0)),INDEX(GPS_IMPORT!$2:$10000,MATCH($B$5,(GPS_IMPORT!$A$2:$A$10000),0)+ROWS($1:9)-1,COLUMN()-1),0) -> 45408 | D15: =IF(ROWS(GPS_IMPORT!$1:9)<=SUM(IF(GPS_IMPORT!$A$2:$A$10000=$B$5,1,0)),INDEX(GPS_IMPORT!$2:$10000,MATCH($B$5,(GPS_IMPORT!$A$2:$A$10000),0)+ROWS($1:9)-1,COLUMN()-1),0) -> 10:54:14 | E15: =IF(ROWS(GPS_IMPORT!$1:9)<=SUM(IF(GPS_IMPORT!$A$2:$A$10000=$B$5,1,0)),INDEX(GPS_IMPORT!$2:$10000,MATCH($B$5,(GPS_IMPORT!$A$2:$A$10000),0)+ROWS($1:9)-1,COLUMN()-1),0) -> 693181.658 | F15: =IF(ROWS(GPS_IMPORT!$1:9)<=SUM(IF(GPS_IMPORT!$A$2:$A$10000=$B$5,1,0)),INDEX(GPS_IMPORT!$2:$10000,MATCH($B$5,(GPS_IMPORT!$A$2:$A$10000),0)+ROWS($1:9)-1,COLUMN()-1),0) -> 1856854.09 | G15: =IF(ROWS(GPS_IMPORT!$1:9)<=SUM(IF(GPS_IMPORT!$A$2:$A$10000=$B$5,1,0)),INDEX(GPS_IMPORT!$2:$10000,MATCH($B$5,(GPS_IMPORT!$A$2:$A$10000),0)+ROWS($1:9)-1,COLUMN()-1),0) -> 764.471 | H15: -0.01646666671 | I15: 0.002999999328 | J15: -0.03446666667 | K15: TRUE | L15: 0 | M15: 0
A16: 10 | B16: =IF(ROWS(GPS_IMPORT!$1:10)<=SUM(IF(GPS_IMPORT!$A$2:$A$10000=$B$5,1,0)),INDEX(GPS_IMPORT!$2:$10000,MATCH($B$5,(GPS_IMPORT!$A$2:$A$10000),0)+ROWS($1:10)-1,COLUMN()-1),0) -> 102 | C16: =IF(ROWS(GPS_IMPORT!$1:10)<=SUM(IF(GPS_IMPORT!$A$2:$A$10000=$B$5,1,0)),INDEX(GPS_IMPORT!$2:$10000,MATCH($B$5,(GPS_IMPORT!$A$2:$A$10000),0)+ROWS($1:10)-1,COLUMN()-1),0) -> 45408 | D16: =IF(ROWS(GPS_IMPORT!$1:10)<=SUM(IF(GPS_IMPORT!$A$2:$A$10000=$B$5,1,0)),INDEX(GPS_IMPORT!$2:$10000,MATCH($B$5,(GPS_IMPORT!$A$2:$A$10000),0)+ROWS($1:10)-1,COLUMN()-1),0) -> 10:54:53 | E16: =IF(ROWS(GPS_IMPORT!$1:10)<=SUM(IF(GPS_IMPORT!$A$2:$A$10000=$B$5,1,0)),INDEX(GPS_IMPORT!$2:$10000,MATCH($B$5,(GPS_IMPORT!$A$2:$A$10000),0)+ROWS($1:10)-1,COLUMN()-1),0) -> 693181.633 | F16: =IF(ROWS(GPS_IMPORT!$1:10)<=SUM(IF(GPS_IMPORT!$A$2:$A$10000=$B$5,1,0)),INDEX(GPS_IMPORT!$2:$10000,MATCH($B$5,(GPS_IMPORT!$A$2:$A$10000),0)+ROWS($1:10)-1,COLUMN()-1),0) -> 1856854.114 | G16: =IF(ROWS(GPS_IMPORT!$1:10)<=SUM(IF(GPS_IMPORT!$A$2:$A$10000=$B$5,1,0)),INDEX(GPS_IMPORT!$2:$10000,MATCH($B$5,(GPS_IMPORT!$A$2:$A$10000),0)+ROWS($1:10)-1,COLUMN()-1),0) -> 764.452 | H16: 0.008533333312 | I16: -0.02100000065 | J16: -0.01546666667 | K16: TRUE | L16: 0 | M16: 0
A17: 11 | B17: =IF(ROWS(GPS_IMPORT!$1:11)<=SUM(IF(GPS_IMPORT!$A$2:$A$10000=$B$5,1,0)),INDEX(GPS_IMPORT!$2:$10000,MATCH($B$5,(GPS_IMPORT!$A$2:$A$10000),0)+ROWS($1:11)-1,COLUMN()-1),0) -> 102 | C17: =IF(ROWS(GPS_IMPORT!$1:11)<=SUM(IF(GPS_IMPORT!$A$2:$A$10000=$B$5,1,0)),INDEX(GPS_IMPORT!$2:$10000,MATCH($B$5,(GPS_IMPORT!$A$2:$A$10000),0)+ROWS($1:11)-1,COLUMN()-1),0) -> 45408 | D17: =IF(ROWS(GPS_IMPORT!$1:11)<=SUM(IF(GPS_IMPORT!$A$2:$A$10000=$B$5,1,0)),INDEX(GPS_IMPORT!$2:$10000,MATCH($B$5,(GPS_IMPORT!$A$2:$A$10000),0)+ROWS($1:11)-1,COLUMN()-1),0) -> 10:55:30 | E17: =IF(ROWS(GPS_IMPORT!$1:11)<=SUM(IF(GPS_IMPORT!$A$2:$A$10000=$B$5,1,0)),INDEX(GPS_IMPORT!$2:$10000,MATCH($B$5,(GPS_IMPORT!$A$2:$A$10000),0)+ROWS($1:11)-1,COLUMN()-1),0) -> 693181.625 | F17: =IF(ROWS(GPS_IMPORT!$1:11)<=SUM(IF(GPS_IMPORT!$A$2:$A$10000=$B$5,1,0)),INDEX(GPS_IMPORT!$2:$10000,MATCH($B$5,(GPS_IMPORT!$A$2:$A$10000),0)+ROWS($1:11)-1,COLUMN()-1),0) -> 1856854.09 | G17: =IF(ROWS(GPS_IMPORT!$1:11)<=SUM(IF(GPS_IMPORT!$A$2:$A$10000=$B$5,1,0)),INDEX(GPS_IMPORT!$2:$10000,MATCH($B$5,(GPS_IMPORT!$A$2:$A$10000),0)+ROWS($1:11)-1,COLUMN()-1),0) -> 764.462 | H17: 0.01653333334 | I17: 0.002999999328 | J17: -0.02546666667 | K17: TRUE | L17: 0 | M17: 0
A18: 12 | B18: =IF(ROWS(GPS_IMPORT!$1:12)<=SUM(IF(GPS_IMPORT!$A$2:$A$10000=$B$5,1,0)),INDEX(GPS_IMPORT!$2:$10000,MATCH($B$5,(GPS_IMPORT!$A$2:$A$10000),0)+ROWS($1:12)-1,COLUMN()-1),0) -> 102 | C18: =IF(ROWS(GPS_IMPORT!$1:12)<=SUM(IF(GPS_IMPORT!$A$2:$A$10000=$B$5,1,0)),INDEX(GPS_IMPORT!$2:$10000,MATCH($B$5,(GPS_IMPORT!$A$2:$A$10000),0)+ROWS($1:12)-1,COLUMN()-1),0) -> 45408 | D18: =IF(ROWS(GPS_IMPORT!$1:12)<=SUM(IF(GPS_IMPORT!$A$2:$A$10000=$B$5,1,0)),INDEX(GPS_IMPORT!$2:$10000,MATCH($B$5,(GPS_IMPORT!$A$2:$A$10000),0)+ROWS($1:12)-1,COLUMN()-1),0) -> 10:56:03 | E18: =IF(ROWS(GPS_IMPORT!$1:12)<=SUM(IF(GPS_IMPORT!$A$2:$A$10000=$B$5,1,0)),INDEX(GPS_IMPORT!$2:$10000,MATCH($B$5,(GPS_IMPORT!$A$2:$A$10000),0)+ROWS($1:12)-1,COLUMN()-1),0) -> 693181.642 | F18: =IF(ROWS(GPS_IMPORT!$1:12)<=SUM(IF(GPS_IMPORT!$A$2:$A$10000=$B$5,1,0)),INDEX(GPS_IMPORT!$2:$10000,MATCH($B$5,(GPS_IMPORT!$A$2:$A$10000),0)+ROWS($1:12)-1,COLUMN()-1),0) -> 1856854.082 | G18: =IF(ROWS(GPS_IMPORT!$1:12)<=SUM(IF(GPS_IMPORT!$A$2:$A$10000=$B$5,1,0)),INDEX(GPS_IMPORT!$2:$10000,MATCH($B$5,(GPS_IMPORT!$A$2:$A$10000),0)+ROWS($1:12)-1,COLUMN()-1),0) -> 764.454 | H18: -0.00046666665 | I18: 0.01099999947 | J18: -0.01746666667 | K18: TRUE | L18: 0 | M18: 0
A19: 13 | B19: =IF(ROWS(GPS_IMPORT!$1:13)<=SUM(IF(GPS_IMPORT!$A$2:$A$10000=$B$5,1,0)),INDEX(GPS_IMPORT!$2:$10000,MATCH($B$5,(GPS_IMPORT!$A$2:$A$10000),0)+ROWS($1:13)-1,COLUMN()-1),0) -> 102 | C19: =IF(ROWS(GPS_IMPORT!$1:13)<=SUM(IF(GPS_IMPORT!$A$2:$A$10000=$B$5,1,0)),INDEX(GPS_IMPORT!$2:$10000,MATCH($B$5,(GPS_IMPORT!$A$2:$A$10000),0)+ROWS($1:13)-1,COLUMN()-1),0) -> 45408 | D19: =IF(ROWS(GPS_IMPORT!$1:13)<=SUM(IF(GPS_IMPORT!$A$2:$A$10000=$B$5,1,0)),INDEX(GPS_IMPORT!$2:$10000,MATCH($B$5,(GPS_IMPORT!$A$2:$A$10000),0)+ROWS($1:13)-1,COLUMN()-1),0) -> 10:57:27 | E19: =IF(ROWS(GPS_IMPORT!$1:13)<=SUM(IF(GPS_IMPORT!$A$2:$A$10000=$B$5,1,0)),INDEX(GPS_IMPORT!$2:$10000,MATCH($B$5,(GPS_IMPORT!$A$2:$A$10000),0)+ROWS($1:13)-1,COLUMN()-1),0) -> 693181.653 | F19: =IF(ROWS(GPS_IMPORT!$1:13)<=SUM(IF(GPS_IMPORT!$A$2:$A$10000=$B$5,1,0)),INDEX(GPS_IMPORT!$2:$10000,MATCH($B$5,(GPS_IMPORT!$A$2:$A$10000),0)+ROWS($1:13)-1,COLUMN()-1),0) -> 1856854.091 | G19: =IF(ROWS(GPS_IMPORT!$1:13)<=SUM(IF(GPS_IMPORT!$A$2:$A$10000=$B$5,1,0)),INDEX(GPS_IMPORT!$2:$10000,MATCH($B$5,(GPS_IMPORT!$A$2:$A$10000),0)+ROWS($1:13)-1,COLUMN()-1),0) -> 764.423 | H19: -0.01146666671 | I19: 0.001999999397 | J19: 0.01353333333 | K19: TRUE | L19: 0 | M19: 0
A20: 14 | B20: =IF(ROWS(GPS_IMPORT!$1:14)<=SUM(IF(GPS_IMPORT!$A$2:$A$10000=$B$5,1,0)),INDEX(GPS_IMPORT!$2:$10000,MATCH($B$5,(GPS_IMPORT!$A$2:$A$10000),0)+ROWS($1:14)-1,COLUMN()-1),0) -> 102 | C20: =IF(ROWS(GPS_IMPORT!$1:14)<=SUM(IF(GPS_IMPORT!$A$2:$A$10000=$B$5,1,0)),INDEX(GPS_IMPORT!$2:$10000,MATCH($B$5,(GPS_IMPORT!$A$2:$A$10000),0)+ROWS($1:14)-1,COLUMN()-1),0) -> 45408 | D20: =IF(ROWS(GPS_IMPORT!$1:14)<=SUM(IF(GPS_IMPORT!$A$2:$A$10000=$B$5,1,0)),INDEX(GPS_IMPORT!$2:$10000,MATCH($B$5,(GPS_IMPORT!$A$2:$A$10000),0)+ROWS($1:14)-1,COLUMN()-1),0) -> 10:58:17 | E20: =IF(ROWS(GPS_IMPORT!$1:14)<=SUM(IF(GPS_IMPORT!$A$2:$A$10000=$B$5,1,0)),INDEX(GPS_IMPORT!$2:$10000,MATCH($B$5,(GPS_IMPORT!$A$2:$A$10000),0)+ROWS($1:14)-1,COLUMN()-1),0) -> 693181.621 | F20: =IF(ROWS(GPS_IMPORT!$1:14)<=SUM(IF(GPS_IMPORT!$A$2:$A$10000=$B$5,1,0)),INDEX(GPS_IMPORT!$2:$10000,MATCH($B$5,(GPS_IMPORT!$A$2:$A$10000),0)+ROWS($1:14)-1,COLUMN()-1),0) -> 1856854.102 | G20: =IF(ROWS(GPS_IMPORT!$1:14)<=SUM(IF(GPS_IMPORT!$A$2:$A$10000=$B$5,1,0)),INDEX(GPS_IMPORT!$2:$10000,MATCH($B$5,(GPS_IMPORT!$A$2:$A$10000),0)+ROWS($1:14)-1,COLUMN()-1),0) -> 764.41 | H20: 0.0205333333 | I20: -0.009000000544 | J20: 0.02653333333 | K20: TRUE | L20: 0 | M20: 0
A21: 15 | B21: =IF(ROWS(GPS_IMPORT!$1:15)<=SUM(IF(GPS_IMPORT!$A$2:$A$10000=$B$5,1,0)),INDEX(GPS_IMPORT!$2:$10000,MATCH($B$5,(GPS_IMPORT!$A$2:$A$10000),0)+ROWS($1:15)-1,COLUMN()-1),0) -> 102 | C21: =IF(ROWS(GPS_IMPORT!$1:15)<=SUM(IF(GPS_IMPORT!$A$2:$A$10000=$B$5,1,0)),INDEX(GPS_IMPORT!$2:$10000,MATCH($B$5,(GPS_IMPORT!$A$2:$A$10000),0)+ROWS($1:15)-1,COLUMN()-1),0) -> 45408 | D21: =IF(ROWS(GPS_IMPORT!$1:15)<=SUM(IF(GPS_IMPORT!$A$2:$A$10000=$B$5,1,0)),INDEX(GPS_IMPORT!$2:$10000,MATCH($B$5,(GPS_IMPORT!$A$2:$A$10000),0)+ROWS($1:15)-1,COLUMN()-1),0) -> 10:58:46 | E21: =IF(ROWS(GPS_IMPORT!$1:15)<=SUM(IF(GPS_IMPORT!$A$2:$A$10000=$B$5,1,0)),INDEX(GPS_IMPORT!$2:$10000,MATCH($B$5,(GPS_IMPORT!$A$2:$A$10000),0)+ROWS($1:15)-1,COLUMN()-1),0) -> 693181.62 | F21: =IF(ROWS(GPS_IMPORT!$1:15)<=SUM(IF(GPS_IMPORT!$A$2:$A$10000=$B$5,1,0)),INDEX(GPS_IMPORT!$2:$10000,MATCH($B$5,(GPS_IMPORT!$A$2:$A$10000),0)+ROWS($1:15)-1,COLUMN()-1),0) -> 1856854.09 | G21: =IF(ROWS(GPS_IMPORT!$1:15)<=SUM(IF(GPS_IMPORT!$A$2:$A$10000=$B$5,1,0)),INDEX(GPS_IMPORT!$2:$10000,MATCH($B$5,(GPS_IMPORT!$A$2:$A$10000),0)+ROWS($1:15)-1,COLUMN()-1),0) -> 764.421 | H21: =IF(K21=TRUE,IF(E21>0,E$22-E21,0),0) -> 0.02153333335 | I21: 0.002999999328 | J21: 0.01553333333 | K21: TRUE | L21: 0 | M21: 0
D22: AVERAGE | E22: =(IF($K$7=TRUE,E7,0)+IF($K$8=TRUE,E8,0)+IF($K$9=TRUE,E9,0)+IF($K$10=TRUE,E10,0)+IF($K$11=TRUE,E11,0)+IF($K$12=TRUE,E12,0)+IF($K$13=TRUE,E13,0)+IF($K$14=TRUE,E14,0)+IF($K$15=TRUE,E15,0)+IF($K$16=TRUE,E16,0)+IF($K$17=TRUE,E17,0)+IF($K$18=TRUE,E18,0)+IF($K$19=TRUE,E19,0)+IF($K$20=TRUE,E20,0)+IF($K$21=TRUE,E21,0))/(IF($K$7=TRUE,1,0)+IF($K$8=TRUE,1,0)+IF($K$9=TRUE,1,0)+IF($K$10=TRUE,1,0)+IF($K$11=TRUE,1,0)+IF($K$12=TRUE,1,0)+IF($K$13=TRUE,1,0)+IF($K$14=TRUE,1,0)+IF($K$15=TRUE,1,0)+IF($K$16=TRUE,1,0)+IF($K$17=TRUE,1,0)+IF($K$18=TRUE,1,0)+IF($K$19=TRUE,1,0)+IF($K$20=TRUE,1,0)+IF($K$21=TRUE,1,0)) -> 693181.6415 | F22: =(IF($K$7=TRUE,F7,0)+IF($K$8=TRUE,F8,0)+IF($K$9=TRUE,F9,0)+IF($K$10=TRUE,F10,0)+IF($K$11=TRUE,F11,0)+IF($K$12=TRUE,F12,0)+IF($K$13=TRUE,F13,0)+IF($K$14=TRUE,F14,0)+IF($K$15=TRUE,F15,0)+IF($K$16=TRUE,F16,0)+IF($K$17=TRUE,F17,0)+IF($K$18=TRUE,F18,0)+IF($K$19=TRUE,F19,0)+IF($K$20=TRUE,F20,0)+IF($K$21=TRUE,F21,0))/(IF($K$7=TRUE,1,0)+IF($K$8=TRUE,1,0)+IF($K$9=TRUE,1,0)+IF($K$10=TRUE,1,0)+IF($K$11=TRUE,1,0)+IF($K$12=TRUE,1,0)+IF($K$13=TRUE,1,0)+IF($K$14=TRUE,1,0)+IF($K$15=TRUE,1,0)+IF($K$16=TRUE,1,0)+IF($K$17=TRUE,1,0)+IF($K$18=TRUE,1,0)+IF($K$19=TRUE,1,0)+IF($K$20=TRUE,1,0)+IF($K$21=TRUE,1,0)) -> 1856854.093 | G22: =(IF($K$7=TRUE,G7,0)+IF($K$8=TRUE,G8,0)+IF($K$9=TRUE,G9,0)+IF($K$10=TRUE,G10,0)+IF($K$11=TRUE,G11,0)+IF($K$12=TRUE,G12,0)+IF($K$13=TRUE,G13,0)+IF($K$14=TRUE,G14,0)+IF($K$15=TRUE,G15,0)+IF($K$16=TRUE,G16,0)+IF($K$17=TRUE,G17,0)+IF($K$18=TRUE,G18,0)+IF($K$19=TRUE,G19,0)+IF($K$20=TRUE,G20,0)+IF($K$21=TRUE,G21,0))/ (IF($K$7=TRUE,1,0)+IF($K$8=TRUE,1,0)+IF($K$9=TRUE,1,0)+IF($K$10=TRUE,1,0)+IF($K$11=TRUE,1,0)+IF($K$12=TRUE,1,0)+IF($K$13=TRUE,1,0)+IF($K$14=TRUE,1,0)+IF($K$15=TRUE,1,0)+IF($K$16=TRUE,1,0)+IF($K$17=TRUE,1,0)+IF($K$18=TRUE,1,0)+IF($K$19=TRUE,1,0)+IF($K$20=TRUE,1,0)+IF($K$21=TRUE,1,0)) -> 764.4365333 | H22: RMSE: | I22: RMSE: | J22: RMSE:
G23: ="RMSE IN "&GPS_IMPORT!J4&":" -> RMSE IN U.S. Survey FT: | H23: =SQRT(SUMSQ((IF(K7:K21=TRUE,H7:H21)))/SUM(IF(K7:K21=TRUE,1,0))) -> 0.01360326757 | I23: =SQRT(SUMSQ((IF(K7:K21=TRUE,I7:I21)))/SUM(IF(K7:K21=TRUE,1,0))) -> 0.01353021312 | J23: =SQRT(SUMSQ((IF(K7:K21=TRUE,J7:J21)))/SUM(IF(K7:K21=TRUE,1,0))) -> 0.02240198404
G24: Tolerance: | H24: =VLOOKUP(GPS_IMPORT!$K$4,Lists!H3:I5,2,FALSE) -> 0.029 | J24: =VLOOKUP(GPS_IMPORT!$K$4,Lists!H3:J5,3,FALSE) -> 0.039
H25: =IF(H23<=H24,"PASS","FAIL") -> PASS | I25: =IF(I23<=H24,"PASS","FAIL") -> PASS | J25: =IF(J23<=J24,"PASS","FAIL") -> PASS
A27: AVERAGED GPS-DERIVED POSITION | I27: Notes:
B28: MONUMENT COORDINATES | D28: NORTHING | E28: EASTING | F28: ORTHO HEIGHT | N28: Degrees | O28: Radians | P28: SIN | Q28: COS
B29: =GPS_IMPORT!J4&" ("&IF(GPS_IMPORT!K2,"GROUND","State Plane")&")" -> U.S. Survey FT (State Plane) | D29: =$E$22 -> 693181.6415 | E29: =$F$22 -> 1856854.093 | F29: =$G$22 -> 764.4365333 | N29: 1 | O29: =N29*(PI()/180) -> 0.01745329252 | P29: =SIN(O29)*H$24 -> 0.0005061197867 | Q29: =COS(O29)*H$24 -> 0.02899558316
N30: =N29+1 -> 2 | O30: =N30*(PI()/180) -> 0.03490658504 | P30: 0.001012085404 | Q30: 0.02898233398
A31: LEVELED ELEVATION | N31: =N30+1 -> 3 | O31: 0.05235987756 | P31: 0.001517742731 | Q31: 0.02896025651
A32: ='LEVEL RUN'!B5 -> U.S. Survey FT | C32: =IFERROR(VLOOKUP(B5,'LEVEL RUN'!A7:I59,9,FALSE),"N/A") -> 764.4497136 | D32: (Fill out Level Run Sheet or N/A if no leveled elevation is available) | N32: 4 | O32: 0.06981317008 | P32: 0.002022937739 | Q32: 0.02892935746
A33: MONUMENT HELD | C33: =IF('LEVEL RUN'!A7="","",'LEVEL RUN'!A7) -> CP13 | D33: (Type the monument name from which leveling originated) | N33: 5 | O33: 0.0872664626 | P33: 0.00252751654 | Q33: 0.02888964624
A34: LEVELED ELEVATION - GPS DERIVED ELEVATION = | E34: =IF(C32="N/A","N/A",C32-(F29*'LEVEL RUN'!F5)) -> 0.01318030303 | F34: ='LEVEL RUN'!D5 -> sft | N34: 6 | O34: 0.1047197551 | P34: 0.003031325435 | Q34: 0.02884113497
N35: 7 | O35: 0.1221730476 | P35: 0.003534210959 | Q35: 0.0287838384
A36: FINAL MONUMENT COORDINATES | N36: 8 | O36: 0.1396263402 | P36: 0.004036019928 | Q36: 0.02871777399
B37: MONUMENT COORDINATES | D37: NORTHING | E37: EASTING | F37: ELEVATION | G37: FEATURE CODE | N37: 9 | O37: 0.1570796327 | P37: 0.004536599486 | Q37: 0.02864296188
B38: =GPS_IMPORT!J6&" "&REPORT!C10 -> U.S. Survey FT South | D38: =IF(GPS_IMPORT!K2,($E$22*GPS_IMPORT!$L$6)*(1/REPORT!C14),$E$22*GPS_IMPORT!$L$6) -> 693181.6415 | E38: =IF(GPS_IMPORT!K2,($F$22*GPS_IMPORT!$L$6)*(1/REPORT!C14),$F$22*GPS_IMPORT!$L$6) -> 1856854.093 | F38: =IF($C$32="N/A",($G$22*GPS_IMPORT!$L$6),$C$32*'LEVEL RUN'!H5) -> 764.4497136 | G38: =VLOOKUP($B$5,GPS_IMPORT!$A$2:$G$2000,7,FALSE) -> CMON | N38: 10 | O38: 0.1745329252 | P38: 0.005035797152 | Q38: 0.02855942484
B39: =GPS_IMPORT!J6&" "&REPORT!C11&" "&"County" -> U.S. Survey FT Franklin County | D39: =VLOOKUP($B$5,'MON TABLE'!$A$11:$I$35,6,FALSE) -> 547343.874 | E39: =VLOOKUP($B$5,'MON TABLE'!$A$11:$I$35,7,FALSE) -> 220731.564 | F39: =VLOOKUP($B$5,'MON TABLE'!$A$11:$I$35,8,FALSE) -> 764.45 | G39: =$G$38 -> CMON | N39: 11 | O39: 0.1919862177 | P39: 0.005533460866 | Q39: 0.02846718832
N40: 12 | O40: 0.2094395102 | P40: 0.006029439034 | Q40: 0.02836628042
A41: ∆ North, ∆ East, and ∆ Ht. are the difference between the average northing, easting, and height for each observation. | I41: Mask Angle: | J41: 10° | N41: 13 | O41: 0.2268928028 | P41: 0.006523580576 | Q41: 0.02825673188
N42: 14 | O42: 0.2443460953 | P42: 0.007015734972 | Q42: 0.02813857606
N43: 15 | O43: 0.2617993878 | P43: 0.007505752308 | Q43: 0.02801184896
N44: 16 | O44: 0.2792526803 | P44: 0.007993483319 | Q44: 0.02787658918
N45: 17 | O45: 0.2967059728 | P45: 0.008478779437 | Q45: 0.02773283792
N46: 18 | O46: 0.3141592654 | P46: 0.008961492837 | Q46: 0.02758063897
N47: 19 | O47: 0.3316125579 | P47: 0.009441476479 | Q47: 0.02742003869
N48: 20 | O48: 0.3490658504 | P48: 0.009918584156 | Q48: 0.027251086
N49: 21 | O49: 0.3665191429 | P49: 0.01039267054 | Q49: 0.02707383237
N50: 22 | O50: 0.3839724354 | P50: 0.01086359121 | Q50: 0.02688833178
N51: 23 | O51: 0.401425728 | P51: 0.01133120273 | Q51: 0.02669464075
N52: 24 | O52: 0.4188790205 | P52: 0.01179536265 | Q52: 0.02649281827
N53: 25 | O53: 0.436332313 | P53: 0.01225592959 | Q53: 0.02628292582
N54: 26 | O54: 0.4537856055 | P54: 0.01271276326 | Q54: 0.02606502734
N55: 27 | O55: 0.471238898 | P55: 0.01316572449 | Q55: 0.0258391892
N56: 28 | O56: 0.4886921906 | P56: 0.01361467532 | Q56: 0.02560548019
N57: 29 | O57: 0.5061454831 | P57: 0.01405947899 | Q57: 0.02536397151
N58: 30 | O58: 0.5235987756 | P58: 0.0145 | Q58: 0.02511473671
N59: 31 | O59: 0.5410520681 | P59: 0.01493610417 | Q59: 0.02485785172
N60: 32 | O60: 0.5585053606 | P60: 0.01536765866 | Q60: 0.02459339479
N61: 33 | O61: 0.5759586532 | P61: 0.01579453202 | Q61: 0.02432144647
N62: 34 | O62: 0.5934119457 | P62: 0.0162165942 | Q62: 0.0240420896
N63: 35 | O63: 0.6108652382 | P63: 0.01663371665 | Q63: 0.02375540928
N64: 36 | O64: 0.6283185307 | P64: 0.01704577232 | Q64: 0.02346149284
N65: 37 | O65: 0.6457718232 | P65: 0.01745263567 | Q65: 0.02316042979
N66: 38 | O66: 0.6632251158 | P66: 0.01785418278 | Q66: 0.02285231185
N67: 39 | O67: 0.6806784083 | P67: 0.01825029134 | Q67: 0.02253723288
N68: 40 | O68: 0.6981317008 | P68: 0.01864084068 | Q68: 0.02221528885
N69: 41 | O69: 0.7155849933 | P69: 0.01902571184 | Q69: 0.02188657783
N70: 42 | O70: 0.7330382858 | P70: 0.01940478758 | Q70: 0.02155119994
N71: 43 | O71: 0.7504915784 | P71: 0.01977795244 | Q71: 0.02120925735
N72: 44 | O72: 0.7679448709 | P72: 0.02014509274 | Q72: 0.02086085421
N73: 45 | O73: 0.7853981634 | P73: 0.02050609665 | Q73: 0.02050609665
N74: 46 | O74: 0.8028514559 | P74: 0.02086085421 | Q74: 0.02014509274
N75: 47 | O75: 0.8203047484 | P75: 0.02120925735 | Q75: 0.01977795244
N76: 48 | O76: 0.837758041 | P76: 0.02155119994 | Q76: 0.01940478758
N77: 49 | O77: 0.8552113335 | P77: 0.02188657783 | Q77: 0.01902571184
N78: 50 | O78: 0.872664626 | P78: 0.02221528885 | Q78: 0.01864084068
N79: 51 | O79: 0.8901179185 | P79: 0.02253723288 | Q79: 0.01825029134
N80: 52 | O80: 0.907571211 | P80: 0.02285231185 | Q80: 0.01785418278
N81: 53 | O81: 0.9250245036 | P81: 0.02316042979 | Q81: 0.01745263567
N82: 54 | O82: 0.9424777961 | P82: 0.02346149284 | Q82: 0.01704577232
N83: 55 | O83: 0.9599310886 | P83: 0.02375540928 | Q83: 0.01663371665
N84: 56 | O84: 0.9773843811 | P84: 0.0240420896 | Q84: 0.0162165942
N85: 57 | O85: 0.9948376736 | P85: 0.02432144647 | Q85: 0.01579453202
N86: 58 | O86: 1.012290966 | P86: 0.02459339479 | Q86: 0.01536765866
N87: 59 | O87: 1.029744259 | P87: 0.02485785172 | Q87: 0.01493610417
N88: 60 | O88: 1.047197551 | P88: 0.02511473671 | Q88: 0.0145
N89: 61 | O89: 1.064650844 | P89: 0.02536397151 | Q89: 0.01405947899
N90: 62 | O90: 1.082104136 | P90: 0.02560548019 | Q90: 0.01361467532
N91: 63 | O91: 1.099557429 | P91: 0.0258391892 | Q91: 0.01316572449
N92: 64 | O92: 1.117010721 | P92: 0.02606502734 | Q92: 0.01271276326
N93: 65 | O93: 1.134464014 | P93: =SIN(O93)*H$24 -> 0.02628292582 | Q93: =COS(O93)*H$24 -> 0.01225592959
N94: 66 | O94: =N94*(PI()/180) -> 1.151917306 | P94: 0.02649281827 | Q94: 0.01179536265
N95: =N94+1 -> 67 | O95: 1.169370599 | P95: 0.02669464075 | Q95: 0.01133120273
N96: 68 | O96: 1.186823891 | P96: 0.02688833178 | Q96: 0.01086359121
N97: 69 | O97: 1.204277184 | P97: 0.02707383237 | Q97: 0.01039267054
N98: 70 | O98: 1.221730476 | P98: 0.027251086 | Q98: 0.009918584156
N99: 71 | O99: 1.239183769 | P99: 0.02742003869 | Q99: 0.009441476479
N100: 72 | O100: 1.256637061 | P100: 0.02758063897 | Q100: 0.008961492837
N101: 73 | O101: 1.274090354 | P101: 0.02773283792 | Q101: 0.008478779437
N102: 74 | O102: 1.291543646 | P102: 0.02787658918 | Q102: 0.007993483319
N103: 75 | O103: 1.308996939 | P103: 0.02801184896 | Q103: 0.007505752308
N104: 76 | O104: 1.326450232 | P104: 0.02813857606 | Q104: 0.007015734972
N105: 77 | O105: 1.343903524 | P105: 0.02825673188 | Q105: 0.006523580576
N106: 78 | O106: 1.361356817 | P106: 0.02836628042 | Q106: 0.006029439034
N107: 79 | O107: 1.378810109 | P107: 0.02846718832 | Q107: 0.005533460866
N108: 80 | O108: 1.396263402 | P108: 0.02855942484 | Q108: 0.005035797152
N109: 81 | O109: 1.413716694 | P109: 0.02864296188 | Q109: 0.004536599486
N110: 82 | O110: 1.431169987 | P110: 0.02871777399 | Q110: 0.004036019928
N111: 83 | O111: 1.448623279 | P111: 0.0287838384 | Q111: 0.003534210959
N112: 84 | O112: 1.466076572 | P112: 0.02884113497 | Q112: 0.003031325435
N113: 85 | O113: 1.483529864 | P113: 0.02888964624 | Q113: 0.00252751654
N114: 86 | O114: 1.500983157 | P114: 0.02892935746 | Q114: 0.002022937739
N115: 87 | O115: 1.518436449 | P115: 0.02896025651 | Q115: 0.001517742731
N116: 88 | O116: 1.535889742 | P116: 0.02898233398 | Q116: 0.001012085404
N117: 89 | O117: 1.553343034 | P117: 0.02899558316 | Q117: 0.0005061197867
N118: 90 | O118: 1.570796327 | P118: 0.029 | Q118: 1.77646526e-18
N119: 91 | O119: 1.588249619 | P119: 0.02899558316 | Q119: -0.0005061197867
N120: 92 | O120: 1.605702912 | P120: 0.02898233398 | Q120: -0.001012085404
N121: 93 | O121: 1.623156204 | P121: 0.02896025651 | Q121: -0.001517742731
N122: 94 | O122: 1.640609497 | P122: 0.02892935746 | Q122: -0.002022937739
N123: 95 | O123: 1.658062789 | P123: 0.02888964624 | Q123: -0.00252751654
N124: 96 | O124: 1.675516082 | P124: 0.02884113497 | Q124: -0.003031325435
N125: 97 | O125: 1.692969374 | P125: 0.0287838384 | Q125: -0.003534210959
N126: 98 | O126: 1.710422667 | P126: 0.02871777399 | Q126: -0.004036019928
N127: 99 | O127: 1.727875959 | P127: 0.02864296188 | Q127: -0.004536599486
N128: 100 | O128: 1.745329252 | P128: 0.02855942484 | Q128: -0.005035797152
N129: 101 | O129: 1.762782545 | P129: 0.02846718832 | Q129: -0.005533460866
N130: 102 | O130: 1.780235837 | P130: 0.02836628042 | Q130: -0.006029439034
N131: 103 | O131: 1.79768913 | P131: 0.02825673188 | Q131: -0.006523580576
N132: 104 | O132: 1.815142422 | P132: 0.02813857606 | Q132: -0.007015734972
N133: 105 | O133: 1.832595715 | P133: 0.02801184896 | Q133: -0.007505752308
N134: 106 | O134: 1.850049007 | P134: 0.02787658918 | Q134: -0.007993483319
N135: 107 | O135: 1.8675023 | P135: 0.02773283792 | Q135: -0.008478779437
N136: 108 | O136: 1.884955592 | P136: 0.02758063897 | Q136: -0.008961492837
N137: 109 | O137: 1.902408885 | P137: 0.02742003869 | Q137: -0.009441476479
N138: 110 | O138: 1.919862177 | P138: 0.027251086 | Q138: -0.009918584156
N139: 111 | O139: 1.93731547 | P139: 0.02707383237 | Q139: -0.01039267054
N140: 112 | O140: 1.954768762 | P140: 0.02688833178 | Q140: -0.01086359121
N141: 113 | O141: 1.972222055 | P141: 0.02669464075 | Q141: -0.01133120273
N142: 114 | O142: 1.989675347 | P142: 0.02649281827 | Q142: -0.01179536265
N143: 115 | O143: 2.00712864 | P143: 0.02628292582 | Q143: -0.01225592959
N144: 116 | O144: 2.024581932 | P144: 0.02606502734 | Q144: -0.01271276326
N145: 117 | O145: 2.042035225 | P145: 0.0258391892 | Q145: -0.01316572449
N146: 118 | O146: 2.059488517 | P146: 0.02560548019 | Q146: -0.01361467532
N147: 119 | O147: 2.07694181 | P147: 0.02536397151 | Q147: -0.01405947899
N148: 120 | O148: 2.094395102 | P148: 0.02511473671 | Q148: -0.0145
N149: 121 | O149: 2.111848395 | P149: 0.02485785172 | Q149: -0.01493610417
N150: 122 | O150: 2.129301687 | P150: 0.02459339479 | Q150: -0.01536765866
N151: 123 | O151: 2.14675498 | P151: 0.02432144647 | Q151: -0.01579453202
N152: 124 | O152: 2.164208272 | P152: 0.0240420896 | Q152: -0.0162165942
N153: 125 | O153: 2.181661565 | P153: 0.02375540928 | Q153: -0.01663371665
N154: 126 | O154: 2.199114858 | P154: 0.02346149284 | Q154: -0.01704577232
N155: 127 | O155: 2.21656815 | P155: 0.02316042979 | Q155: -0.01745263567
N156: 128 | O156: 2.234021443 | P156: 0.02285231185 | Q156: -0.01785418278
N157: 129 | O157: 2.251474735 | P157: =SIN(O157)*H$24 -> 0.02253723288 | Q157: =COS(O157)*H$24 -> -0.01825029134
N158: 130 | O158: =N158*(PI()/180) -> 2.268928028 | P158: 0.02221528885 | Q158: -0.01864084068
N159: =N158+1 -> 131 | O159: 2.28638132 | P159: 0.02188657783 | Q159: -0.01902571184
N160: 132 | O160: 2.303834613 | P160: 0.02155119994 | Q160: -0.01940478758
N161: 133 | O161: 2.321287905 | P161: 0.02120925735 | Q161: -0.01977795244
N162: 134 | O162: 2.338741198 | P162: 0.02086085421 | Q162: -0.02014509274
N163: 135 | O163: 2.35619449 | P163: 0.02050609665 | Q163: -0.02050609665
N164: 136 | O164: 2.373647783 | P164: 0.02014509274 | Q164: -0.02086085421
N165: 137 | O165: 2.391101075 | P165: 0.01977795244 | Q165: -0.02120925735
N166: 138 | O166: 2.408554368 | P166: 0.01940478758 | Q166: -0.02155119994
N167: 139 | O167: 2.42600766 | P167: 0.01902571184 | Q167: -0.02188657783
N168: 140 | O168: 2.443460953 | P168: 0.01864084068 | Q168: -0.02221528885
N169: 141 | O169: 2.460914245 | P169: 0.01825029134 | Q169: -0.02253723288
N170: 142 | O170: 2.478367538 | P170: 0.01785418278 | Q170: -0.02285231185
N171: 143 | O171: 2.49582083 | P171: 0.01745263567 | Q171: -0.02316042979
N172: 144 | O172: 2.513274123 | P172: 0.01704577232 | Q172: -0.02346149284
N173: 145 | O173: 2.530727415 | P173: 0.01663371665 | Q173: -0.02375540928
N174: 146 | O174: 2.548180708 | P174: 0.0162165942 | Q174: -0.0240420896
N175: 147 | O175: 2.565634 | P175: 0.01579453202 | Q175: -0.02432144647
N176: 148 | O176: 2.583087293 | P176: 0.01536765866 | Q176: -0.02459339479
N177: 149 | O177: 2.600540585 | P177: 0.01493610417 | Q177: -0.02485785172
N178: 150 | O178: 2.617993878 | P178: 0.0145 | Q178: -0.02511473671
N179: 151 | O179: 2.635447171 | P179: 0.01405947899 | Q179: -0.02536397151
N180: 152 | O180: 2.652900463 | P180: 0.01361467532 | Q180: -0.02560548019
N181: 153 | O181: 2.670353756 | P181: 0.01316572449 | Q181: -0.0258391892
N182: 154 | O182: 2.687807048 | P182: 0.01271276326 | Q182: -0.02606502734
N183: 155 | O183: 2.705260341 | P183: 0.01225592959 | Q183: -0.02628292582
N184: 156 | O184: 2.722713633 | P184: 0.01179536265 | Q184: -0.02649281827
N185: 157 | O185: 2.740166926 | P185: 0.01133120273 | Q185: -0.02669464075
N186: 158 | O186: 2.757620218 | P186: 0.01086359121 | Q186: -0.02688833178
N187: 159 | O187: 2.775073511 | P187: 0.01039267054 | Q187: -0.02707383237
N188: 160 | O188: 2.792526803 | P188: 0.009918584156 | Q188: -0.027251086
N189: 161 | O189: 2.809980096 | P189: 0.009441476479 | Q189: -0.02742003869
N190: 162 | O190: 2.827433388 | P190: 0.008961492837 | Q190: -0.02758063897
N191: 163 | O191: 2.844886681 | P191: 0.008478779437 | Q191: -0.02773283792
N192: 164 | O192: 2.862339973 | P192: 0.007993483319 | Q192: -0.02787658918
N193: 165 | O193: 2.879793266 | P193: 0.007505752308 | Q193: -0.02801184896
N194: 166 | O194: 2.897246558 | P194: 0.007015734972 | Q194: -0.02813857606
N195: 167 | O195: 2.914699851 | P195: 0.006523580576 | Q195: -0.02825673188
N196: 168 | O196: 2.932153143 | P196: 0.006029439034 | Q196: -0.02836628042
N197: 169 | O197: 2.949606436 | P197: 0.005533460866 | Q197: -0.02846718832
N198: 170 | O198: 2.967059728 | P198: 0.005035797152 | Q198: -0.02855942484
N199: 171 | O199: 2.984513021 | P199: 0.004536599486 | Q199: -0.02864296188
N200: 172 | O200: 3.001966313 | P200: 0.004036019928 | Q200: -0.02871777399
N201: 173 | O201: 3.019419606 | P201: 0.003534210959 | Q201: -0.0287838384
N202: 174 | O202: 3.036872898 | P202: 0.003031325435 | Q202: -0.02884113497
... 186 more rows

Sheet 103
A1: VRS GNSS Project Control Monument Coordinate Analysis
A3: Project: | B3: =REPORT!B2 -> FRA-33-24.76 | D3: GPS Antenna: | E3: =REPORT!A42 -> Trimble R12i | I3: Report Date: | J3: =REPORT!C49 -> 2024-06-25
A4: PID: | B4: =REPORT!E2 -> 119387 | D4: VRS Network: | E4: ODOT VRS | I4: Prepared By: | J4: =REPORT!C48 -> Mark Humphrey
A5: Point ID: | B5: 103 | C5: No. of Sessions: | D5: =SUM(IF(GPS_IMPORT!A2:A1000=$B$5,1,0)) -> 15 | E5: =IF(GPS_IMPORT!K2,"(LDP)","(STATE PLANE)") -> (STATE PLANE) | I5: Checked By: | J5: =REPORT!C59 -> Mike Wilson
A6: SESSION # | B6: Point | C6: Observation Date | D6: Start Time | E6: ="Northing("&GPS_IMPORT!K4&")" -> Northing(sft) | F6: ="Easting("&GPS_IMPORT!K4&")" -> Easting(sft) | G6: ="Height("&GPS_IMPORT!K4&")" -> Height(sft) | H6: ="∆ Northing("&GPS_IMPORT!K4&")" -> ∆ Northing(sft) | I6: ="∆ Easting("&GPS_IMPORT!K4&")" -> ∆ Easting(sft) | J6: ="∆ Height("&GPS_IMPORT!K4&")" -> ∆ Height(sft) | K6: Include in Solution?
A7: 1 | B7: =IF(ROWS(GPS_IMPORT!$1:1)<=SUM(IF(GPS_IMPORT!$A$2:$A$10000=$B$5,1,0)),INDEX(GPS_IMPORT!$2:$10000,MATCH($B$5,(GPS_IMPORT!$A$2:$A$10000),0)+ROWS($1:1)-1,COLUMN()-1),0) -> 103 | C7: =IF(ROWS(GPS_IMPORT!$1:1)<=SUM(IF(GPS_IMPORT!$A$2:$A$10000=$B$5,1,0)),INDEX(GPS_IMPORT!$2:$10000,MATCH($B$5,(GPS_IMPORT!$A$2:$A$10000),0)+ROWS($1:1)-1,COLUMN()-1),0) -> 45408 | D7: =IF(ROWS(GPS_IMPORT!$1:1)<=SUM(IF(GPS_IMPORT!$A$2:$A$10000=$B$5,1,0)),INDEX(GPS_IMPORT!$2:$10000,MATCH($B$5,(GPS_IMPORT!$A$2:$A$10000),0)+ROWS($1:1)-1,COLUMN()-1),0) -> 11:44:21 | E7: =IF(ROWS(GPS_IMPORT!$1:1)<=SUM(IF(GPS_IMPORT!$A$2:$A$10000=$B$5,1,0)),INDEX(GPS_IMPORT!$2:$10000,MATCH($B$5,(GPS_IMPORT!$A$2:$A$10000),0)+ROWS($1:1)-1,COLUMN()-1),0) -> 691379.368 | F7: =IF(ROWS(GPS_IMPORT!$1:1)<=SUM(IF(GPS_IMPORT!$A$2:$A$10000=$B$5,1,0)),INDEX(GPS_IMPORT!$2:$10000,MATCH($B$5,(GPS_IMPORT!$A$2:$A$10000),0)+ROWS($1:1)-1,COLUMN()-1),0) -> 1855479.624 | G7: =IF(ROWS(GPS_IMPORT!$1:1)<=SUM(IF(GPS_IMPORT!$A$2:$A$10000=$B$5,1,0)),INDEX(GPS_IMPORT!$2:$10000,MATCH($B$5,(GPS_IMPORT!$A$2:$A$10000),0)+ROWS($1:1)-1,COLUMN()-1),0) -> 737.419 | H7: =IF(K7=TRUE,IF(E7>0,E$22-E7,0),0) -> 0.01753333316 | I7: =IF(K7=TRUE,IF(F7>0,F$22-F7,0),0) -> 0.001666666707 | J7: =IF(K7=TRUE,IF(G7>0,G$22-G7,0),0) -> 0.0276 | K7: TRUE | L7: =IF(OR(ABS(H7)>$H$24,ABS(I7)>$H$24,ABS(SQRT((H7^2)+(I7^2)))>$H$24),IF(K7=TRUE,IF(E7>0,E$22-E7,0),0),0) -> 0 | M7: =IF(OR(ABS(H7)>$H$24,ABS(I7)>$H$24,ABS(SQRT((H7^2)+(I7^2)))>$H$24),IF(K7=TRUE,IF(E7>0,F$22-F7,0),0),0) -> 0
A8: 2 | B8: =IF(ROWS(GPS_IMPORT!$1:2)<=SUM(IF(GPS_IMPORT!$A$2:$A$10000=$B$5,1,0)),INDEX(GPS_IMPORT!$2:$10000,MATCH($B$5,(GPS_IMPORT!$A$2:$A$10000),0)+ROWS($1:2)-1,COLUMN()-1),0) -> 103 | C8: =IF(ROWS(GPS_IMPORT!$1:2)<=SUM(IF(GPS_IMPORT!$A$2:$A$10000=$B$5,1,0)),INDEX(GPS_IMPORT!$2:$10000,MATCH($B$5,(GPS_IMPORT!$A$2:$A$10000),0)+ROWS($1:2)-1,COLUMN()-1),0) -> 45408 | D8: =IF(ROWS(GPS_IMPORT!$1:2)<=SUM(IF(GPS_IMPORT!$A$2:$A$10000=$B$5,1,0)),INDEX(GPS_IMPORT!$2:$10000,MATCH($B$5,(GPS_IMPORT!$A$2:$A$10000),0)+ROWS($1:2)-1,COLUMN()-1),0) -> 11:44:52 | E8: =IF(ROWS(GPS_IMPORT!$1:2)<=SUM(IF(GPS_IMPORT!$A$2:$A$10000=$B$5,1,0)),INDEX(GPS_IMPORT!$2:$10000,MATCH($B$5,(GPS_IMPORT!$A$2:$A$10000),0)+ROWS($1:2)-1,COLUMN()-1),0) -> 691379.358 | F8: =IF(ROWS(GPS_IMPORT!$1:2)<=SUM(IF(GPS_IMPORT!$A$2:$A$10000=$B$5,1,0)),INDEX(GPS_IMPORT!$2:$10000,MATCH($B$5,(GPS_IMPORT!$A$2:$A$10000),0)+ROWS($1:2)-1,COLUMN()-1),0) -> 1855479.644 | G8: =IF(ROWS(GPS_IMPORT!$1:2)<=SUM(IF(GPS_IMPORT!$A$2:$A$10000=$B$5,1,0)),INDEX(GPS_IMPORT!$2:$10000,MATCH($B$5,(GPS_IMPORT!$A$2:$A$10000),0)+ROWS($1:2)-1,COLUMN()-1),0) -> 737.407 | H8: =IF(K8=TRUE,IF(E8>0,E$22-E8,0),0) -> 0.02753333317 | I8: =IF(K8=TRUE,IF(F8>0,F$22-F8,0),0) -> -0.01833333331 | J8: =IF(K8=TRUE,IF(G8>0,G$22-G8,0),0) -> 0.0396 | K8: TRUE | L8: 0.02753333317 | M8: -0.01833333331
A9: 3 | B9: =IF(ROWS(GPS_IMPORT!$1:3)<=SUM(IF(GPS_IMPORT!$A$2:$A$10000=$B$5,1,0)),INDEX(GPS_IMPORT!$2:$10000,MATCH($B$5,(GPS_IMPORT!$A$2:$A$10000),0)+ROWS($1:3)-1,COLUMN()-1),0) -> 103 | C9: =IF(ROWS(GPS_IMPORT!$1:3)<=SUM(IF(GPS_IMPORT!$A$2:$A$10000=$B$5,1,0)),INDEX(GPS_IMPORT!$2:$10000,MATCH($B$5,(GPS_IMPORT!$A$2:$A$10000),0)+ROWS($1:3)-1,COLUMN()-1),0) -> 45408 | D9: =IF(ROWS(GPS_IMPORT!$1:3)<=SUM(IF(GPS_IMPORT!$A$2:$A$10000=$B$5,1,0)),INDEX(GPS_IMPORT!$2:$10000,MATCH($B$5,(GPS_IMPORT!$A$2:$A$10000),0)+ROWS($1:3)-1,COLUMN()-1),0) -> 11:45:23 | E9: =IF(ROWS(GPS_IMPORT!$1:3)<=SUM(IF(GPS_IMPORT!$A$2:$A$10000=$B$5,1,0)),INDEX(GPS_IMPORT!$2:$10000,MATCH($B$5,(GPS_IMPORT!$A$2:$A$10000),0)+ROWS($1:3)-1,COLUMN()-1),0) -> 691379.345 | F9: =IF(ROWS(GPS_IMPORT!$1:3)<=SUM(IF(GPS_IMPORT!$A$2:$A$10000=$B$5,1,0)),INDEX(GPS_IMPORT!$2:$10000,MATCH($B$5,(GPS_IMPORT!$A$2:$A$10000),0)+ROWS($1:3)-1,COLUMN()-1),0) -> 1855479.641 | G9: =IF(ROWS(GPS_IMPORT!$1:3)<=SUM(IF(GPS_IMPORT!$A$2:$A$10000=$B$5,1,0)),INDEX(GPS_IMPORT!$2:$10000,MATCH($B$5,(GPS_IMPORT!$A$2:$A$10000),0)+ROWS($1:3)-1,COLUMN()-1),0) -> 737.425 | H9: 0.0405333332 | I9: -0.01533333329 | J9: 0.0216 | K9: TRUE | L9: 0.0405333332 | M9: -0.01533333329
A10: 4 | B10: =IF(ROWS(GPS_IMPORT!$1:4)<=SUM(IF(GPS_IMPORT!$A$2:$A$10000=$B$5,1,0)),INDEX(GPS_IMPORT!$2:$10000,MATCH($B$5,(GPS_IMPORT!$A$2:$A$10000),0)+ROWS($1:4)-1,COLUMN()-1),0) -> 103 | C10: =IF(ROWS(GPS_IMPORT!$1:4)<=SUM(IF(GPS_IMPORT!$A$2:$A$10000=$B$5,1,0)),INDEX(GPS_IMPORT!$2:$10000,MATCH($B$5,(GPS_IMPORT!$A$2:$A$10000),0)+ROWS($1:4)-1,COLUMN()-1),0) -> 45408 | D10: =IF(ROWS(GPS_IMPORT!$1:4)<=SUM(IF(GPS_IMPORT!$A$2:$A$10000=$B$5,1,0)),INDEX(GPS_IMPORT!$2:$10000,MATCH($B$5,(GPS_IMPORT!$A$2:$A$10000),0)+ROWS($1:4)-1,COLUMN()-1),0) -> 11:45:51 | E10: =IF(ROWS(GPS_IMPORT!$1:4)<=SUM(IF(GPS_IMPORT!$A$2:$A$10000=$B$5,1,0)),INDEX(GPS_IMPORT!$2:$10000,MATCH($B$5,(GPS_IMPORT!$A$2:$A$10000),0)+ROWS($1:4)-1,COLUMN()-1),0) -> 691379.371 | F10: =IF(ROWS(GPS_IMPORT!$1:4)<=SUM(IF(GPS_IMPORT!$A$2:$A$10000=$B$5,1,0)),INDEX(GPS_IMPORT!$2:$10000,MATCH($B$5,(GPS_IMPORT!$A$2:$A$10000),0)+ROWS($1:4)-1,COLUMN()-1),0) -> 1855479.616 | G10: =IF(ROWS(GPS_IMPORT!$1:4)<=SUM(IF(GPS_IMPORT!$A$2:$A$10000=$B$5,1,0)),INDEX(GPS_IMPORT!$2:$10000,MATCH($B$5,(GPS_IMPORT!$A$2:$A$10000),0)+ROWS($1:4)-1,COLUMN()-1),0) -> 737.422 | H10: 0.01453333313 | I10: 0.009666666854 | J10: 0.0246 | K10: TRUE | L10: 0 | M10: 0
A11: 5 | B11: =IF(ROWS(GPS_IMPORT!$1:5)<=SUM(IF(GPS_IMPORT!$A$2:$A$10000=$B$5,1,0)),INDEX(GPS_IMPORT!$2:$10000,MATCH($B$5,(GPS_IMPORT!$A$2:$A$10000),0)+ROWS($1:5)-1,COLUMN()-1),0) -> 103 | C11: =IF(ROWS(GPS_IMPORT!$1:5)<=SUM(IF(GPS_IMPORT!$A$2:$A$10000=$B$5,1,0)),INDEX(GPS_IMPORT!$2:$10000,MATCH($B$5,(GPS_IMPORT!$A$2:$A$10000),0)+ROWS($1:5)-1,COLUMN()-1),0) -> 45408 | D11: =IF(ROWS(GPS_IMPORT!$1:5)<=SUM(IF(GPS_IMPORT!$A$2:$A$10000=$B$5,1,0)),INDEX(GPS_IMPORT!$2:$10000,MATCH($B$5,(GPS_IMPORT!$A$2:$A$10000),0)+ROWS($1:5)-1,COLUMN()-1),0) -> 11:47:17 | E11: =IF(ROWS(GPS_IMPORT!$1:5)<=SUM(IF(GPS_IMPORT!$A$2:$A$10000=$B$5,1,0)),INDEX(GPS_IMPORT!$2:$10000,MATCH($B$5,(GPS_IMPORT!$A$2:$A$10000),0)+ROWS($1:5)-1,COLUMN()-1),0) -> 691379.409 | F11: =IF(ROWS(GPS_IMPORT!$1:5)<=SUM(IF(GPS_IMPORT!$A$2:$A$10000=$B$5,1,0)),INDEX(GPS_IMPORT!$2:$10000,MATCH($B$5,(GPS_IMPORT!$A$2:$A$10000),0)+ROWS($1:5)-1,COLUMN()-1),0) -> 1855479.622 | G11: =IF(ROWS(GPS_IMPORT!$1:5)<=SUM(IF(GPS_IMPORT!$A$2:$A$10000=$B$5,1,0)),INDEX(GPS_IMPORT!$2:$10000,MATCH($B$5,(GPS_IMPORT!$A$2:$A$10000),0)+ROWS($1:5)-1,COLUMN()-1),0) -> 737.48 | H11: -0.02346666681 | I11: 0.003666666802 | J11: -0.0334 | K11: TRUE | L11: 0 | M11: 0
A12: 6 | B12: =IF(ROWS(GPS_IMPORT!$1:6)<=SUM(IF(GPS_IMPORT!$A$2:$A$10000=$B$5,1,0)),INDEX(GPS_IMPORT!$2:$10000,MATCH($B$5,(GPS_IMPORT!$A$2:$A$10000),0)+ROWS($1:6)-1,COLUMN()-1),0) -> 103 | C12: =IF(ROWS(GPS_IMPORT!$1:6)<=SUM(IF(GPS_IMPORT!$A$2:$A$10000=$B$5,1,0)),INDEX(GPS_IMPORT!$2:$10000,MATCH($B$5,(GPS_IMPORT!$A$2:$A$10000),0)+ROWS($1:6)-1,COLUMN()-1),0) -> 45408 | D12: =IF(ROWS(GPS_IMPORT!$1:6)<=SUM(IF(GPS_IMPORT!$A$2:$A$10000=$B$5,1,0)),INDEX(GPS_IMPORT!$2:$10000,MATCH($B$5,(GPS_IMPORT!$A$2:$A$10000),0)+ROWS($1:6)-1,COLUMN()-1),0) -> 11:47:53 | E12: =IF(ROWS(GPS_IMPORT!$1:6)<=SUM(IF(GPS_IMPORT!$A$2:$A$10000=$B$5,1,0)),INDEX(GPS_IMPORT!$2:$10000,MATCH($B$5,(GPS_IMPORT!$A$2:$A$10000),0)+ROWS($1:6)-1,COLUMN()-1),0) -> 691379.404 | F12: =IF(ROWS(GPS_IMPORT!$1:6)<=SUM(IF(GPS_IMPORT!$A$2:$A$10000=$B$5,1,0)),INDEX(GPS_IMPORT!$2:$10000,MATCH($B$5,(GPS_IMPORT!$A$2:$A$10000),0)+ROWS($1:6)-1,COLUMN()-1),0) -> 1855479.646 | G12: =IF(ROWS(GPS_IMPORT!$1:6)<=SUM(IF(GPS_IMPORT!$A$2:$A$10000=$B$5,1,0)),INDEX(GPS_IMPORT!$2:$10000,MATCH($B$5,(GPS_IMPORT!$A$2:$A$10000),0)+ROWS($1:6)-1,COLUMN()-1),0) -> 737.491 | H12: -0.01846666681 | I12: -0.02033333317 | J12: -0.0444 | K12: TRUE | L12: 0 | M12: 0
A13: 7 | B13: =IF(ROWS(GPS_IMPORT!$1:7)<=SUM(IF(GPS_IMPORT!$A$2:$A$10000=$B$5,1,0)),INDEX(GPS_IMPORT!$2:$10000,MATCH($B$5,(GPS_IMPORT!$A$2:$A$10000),0)+ROWS($1:7)-1,COLUMN()-1),0) -> 103 | C13: =IF(ROWS(GPS_IMPORT!$1:7)<=SUM(IF(GPS_IMPORT!$A$2:$A$10000=$B$5,1,0)),INDEX(GPS_IMPORT!$2:$10000,MATCH($B$5,(GPS_IMPORT!$A$2:$A$10000),0)+ROWS($1:7)-1,COLUMN()-1),0) -> 45408 | D13: =IF(ROWS(GPS_IMPORT!$1:7)<=SUM(IF(GPS_IMPORT!$A$2:$A$10000=$B$5,1,0)),INDEX(GPS_IMPORT!$2:$10000,MATCH($B$5,(GPS_IMPORT!$A$2:$A$10000),0)+ROWS($1:7)-1,COLUMN()-1),0) -> 11:48:33 | E13: =IF(ROWS(GPS_IMPORT!$1:7)<=SUM(IF(GPS_IMPORT!$A$2:$A$10000=$B$5,1,0)),INDEX(GPS_IMPORT!$2:$10000,MATCH($B$5,(GPS_IMPORT!$A$2:$A$10000),0)+ROWS($1:7)-1,COLUMN()-1),0) -> 691379.381 | F13: =IF(ROWS(GPS_IMPORT!$1:7)<=SUM(IF(GPS_IMPORT!$A$2:$A$10000=$B$5,1,0)),INDEX(GPS_IMPORT!$2:$10000,MATCH($B$5,(GPS_IMPORT!$A$2:$A$10000),0)+ROWS($1:7)-1,COLUMN()-1),0) -> 1855479.637 | G13: =IF(ROWS(GPS_IMPORT!$1:7)<=SUM(IF(GPS_IMPORT!$A$2:$A$10000=$B$5,1,0)),INDEX(GPS_IMPORT!$2:$10000,MATCH($B$5,(GPS_IMPORT!$A$2:$A$10000),0)+ROWS($1:7)-1,COLUMN()-1),0) -> 737.483 | H13: 0.004533333122 | I13: -0.01133333333 | J13: -0.0364 | K13: TRUE | L13: 0 | M13: 0
A14: 8 | B14: =IF(ROWS(GPS_IMPORT!$1:8)<=SUM(IF(GPS_IMPORT!$A$2:$A$10000=$B$5,1,0)),INDEX(GPS_IMPORT!$2:$10000,MATCH($B$5,(GPS_IMPORT!$A$2:$A$10000),0)+ROWS($1:8)-1,COLUMN()-1),0) -> 103 | C14: =IF(ROWS(GPS_IMPORT!$1:8)<=SUM(IF(GPS_IMPORT!$A$2:$A$10000=$B$5,1,0)),INDEX(GPS_IMPORT!$2:$10000,MATCH($B$5,(GPS_IMPORT!$A$2:$A$10000),0)+ROWS($1:8)-1,COLUMN()-1),0) -> 45408 | D14: =IF(ROWS(GPS_IMPORT!$1:8)<=SUM(IF(GPS_IMPORT!$A$2:$A$10000=$B$5,1,0)),INDEX(GPS_IMPORT!$2:$10000,MATCH($B$5,(GPS_IMPORT!$A$2:$A$10000),0)+ROWS($1:8)-1,COLUMN()-1),0) -> 11:49:16 | E14: =IF(ROWS(GPS_IMPORT!$1:8)<=SUM(IF(GPS_IMPORT!$A$2:$A$10000=$B$5,1,0)),INDEX(GPS_IMPORT!$2:$10000,MATCH($B$5,(GPS_IMPORT!$A$2:$A$10000),0)+ROWS($1:8)-1,COLUMN()-1),0) -> 691379.395 | F14: =IF(ROWS(GPS_IMPORT!$1:8)<=SUM(IF(GPS_IMPORT!$A$2:$A$10000=$B$5,1,0)),INDEX(GPS_IMPORT!$2:$10000,MATCH($B$5,(GPS_IMPORT!$A$2:$A$10000),0)+ROWS($1:8)-1,COLUMN()-1),0) -> 1855479.623 | G14: =IF(ROWS(GPS_IMPORT!$1:8)<=SUM(IF(GPS_IMPORT!$A$2:$A$10000=$B$5,1,0)),INDEX(GPS_IMPORT!$2:$10000,MATCH($B$5,(GPS_IMPORT!$A$2:$A$10000),0)+ROWS($1:8)-1,COLUMN()-1),0) -> 737.493 | H14: -0.009466666845 | I14: 0.002666666871 | J14: -0.0464 | K14: TRUE | L14: 0 | M14: 0
A15: 9 | B15: =IF(ROWS(GPS_IMPORT!$1:9)<=SUM(IF(GPS_IMPORT!$A$2:$A$10000=$B$5,1,0)),INDEX(GPS_IMPORT!$2:$10000,MATCH($B$5,(GPS_IMPORT!$A$2:$A$10000),0)+ROWS($1:9)-1,COLUMN()-1),0) -> 103 | C15: =IF(ROWS(GPS_IMPORT!$1:9)<=SUM(IF(GPS_IMPORT!$A$2:$A$10000=$B$5,1,0)),INDEX(GPS_IMPORT!$2:$10000,MATCH($B$5,(GPS_IMPORT!$A$2:$A$10000),0)+ROWS($1:9)-1,COLUMN()-1),0) -> 45408 | D15: =IF(ROWS(GPS_IMPORT!$1:9)<=SUM(IF(GPS_IMPORT!$A$2:$A$10000=$B$5,1,0)),INDEX(GPS_IMPORT!$2:$10000,MATCH($B$5,(GPS_IMPORT!$A$2:$A$10000),0)+ROWS($1:9)-1,COLUMN()-1),0) -> 11:50:32 | E15: =IF(ROWS(GPS_IMPORT!$1:9)<=SUM(IF(GPS_IMPORT!$A$2:$A$10000=$B$5,1,0)),INDEX(GPS_IMPORT!$2:$10000,MATCH($B$5,(GPS_IMPORT!$A$2:$A$10000),0)+ROWS($1:9)-1,COLUMN()-1),0) -> 691379.416 | F15: =IF(ROWS(GPS_IMPORT!$1:9)<=SUM(IF(GPS_IMPORT!$A$2:$A$10000=$B$5,1,0)),INDEX(GPS_IMPORT!$2:$10000,MATCH($B$5,(GPS_IMPORT!$A$2:$A$10000),0)+ROWS($1:9)-1,COLUMN()-1),0) -> 1855479.603 | G15: =IF(ROWS(GPS_IMPORT!$1:9)<=SUM(IF(GPS_IMPORT!$A$2:$A$10000=$B$5,1,0)),INDEX(GPS_IMPORT!$2:$10000,MATCH($B$5,(GPS_IMPORT!$A$2:$A$10000),0)+ROWS($1:9)-1,COLUMN()-1),0) -> 737.441 | H15: -0.03046666679 | I15: 0.02266666689 | J15: 0.0056 | K15: TRUE | L15: -0.03046666679 | M15: 0.02266666689
A16: 10 | B16: =IF(ROWS(GPS_IMPORT!$1:10)<=SUM(IF(GPS_IMPORT!$A$2:$A$10000=$B$5,1,0)),INDEX(GPS_IMPORT!$2:$10000,MATCH($B$5,(GPS_IMPORT!$A$2:$A$10000),0)+ROWS($1:10)-1,COLUMN()-1),0) -> 103 | C16: =IF(ROWS(GPS_IMPORT!$1:10)<=SUM(IF(GPS_IMPORT!$A$2:$A$10000=$B$5,1,0)),INDEX(GPS_IMPORT!$2:$10000,MATCH($B$5,(GPS_IMPORT!$A$2:$A$10000),0)+ROWS($1:10)-1,COLUMN()-1),0) -> 45408 | D16: =IF(ROWS(GPS_IMPORT!$1:10)<=SUM(IF(GPS_IMPORT!$A$2:$A$10000=$B$5,1,0)),INDEX(GPS_IMPORT!$2:$10000,MATCH($B$5,(GPS_IMPORT!$A$2:$A$10000),0)+ROWS($1:10)-1,COLUMN()-1),0) -> 11:51:15 | E16: =IF(ROWS(GPS_IMPORT!$1:10)<=SUM(IF(GPS_IMPORT!$A$2:$A$10000=$B$5,1,0)),INDEX(GPS_IMPORT!$2:$10000,MATCH($B$5,(GPS_IMPORT!$A$2:$A$10000),0)+ROWS($1:10)-1,COLUMN()-1),0) -> 691379.398 | F16: =IF(ROWS(GPS_IMPORT!$1:10)<=SUM(IF(GPS_IMPORT!$A$2:$A$10000=$B$5,1,0)),INDEX(GPS_IMPORT!$2:$10000,MATCH($B$5,(GPS_IMPORT!$A$2:$A$10000),0)+ROWS($1:10)-1,COLUMN()-1),0) -> 1855479.627 | G16: =IF(ROWS(GPS_IMPORT!$1:10)<=SUM(IF(GPS_IMPORT!$A$2:$A$10000=$B$5,1,0)),INDEX(GPS_IMPORT!$2:$10000,MATCH($B$5,(GPS_IMPORT!$A$2:$A$10000),0)+ROWS($1:10)-1,COLUMN()-1),0) -> 737.428 | H16: -0.01246666687 | I16: -0.001333333319 | J16: 0.0186 | K16: TRUE | L16: 0 | M16: 0
A17: 11 | B17: =IF(ROWS(GPS_IMPORT!$1:11)<=SUM(IF(GPS_IMPORT!$A$2:$A$10000=$B$5,1,0)),INDEX(GPS_IMPORT!$2:$10000,MATCH($B$5,(GPS_IMPORT!$A$2:$A$10000),0)+ROWS($1:11)-1,COLUMN()-1),0) -> 103 | C17: =IF(ROWS(GPS_IMPORT!$1:11)<=SUM(IF(GPS_IMPORT!$A$2:$A$10000=$B$5,1,0)),INDEX(GPS_IMPORT!$2:$10000,MATCH($B$5,(GPS_IMPORT!$A$2:$A$10000),0)+ROWS($1:11)-1,COLUMN()-1),0) -> 45408 | D17: =IF(ROWS(GPS_IMPORT!$1:11)<=SUM(IF(GPS_IMPORT!$A$2:$A$10000=$B$5,1,0)),INDEX(GPS_IMPORT!$2:$10000,MATCH($B$5,(GPS_IMPORT!$A$2:$A$10000),0)+ROWS($1:11)-1,COLUMN()-1),0) -> 11:51:46 | E17: =IF(ROWS(GPS_IMPORT!$1:11)<=SUM(IF(GPS_IMPORT!$A$2:$A$10000=$B$5,1,0)),INDEX(GPS_IMPORT!$2:$10000,MATCH($B$5,(GPS_IMPORT!$A$2:$A$10000),0)+ROWS($1:11)-1,COLUMN()-1),0) -> 691379.375 | F17: =IF(ROWS(GPS_IMPORT!$1:11)<=SUM(IF(GPS_IMPORT!$A$2:$A$10000=$B$5,1,0)),INDEX(GPS_IMPORT!$2:$10000,MATCH($B$5,(GPS_IMPORT!$A$2:$A$10000),0)+ROWS($1:11)-1,COLUMN()-1),0) -> 1855479.62 | G17: =IF(ROWS(GPS_IMPORT!$1:11)<=SUM(IF(GPS_IMPORT!$A$2:$A$10000=$B$5,1,0)),INDEX(GPS_IMPORT!$2:$10000,MATCH($B$5,(GPS_IMPORT!$A$2:$A$10000),0)+ROWS($1:11)-1,COLUMN()-1),0) -> 737.443 | H17: 0.01053333317 | I17: 0.005666666664 | J17: 0.0036 | K17: TRUE | L17: 0 | M17: 0
A18: 12 | B18: =IF(ROWS(GPS_IMPORT!$1:12)<=SUM(IF(GPS_IMPORT!$A$2:$A$10000=$B$5,1,0)),INDEX(GPS_IMPORT!$2:$10000,MATCH($B$5,(GPS_IMPORT!$A$2:$A$10000),0)+ROWS($1:12)-1,COLUMN()-1),0) -> 103 | C18: =IF(ROWS(GPS_IMPORT!$1:12)<=SUM(IF(GPS_IMPORT!$A$2:$A$10000=$B$5,1,0)),INDEX(GPS_IMPORT!$2:$10000,MATCH($B$5,(GPS_IMPORT!$A$2:$A$10000),0)+ROWS($1:12)-1,COLUMN()-1),0) -> 45408 | D18: =IF(ROWS(GPS_IMPORT!$1:12)<=SUM(IF(GPS_IMPORT!$A$2:$A$10000=$B$5,1,0)),INDEX(GPS_IMPORT!$2:$10000,MATCH($B$5,(GPS_IMPORT!$A$2:$A$10000),0)+ROWS($1:12)-1,COLUMN()-1),0) -> 11:52:28 | E18: =IF(ROWS(GPS_IMPORT!$1:12)<=SUM(IF(GPS_IMPORT!$A$2:$A$10000=$B$5,1,0)),INDEX(GPS_IMPORT!$2:$10000,MATCH($B$5,(GPS_IMPORT!$A$2:$A$10000),0)+ROWS($1:12)-1,COLUMN()-1),0) -> 691379.377 | F18: =IF(ROWS(GPS_IMPORT!$1:12)<=SUM(IF(GPS_IMPORT!$A$2:$A$10000=$B$5,1,0)),INDEX(GPS_IMPORT!$2:$10000,MATCH($B$5,(GPS_IMPORT!$A$2:$A$10000),0)+ROWS($1:12)-1,COLUMN()-1),0) -> 1855479.616 | G18: =IF(ROWS(GPS_IMPORT!$1:12)<=SUM(IF(GPS_IMPORT!$A$2:$A$10000=$B$5,1,0)),INDEX(GPS_IMPORT!$2:$10000,MATCH($B$5,(GPS_IMPORT!$A$2:$A$10000),0)+ROWS($1:12)-1,COLUMN()-1),0) -> 737.458 | H18: 0.008533333195 | I18: 0.009666666854 | J18: -0.0114 | K18: TRUE | L18: 0 | M18: 0
A19: 13 | B19: =IF(ROWS(GPS_IMPORT!$1:13)<=SUM(IF(GPS_IMPORT!$A$2:$A$10000=$B$5,1,0)),INDEX(GPS_IMPORT!$2:$10000,MATCH($B$5,(GPS_IMPORT!$A$2:$A$10000),0)+ROWS($1:13)-1,COLUMN()-1),0) -> 103 | C19: =IF(ROWS(GPS_IMPORT!$1:13)<=SUM(IF(GPS_IMPORT!$A$2:$A$10000=$B$5,1,0)),INDEX(GPS_IMPORT!$2:$10000,MATCH($B$5,(GPS_IMPORT!$A$2:$A$10000),0)+ROWS($1:13)-1,COLUMN()-1),0) -> 45408 | D19: =IF(ROWS(GPS_IMPORT!$1:13)<=SUM(IF(GPS_IMPORT!$A$2:$A$10000=$B$5,1,0)),INDEX(GPS_IMPORT!$2:$10000,MATCH($B$5,(GPS_IMPORT!$A$2:$A$10000),0)+ROWS($1:13)-1,COLUMN()-1),0) -> 11:53:51 | E19: =IF(ROWS(GPS_IMPORT!$1:13)<=SUM(IF(GPS_IMPORT!$A$2:$A$10000=$B$5,1,0)),INDEX(GPS_IMPORT!$2:$10000,MATCH($B$5,(GPS_IMPORT!$A$2:$A$10000),0)+ROWS($1:13)-1,COLUMN()-1),0) -> 691379.41 | F19: =IF(ROWS(GPS_IMPORT!$1:13)<=SUM(IF(GPS_IMPORT!$A$2:$A$10000=$B$5,1,0)),INDEX(GPS_IMPORT!$2:$10000,MATCH($B$5,(GPS_IMPORT!$A$2:$A$10000),0)+ROWS($1:13)-1,COLUMN()-1),0) -> 1855479.623 | G19: =IF(ROWS(GPS_IMPORT!$1:13)<=SUM(IF(GPS_IMPORT!$A$2:$A$10000=$B$5,1,0)),INDEX(GPS_IMPORT!$2:$10000,MATCH($B$5,(GPS_IMPORT!$A$2:$A$10000),0)+ROWS($1:13)-1,COLUMN()-1),0) -> 737.449 | H19: -0.02446666686 | I19: 0.002666666871 | J19: -0.0024 | K19: TRUE | L19: 0 | M19: 0
A20: 14 | B20: =IF(ROWS(GPS_IMPORT!$1:14)<=SUM(IF(GPS_IMPORT!$A$2:$A$10000=$B$5,1,0)),INDEX(GPS_IMPORT!$2:$10000,MATCH($B$5,(GPS_IMPORT!$A$2:$A$10000),0)+ROWS($1:14)-1,COLUMN()-1),0) -> 103 | C20: =IF(ROWS(GPS_IMPORT!$1:14)<=SUM(IF(GPS_IMPORT!$A$2:$A$10000=$B$5,1,0)),INDEX(GPS_IMPORT!$2:$10000,MATCH($B$5,(GPS_IMPORT!$A$2:$A$10000),0)+ROWS($1:14)-1,COLUMN()-1),0) -> 45408 | D20: =IF(ROWS(GPS_IMPORT!$1:14)<=SUM(IF(GPS_IMPORT!$A$2:$A$10000=$B$5,1,0)),INDEX(GPS_IMPORT!$2:$10000,MATCH($B$5,(GPS_IMPORT!$A$2:$A$10000),0)+ROWS($1:14)-1,COLUMN()-1),0) -> 11:54:36 | E20: =IF(ROWS(GPS_IMPORT!$1:14)<=SUM(IF(GPS_IMPORT!$A$2:$A$10000=$B$5,1,0)),INDEX(GPS_IMPORT!$2:$10000,MATCH($B$5,(GPS_IMPORT!$A$2:$A$10000),0)+ROWS($1:14)-1,COLUMN()-1),0) -> 691379.405 | F20: =IF(ROWS(GPS_IMPORT!$1:14)<=SUM(IF(GPS_IMPORT!$A$2:$A$10000=$B$5,1,0)),INDEX(GPS_IMPORT!$2:$10000,MATCH($B$5,(GPS_IMPORT!$A$2:$A$10000),0)+ROWS($1:14)-1,COLUMN()-1),0) -> 1855479.631 | G20: =IF(ROWS(GPS_IMPORT!$1:14)<=SUM(IF(GPS_IMPORT!$A$2:$A$10000=$B$5,1,0)),INDEX(GPS_IMPORT!$2:$10000,MATCH($B$5,(GPS_IMPORT!$A$2:$A$10000),0)+ROWS($1:14)-1,COLUMN()-1),0) -> 737.433 | H20: -0.01946666685 | I20: -0.005333333276 | J20: 0.0136 | K20: TRUE | L20: 0 | M20: 0
A21: 15 | B21: =IF(ROWS(GPS_IMPORT!$1:15)<=SUM(IF(GPS_IMPORT!$A$2:$A$10000=$B$5,1,0)),INDEX(GPS_IMPORT!$2:$10000,MATCH($B$5,(GPS_IMPORT!$A$2:$A$10000),0)+ROWS($1:15)-1,COLUMN()-1),0) -> 103 | C21: =IF(ROWS(GPS_IMPORT!$1:15)<=SUM(IF(GPS_IMPORT!$A$2:$A$10000=$B$5,1,0)),INDEX(GPS_IMPORT!$2:$10000,MATCH($B$5,(GPS_IMPORT!$A$2:$A$10000),0)+ROWS($1:15)-1,COLUMN()-1),0) -> 45408 | D21: =IF(ROWS(GPS_IMPORT!$1:15)<=SUM(IF(GPS_IMPORT!$A$2:$A$10000=$B$5,1,0)),INDEX(GPS_IMPORT!$2:$10000,MATCH($B$5,(GPS_IMPORT!$A$2:$A$10000),0)+ROWS($1:15)-1,COLUMN()-1),0) -> 11:55:13 | E21: =IF(ROWS(GPS_IMPORT!$1:15)<=SUM(IF(GPS_IMPORT!$A$2:$A$10000=$B$5,1,0)),INDEX(GPS_IMPORT!$2:$10000,MATCH($B$5,(GPS_IMPORT!$A$2:$A$10000),0)+ROWS($1:15)-1,COLUMN()-1),0) -> 691379.371 | F21: =IF(ROWS(GPS_IMPORT!$1:15)<=SUM(IF(GPS_IMPORT!$A$2:$A$10000=$B$5,1,0)),INDEX(GPS_IMPORT!$2:$10000,MATCH($B$5,(GPS_IMPORT!$A$2:$A$10000),0)+ROWS($1:15)-1,COLUMN()-1),0) -> 1855479.612 | G21: =IF(ROWS(GPS_IMPORT!$1:15)<=SUM(IF(GPS_IMPORT!$A$2:$A$10000=$B$5,1,0)),INDEX(GPS_IMPORT!$2:$10000,MATCH($B$5,(GPS_IMPORT!$A$2:$A$10000),0)+ROWS($1:15)-1,COLUMN()-1),0) -> 737.427 | H21: =IF(K21=TRUE,IF(E21>0,E$22-E21,0),0) -> 0.01453333313 | I21: 0.01366666681 | J21: 0.0196 | K21: TRUE | L21: 0 | M21: 0
D22: AVERAGE | E22: =(IF($K$7=TRUE,E7,0)+IF($K$8=TRUE,E8,0)+IF($K$9=TRUE,E9,0)+IF($K$10=TRUE,E10,0)+IF($K$11=TRUE,E11,0)+IF($K$12=TRUE,E12,0)+IF($K$13=TRUE,E13,0)+IF($K$14=TRUE,E14,0)+IF($K$15=TRUE,E15,0)+IF($K$16=TRUE,E16,0)+IF($K$17=TRUE,E17,0)+IF($K$18=TRUE,E18,0)+IF($K$19=TRUE,E19,0)+IF($K$20=TRUE,E20,0)+IF($K$21=TRUE,E21,0))/(IF($K$7=TRUE,1,0)+IF($K$8=TRUE,1,0)+IF($K$9=TRUE,1,0)+IF($K$10=TRUE,1,0)+IF($K$11=TRUE,1,0)+IF($K$12=TRUE,1,0)+IF($K$13=TRUE,1,0)+IF($K$14=TRUE,1,0)+IF($K$15=TRUE,1,0)+IF($K$16=TRUE,1,0)+IF($K$17=TRUE,1,0)+IF($K$18=TRUE,1,0)+IF($K$19=TRUE,1,0)+IF($K$20=TRUE,1,0)+IF($K$21=TRUE,1,0)) -> 691379.3855 | F22: =(IF($K$7=TRUE,F7,0)+IF($K$8=TRUE,F8,0)+IF($K$9=TRUE,F9,0)+IF($K$10=TRUE,F10,0)+IF($K$11=TRUE,F11,0)+IF($K$12=TRUE,F12,0)+IF($K$13=TRUE,F13,0)+IF($K$14=TRUE,F14,0)+IF($K$15=TRUE,F15,0)+IF($K$16=TRUE,F16,0)+IF($K$17=TRUE,F17,0)+IF($K$18=TRUE,F18,0)+IF($K$19=TRUE,F19,0)+IF($K$20=TRUE,F20,0)+IF($K$21=TRUE,F21,0))/(IF($K$7=TRUE,1,0)+IF($K$8=TRUE,1,0)+IF($K$9=TRUE,1,0)+IF($K$10=TRUE,1,0)+IF($K$11=TRUE,1,0)+IF($K$12=TRUE,1,0)+IF($K$13=TRUE,1,0)+IF($K$14=TRUE,1,0)+IF($K$15=TRUE,1,0)+IF($K$16=TRUE,1,0)+IF($K$17=TRUE,1,0)+IF($K$18=TRUE,1,0)+IF($K$19=TRUE,1,0)+IF($K$20=TRUE,1,0)+IF($K$21=TRUE,1,0)) -> 1855479.626 | G22: =(IF($K$7=TRUE,G7,0)+IF($K$8=TRUE,G8,0)+IF($K$9=TRUE,G9,0)+IF($K$10=TRUE,G10,0)+IF($K$11=TRUE,G11,0)+IF($K$12=TRUE,G12,0)+IF($K$13=TRUE,G13,0)+IF($K$14=TRUE,G14,0)+IF($K$15=TRUE,G15,0)+IF($K$16=TRUE,G16,0)+IF($K$17=TRUE,G17,0)+IF($K$18=TRUE,G18,0)+IF($K$19=TRUE,G19,0)+IF($K$20=TRUE,G20,0)+IF($K$21=TRUE,G21,0))/ (IF($K$7=TRUE,1,0)+IF($K$8=TRUE,1,0)+IF($K$9=TRUE,1,0)+IF($K$10=TRUE,1,0)+IF($K$11=TRUE,1,0)+IF($K$12=TRUE,1,0)+IF($K$13=TRUE,1,0)+IF($K$14=TRUE,1,0)+IF($K$15=TRUE,1,0)+IF($K$16=TRUE,1,0)+IF($K$17=TRUE,1,0)+IF($K$18=TRUE,1,0)+IF($K$19=TRUE,1,0)+IF($K$20=TRUE,1,0)+IF($K$21=TRUE,1,0)) -> 737.4466 | H22: RMSE: | I22: RMSE: | J22: RMSE:
G23: ="RMSE IN "&GPS_IMPORT!J4&":" -> RMSE IN U.S. Survey FT: | H23: =SQRT(SUMSQ((IF(K7:K21=TRUE,H7:H21)))/SUM(IF(K7:K21=TRUE,1,0))) -> 0.02061994719 | I23: =SQRT(SUMSQ((IF(K7:K21=TRUE,I7:I21)))/SUM(IF(K7:K21=TRUE,1,0))) -> 0.01181336347 | J23: =SQRT(SUMSQ((IF(K7:K21=TRUE,J7:J21)))/SUM(IF(K7:K21=TRUE,1,0))) -> 0.02715584652
G24: Tolerance: | H24: =VLOOKUP(GPS_IMPORT!$K$4,Lists!H3:I5,2,FALSE) -> 0.029 | J24: =VLOOKUP(GPS_IMPORT!$K$4,Lists!H3:J5,3,FALSE) -> 0.039
H25: =IF(H23<=H24,"PASS","FAIL") -> PASS | I25: =IF(I23<=H24,"PASS","FAIL") -> PASS | J25: =IF(J23<=J24,"PASS","FAIL") -> PASS
A27: AVERAGED GPS-DERIVED POSITION | I27: Notes:
B28: MONUMENT COORDINATES | D28: NORTHING | E28: EASTING | F28: ORTHO HEIGHT | N28: Degrees | O28: Radians | P28: SIN | Q28: COS
B29: =GPS_IMPORT!J4&" ("&IF(GPS_IMPORT!K2,"GROUND","State Plane")&")" -> U.S. Survey FT (State Plane) | D29: =$E$22 -> 691379.3855 | E29: =$F$22 -> 1855479.626 | F29: =$G$22 -> 737.4466 | N29: 1 | O29: =N29*(PI()/180) -> 0.01745329252 | P29: =SIN(O29)*H$24 -> 0.0005061197867 | Q29: =COS(O29)*H$24 -> 0.02899558316
N30: =N29+1 -> 2 | O30: =N30*(PI()/180) -> 0.03490658504 | P30: 0.001012085404 | Q30: 0.02898233398
A31: LEVELED ELEVATION | N31: =N30+1 -> 3 | O31: 0.05235987756 | P31: 0.001517742731 | Q31: 0.02896025651
A32: ='LEVEL RUN'!B5 -> U.S. Survey FT | C32: =IFERROR(VLOOKUP(B5,'LEVEL RUN'!A7:I59,9,FALSE),"N/A") -> 737.4308636 | D32: (Fill out Level Run Sheet or N/A if no leveled elevation is available) | N32: 4 | O32: 0.06981317008 | P32: 0.002022937739 | Q32: 0.02892935746
A33: MONUMENT HELD | C33: =IF('LEVEL RUN'!A7="","",'LEVEL RUN'!A7) -> CP13 | D33: (Type the monument name from which leveling originated) | N33: 5 | O33: 0.0872664626 | P33: 0.00252751654 | Q33: 0.02888964624
A34: LEVELED ELEVATION - GPS DERIVED ELEVATION = | E34: =IF(C32="N/A","N/A",C32-(F29*'LEVEL RUN'!F5)) -> -0.01573636364 | F34: ='LEVEL RUN'!D5 -> sft | N34: 6 | O34: 0.1047197551 | P34: 0.003031325435 | Q34: 0.02884113497
N35: 7 | O35: 0.1221730476 | P35: 0.003534210959 | Q35: 0.0287838384
A36: FINAL MONUMENT COORDINATES | N36: 8 | O36: 0.1396263402 | P36: 0.004036019928 | Q36: 0.02871777399
B37: MONUMENT COORDINATES | D37: NORTHING | E37: EASTING | F37: ELEVATION | G37: FEATURE CODE | N37: 9 | O37: 0.1570796327 | P37: 0.004536599486 | Q37: 0.02864296188
B38: =GPS_IMPORT!J6&" "&REPORT!C10 -> U.S. Survey FT South | D38: =IF(GPS_IMPORT!K2,($E$22*GPS_IMPORT!$L$6)*(1/REPORT!C14),$E$22*GPS_IMPORT!$L$6) -> 691379.3855 | E38: =IF(GPS_IMPORT!K2,($F$22*GPS_IMPORT!$L$6)*(1/REPORT!C14),$F$22*GPS_IMPORT!$L$6) -> 1855479.626 | F38: =IF($C$32="N/A",($G$22*GPS_IMPORT!$L$6),$C$32*'LEVEL RUN'!H5) -> 737.4308636 | G38: =VLOOKUP($B$5,GPS_IMPORT!$A$2:$G$2000,7,FALSE) -> CMON | N38: 10 | O38: 0.1745329252 | P38: 0.005035797152 | Q38: 0.02855942484
B39: =GPS_IMPORT!J6&" "&REPORT!C11&" "&"County" -> U.S. Survey FT Franklin County | D39: =VLOOKUP($B$5,'MON TABLE'!$A$11:$I$35,6,FALSE) -> 545532.376 | E39: =VLOOKUP($B$5,'MON TABLE'!$A$11:$I$35,7,FALSE) -> 219369.059 | F39: =VLOOKUP($B$5,'MON TABLE'!$A$11:$I$35,8,FALSE) -> 737.431 | G39: =$G$38 -> CMON | N39: 11 | O39: 0.1919862177 | P39: 0.005533460866 | Q39: 0.02846718832
N40: 12 | O40: 0.2094395102 | P40: 0.006029439034 | Q40: 0.02836628042
A41: ∆ North, ∆ East, and ∆ Ht. are the difference between the average northing, easting, and height for each observation. | I41: Mask Angle: | J41: 10° | N41: 13 | O41: 0.2268928028 | P41: 0.006523580576 | Q41: 0.02825673188
N42: 14 | O42: 0.2443460953 | P42: 0.007015734972 | Q42: 0.02813857606
N43: 15 | O43: 0.2617993878 | P43: 0.007505752308 | Q43: 0.02801184896
N44: 16 | O44: 0.2792526803 | P44: 0.007993483319 | Q44: 0.02787658918
N45: 17 | O45: 0.2967059728 | P45: 0.008478779437 | Q45: 0.02773283792
N46: 18 | O46: 0.3141592654 | P46: 0.008961492837 | Q46: 0.02758063897
N47: 19 | O47: 0.3316125579 | P47: 0.009441476479 | Q47: 0.02742003869
N48: 20 | O48: 0.3490658504 | P48: 0.009918584156 | Q48: 0.027251086
N49: 21 | O49: 0.3665191429 | P49: 0.01039267054 | Q49: 0.02707383237
N50: 22 | O50: 0.3839724354 | P50: 0.01086359121 | Q50: 0.02688833178
N51: 23 | O51: 0.401425728 | P51: 0.01133120273 | Q51: 0.02669464075
N52: 24 | O52: 0.4188790205 | P52: 0.01179536265 | Q52: 0.02649281827
N53: 25 | O53: 0.436332313 | P53: 0.01225592959 | Q53: 0.02628292582
N54: 26 | O54: 0.4537856055 | P54: 0.01271276326 | Q54: 0.02606502734
N55: 27 | O55: 0.471238898 | P55: 0.01316572449 | Q55: 0.0258391892
N56: 28 | O56: 0.4886921906 | P56: 0.01361467532 | Q56: 0.02560548019
N57: 29 | O57: 0.5061454831 | P57: 0.01405947899 | Q57: 0.02536397151
N58: 30 | O58: 0.5235987756 | P58: 0.0145 | Q58: 0.02511473671
N59: 31 | O59: 0.5410520681 | P59: 0.01493610417 | Q59: 0.02485785172
N60: 32 | O60: 0.5585053606 | P60: 0.01536765866 | Q60: 0.02459339479
N61: 33 | O61: 0.5759586532 | P61: 0.01579453202 | Q61: 0.02432144647
N62: 34 | O62: 0.5934119457 | P62: 0.0162165942 | Q62: 0.0240420896
N63: 35 | O63: 0.6108652382 | P63: 0.01663371665 | Q63: 0.02375540928
N64: 36 | O64: 0.6283185307 | P64: 0.01704577232 | Q64: 0.02346149284
N65: 37 | O65: 0.6457718232 | P65: 0.01745263567 | Q65: 0.02316042979
N66: 38 | O66: 0.6632251158 | P66: 0.01785418278 | Q66: 0.02285231185
N67: 39 | O67: 0.6806784083 | P67: 0.01825029134 | Q67: 0.02253723288
N68: 40 | O68: 0.6981317008 | P68: 0.01864084068 | Q68: 0.02221528885
N69: 41 | O69: 0.7155849933 | P69: 0.01902571184 | Q69: 0.02188657783
N70: 42 | O70: 0.7330382858 | P70: 0.01940478758 | Q70: 0.02155119994
N71: 43 | O71: 0.7504915784 | P71: 0.01977795244 | Q71: 0.02120925735
N72: 44 | O72: 0.7679448709 | P72: 0.02014509274 | Q72: 0.02086085421
N73: 45 | O73: 0.7853981634 | P73: 0.02050609665 | Q73: 0.02050609665
N74: 46 | O74: 0.8028514559 | P74: 0.02086085421 | Q74: 0.02014509274
N75: 47 | O75: 0.8203047484 | P75: 0.02120925735 | Q75: 0.01977795244
N76: 48 | O76: 0.837758041 | P76: 0.02155119994 | Q76: 0.01940478758
N77: 49 | O77: 0.8552113335 | P77: 0.02188657783 | Q77: 0.01902571184
N78: 50 | O78: 0.872664626 | P78: 0.02221528885 | Q78: 0.01864084068
N79: 51 | O79: 0.8901179185 | P79: 0.02253723288 | Q79: 0.01825029134
N80: 52 | O80: 0.907571211 | P80: 0.02285231185 | Q80: 0.01785418278
N81: 53 | O81: 0.9250245036 | P81: 0.02316042979 | Q81: 0.01745263567
N82: 54 | O82: 0.9424777961 | P82: 0.02346149284 | Q82: 0.01704577232
N83: 55 | O83: 0.9599310886 | P83: 0.02375540928 | Q83: 0.01663371665
N84: 56 | O84: 0.9773843811 | P84: 0.0240420896 | Q84: 0.0162165942
N85: 57 | O85: 0.9948376736 | P85: 0.02432144647 | Q85: 0.01579453202
N86: 58 | O86: 1.012290966 | P86: 0.02459339479 | Q86: 0.01536765866
N87: 59 | O87: 1.029744259 | P87: 0.02485785172 | Q87: 0.01493610417
N88: 60 | O88: 1.047197551 | P88: 0.02511473671 | Q88: 0.0145
N89: 61 | O89: 1.064650844 | P89: 0.02536397151 | Q89: 0.01405947899
N90: 62 | O90: 1.082104136 | P90: 0.02560548019 | Q90: 0.01361467532
N91: 63 | O91: 1.099557429 | P91: 0.0258391892 | Q91: 0.01316572449
N92: 64 | O92: 1.117010721 | P92: 0.02606502734 | Q92: 0.01271276326
N93: 65 | O93: 1.134464014 | P93: =SIN(O93)*H$24 -> 0.02628292582 | Q93: =COS(O93)*H$24 -> 0.01225592959
N94: 66 | O94: =N94*(PI()/180) -> 1.151917306 | P94: 0.02649281827 | Q94: 0.01179536265
N95: =N94+1 -> 67 | O95: 1.169370599 | P95: 0.02669464075 | Q95: 0.01133120273
N96: 68 | O96: 1.186823891 | P96: 0.02688833178 | Q96: 0.01086359121
N97: 69 | O97: 1.204277184 | P97: 0.02707383237 | Q97: 0.01039267054
N98: 70 | O98: 1.221730476 | P98: 0.027251086 | Q98: 0.009918584156
N99: 71 | O99: 1.239183769 | P99: 0.02742003869 | Q99: 0.009441476479
N100: 72 | O100: 1.256637061 | P100: 0.02758063897 | Q100: 0.008961492837
N101: 73 | O101: 1.274090354 | P101: 0.02773283792 | Q101: 0.008478779437
N102: 74 | O102: 1.291543646 | P102: 0.02787658918 | Q102: 0.007993483319
N103: 75 | O103: 1.308996939 | P103: 0.02801184896 | Q103: 0.007505752308
N104: 76 | O104: 1.326450232 | P104: 0.02813857606 | Q104: 0.007015734972
N105: 77 | O105: 1.343903524 | P105: 0.02825673188 | Q105: 0.006523580576
N106: 78 | O106: 1.361356817 | P106: 0.02836628042 | Q106: 0.006029439034
N107: 79 | O107: 1.378810109 | P107: 0.02846718832 | Q107: 0.005533460866
N108: 80 | O108: 1.396263402 | P108: 0.02855942484 | Q108: 0.005035797152
N109: 81 | O109: 1.413716694 | P109: 0.02864296188 | Q109: 0.004536599486
N110: 82 | O110: 1.431169987 | P110: 0.02871777399 | Q110: 0.004036019928
N111: 83 | O111: 1.448623279 | P111: 0.0287838384 | Q111: 0.003534210959
N112: 84 | O112: 1.466076572 | P112: 0.02884113497 | Q112: 0.003031325435
N113: 85 | O113: 1.483529864 | P113: 0.02888964624 | Q113: 0.00252751654
N114: 86 | O114: 1.500983157 | P114: 0.02892935746 | Q114: 0.002022937739
N115: 87 | O115: 1.518436449 | P115: 0.02896025651 | Q115: 0.001517742731
N116: 88 | O116: 1.535889742 | P116: 0.02898233398 | Q116: 0.001012085404
N117: 89 | O117: 1.553343034 | P117: 0.02899558316 | Q117: 0.0005061197867
N118: 90 | O118: 1.570796327 | P118: 0.029 | Q118: 1.77646526e-18
N119: 91 | O119: 1.588249619 | P119: 0.02899558316 | Q119: -0.0005061197867
N120: 92 | O120: 1.605702912 | P120: 0.02898233398 | Q120: -0.001012085404
N121: 93 | O121: 1.623156204 | P121: 0.02896025651 | Q121: -0.001517742731
N122: 94 | O122: 1.640609497 | P122: 0.02892935746 | Q122: -0.002022937739
N123: 95 | O123: 1.658062789 | P123: 0.02888964624 | Q123: -0.00252751654
N124: 96 | O124: 1.675516082 | P124: 0.02884113497 | Q124: -0.003031325435
N125: 97 | O125: 1.692969374 | P125: 0.0287838384 | Q125: -0.003534210959
N126: 98 | O126: 1.710422667 | P126: 0.02871777399 | Q126: -0.004036019928
N127: 99 | O127: 1.727875959 | P127: 0.02864296188 | Q127: -0.004536599486
N128: 100 | O128: 1.745329252 | P128: 0.02855942484 | Q128: -0.005035797152
N129: 101 | O129: 1.762782545 | P129: 0.02846718832 | Q129: -0.005533460866
N130: 102 | O130: 1.780235837 | P130: 0.02836628042 | Q130: -0.006029439034
N131: 103 | O131: 1.79768913 | P131: 0.02825673188 | Q131: -0.006523580576
N132: 104 | O132: 1.815142422 | P132: 0.02813857606 | Q132: -0.007015734972
N133: 105 | O133: 1.832595715 | P133: 0.02801184896 | Q133: -0.007505752308
N134: 106 | O134: 1.850049007 | P134: 0.02787658918 | Q134: -0.007993483319
N135: 107 | O135: 1.8675023 | P135: 0.02773283792 | Q135: -0.008478779437
N136: 108 | O136: 1.884955592 | P136: 0.02758063897 | Q136: -0.008961492837
N137: 109 | O137: 1.902408885 | P137: 0.02742003869 | Q137: -0.009441476479
N138: 110 | O138: 1.919862177 | P138: 0.027251086 | Q138: -0.009918584156
N139: 111 | O139: 1.93731547 | P139: 0.02707383237 | Q139: -0.01039267054
N140: 112 | O140: 1.954768762 | P140: 0.02688833178 | Q140: -0.01086359121
N141: 113 | O141: 1.972222055 | P141: 0.02669464075 | Q141: -0.01133120273
N142: 114 | O142: 1.989675347 | P142: 0.02649281827 | Q142: -0.01179536265
N143: 115 | O143: 2.00712864 | P143: 0.02628292582 | Q143: -0.01225592959
N144: 116 | O144: 2.024581932 | P144: 0.02606502734 | Q144: -0.01271276326
N145: 117 | O145: 2.042035225 | P145: 0.0258391892 | Q145: -0.01316572449
N146: 118 | O146: 2.059488517 | P146: 0.02560548019 | Q146: -0.01361467532
N147: 119 | O147: 2.07694181 | P147: 0.02536397151 | Q147: -0.01405947899
N148: 120 | O148: 2.094395102 | P148: 0.02511473671 | Q148: -0.0145
N149: 121 | O149: 2.111848395 | P149: 0.02485785172 | Q149: -0.01493610417
N150: 122 | O150: 2.129301687 | P150: 0.02459339479 | Q150: -0.01536765866
N151: 123 | O151: 2.14675498 | P151: 0.02432144647 | Q151: -0.01579453202
N152: 124 | O152: 2.164208272 | P152: 0.0240420896 | Q152: -0.0162165942
N153: 125 | O153: 2.181661565 | P153: 0.02375540928 | Q153: -0.01663371665
N154: 126 | O154: 2.199114858 | P154: 0.02346149284 | Q154: -0.01704577232
N155: 127 | O155: 2.21656815 | P155: 0.02316042979 | Q155: -0.01745263567
N156: 128 | O156: 2.234021443 | P156: 0.02285231185 | Q156: -0.01785418278
N157: 129 | O157: 2.251474735 | P157: =SIN(O157)*H$24 -> 0.02253723288 | Q157: =COS(O157)*H$24 -> -0.01825029134
N158: 130 | O158: =N158*(PI()/180) -> 2.268928028 | P158: 0.02221528885 | Q158: -0.01864084068
N159: =N158+1 -> 131 | O159: 2.28638132 | P159: 0.02188657783 | Q159: -0.01902571184
N160: 132 | O160: 2.303834613 | P160: 0.02155119994 | Q160: -0.01940478758
N161: 133 | O161: 2.321287905 | P161: 0.02120925735 | Q161: -0.01977795244
N162: 134 | O162: 2.338741198 | P162: 0.02086085421 | Q162: -0.02014509274
N163: 135 | O163: 2.35619449 | P163: 0.02050609665 | Q163: -0.02050609665
N164: 136 | O164: 2.373647783 | P164: 0.02014509274 | Q164: -0.02086085421
N165: 137 | O165: 2.391101075 | P165: 0.01977795244 | Q165: -0.02120925735
N166: 138 | O166: 2.408554368 | P166: 0.01940478758 | Q166: -0.02155119994
N167: 139 | O167: 2.42600766 | P167: 0.01902571184 | Q167: -0.02188657783
N168: 140 | O168: 2.443460953 | P168: 0.01864084068 | Q168: -0.02221528885
N169: 141 | O169: 2.460914245 | P169: 0.01825029134 | Q169: -0.02253723288
N170: 142 | O170: 2.478367538 | P170: 0.01785418278 | Q170: -0.02285231185
N171: 143 | O171: 2.49582083 | P171: 0.01745263567 | Q171: -0.02316042979
N172: 144 | O172: 2.513274123 | P172: 0.01704577232 | Q172: -0.02346149284
N173: 145 | O173: 2.530727415 | P173: 0.01663371665 | Q173: -0.02375540928
N174: 146 | O174: 2.548180708 | P174: 0.0162165942 | Q174: -0.0240420896
N175: 147 | O175: 2.565634 | P175: 0.01579453202 | Q175: -0.02432144647
N176: 148 | O176: 2.583087293 | P176: 0.01536765866 | Q176: -0.02459339479
N177: 149 | O177: 2.600540585 | P177: 0.01493610417 | Q177: -0.02485785172
N178: 150 | O178: 2.617993878 | P178: 0.0145 | Q178: -0.02511473671
N179: 151 | O179: 2.635447171 | P179: 0.01405947899 | Q179: -0.02536397151
N180: 152 | O180: 2.652900463 | P180: 0.01361467532 | Q180: -0.02560548019
N181: 153 | O181: 2.670353756 | P181: 0.01316572449 | Q181: -0.0258391892
N182: 154 | O182: 2.687807048 | P182: 0.01271276326 | Q182: -0.02606502734
N183: 155 | O183: 2.705260341 | P183: 0.01225592959 | Q183: -0.02628292582
N184: 156 | O184: 2.722713633 | P184: 0.01179536265 | Q184: -0.02649281827
N185: 157 | O185: 2.740166926 | P185: 0.01133120273 | Q185: -0.02669464075
N186: 158 | O186: 2.757620218 | P186: 0.01086359121 | Q186: -0.02688833178
N187: 159 | O187: 2.775073511 | P187: 0.01039267054 | Q187: -0.02707383237
N188: 160 | O188: 2.792526803 | P188: 0.009918584156 | Q188: -0.027251086
N189: 161 | O189: 2.809980096 | P189: 0.009441476479 | Q189: -0.02742003869
N190: 162 | O190: 2.827433388 | P190: 0.008961492837 | Q190: -0.02758063897
N191: 163 | O191: 2.844886681 | P191: 0.008478779437 | Q191: -0.02773283792
N192: 164 | O192: 2.862339973 | P192: 0.007993483319 | Q192: -0.02787658918
N193: 165 | O193: 2.879793266 | P193: 0.007505752308 | Q193: -0.02801184896
N194: 166 | O194: 2.897246558 | P194: 0.007015734972 | Q194: -0.02813857606
N195: 167 | O195: 2.914699851 | P195: 0.006523580576 | Q195: -0.02825673188
N196: 168 | O196: 2.932153143 | P196: 0.006029439034 | Q196: -0.02836628042
N197: 169 | O197: 2.949606436 | P197: 0.005533460866 | Q197: -0.02846718832
N198: 170 | O198: 2.967059728 | P198: 0.005035797152 | Q198: -0.02855942484
N199: 171 | O199: 2.984513021 | P199: 0.004536599486 | Q199: -0.02864296188
N200: 172 | O200: 3.001966313 | P200: 0.004036019928 | Q200: -0.02871777399
N201: 173 | O201: 3.019419606 | P201: 0.003534210959 | Q201: -0.0287838384
N202: 174 | O202: 3.036872898 | P202: 0.003031325435 | Q202: -0.02884113497
... 186 more rows

Sheet 104
A1: VRS GNSS Project Control Monument Coordinate Analysis
A3: Project: | B3: =REPORT!B2 -> FRA-33-24.76 | D3: GPS Antenna: | E3: =REPORT!A42 -> Trimble R12i | I3: Report Date: | J3: =REPORT!C49 -> 2024-06-25
A4: PID: | B4: =REPORT!E2 -> 119387 | D4: VRS Network: | E4: ODOT VRS | I4: Prepared By: | J4: =REPORT!C48 -> Mark Humphrey
A5: Point ID: | B5: 104 | C5: No. of Sessions: | D5: =SUM(IF(GPS_IMPORT!A2:A1000=$B$5,1,0)) -> 15 | E5: =IF(GPS_IMPORT!K2,"(LDP)","(STATE PLANE)") -> (STATE PLANE) | I5: Checked By: | J5: =REPORT!C59 -> Mike Wilson
A6: SESSION # | B6: Point | C6: Observation Date | D6: Start Time | E6: ="Northing("&GPS_IMPORT!K4&")" -> Northing(sft) | F6: ="Easting("&GPS_IMPORT!K4&")" -> Easting(sft) | G6: ="Height("&GPS_IMPORT!K4&")" -> Height(sft) | H6: ="∆ Northing("&GPS_IMPORT!K4&")" -> ∆ Northing(sft) | I6: ="∆ Easting("&GPS_IMPORT!K4&")" -> ∆ Easting(sft) | J6: ="∆ Height("&GPS_IMPORT!K4&")" -> ∆ Height(sft) | K6: Include in Solution?
A7: 1 | B7: =IF(ROWS(GPS_IMPORT!$1:1)<=SUM(IF(GPS_IMPORT!$A$2:$A$10000=$B$5,1,0)),INDEX(GPS_IMPORT!$2:$10000,MATCH($B$5,(GPS_IMPORT!$A$2:$A$10000),0)+ROWS($1:1)-1,COLUMN()-1),0) -> 104 | C7: =IF(ROWS(GPS_IMPORT!$1:1)<=SUM(IF(GPS_IMPORT!$A$2:$A$10000=$B$5,1,0)),INDEX(GPS_IMPORT!$2:$10000,MATCH($B$5,(GPS_IMPORT!$A$2:$A$10000),0)+ROWS($1:1)-1,COLUMN()-1),0) -> 45408 | D7: =IF(ROWS(GPS_IMPORT!$1:1)<=SUM(IF(GPS_IMPORT!$A$2:$A$10000=$B$5,1,0)),INDEX(GPS_IMPORT!$2:$10000,MATCH($B$5,(GPS_IMPORT!$A$2:$A$10000),0)+ROWS($1:1)-1,COLUMN()-1),0) -> 10:14:49 | E7: =IF(ROWS(GPS_IMPORT!$1:1)<=SUM(IF(GPS_IMPORT!$A$2:$A$10000=$B$5,1,0)),INDEX(GPS_IMPORT!$2:$10000,MATCH($B$5,(GPS_IMPORT!$A$2:$A$10000),0)+ROWS($1:1)-1,COLUMN()-1),0) -> 694072.763 | F7: =IF(ROWS(GPS_IMPORT!$1:1)<=SUM(IF(GPS_IMPORT!$A$2:$A$10000=$B$5,1,0)),INDEX(GPS_IMPORT!$2:$10000,MATCH($B$5,(GPS_IMPORT!$A$2:$A$10000),0)+ROWS($1:1)-1,COLUMN()-1),0) -> 1857541.277 | G7: =IF(ROWS(GPS_IMPORT!$1:1)<=SUM(IF(GPS_IMPORT!$A$2:$A$10000=$B$5,1,0)),INDEX(GPS_IMPORT!$2:$10000,MATCH($B$5,(GPS_IMPORT!$A$2:$A$10000),0)+ROWS($1:1)-1,COLUMN()-1),0) -> 747.877 | H7: =IF(K7=TRUE,IF(E7>0,E$22-E7,0),0) -> -0.02333333343 | I7: =IF(K7=TRUE,IF(F7>0,F$22-F7,0),0) -> 0.002466666978 | J7: =IF(K7=TRUE,IF(G7>0,G$22-G7,0),0) -> 0.0008666666669 | K7: TRUE | L7: =IF(OR(ABS(H7)>$H$24,ABS(I7)>$H$24,ABS(SQRT((H7^2)+(I7^2)))>$H$24),IF(K7=TRUE,IF(E7>0,E$22-E7,0),0),0) -> 0 | M7: =IF(OR(ABS(H7)>$H$24,ABS(I7)>$H$24,ABS(SQRT((H7^2)+(I7^2)))>$H$24),IF(K7=TRUE,IF(E7>0,F$22-F7,0),0),0) -> 0
A8: 2 | B8: =IF(ROWS(GPS_IMPORT!$1:2)<=SUM(IF(GPS_IMPORT!$A$2:$A$10000=$B$5,1,0)),INDEX(GPS_IMPORT!$2:$10000,MATCH($B$5,(GPS_IMPORT!$A$2:$A$10000),0)+ROWS($1:2)-1,COLUMN()-1),0) -> 104 | C8: =IF(ROWS(GPS_IMPORT!$1:2)<=SUM(IF(GPS_IMPORT!$A$2:$A$10000=$B$5,1,0)),INDEX(GPS_IMPORT!$2:$10000,MATCH($B$5,(GPS_IMPORT!$A$2:$A$10000),0)+ROWS($1:2)-1,COLUMN()-1),0) -> 45408 | D8: =IF(ROWS(GPS_IMPORT!$1:2)<=SUM(IF(GPS_IMPORT!$A$2:$A$10000=$B$5,1,0)),INDEX(GPS_IMPORT!$2:$10000,MATCH($B$5,(GPS_IMPORT!$A$2:$A$10000),0)+ROWS($1:2)-1,COLUMN()-1),0) -> 10:15:22 | E8: =IF(ROWS(GPS_IMPORT!$1:2)<=SUM(IF(GPS_IMPORT!$A$2:$A$10000=$B$5,1,0)),INDEX(GPS_IMPORT!$2:$10000,MATCH($B$5,(GPS_IMPORT!$A$2:$A$10000),0)+ROWS($1:2)-1,COLUMN()-1),0) -> 694072.752 | F8: =IF(ROWS(GPS_IMPORT!$1:2)<=SUM(IF(GPS_IMPORT!$A$2:$A$10000=$B$5,1,0)),INDEX(GPS_IMPORT!$2:$10000,MATCH($B$5,(GPS_IMPORT!$A$2:$A$10000),0)+ROWS($1:2)-1,COLUMN()-1),0) -> 1857541.278 | G8: =IF(ROWS(GPS_IMPORT!$1:2)<=SUM(IF(GPS_IMPORT!$A$2:$A$10000=$B$5,1,0)),INDEX(GPS_IMPORT!$2:$10000,MATCH($B$5,(GPS_IMPORT!$A$2:$A$10000),0)+ROWS($1:2)-1,COLUMN()-1),0) -> 747.904 | H8: =IF(K8=TRUE,IF(E8>0,E$22-E8,0),0) -> -0.01233333338 | I8: =IF(K8=TRUE,IF(F8>0,F$22-F8,0),0) -> 0.001466667047 | J8: =IF(K8=TRUE,IF(G8>0,G$22-G8,0),0) -> -0.02613333333 | K8: TRUE | L8: 0 | M8: 0
A9: 3 | B9: =IF(ROWS(GPS_IMPORT!$1:3)<=SUM(IF(GPS_IMPORT!$A$2:$A$10000=$B$5,1,0)),INDEX(GPS_IMPORT!$2:$10000,MATCH($B$5,(GPS_IMPORT!$A$2:$A$10000),0)+ROWS($1:3)-1,COLUMN()-1),0) -> 104 | C9: =IF(ROWS(GPS_IMPORT!$1:3)<=SUM(IF(GPS_IMPORT!$A$2:$A$10000=$B$5,1,0)),INDEX(GPS_IMPORT!$2:$10000,MATCH($B$5,(GPS_IMPORT!$A$2:$A$10000),0)+ROWS($1:3)-1,COLUMN()-1),0) -> 45408 | D9: =IF(ROWS(GPS_IMPORT!$1:3)<=SUM(IF(GPS_IMPORT!$A$2:$A$10000=$B$5,1,0)),INDEX(GPS_IMPORT!$2:$10000,MATCH($B$5,(GPS_IMPORT!$A$2:$A$10000),0)+ROWS($1:3)-1,COLUMN()-1),0) -> 10:15:50 | E9: =IF(ROWS(GPS_IMPORT!$1:3)<=SUM(IF(GPS_IMPORT!$A$2:$A$10000=$B$5,1,0)),INDEX(GPS_IMPORT!$2:$10000,MATCH($B$5,(GPS_IMPORT!$A$2:$A$10000),0)+ROWS($1:3)-1,COLUMN()-1),0) -> 694072.749 | F9: =IF(ROWS(GPS_IMPORT!$1:3)<=SUM(IF(GPS_IMPORT!$A$2:$A$10000=$B$5,1,0)),INDEX(GPS_IMPORT!$2:$10000,MATCH($B$5,(GPS_IMPORT!$A$2:$A$10000),0)+ROWS($1:3)-1,COLUMN()-1),0) -> 1857541.264 | G9: =IF(ROWS(GPS_IMPORT!$1:3)<=SUM(IF(GPS_IMPORT!$A$2:$A$10000=$B$5,1,0)),INDEX(GPS_IMPORT!$2:$10000,MATCH($B$5,(GPS_IMPORT!$A$2:$A$10000),0)+ROWS($1:3)-1,COLUMN()-1),0) -> 747.907 | H9: -0.00933333335 | I9: 0.01546666701 | J9: -0.02913333333 | K9: TRUE | L9: 0 | M9: 0
A10: 4 | B10: =IF(ROWS(GPS_IMPORT!$1:4)<=SUM(IF(GPS_IMPORT!$A$2:$A$10000=$B$5,1,0)),INDEX(GPS_IMPORT!$2:$10000,MATCH($B$5,(GPS_IMPORT!$A$2:$A$10000),0)+ROWS($1:4)-1,COLUMN()-1),0) -> 104 | C10: =IF(ROWS(GPS_IMPORT!$1:4)<=SUM(IF(GPS_IMPORT!$A$2:$A$10000=$B$5,1,0)),INDEX(GPS_IMPORT!$2:$10000,MATCH($B$5,(GPS_IMPORT!$A$2:$A$10000),0)+ROWS($1:4)-1,COLUMN()-1),0) -> 45408 | D10: =IF(ROWS(GPS_IMPORT!$1:4)<=SUM(IF(GPS_IMPORT!$A$2:$A$10000=$B$5,1,0)),INDEX(GPS_IMPORT!$2:$10000,MATCH($B$5,(GPS_IMPORT!$A$2:$A$10000),0)+ROWS($1:4)-1,COLUMN()-1),0) -> 10:16:25 | E10: =IF(ROWS(GPS_IMPORT!$1:4)<=SUM(IF(GPS_IMPORT!$A$2:$A$10000=$B$5,1,0)),INDEX(GPS_IMPORT!$2:$10000,MATCH($B$5,(GPS_IMPORT!$A$2:$A$10000),0)+ROWS($1:4)-1,COLUMN()-1),0) -> 694072.763 | F10: =IF(ROWS(GPS_IMPORT!$1:4)<=SUM(IF(GPS_IMPORT!$A$2:$A$10000=$B$5,1,0)),INDEX(GPS_IMPORT!$2:$10000,MATCH($B$5,(GPS_IMPORT!$A$2:$A$10000),0)+ROWS($1:4)-1,COLUMN()-1),0) -> 1857541.259 | G10: =IF(ROWS(GPS_IMPORT!$1:4)<=SUM(IF(GPS_IMPORT!$A$2:$A$10000=$B$5,1,0)),INDEX(GPS_IMPORT!$2:$10000,MATCH($B$5,(GPS_IMPORT!$A$2:$A$10000),0)+ROWS($1:4)-1,COLUMN()-1),0) -> 747.919 | H10: -0.02333333343 | I10: 0.0204666669 | J10: -0.04113333333 | K10: TRUE | L10: -0.02333333343 | M10: 0.0204666669
A11: 5 | B11: =IF(ROWS(GPS_IMPORT!$1:5)<=SUM(IF(GPS_IMPORT!$A$2:$A$10000=$B$5,1,0)),INDEX(GPS_IMPORT!$2:$10000,MATCH($B$5,(GPS_IMPORT!$A$2:$A$10000),0)+ROWS($1:5)-1,COLUMN()-1),0) -> 104 | C11: =IF(ROWS(GPS_IMPORT!$1:5)<=SUM(IF(GPS_IMPORT!$A$2:$A$10000=$B$5,1,0)),INDEX(GPS_IMPORT!$2:$10000,MATCH($B$5,(GPS_IMPORT!$A$2:$A$10000),0)+ROWS($1:5)-1,COLUMN()-1),0) -> 45408 | D11: =IF(ROWS(GPS_IMPORT!$1:5)<=SUM(IF(GPS_IMPORT!$A$2:$A$10000=$B$5,1,0)),INDEX(GPS_IMPORT!$2:$10000,MATCH($B$5,(GPS_IMPORT!$A$2:$A$10000),0)+ROWS($1:5)-1,COLUMN()-1),0) -> 10:17:41 | E11: =IF(ROWS(GPS_IMPORT!$1:5)<=SUM(IF(GPS_IMPORT!$A$2:$A$10000=$B$5,1,0)),INDEX(GPS_IMPORT!$2:$10000,MATCH($B$5,(GPS_IMPORT!$A$2:$A$10000),0)+ROWS($1:5)-1,COLUMN()-1),0) -> 694072.74 | F11: =IF(ROWS(GPS_IMPORT!$1:5)<=SUM(IF(GPS_IMPORT!$A$2:$A$10000=$B$5,1,0)),INDEX(GPS_IMPORT!$2:$10000,MATCH($B$5,(GPS_IMPORT!$A$2:$A$10000),0)+ROWS($1:5)-1,COLUMN()-1),0) -> 1857541.286 | G11: =IF(ROWS(GPS_IMPORT!$1:5)<=SUM(IF(GPS_IMPORT!$A$2:$A$10000=$B$5,1,0)),INDEX(GPS_IMPORT!$2:$10000,MATCH($B$5,(GPS_IMPORT!$A$2:$A$10000),0)+ROWS($1:5)-1,COLUMN()-1),0) -> 747.918 | H11: -0.000333333388 | I11: -0.0065333331 | J11: -0.04013333333 | K11: TRUE | L11: 0 | M11: 0
A12: 6 | B12: =IF(ROWS(GPS_IMPORT!$1:6)<=SUM(IF(GPS_IMPORT!$A$2:$A$10000=$B$5,1,0)),INDEX(GPS_IMPORT!$2:$10000,MATCH($B$5,(GPS_IMPORT!$A$2:$A$10000),0)+ROWS($1:6)-1,COLUMN()-1),0) -> 104 | C12: =IF(ROWS(GPS_IMPORT!$1:6)<=SUM(IF(GPS_IMPORT!$A$2:$A$10000=$B$5,1,0)),INDEX(GPS_IMPORT!$2:$10000,MATCH($B$5,(GPS_IMPORT!$A$2:$A$10000),0)+ROWS($1:6)-1,COLUMN()-1),0) -> 45408 | D12: =IF(ROWS(GPS_IMPORT!$1:6)<=SUM(IF(GPS_IMPORT!$A$2:$A$10000=$B$5,1,0)),INDEX(GPS_IMPORT!$2:$10000,MATCH($B$5,(GPS_IMPORT!$A$2:$A$10000),0)+ROWS($1:6)-1,COLUMN()-1),0) -> 10:18:16 | E12: =IF(ROWS(GPS_IMPORT!$1:6)<=SUM(IF(GPS_IMPORT!$A$2:$A$10000=$B$5,1,0)),INDEX(GPS_IMPORT!$2:$10000,MATCH($B$5,(GPS_IMPORT!$A$2:$A$10000),0)+ROWS($1:6)-1,COLUMN()-1),0) -> 694072.73 | F12: =IF(ROWS(GPS_IMPORT!$1:6)<=SUM(IF(GPS_IMPORT!$A$2:$A$10000=$B$5,1,0)),INDEX(GPS_IMPORT!$2:$10000,MATCH($B$5,(GPS_IMPORT!$A$2:$A$10000),0)+ROWS($1:6)-1,COLUMN()-1),0) -> 1857541.287 | G12: =IF(ROWS(GPS_IMPORT!$1:6)<=SUM(IF(GPS_IMPORT!$A$2:$A$10000=$B$5,1,0)),INDEX(GPS_IMPORT!$2:$10000,MATCH($B$5,(GPS_IMPORT!$A$2:$A$10000),0)+ROWS($1:6)-1,COLUMN()-1),0) -> 747.917 | H12: 0.009666666621 | I12: -0.007533333031 | J12: -0.03913333333 | K12: TRUE | L12: 0 | M12: 0
A13: 7 | B13: =IF(ROWS(GPS_IMPORT!$1:7)<=SUM(IF(GPS_IMPORT!$A$2:$A$10000=$B$5,1,0)),INDEX(GPS_IMPORT!$2:$10000,MATCH($B$5,(GPS_IMPORT!$A$2:$A$10000),0)+ROWS($1:7)-1,COLUMN()-1),0) -> 104 | C13: =IF(ROWS(GPS_IMPORT!$1:7)<=SUM(IF(GPS_IMPORT!$A$2:$A$10000=$B$5,1,0)),INDEX(GPS_IMPORT!$2:$10000,MATCH($B$5,(GPS_IMPORT!$A$2:$A$10000),0)+ROWS($1:7)-1,COLUMN()-1),0) -> 45408 | D13: =IF(ROWS(GPS_IMPORT!$1:7)<=SUM(IF(GPS_IMPORT!$A$2:$A$10000=$B$5,1,0)),INDEX(GPS_IMPORT!$2:$10000,MATCH($B$5,(GPS_IMPORT!$A$2:$A$10000),0)+ROWS($1:7)-1,COLUMN()-1),0) -> 10:18:43 | E13: =IF(ROWS(GPS_IMPORT!$1:7)<=SUM(IF(GPS_IMPORT!$A$2:$A$10000=$B$5,1,0)),INDEX(GPS_IMPORT!$2:$10000,MATCH($B$5,(GPS_IMPORT!$A$2:$A$10000),0)+ROWS($1:7)-1,COLUMN()-1),0) -> 694072.73 | F13: =IF(ROWS(GPS_IMPORT!$1:7)<=SUM(IF(GPS_IMPORT!$A$2:$A$10000=$B$5,1,0)),INDEX(GPS_IMPORT!$2:$10000,MATCH($B$5,(GPS_IMPORT!$A$2:$A$10000),0)+ROWS($1:7)-1,COLUMN()-1),0) -> 1857541.277 | G13: =IF(ROWS(GPS_IMPORT!$1:7)<=SUM(IF(GPS_IMPORT!$A$2:$A$10000=$B$5,1,0)),INDEX(GPS_IMPORT!$2:$10000,MATCH($B$5,(GPS_IMPORT!$A$2:$A$10000),0)+ROWS($1:7)-1,COLUMN()-1),0) -> 747.91 | H13: 0.009666666621 | I13: 0.002466666978 | J13: -0.03213333333 | K13: TRUE | L13: 0 | M13: 0
A14: 8 | B14: =IF(ROWS(GPS_IMPORT!$1:8)<=SUM(IF(GPS_IMPORT!$A$2:$A$10000=$B$5,1,0)),INDEX(GPS_IMPORT!$2:$10000,MATCH($B$5,(GPS_IMPORT!$A$2:$A$10000),0)+ROWS($1:8)-1,COLUMN()-1),0) -> 104 | C14: =IF(ROWS(GPS_IMPORT!$1:8)<=SUM(IF(GPS_IMPORT!$A$2:$A$10000=$B$5,1,0)),INDEX(GPS_IMPORT!$2:$10000,MATCH($B$5,(GPS_IMPORT!$A$2:$A$10000),0)+ROWS($1:8)-1,COLUMN()-1),0) -> 45408 | D14: =IF(ROWS(GPS_IMPORT!$1:8)<=SUM(IF(GPS_IMPORT!$A$2:$A$10000=$B$5,1,0)),INDEX(GPS_IMPORT!$2:$10000,MATCH($B$5,(GPS_IMPORT!$A$2:$A$10000),0)+ROWS($1:8)-1,COLUMN()-1),0) -> 10:19:12 | E14: =IF(ROWS(GPS_IMPORT!$1:8)<=SUM(IF(GPS_IMPORT!$A$2:$A$10000=$B$5,1,0)),INDEX(GPS_IMPORT!$2:$10000,MATCH($B$5,(GPS_IMPORT!$A$2:$A$10000),0)+ROWS($1:8)-1,COLUMN()-1),0) -> 694072.75 | F14: =IF(ROWS(GPS_IMPORT!$1:8)<=SUM(IF(GPS_IMPORT!$A$2:$A$10000=$B$5,1,0)),INDEX(GPS_IMPORT!$2:$10000,MATCH($B$5,(GPS_IMPORT!$A$2:$A$10000),0)+ROWS($1:8)-1,COLUMN()-1),0) -> 1857541.276 | G14: =IF(ROWS(GPS_IMPORT!$1:8)<=SUM(IF(GPS_IMPORT!$A$2:$A$10000=$B$5,1,0)),INDEX(GPS_IMPORT!$2:$10000,MATCH($B$5,(GPS_IMPORT!$A$2:$A$10000),0)+ROWS($1:8)-1,COLUMN()-1),0) -> 747.906 | H14: -0.0103333334 | I14: 0.003466666909 | J14: -0.02813333333 | K14: TRUE | L14: 0 | M14: 0
A15: 9 | B15: =IF(ROWS(GPS_IMPORT!$1:9)<=SUM(IF(GPS_IMPORT!$A$2:$A$10000=$B$5,1,0)),INDEX(GPS_IMPORT!$2:$10000,MATCH($B$5,(GPS_IMPORT!$A$2:$A$10000),0)+ROWS($1:9)-1,COLUMN()-1),0) -> 104 | C15: =IF(ROWS(GPS_IMPORT!$1:9)<=SUM(IF(GPS_IMPORT!$A$2:$A$10000=$B$5,1,0)),INDEX(GPS_IMPORT!$2:$10000,MATCH($B$5,(GPS_IMPORT!$A$2:$A$10000),0)+ROWS($1:9)-1,COLUMN()-1),0) -> 45408 | D15: =IF(ROWS(GPS_IMPORT!$1:9)<=SUM(IF(GPS_IMPORT!$A$2:$A$10000=$B$5,1,0)),INDEX(GPS_IMPORT!$2:$10000,MATCH($B$5,(GPS_IMPORT!$A$2:$A$10000),0)+ROWS($1:9)-1,COLUMN()-1),0) -> 10:21:07 | E15: =IF(ROWS(GPS_IMPORT!$1:9)<=SUM(IF(GPS_IMPORT!$A$2:$A$10000=$B$5,1,0)),INDEX(GPS_IMPORT!$2:$10000,MATCH($B$5,(GPS_IMPORT!$A$2:$A$10000),0)+ROWS($1:9)-1,COLUMN()-1),0) -> 694072.756 | F15: =IF(ROWS(GPS_IMPORT!$1:9)<=SUM(IF(GPS_IMPORT!$A$2:$A$10000=$B$5,1,0)),INDEX(GPS_IMPORT!$2:$10000,MATCH($B$5,(GPS_IMPORT!$A$2:$A$10000),0)+ROWS($1:9)-1,COLUMN()-1),0) -> 1857541.291 | G15: =IF(ROWS(GPS_IMPORT!$1:9)<=SUM(IF(GPS_IMPORT!$A$2:$A$10000=$B$5,1,0)),INDEX(GPS_IMPORT!$2:$10000,MATCH($B$5,(GPS_IMPORT!$A$2:$A$10000),0)+ROWS($1:9)-1,COLUMN()-1),0) -> 747.883 | H15: -0.01633333345 | I15: -0.01153333299 | J15: -0.005133333333 | K15: TRUE | L15: 0 | M15: 0
A16: 10 | B16: =IF(ROWS(GPS_IMPORT!$1:10)<=SUM(IF(GPS_IMPORT!$A$2:$A$10000=$B$5,1,0)),INDEX(GPS_IMPORT!$2:$10000,MATCH($B$5,(GPS_IMPORT!$A$2:$A$10000),0)+ROWS($1:10)-1,COLUMN()-1),0) -> 104 | C16: =IF(ROWS(GPS_IMPORT!$1:10)<=SUM(IF(GPS_IMPORT!$A$2:$A$10000=$B$5,1,0)),INDEX(GPS_IMPORT!$2:$10000,MATCH($B$5,(GPS_IMPORT!$A$2:$A$10000),0)+ROWS($1:10)-1,COLUMN()-1),0) -> 45408 | D16: =IF(ROWS(GPS_IMPORT!$1:10)<=SUM(IF(GPS_IMPORT!$A$2:$A$10000=$B$5,1,0)),INDEX(GPS_IMPORT!$2:$10000,MATCH($B$5,(GPS_IMPORT!$A$2:$A$10000),0)+ROWS($1:10)-1,COLUMN()-1),0) -> 10:21:46 | E16: =IF(ROWS(GPS_IMPORT!$1:10)<=SUM(IF(GPS_IMPORT!$A$2:$A$10000=$B$5,1,0)),INDEX(GPS_IMPORT!$2:$10000,MATCH($B$5,(GPS_IMPORT!$A$2:$A$10000),0)+ROWS($1:10)-1,COLUMN()-1),0) -> 694072.73 | F16: =IF(ROWS(GPS_IMPORT!$1:10)<=SUM(IF(GPS_IMPORT!$A$2:$A$10000=$B$5,1,0)),INDEX(GPS_IMPORT!$2:$10000,MATCH($B$5,(GPS_IMPORT!$A$2:$A$10000),0)+ROWS($1:10)-1,COLUMN()-1),0) -> 1857541.298 | G16: =IF(ROWS(GPS_IMPORT!$1:10)<=SUM(IF(GPS_IMPORT!$A$2:$A$10000=$B$5,1,0)),INDEX(GPS_IMPORT!$2:$10000,MATCH($B$5,(GPS_IMPORT!$A$2:$A$10000),0)+ROWS($1:10)-1,COLUMN()-1),0) -> 747.843 | H16: 0.009666666621 | I16: -0.01853333297 | J16: 0.03486666667 | K16: TRUE | L16: 0 | M16: 0
A17: 11 | B17: =IF(ROWS(GPS_IMPORT!$1:11)<=SUM(IF(GPS_IMPORT!$A$2:$A$10000=$B$5,1,0)),INDEX(GPS_IMPORT!$2:$10000,MATCH($B$5,(GPS_IMPORT!$A$2:$A$10000),0)+ROWS($1:11)-1,COLUMN()-1),0) -> 104 | C17: =IF(ROWS(GPS_IMPORT!$1:11)<=SUM(IF(GPS_IMPORT!$A$2:$A$10000=$B$5,1,0)),INDEX(GPS_IMPORT!$2:$10000,MATCH($B$5,(GPS_IMPORT!$A$2:$A$10000),0)+ROWS($1:11)-1,COLUMN()-1),0) -> 45408 | D17: =IF(ROWS(GPS_IMPORT!$1:11)<=SUM(IF(GPS_IMPORT!$A$2:$A$10000=$B$5,1,0)),INDEX(GPS_IMPORT!$2:$10000,MATCH($B$5,(GPS_IMPORT!$A$2:$A$10000),0)+ROWS($1:11)-1,COLUMN()-1),0) -> 10:22:11 | E17: =IF(ROWS(GPS_IMPORT!$1:11)<=SUM(IF(GPS_IMPORT!$A$2:$A$10000=$B$5,1,0)),INDEX(GPS_IMPORT!$2:$10000,MATCH($B$5,(GPS_IMPORT!$A$2:$A$10000),0)+ROWS($1:11)-1,COLUMN()-1),0) -> 694072.725 | F17: =IF(ROWS(GPS_IMPORT!$1:11)<=SUM(IF(GPS_IMPORT!$A$2:$A$10000=$B$5,1,0)),INDEX(GPS_IMPORT!$2:$10000,MATCH($B$5,(GPS_IMPORT!$A$2:$A$10000),0)+ROWS($1:11)-1,COLUMN()-1),0) -> 1857541.28 | G17: =IF(ROWS(GPS_IMPORT!$1:11)<=SUM(IF(GPS_IMPORT!$A$2:$A$10000=$B$5,1,0)),INDEX(GPS_IMPORT!$2:$10000,MATCH($B$5,(GPS_IMPORT!$A$2:$A$10000),0)+ROWS($1:11)-1,COLUMN()-1),0) -> 747.838 | H17: 0.01466666663 | I17: -0.0005333330482 | J17: 0.03986666667 | K17: TRUE | L17: 0 | M17: 0
A18: 12 | B18: =IF(ROWS(GPS_IMPORT!$1:12)<=SUM(IF(GPS_IMPORT!$A$2:$A$10000=$B$5,1,0)),INDEX(GPS_IMPORT!$2:$10000,MATCH($B$5,(GPS_IMPORT!$A$2:$A$10000),0)+ROWS($1:12)-1,COLUMN()-1),0) -> 104 | C18: =IF(ROWS(GPS_IMPORT!$1:12)<=SUM(IF(GPS_IMPORT!$A$2:$A$10000=$B$5,1,0)),INDEX(GPS_IMPORT!$2:$10000,MATCH($B$5,(GPS_IMPORT!$A$2:$A$10000),0)+ROWS($1:12)-1,COLUMN()-1),0) -> 45408 | D18: =IF(ROWS(GPS_IMPORT!$1:12)<=SUM(IF(GPS_IMPORT!$A$2:$A$10000=$B$5,1,0)),INDEX(GPS_IMPORT!$2:$10000,MATCH($B$5,(GPS_IMPORT!$A$2:$A$10000),0)+ROWS($1:12)-1,COLUMN()-1),0) -> 10:23:38 | E18: =IF(ROWS(GPS_IMPORT!$1:12)<=SUM(IF(GPS_IMPORT!$A$2:$A$10000=$B$5,1,0)),INDEX(GPS_IMPORT!$2:$10000,MATCH($B$5,(GPS_IMPORT!$A$2:$A$10000),0)+ROWS($1:12)-1,COLUMN()-1),0) -> 694072.741 | F18: =IF(ROWS(GPS_IMPORT!$1:12)<=SUM(IF(GPS_IMPORT!$A$2:$A$10000=$B$5,1,0)),INDEX(GPS_IMPORT!$2:$10000,MATCH($B$5,(GPS_IMPORT!$A$2:$A$10000),0)+ROWS($1:12)-1,COLUMN()-1),0) -> 1857541.271 | G18: =IF(ROWS(GPS_IMPORT!$1:12)<=SUM(IF(GPS_IMPORT!$A$2:$A$10000=$B$5,1,0)),INDEX(GPS_IMPORT!$2:$10000,MATCH($B$5,(GPS_IMPORT!$A$2:$A$10000),0)+ROWS($1:12)-1,COLUMN()-1),0) -> 747.844 | H18: -0.001333333435 | I18: 0.00846666703 | J18: 0.03386666667 | K18: TRUE | L18: 0 | M18: 0
A19: 13 | B19: =IF(ROWS(GPS_IMPORT!$1:13)<=SUM(IF(GPS_IMPORT!$A$2:$A$10000=$B$5,1,0)),INDEX(GPS_IMPORT!$2:$10000,MATCH($B$5,(GPS_IMPORT!$A$2:$A$10000),0)+ROWS($1:13)-1,COLUMN()-1),0) -> 104 | C19: =IF(ROWS(GPS_IMPORT!$1:13)<=SUM(IF(GPS_IMPORT!$A$2:$A$10000=$B$5,1,0)),INDEX(GPS_IMPORT!$2:$10000,MATCH($B$5,(GPS_IMPORT!$A$2:$A$10000),0)+ROWS($1:13)-1,COLUMN()-1),0) -> 45408 | D19: =IF(ROWS(GPS_IMPORT!$1:13)<=SUM(IF(GPS_IMPORT!$A$2:$A$10000=$B$5,1,0)),INDEX(GPS_IMPORT!$2:$10000,MATCH($B$5,(GPS_IMPORT!$A$2:$A$10000),0)+ROWS($1:13)-1,COLUMN()-1),0) -> 10:25:41 | E19: =IF(ROWS(GPS_IMPORT!$1:13)<=SUM(IF(GPS_IMPORT!$A$2:$A$10000=$B$5,1,0)),INDEX(GPS_IMPORT!$2:$10000,MATCH($B$5,(GPS_IMPORT!$A$2:$A$10000),0)+ROWS($1:13)-1,COLUMN()-1),0) -> 694072.727 | F19: =IF(ROWS(GPS_IMPORT!$1:13)<=SUM(IF(GPS_IMPORT!$A$2:$A$10000=$B$5,1,0)),INDEX(GPS_IMPORT!$2:$10000,MATCH($B$5,(GPS_IMPORT!$A$2:$A$10000),0)+ROWS($1:13)-1,COLUMN()-1),0) -> 1857541.29 | G19: =IF(ROWS(GPS_IMPORT!$1:13)<=SUM(IF(GPS_IMPORT!$A$2:$A$10000=$B$5,1,0)),INDEX(GPS_IMPORT!$2:$10000,MATCH($B$5,(GPS_IMPORT!$A$2:$A$10000),0)+ROWS($1:13)-1,COLUMN()-1),0) -> 747.852 | H19: 0.01266666665 | I19: -0.01053333306 | J19: 0.02586666667 | K19: TRUE | L19: 0 | M19: 0
A20: 14 | B20: =IF(ROWS(GPS_IMPORT!$1:14)<=SUM(IF(GPS_IMPORT!$A$2:$A$10000=$B$5,1,0)),INDEX(GPS_IMPORT!$2:$10000,MATCH($B$5,(GPS_IMPORT!$A$2:$A$10000),0)+ROWS($1:14)-1,COLUMN()-1),0) -> 104 | C20: =IF(ROWS(GPS_IMPORT!$1:14)<=SUM(IF(GPS_IMPORT!$A$2:$A$10000=$B$5,1,0)),INDEX(GPS_IMPORT!$2:$10000,MATCH($B$5,(GPS_IMPORT!$A$2:$A$10000),0)+ROWS($1:14)-1,COLUMN()-1),0) -> 45408 | D20: =IF(ROWS(GPS_IMPORT!$1:14)<=SUM(IF(GPS_IMPORT!$A$2:$A$10000=$B$5,1,0)),INDEX(GPS_IMPORT!$2:$10000,MATCH($B$5,(GPS_IMPORT!$A$2:$A$10000),0)+ROWS($1:14)-1,COLUMN()-1),0) -> 10:26:19 | E20: =IF(ROWS(GPS_IMPORT!$1:14)<=SUM(IF(GPS_IMPORT!$A$2:$A$10000=$B$5,1,0)),INDEX(GPS_IMPORT!$2:$10000,MATCH($B$5,(GPS_IMPORT!$A$2:$A$10000),0)+ROWS($1:14)-1,COLUMN()-1),0) -> 694072.722 | F20: =IF(ROWS(GPS_IMPORT!$1:14)<=SUM(IF(GPS_IMPORT!$A$2:$A$10000=$B$5,1,0)),INDEX(GPS_IMPORT!$2:$10000,MATCH($B$5,(GPS_IMPORT!$A$2:$A$10000),0)+ROWS($1:14)-1,COLUMN()-1),0) -> 1857541.293 | G20: =IF(ROWS(GPS_IMPORT!$1:14)<=SUM(IF(GPS_IMPORT!$A$2:$A$10000=$B$5,1,0)),INDEX(GPS_IMPORT!$2:$10000,MATCH($B$5,(GPS_IMPORT!$A$2:$A$10000),0)+ROWS($1:14)-1,COLUMN()-1),0) -> 747.833 | H20: 0.01766666665 | I20: -0.01353333308 | J20: 0.04486666667 | K20: TRUE | L20: 0 | M20: 0
A21: 15 | B21: =IF(ROWS(GPS_IMPORT!$1:15)<=SUM(IF(GPS_IMPORT!$A$2:$A$10000=$B$5,1,0)),INDEX(GPS_IMPORT!$2:$10000,MATCH($B$5,(GPS_IMPORT!$A$2:$A$10000),0)+ROWS($1:15)-1,COLUMN()-1),0) -> 104 | C21: =IF(ROWS(GPS_IMPORT!$1:15)<=SUM(IF(GPS_IMPORT!$A$2:$A$10000=$B$5,1,0)),INDEX(GPS_IMPORT!$2:$10000,MATCH($B$5,(GPS_IMPORT!$A$2:$A$10000),0)+ROWS($1:15)-1,COLUMN()-1),0) -> 45408 | D21: =IF(ROWS(GPS_IMPORT!$1:15)<=SUM(IF(GPS_IMPORT!$A$2:$A$10000=$B$5,1,0)),INDEX(GPS_IMPORT!$2:$10000,MATCH($B$5,(GPS_IMPORT!$A$2:$A$10000),0)+ROWS($1:15)-1,COLUMN()-1),0) -> 10:27:05 | E21: =IF(ROWS(GPS_IMPORT!$1:15)<=SUM(IF(GPS_IMPORT!$A$2:$A$10000=$B$5,1,0)),INDEX(GPS_IMPORT!$2:$10000,MATCH($B$5,(GPS_IMPORT!$A$2:$A$10000),0)+ROWS($1:15)-1,COLUMN()-1),0) -> 694072.717 | F21: =IF(ROWS(GPS_IMPORT!$1:15)<=SUM(IF(GPS_IMPORT!$A$2:$A$10000=$B$5,1,0)),INDEX(GPS_IMPORT!$2:$10000,MATCH($B$5,(GPS_IMPORT!$A$2:$A$10000),0)+ROWS($1:15)-1,COLUMN()-1),0) -> 1857541.265 | G21: =IF(ROWS(GPS_IMPORT!$1:15)<=SUM(IF(GPS_IMPORT!$A$2:$A$10000=$B$5,1,0)),INDEX(GPS_IMPORT!$2:$10000,MATCH($B$5,(GPS_IMPORT!$A$2:$A$10000),0)+ROWS($1:15)-1,COLUMN()-1),0) -> 747.817 | H21: =IF(K21=TRUE,IF(E21>0,E$22-E21,0),0) -> 0.02266666666 | I21: 0.01446666708 | J21: 0.06086666667 | K21: TRUE | L21: 0 | M21: 0
D22: AVERAGE | E22: =(IF($K$7=TRUE,E7,0)+IF($K$8=TRUE,E8,0)+IF($K$9=TRUE,E9,0)+IF($K$10=TRUE,E10,0)+IF($K$11=TRUE,E11,0)+IF($K$12=TRUE,E12,0)+IF($K$13=TRUE,E13,0)+IF($K$14=TRUE,E14,0)+IF($K$15=TRUE,E15,0)+IF($K$16=TRUE,E16,0)+IF($K$17=TRUE,E17,0)+IF($K$18=TRUE,E18,0)+IF($K$19=TRUE,E19,0)+IF($K$20=TRUE,E20,0)+IF($K$21=TRUE,E21,0))/(IF($K$7=TRUE,1,0)+IF($K$8=TRUE,1,0)+IF($K$9=TRUE,1,0)+IF($K$10=TRUE,1,0)+IF($K$11=TRUE,1,0)+IF($K$12=TRUE,1,0)+IF($K$13=TRUE,1,0)+IF($K$14=TRUE,1,0)+IF($K$15=TRUE,1,0)+IF($K$16=TRUE,1,0)+IF($K$17=TRUE,1,0)+IF($K$18=TRUE,1,0)+IF($K$19=TRUE,1,0)+IF($K$20=TRUE,1,0)+IF($K$21=TRUE,1,0)) -> 694072.7397 | F22: =(IF($K$7=TRUE,F7,0)+IF($K$8=TRUE,F8,0)+IF($K$9=TRUE,F9,0)+IF($K$10=TRUE,F10,0)+IF($K$11=TRUE,F11,0)+IF($K$12=TRUE,F12,0)+IF($K$13=TRUE,F13,0)+IF($K$14=TRUE,F14,0)+IF($K$15=TRUE,F15,0)+IF($K$16=TRUE,F16,0)+IF($K$17=TRUE,F17,0)+IF($K$18=TRUE,F18,0)+IF($K$19=TRUE,F19,0)+IF($K$20=TRUE,F20,0)+IF($K$21=TRUE,F21,0))/(IF($K$7=TRUE,1,0)+IF($K$8=TRUE,1,0)+IF($K$9=TRUE,1,0)+IF($K$10=TRUE,1,0)+IF($K$11=TRUE,1,0)+IF($K$12=TRUE,1,0)+IF($K$13=TRUE,1,0)+IF($K$14=TRUE,1,0)+IF($K$15=TRUE,1,0)+IF($K$16=TRUE,1,0)+IF($K$17=TRUE,1,0)+IF($K$18=TRUE,1,0)+IF($K$19=TRUE,1,0)+IF($K$20=TRUE,1,0)+IF($K$21=TRUE,1,0)) -> 1857541.279 | G22: =(IF($K$7=TRUE,G7,0)+IF($K$8=TRUE,G8,0)+IF($K$9=TRUE,G9,0)+IF($K$10=TRUE,G10,0)+IF($K$11=TRUE,G11,0)+IF($K$12=TRUE,G12,0)+IF($K$13=TRUE,G13,0)+IF($K$14=TRUE,G14,0)+IF($K$15=TRUE,G15,0)+IF($K$16=TRUE,G16,0)+IF($K$17=TRUE,G17,0)+IF($K$18=TRUE,G18,0)+IF($K$19=TRUE,G19,0)+IF($K$20=TRUE,G20,0)+IF($K$21=TRUE,G21,0))/ (IF($K$7=TRUE,1,0)+IF($K$8=TRUE,1,0)+IF($K$9=TRUE,1,0)+IF($K$10=TRUE,1,0)+IF($K$11=TRUE,1,0)+IF($K$12=TRUE,1,0)+IF($K$13=TRUE,1,0)+IF($K$14=TRUE,1,0)+IF($K$15=TRUE,1,0)+IF($K$16=TRUE,1,0)+IF($K$17=TRUE,1,0)+IF($K$18=TRUE,1,0)+IF($K$19=TRUE,1,0)+IF($K$20=TRUE,1,0)+IF($K$21=TRUE,1,0)) -> 747.8778667 | H22: RMSE: | I22: RMSE: | J22: RMSE:
G23: ="RMSE IN "&GPS_IMPORT!J4&":" -> RMSE IN U.S. Survey FT: | H23: =SQRT(SUMSQ((IF(K7:K21=TRUE,H7:H21)))/SUM(IF(K7:K21=TRUE,1,0))) -> 0.01457242452 | I23: =SQRT(SUMSQ((IF(K7:K21=TRUE,I7:I21)))/SUM(IF(K7:K21=TRUE,1,0))) -> 0.01106264988 | J23: =SQRT(SUMSQ((IF(K7:K21=TRUE,J7:J21)))/SUM(IF(K7:K21=TRUE,1,0))) -> 0.0351717058
G24: Tolerance: | H24: =VLOOKUP(GPS_IMPORT!$K$4,Lists!H3:I5,2,FALSE) -> 0.029 | J24: =VLOOKUP(GPS_IMPORT!$K$4,Lists!H3:J5,3,FALSE) -> 0.039
H25: =IF(H23<=H24,"PASS","FAIL") -> PASS | I25: =IF(I23<=H24,"PASS","FAIL") -> PASS | J25: =IF(J23<=J24,"PASS","FAIL") -> PASS
A27: AVERAGED GPS-DERIVED POSITION | I27: Notes:
B28: MONUMENT COORDINATES | D28: NORTHING | E28: EASTING | F28: ORTHO HEIGHT | N28: Degrees | O28: Radians | P28: SIN | Q28: COS
B29: =GPS_IMPORT!J4&" ("&IF(GPS_IMPORT!K2,"GROUND","State Plane")&")" -> U.S. Survey FT (State Plane) | D29: =$E$22 -> 694072.7397 | E29: =$F$22 -> 1857541.279 | F29: =$G$22 -> 747.8778667 | N29: 1 | O29: =N29*(PI()/180) -> 0.01745329252 | P29: =SIN(O29)*H$24 -> 0.0005061197867 | Q29: =COS(O29)*H$24 -> 0.02899558316
N30: =N29+1 -> 2 | O30: =N30*(PI()/180) -> 0.03490658504 | P30: 0.001012085404 | Q30: 0.02898233398
A31: LEVELED ELEVATION | N31: =N30+1 -> 3 | O31: 0.05235987756 | P31: 0.001517742731 | Q31: 0.02896025651
A32: ='LEVEL RUN'!B5 -> U.S. Survey FT | C32: =IFERROR(VLOOKUP(B5,'LEVEL RUN'!A7:I59,9,FALSE),"N/A") -> 747.8934955 | D32: (Fill out Level Run Sheet or N/A if no leveled elevation is available) | N32: 4 | O32: 0.06981317008 | P32: 0.002022937739 | Q32: 0.02892935746
A33: MONUMENT HELD | C33: =IF('LEVEL RUN'!A7="","",'LEVEL RUN'!A7) -> CP13 | D33: (Type the monument name from which leveling originated) | N33: 5 | O33: 0.0872664626 | P33: 0.00252751654 | Q33: 0.02888964624
A34: LEVELED ELEVATION - GPS DERIVED ELEVATION = | E34: =IF(C32="N/A","N/A",C32-(F29*'LEVEL RUN'!F5)) -> 0.01562878788 | F34: ='LEVEL RUN'!D5 -> sft | N34: 6 | O34: 0.1047197551 | P34: 0.003031325435 | Q34: 0.02884113497
N35: 7 | O35: 0.1221730476 | P35: 0.003534210959 | Q35: 0.0287838384
A36: FINAL MONUMENT COORDINATES | N36: 8 | O36: 0.1396263402 | P36: 0.004036019928 | Q36: 0.02871777399
B37: MONUMENT COORDINATES | D37: NORTHING | E37: EASTING | F37: ELEVATION | G37: FEATURE CODE | N37: 9 | O37: 0.1570796327 | P37: 0.004536599486 | Q37: 0.02864296188
B38: =GPS_IMPORT!J6&" "&REPORT!C10 -> U.S. Survey FT South | D38: =IF(GPS_IMPORT!K2,($E$22*GPS_IMPORT!$L$6)*(1/REPORT!C14),$E$22*GPS_IMPORT!$L$6) -> 694072.7397 | E38: =IF(GPS_IMPORT!K2,($F$22*GPS_IMPORT!$L$6)*(1/REPORT!C14),$F$22*GPS_IMPORT!$L$6) -> 1857541.279 | F38: =IF($C$32="N/A",($G$22*GPS_IMPORT!$L$6),$C$32*'LEVEL RUN'!H5) -> 747.8934955 | G38: =VLOOKUP($B$5,GPS_IMPORT!$A$2:$G$2000,7,FALSE) -> CNPT | N38: 10 | O38: 0.1745329252 | P38: 0.005035797152 | Q38: 0.02855942484
B39: =GPS_IMPORT!J6&" "&REPORT!C11&" "&"County" -> U.S. Survey FT Franklin County | D39: =VLOOKUP($B$5,'MON TABLE'!$A$11:$I$35,6,FALSE) -> 548239.593 | E39: =VLOOKUP($B$5,'MON TABLE'!$A$11:$I$35,7,FALSE) -> 221412.836 | F39: =VLOOKUP($B$5,'MON TABLE'!$A$11:$I$35,8,FALSE) -> 747.893 | G39: =$G$38 -> CNPT | N39: 11 | O39: 0.1919862177 | P39: 0.005533460866 | Q39: 0.02846718832
N40: 12 | O40: 0.2094395102 | P40: 0.006029439034 | Q40: 0.02836628042
A41: ∆ North, ∆ East, and ∆ Ht. are the difference between the average northing, easting, and height for each observation. | I41: Mask Angle: | J41: 10° | N41: 13 | O41: 0.2268928028 | P41: 0.006523580576 | Q41: 0.02825673188
N42: 14 | O42: 0.2443460953 | P42: 0.007015734972 | Q42: 0.02813857606
N43: 15 | O43: 0.2617993878 | P43: 0.007505752308 | Q43: 0.02801184896
N44: 16 | O44: 0.2792526803 | P44: 0.007993483319 | Q44: 0.02787658918
N45: 17 | O45: 0.2967059728 | P45: 0.008478779437 | Q45: 0.02773283792
N46: 18 | O46: 0.3141592654 | P46: 0.008961492837 | Q46: 0.02758063897
N47: 19 | O47: 0.3316125579 | P47: 0.009441476479 | Q47: 0.02742003869
N48: 20 | O48: 0.3490658504 | P48: 0.009918584156 | Q48: 0.027251086
N49: 21 | O49: 0.3665191429 | P49: 0.01039267054 | Q49: 0.02707383237
N50: 22 | O50: 0.3839724354 | P50: 0.01086359121 | Q50: 0.02688833178
N51: 23 | O51: 0.401425728 | P51: 0.01133120273 | Q51: 0.02669464075
N52: 24 | O52: 0.4188790205 | P52: 0.01179536265 | Q52: 0.02649281827
N53: 25 | O53: 0.436332313 | P53: 0.01225592959 | Q53: 0.02628292582
N54: 26 | O54: 0.4537856055 | P54: 0.01271276326 | Q54: 0.02606502734
N55: 27 | O55: 0.471238898 | P55: 0.01316572449 | Q55: 0.0258391892
N56: 28 | O56: 0.4886921906 | P56: 0.01361467532 | Q56: 0.02560548019
N57: 29 | O57: 0.5061454831 | P57: 0.01405947899 | Q57: 0.02536397151
N58: 30 | O58: 0.5235987756 | P58: 0.0145 | Q58: 0.02511473671
N59: 31 | O59: 0.5410520681 | P59: 0.01493610417 | Q59: 0.02485785172
N60: 32 | O60: 0.5585053606 | P60: 0.01536765866 | Q60: 0.02459339479
N61: 33 | O61: 0.5759586532 | P61: 0.01579453202 | Q61: 0.02432144647
N62: 34 | O62: 0.5934119457 | P62: 0.0162165942 | Q62: 0.0240420896
N63: 35 | O63: 0.6108652382 | P63: 0.01663371665 | Q63: 0.02375540928
N64: 36 | O64: 0.6283185307 | P64: 0.01704577232 | Q64: 0.02346149284
N65: 37 | O65: 0.6457718232 | P65: 0.01745263567 | Q65: 0.02316042979
N66: 38 | O66: 0.6632251158 | P66: 0.01785418278 | Q66: 0.02285231185
N67: 39 | O67: 0.6806784083 | P67: 0.01825029134 | Q67: 0.02253723288
N68: 40 | O68: 0.6981317008 | P68: 0.01864084068 | Q68: 0.02221528885
N69: 41 | O69: 0.7155849933 | P69: 0.01902571184 | Q69: 0.02188657783
N70: 42 | O70: 0.7330382858 | P70: 0.01940478758 | Q70: 0.02155119994
N71: 43 | O71: 0.7504915784 | P71: 0.01977795244 | Q71: 0.02120925735
N72: 44 | O72: 0.7679448709 | P72: 0.02014509274 | Q72: 0.02086085421
N73: 45 | O73: 0.7853981634 | P73: 0.02050609665 | Q73: 0.02050609665
N74: 46 | O74: 0.8028514559 | P74: 0.02086085421 | Q74: 0.02014509274
N75: 47 | O75: 0.8203047484 | P75: 0.02120925735 | Q75: 0.01977795244
N76: 48 | O76: 0.837758041 | P76: 0.02155119994 | Q76: 0.01940478758
N77: 49 | O77: 0.8552113335 | P77: 0.02188657783 | Q77: 0.01902571184
N78: 50 | O78: 0.872664626 | P78: 0.02221528885 | Q78: 0.01864084068
N79: 51 | O79: 0.8901179185 | P79: 0.02253723288 | Q79: 0.01825029134
N80: 52 | O80: 0.907571211 | P80: 0.02285231185 | Q80: 0.01785418278
N81: 53 | O81: 0.9250245036 | P81: 0.02316042979 | Q81: 0.01745263567
N82: 54 | O82: 0.9424777961 | P82: 0.02346149284 | Q82: 0.01704577232
N83: 55 | O83: 0.9599310886 | P83: 0.02375540928 | Q83: 0.01663371665
N84: 56 | O84: 0.9773843811 | P84: 0.0240420896 | Q84: 0.0162165942
N85: 57 | O85: 0.9948376736 | P85: 0.02432144647 | Q85: 0.01579453202
N86: 58 | O86: 1.012290966 | P86: 0.02459339479 | Q86: 0.01536765866
N87: 59 | O87: 1.029744259 | P87: 0.02485785172 | Q87: 0.01493610417
N88: 60 | O88: 1.047197551 | P88: 0.02511473671 | Q88: 0.0145
N89: 61 | O89: 1.064650844 | P89: 0.02536397151 | Q89: 0.01405947899
N90: 62 | O90: 1.082104136 | P90: 0.02560548019 | Q90: 0.01361467532
N91: 63 | O91: 1.099557429 | P91: 0.0258391892 | Q91: 0.01316572449
N92: 64 | O92: 1.117010721 | P92: 0.02606502734 | Q92: 0.01271276326
N93: 65 | O93: 1.134464014 | P93: =SIN(O93)*H$24 -> 0.02628292582 | Q93: =COS(O93)*H$24 -> 0.01225592959
N94: 66 | O94: =N94*(PI()/180) -> 1.151917306 | P94: 0.02649281827 | Q94: 0.01179536265
N95: =N94+1 -> 67 | O95: 1.169370599 | P95: 0.02669464075 | Q95: 0.01133120273
N96: 68 | O96: 1.186823891 | P96: 0.02688833178 | Q96: 0.01086359121
N97: 69 | O97: 1.204277184 | P97: 0.02707383237 | Q97: 0.01039267054
N98: 70 | O98: 1.221730476 | P98: 0.027251086 | Q98: 0.009918584156
N99: 71 | O99: 1.239183769 | P99: 0.02742003869 | Q99: 0.009441476479
N100: 72 | O100: 1.256637061 | P100: 0.02758063897 | Q100: 0.008961492837
N101: 73 | O101: 1.274090354 | P101: 0.02773283792 | Q101: 0.008478779437
N102: 74 | O102: 1.291543646 | P102: 0.02787658918 | Q102: 0.007993483319
N103: 75 | O103: 1.308996939 | P103: 0.02801184896 | Q103: 0.007505752308
N104: 76 | O104: 1.326450232 | P104: 0.02813857606 | Q104: 0.007015734972
N105: 77 | O105: 1.343903524 | P105: 0.02825673188 | Q105: 0.006523580576
N106: 78 | O106: 1.361356817 | P106: 0.02836628042 | Q106: 0.006029439034
N107: 79 | O107: 1.378810109 | P107: 0.02846718832 | Q107: 0.005533460866
N108: 80 | O108: 1.396263402 | P108: 0.02855942484 | Q108: 0.005035797152
N109: 81 | O109: 1.413716694 | P109: 0.02864296188 | Q109: 0.004536599486
N110: 82 | O110: 1.431169987 | P110: 0.02871777399 | Q110: 0.004036019928
N111: 83 | O111: 1.448623279 | P111: 0.0287838384 | Q111: 0.003534210959
N112: 84 | O112: 1.466076572 | P112: 0.02884113497 | Q112: 0.003031325435
N113: 85 | O113: 1.483529864 | P113: 0.02888964624 | Q113: 0.00252751654
N114: 86 | O114: 1.500983157 | P114: 0.02892935746 | Q114: 0.002022937739
N115: 87 | O115: 1.518436449 | P115: 0.02896025651 | Q115: 0.001517742731
N116: 88 | O116: 1.535889742 | P116: 0.02898233398 | Q116: 0.001012085404
N117: 89 | O117: 1.553343034 | P117: 0.02899558316 | Q117: 0.0005061197867
N118: 90 | O118: 1.570796327 | P118: 0.029 | Q118: 1.77646526e-18
N119: 91 | O119: 1.588249619 | P119: 0.02899558316 | Q119: -0.0005061197867
N120: 92 | O120: 1.605702912 | P120: 0.02898233398 | Q120: -0.001012085404
N121: 93 | O121: 1.623156204 | P121: 0.02896025651 | Q121: -0.001517742731
N122: 94 | O122: 1.640609497 | P122: 0.02892935746 | Q122: -0.002022937739
N123: 95 | O123: 1.658062789 | P123: 0.02888964624 | Q123: -0.00252751654
N124: 96 | O124: 1.675516082 | P124: 0.02884113497 | Q124: -0.003031325435
N125: 97 | O125: 1.692969374 | P125: 0.0287838384 | Q125: -0.003534210959
N126: 98 | O126: 1.710422667 | P126: 0.02871777399 | Q126: -0.004036019928
N127: 99 | O127: 1.727875959 | P127: 0.02864296188 | Q127: -0.004536599486
N128: 100 | O128: 1.745329252 | P128: 0.02855942484 | Q128: -0.005035797152
N129: 101 | O129: 1.762782545 | P129: 0.02846718832 | Q129: -0.005533460866
N130: 102 | O130: 1.780235837 | P130: 0.02836628042 | Q130: -0.006029439034
N131: 103 | O131: 1.79768913 | P131: 0.02825673188 | Q131: -0.006523580576
N132: 104 | O132: 1.815142422 | P132: 0.02813857606 | Q132: -0.007015734972
N133: 105 | O133: 1.832595715 | P133: 0.02801184896 | Q133: -0.007505752308
N134: 106 | O134: 1.850049007 | P134: 0.02787658918 | Q134: -0.007993483319
N135: 107 | O135: 1.8675023 | P135: 0.02773283792 | Q135: -0.008478779437
N136: 108 | O136: 1.884955592 | P136: 0.02758063897 | Q136: -0.008961492837
N137: 109 | O137: 1.902408885 | P137: 0.02742003869 | Q137: -0.009441476479
N138: 110 | O138: 1.919862177 | P138: 0.027251086 | Q138: -0.009918584156
N139: 111 | O139: 1.93731547 | P139: 0.02707383237 | Q139: -0.01039267054
N140: 112 | O140: 1.954768762 | P140: 0.02688833178 | Q140: -0.01086359121
N141: 113 | O141: 1.972222055 | P141: 0.02669464075 | Q141: -0.01133120273
N142: 114 | O142: 1.989675347 | P142: 0.02649281827 | Q142: -0.01179536265
N143: 115 | O143: 2.00712864 | P143: 0.02628292582 | Q143: -0.01225592959
N144: 116 | O144: 2.024581932 | P144: 0.02606502734 | Q144: -0.01271276326
N145: 117 | O145: 2.042035225 | P145: 0.0258391892 | Q145: -0.01316572449
N146: 118 | O146: 2.059488517 | P146: 0.02560548019 | Q146: -0.01361467532
N147: 119 | O147: 2.07694181 | P147: 0.02536397151 | Q147: -0.01405947899
N148: 120 | O148: 2.094395102 | P148: 0.02511473671 | Q148: -0.0145
N149: 121 | O149: 2.111848395 | P149: 0.02485785172 | Q149: -0.01493610417
N150: 122 | O150: 2.129301687 | P150: 0.02459339479 | Q150: -0.01536765866
N151: 123 | O151: 2.14675498 | P151: 0.02432144647 | Q151: -0.01579453202
N152: 124 | O152: 2.164208272 | P152: 0.0240420896 | Q152: -0.0162165942
N153: 125 | O153: 2.181661565 | P153: 0.02375540928 | Q153: -0.01663371665
N154: 126 | O154: 2.199114858 | P154: 0.02346149284 | Q154: -0.01704577232
N155: 127 | O155: 2.21656815 | P155: 0.02316042979 | Q155: -0.01745263567
N156: 128 | O156: 2.234021443 | P156: 0.02285231185 | Q156: -0.01785418278
N157: 129 | O157: 2.251474735 | P157: =SIN(O157)*H$24 -> 0.02253723288 | Q157: =COS(O157)*H$24 -> -0.01825029134
N158: 130 | O158: =N158*(PI()/180) -> 2.268928028 | P158: 0.02221528885 | Q158: -0.01864084068
N159: =N158+1 -> 131 | O159: 2.28638132 | P159: 0.02188657783 | Q159: -0.01902571184
N160: 132 | O160: 2.303834613 | P160: 0.02155119994 | Q160: -0.01940478758
N161: 133 | O161: 2.321287905 | P161: 0.02120925735 | Q161: -0.01977795244
N162: 134 | O162: 2.338741198 | P162: 0.02086085421 | Q162: -0.02014509274
N163: 135 | O163: 2.35619449 | P163: 0.02050609665 | Q163: -0.02050609665
N164: 136 | O164: 2.373647783 | P164: 0.02014509274 | Q164: -0.02086085421
N165: 137 | O165: 2.391101075 | P165: 0.01977795244 | Q165: -0.02120925735
N166: 138 | O166: 2.408554368 | P166: 0.01940478758 | Q166: -0.02155119994
N167: 139 | O167: 2.42600766 | P167: 0.01902571184 | Q167: -0.02188657783
N168: 140 | O168: 2.443460953 | P168: 0.01864084068 | Q168: -0.02221528885
N169: 141 | O169: 2.460914245 | P169: 0.01825029134 | Q169: -0.02253723288
N170: 142 | O170: 2.478367538 | P170: 0.01785418278 | Q170: -0.02285231185
N171: 143 | O171: 2.49582083 | P171: 0.01745263567 | Q171: -0.02316042979
N172: 144 | O172: 2.513274123 | P172: 0.01704577232 | Q172: -0.02346149284
N173: 145 | O173: 2.530727415 | P173: 0.01663371665 | Q173: -0.02375540928
N174: 146 | O174: 2.548180708 | P174: 0.0162165942 | Q174: -0.0240420896
N175: 147 | O175: 2.565634 | P175: 0.01579453202 | Q175: -0.02432144647
N176: 148 | O176: 2.583087293 | P176: 0.01536765866 | Q176: -0.02459339479
N177: 149 | O177: 2.600540585 | P177: 0.01493610417 | Q177: -0.02485785172
N178: 150 | O178: 2.617993878 | P178: 0.0145 | Q178: -0.02511473671
N179: 151 | O179: 2.635447171 | P179: 0.01405947899 | Q179: -0.02536397151
N180: 152 | O180: 2.652900463 | P180: 0.01361467532 | Q180: -0.02560548019
N181: 153 | O181: 2.670353756 | P181: 0.01316572449 | Q181: -0.0258391892
N182: 154 | O182: 2.687807048 | P182: 0.01271276326 | Q182: -0.02606502734
N183: 155 | O183: 2.705260341 | P183: 0.01225592959 | Q183: -0.02628292582
N184: 156 | O184: 2.722713633 | P184: 0.01179536265 | Q184: -0.02649281827
N185: 157 | O185: 2.740166926 | P185: 0.01133120273 | Q185: -0.02669464075
N186: 158 | O186: 2.757620218 | P186: 0.01086359121 | Q186: -0.02688833178
N187: 159 | O187: 2.775073511 | P187: 0.01039267054 | Q187: -0.02707383237
N188: 160 | O188: 2.792526803 | P188: 0.009918584156 | Q188: -0.027251086
N189: 161 | O189: 2.809980096 | P189: 0.009441476479 | Q189: -0.02742003869
N190: 162 | O190: 2.827433388 | P190: 0.008961492837 | Q190: -0.02758063897
N191: 163 | O191: 2.844886681 | P191: 0.008478779437 | Q191: -0.02773283792
N192: 164 | O192: 2.862339973 | P192: 0.007993483319 | Q192: -0.02787658918
N193: 165 | O193: 2.879793266 | P193: 0.007505752308 | Q193: -0.02801184896
N194: 166 | O194: 2.897246558 | P194: 0.007015734972 | Q194: -0.02813857606
N195: 167 | O195: 2.914699851 | P195: 0.006523580576 | Q195: -0.02825673188
N196: 168 | O196: 2.932153143 | P196: 0.006029439034 | Q196: -0.02836628042
N197: 169 | O197: 2.949606436 | P197: 0.005533460866 | Q197: -0.02846718832
N198: 170 | O198: 2.967059728 | P198: 0.005035797152 | Q198: -0.02855942484
N199: 171 | O199: 2.984513021 | P199: 0.004536599486 | Q199: -0.02864296188
N200: 172 | O200: 3.001966313 | P200: 0.004036019928 | Q200: -0.02871777399
N201: 173 | O201: 3.019419606 | P201: 0.003534210959 | Q201: -0.0287838384
N202: 174 | O202: 3.036872898 | P202: 0.003031325435 | Q202: -0.02884113497
... 186 more rows

Sheet 105
A1: VRS GNSS Project Control Monument Coordinate Analysis
A3: Project: | B3: =REPORT!B2 -> FRA-33-24.76 | D3: GPS Antenna: | E3: =REPORT!A42 -> Trimble R12i | I3: Report Date: | J3: =REPORT!C49 -> 2024-06-25
A4: PID: | B4: =REPORT!E2 -> 119387 | D4: VRS Network: | E4: ODOT VRS | I4: Prepared By: | J4: =REPORT!C48 -> Mark Humphrey
A5: Point ID: | B5: 105 | C5: No. of Sessions: | D5: =SUM(IF(GPS_IMPORT!A2:A1000=$B$5,1,0)) -> 15 | E5: =IF(GPS_IMPORT!K2,"(LDP)","(STATE PLANE)") -> (STATE PLANE) | I5: Checked By: | J5: =REPORT!C59 -> Mike Wilson
A6: SESSION # | B6: Point | C6: Observation Date | D6: Start Time | E6: ="Northing("&GPS_IMPORT!K4&")" -> Northing(sft) | F6: ="Easting("&GPS_IMPORT!K4&")" -> Easting(sft) | G6: ="Height("&GPS_IMPORT!K4&")" -> Height(sft) | H6: ="∆ Northing("&GPS_IMPORT!K4&")" -> ∆ Northing(sft) | I6: ="∆ Easting("&GPS_IMPORT!K4&")" -> ∆ Easting(sft) | J6: ="∆ Height("&GPS_IMPORT!K4&")" -> ∆ Height(sft) | K6: Include in Solution?
A7: 1 | B7: =IF(ROWS(GPS_IMPORT!$1:1)<=SUM(IF(GPS_IMPORT!$A$2:$A$10000=$B$5,1,0)),INDEX(GPS_IMPORT!$2:$10000,MATCH($B$5,(GPS_IMPORT!$A$2:$A$10000),0)+ROWS($1:1)-1,COLUMN()-1),0) -> 105 | C7: =IF(ROWS(GPS_IMPORT!$1:1)<=SUM(IF(GPS_IMPORT!$A$2:$A$10000=$B$5,1,0)),INDEX(GPS_IMPORT!$2:$10000,MATCH($B$5,(GPS_IMPORT!$A$2:$A$10000),0)+ROWS($1:1)-1,COLUMN()-1),0) -> 45408 | D7: =IF(ROWS(GPS_IMPORT!$1:1)<=SUM(IF(GPS_IMPORT!$A$2:$A$10000=$B$5,1,0)),INDEX(GPS_IMPORT!$2:$10000,MATCH($B$5,(GPS_IMPORT!$A$2:$A$10000),0)+ROWS($1:1)-1,COLUMN()-1),0) -> 11:14:31 | E7: =IF(ROWS(GPS_IMPORT!$1:1)<=SUM(IF(GPS_IMPORT!$A$2:$A$10000=$B$5,1,0)),INDEX(GPS_IMPORT!$2:$10000,MATCH($B$5,(GPS_IMPORT!$A$2:$A$10000),0)+ROWS($1:1)-1,COLUMN()-1),0) -> 692335.144 | F7: =IF(ROWS(GPS_IMPORT!$1:1)<=SUM(IF(GPS_IMPORT!$A$2:$A$10000=$B$5,1,0)),INDEX(GPS_IMPORT!$2:$10000,MATCH($B$5,(GPS_IMPORT!$A$2:$A$10000),0)+ROWS($1:1)-1,COLUMN()-1),0) -> 1856208.26 | G7: =IF(ROWS(GPS_IMPORT!$1:1)<=SUM(IF(GPS_IMPORT!$A$2:$A$10000=$B$5,1,0)),INDEX(GPS_IMPORT!$2:$10000,MATCH($B$5,(GPS_IMPORT!$A$2:$A$10000),0)+ROWS($1:1)-1,COLUMN()-1),0) -> 756.054 | H7: =IF(K7=TRUE,IF(E7>0,E$22-E7,0),0) -> 0.01546666666 | I7: =IF(K7=TRUE,IF(F7>0,F$22-F7,0),0) -> 0.0007333331741 | J7: =IF(K7=TRUE,IF(G7>0,G$22-G7,0),0) -> -0.009666666667 | K7: TRUE | L7: =IF(OR(ABS(H7)>$H$24,ABS(I7)>$H$24,ABS(SQRT((H7^2)+(I7^2)))>$H$24),IF(K7=TRUE,IF(E7>0,E$22-E7,0),0),0) -> 0 | M7: =IF(OR(ABS(H7)>$H$24,ABS(I7)>$H$24,ABS(SQRT((H7^2)+(I7^2)))>$H$24),IF(K7=TRUE,IF(E7>0,F$22-F7,0),0),0) -> 0
A8: 2 | B8: =IF(ROWS(GPS_IMPORT!$1:2)<=SUM(IF(GPS_IMPORT!$A$2:$A$10000=$B$5,1,0)),INDEX(GPS_IMPORT!$2:$10000,MATCH($B$5,(GPS_IMPORT!$A$2:$A$10000),0)+ROWS($1:2)-1,COLUMN()-1),0) -> 105 | C8: =IF(ROWS(GPS_IMPORT!$1:2)<=SUM(IF(GPS_IMPORT!$A$2:$A$10000=$B$5,1,0)),INDEX(GPS_IMPORT!$2:$10000,MATCH($B$5,(GPS_IMPORT!$A$2:$A$10000),0)+ROWS($1:2)-1,COLUMN()-1),0) -> 45408 | D8: =IF(ROWS(GPS_IMPORT!$1:2)<=SUM(IF(GPS_IMPORT!$A$2:$A$10000=$B$5,1,0)),INDEX(GPS_IMPORT!$2:$10000,MATCH($B$5,(GPS_IMPORT!$A$2:$A$10000),0)+ROWS($1:2)-1,COLUMN()-1),0) -> 11:15:14 | E8: =IF(ROWS(GPS_IMPORT!$1:2)<=SUM(IF(GPS_IMPORT!$A$2:$A$10000=$B$5,1,0)),INDEX(GPS_IMPORT!$2:$10000,MATCH($B$5,(GPS_IMPORT!$A$2:$A$10000),0)+ROWS($1:2)-1,COLUMN()-1),0) -> 692335.143 | F8: =IF(ROWS(GPS_IMPORT!$1:2)<=SUM(IF(GPS_IMPORT!$A$2:$A$10000=$B$5,1,0)),INDEX(GPS_IMPORT!$2:$10000,MATCH($B$5,(GPS_IMPORT!$A$2:$A$10000),0)+ROWS($1:2)-1,COLUMN()-1),0) -> 1856208.26 | G8: =IF(ROWS(GPS_IMPORT!$1:2)<=SUM(IF(GPS_IMPORT!$A$2:$A$10000=$B$5,1,0)),INDEX(GPS_IMPORT!$2:$10000,MATCH($B$5,(GPS_IMPORT!$A$2:$A$10000),0)+ROWS($1:2)-1,COLUMN()-1),0) -> 756.038 | H8: =IF(K8=TRUE,IF(E8>0,E$22-E8,0),0) -> 0.0164666666 | I8: =IF(K8=TRUE,IF(F8>0,F$22-F8,0),0) -> 0.0007333331741 | J8: =IF(K8=TRUE,IF(G8>0,G$22-G8,0),0) -> 0.006333333333 | K8: TRUE | L8: 0 | M8: 0
A9: 3 | B9: =IF(ROWS(GPS_IMPORT!$1:3)<=SUM(IF(GPS_IMPORT!$A$2:$A$10000=$B$5,1,0)),INDEX(GPS_IMPORT!$2:$10000,MATCH($B$5,(GPS_IMPORT!$A$2:$A$10000),0)+ROWS($1:3)-1,COLUMN()-1),0) -> 105 | C9: =IF(ROWS(GPS_IMPORT!$1:3)<=SUM(IF(GPS_IMPORT!$A$2:$A$10000=$B$5,1,0)),INDEX(GPS_IMPORT!$2:$10000,MATCH($B$5,(GPS_IMPORT!$A$2:$A$10000),0)+ROWS($1:3)-1,COLUMN()-1),0) -> 45408 | D9: =IF(ROWS(GPS_IMPORT!$1:3)<=SUM(IF(GPS_IMPORT!$A$2:$A$10000=$B$5,1,0)),INDEX(GPS_IMPORT!$2:$10000,MATCH($B$5,(GPS_IMPORT!$A$2:$A$10000),0)+ROWS($1:3)-1,COLUMN()-1),0) -> 11:15:46 | E9: =IF(ROWS(GPS_IMPORT!$1:3)<=SUM(IF(GPS_IMPORT!$A$2:$A$10000=$B$5,1,0)),INDEX(GPS_IMPORT!$2:$10000,MATCH($B$5,(GPS_IMPORT!$A$2:$A$10000),0)+ROWS($1:3)-1,COLUMN()-1),0) -> 692335.152 | F9: =IF(ROWS(GPS_IMPORT!$1:3)<=SUM(IF(GPS_IMPORT!$A$2:$A$10000=$B$5,1,0)),INDEX(GPS_IMPORT!$2:$10000,MATCH($B$5,(GPS_IMPORT!$A$2:$A$10000),0)+ROWS($1:3)-1,COLUMN()-1),0) -> 1856208.248 | G9: =IF(ROWS(GPS_IMPORT!$1:3)<=SUM(IF(GPS_IMPORT!$A$2:$A$10000=$B$5,1,0)),INDEX(GPS_IMPORT!$2:$10000,MATCH($B$5,(GPS_IMPORT!$A$2:$A$10000),0)+ROWS($1:3)-1,COLUMN()-1),0) -> 756.012 | H9: 0.007466666633 | I9: 0.01273333328 | J9: 0.03233333333 | K9: TRUE | L9: 0 | M9: 0
A10: 4 | B10: =IF(ROWS(GPS_IMPORT!$1:4)<=SUM(IF(GPS_IMPORT!$A$2:$A$10000=$B$5,1,0)),INDEX(GPS_IMPORT!$2:$10000,MATCH($B$5,(GPS_IMPORT!$A$2:$A$10000),0)+ROWS($1:4)-1,COLUMN()-1),0) -> 105 | C10: =IF(ROWS(GPS_IMPORT!$1:4)<=SUM(IF(GPS_IMPORT!$A$2:$A$10000=$B$5,1,0)),INDEX(GPS_IMPORT!$2:$10000,MATCH($B$5,(GPS_IMPORT!$A$2:$A$10000),0)+ROWS($1:4)-1,COLUMN()-1),0) -> 45408 | D10: =IF(ROWS(GPS_IMPORT!$1:4)<=SUM(IF(GPS_IMPORT!$A$2:$A$10000=$B$5,1,0)),INDEX(GPS_IMPORT!$2:$10000,MATCH($B$5,(GPS_IMPORT!$A$2:$A$10000),0)+ROWS($1:4)-1,COLUMN()-1),0) -> 11:16:28 | E10: =IF(ROWS(GPS_IMPORT!$1:4)<=SUM(IF(GPS_IMPORT!$A$2:$A$10000=$B$5,1,0)),INDEX(GPS_IMPORT!$2:$10000,MATCH($B$5,(GPS_IMPORT!$A$2:$A$10000),0)+ROWS($1:4)-1,COLUMN()-1),0) -> 692335.166 | F10: =IF(ROWS(GPS_IMPORT!$1:4)<=SUM(IF(GPS_IMPORT!$A$2:$A$10000=$B$5,1,0)),INDEX(GPS_IMPORT!$2:$10000,MATCH($B$5,(GPS_IMPORT!$A$2:$A$10000),0)+ROWS($1:4)-1,COLUMN()-1),0) -> 1856208.271 | G10: =IF(ROWS(GPS_IMPORT!$1:4)<=SUM(IF(GPS_IMPORT!$A$2:$A$10000=$B$5,1,0)),INDEX(GPS_IMPORT!$2:$10000,MATCH($B$5,(GPS_IMPORT!$A$2:$A$10000),0)+ROWS($1:4)-1,COLUMN()-1),0) -> 756 | H10: -0.006533333333 | I10: -0.01026666677 | J10: 0.04433333333 | K10: TRUE | L10: 0 | M10: 0
A11: 5 | B11: =IF(ROWS(GPS_IMPORT!$1:5)<=SUM(IF(GPS_IMPORT!$A$2:$A$10000=$B$5,1,0)),INDEX(GPS_IMPORT!$2:$10000,MATCH($B$5,(GPS_IMPORT!$A$2:$A$10000),0)+ROWS($1:5)-1,COLUMN()-1),0) -> 105 | C11: =IF(ROWS(GPS_IMPORT!$1:5)<=SUM(IF(GPS_IMPORT!$A$2:$A$10000=$B$5,1,0)),INDEX(GPS_IMPORT!$2:$10000,MATCH($B$5,(GPS_IMPORT!$A$2:$A$10000),0)+ROWS($1:5)-1,COLUMN()-1),0) -> 45408 | D11: =IF(ROWS(GPS_IMPORT!$1:5)<=SUM(IF(GPS_IMPORT!$A$2:$A$10000=$B$5,1,0)),INDEX(GPS_IMPORT!$2:$10000,MATCH($B$5,(GPS_IMPORT!$A$2:$A$10000),0)+ROWS($1:5)-1,COLUMN()-1),0) -> 11:17:45 | E11: =IF(ROWS(GPS_IMPORT!$1:5)<=SUM(IF(GPS_IMPORT!$A$2:$A$10000=$B$5,1,0)),INDEX(GPS_IMPORT!$2:$10000,MATCH($B$5,(GPS_IMPORT!$A$2:$A$10000),0)+ROWS($1:5)-1,COLUMN()-1),0) -> 692335.173 | F11: =IF(ROWS(GPS_IMPORT!$1:5)<=SUM(IF(GPS_IMPORT!$A$2:$A$10000=$B$5,1,0)),INDEX(GPS_IMPORT!$2:$10000,MATCH($B$5,(GPS_IMPORT!$A$2:$A$10000),0)+ROWS($1:5)-1,COLUMN()-1),0) -> 1856208.281 | G11: =IF(ROWS(GPS_IMPORT!$1:5)<=SUM(IF(GPS_IMPORT!$A$2:$A$10000=$B$5,1,0)),INDEX(GPS_IMPORT!$2:$10000,MATCH($B$5,(GPS_IMPORT!$A$2:$A$10000),0)+ROWS($1:5)-1,COLUMN()-1),0) -> 756.008 | H11: -0.01353333332 | I11: -0.02026666678 | J11: 0.03633333333 | K11: TRUE | L11: 0 | M11: 0
A12: 6 | B12: =IF(ROWS(GPS_IMPORT!$1:6)<=SUM(IF(GPS_IMPORT!$A$2:$A$10000=$B$5,1,0)),INDEX(GPS_IMPORT!$2:$10000,MATCH($B$5,(GPS_IMPORT!$A$2:$A$10000),0)+ROWS($1:6)-1,COLUMN()-1),0) -> 105 | C12: =IF(ROWS(GPS_IMPORT!$1:6)<=SUM(IF(GPS_IMPORT!$A$2:$A$10000=$B$5,1,0)),INDEX(GPS_IMPORT!$2:$10000,MATCH($B$5,(GPS_IMPORT!$A$2:$A$10000),0)+ROWS($1:6)-1,COLUMN()-1),0) -> 45408 | D12: =IF(ROWS(GPS_IMPORT!$1:6)<=SUM(IF(GPS_IMPORT!$A$2:$A$10000=$B$5,1,0)),INDEX(GPS_IMPORT!$2:$10000,MATCH($B$5,(GPS_IMPORT!$A$2:$A$10000),0)+ROWS($1:6)-1,COLUMN()-1),0) -> 11:18:19 | E12: =IF(ROWS(GPS_IMPORT!$1:6)<=SUM(IF(GPS_IMPORT!$A$2:$A$10000=$B$5,1,0)),INDEX(GPS_IMPORT!$2:$10000,MATCH($B$5,(GPS_IMPORT!$A$2:$A$10000),0)+ROWS($1:6)-1,COLUMN()-1),0) -> 692335.152 | F12: =IF(ROWS(GPS_IMPORT!$1:6)<=SUM(IF(GPS_IMPORT!$A$2:$A$10000=$B$5,1,0)),INDEX(GPS_IMPORT!$2:$10000,MATCH($B$5,(GPS_IMPORT!$A$2:$A$10000),0)+ROWS($1:6)-1,COLUMN()-1),0) -> 1856208.279 | G12: =IF(ROWS(GPS_IMPORT!$1:6)<=SUM(IF(GPS_IMPORT!$A$2:$A$10000=$B$5,1,0)),INDEX(GPS_IMPORT!$2:$10000,MATCH($B$5,(GPS_IMPORT!$A$2:$A$10000),0)+ROWS($1:6)-1,COLUMN()-1),0) -> 756.036 | H12: 0.007466666633 | I12: -0.01826666691 | J12: 0.008333333333 | K12: TRUE | L12: 0 | M12: 0
A13: 7 | B13: =IF(ROWS(GPS_IMPORT!$1:7)<=SUM(IF(GPS_IMPORT!$A$2:$A$10000=$B$5,1,0)),INDEX(GPS_IMPORT!$2:$10000,MATCH($B$5,(GPS_IMPORT!$A$2:$A$10000),0)+ROWS($1:7)-1,COLUMN()-1),0) -> 105 | C13: =IF(ROWS(GPS_IMPORT!$1:7)<=SUM(IF(GPS_IMPORT!$A$2:$A$10000=$B$5,1,0)),INDEX(GPS_IMPORT!$2:$10000,MATCH($B$5,(GPS_IMPORT!$A$2:$A$10000),0)+ROWS($1:7)-1,COLUMN()-1),0) -> 45408 | D13: =IF(ROWS(GPS_IMPORT!$1:7)<=SUM(IF(GPS_IMPORT!$A$2:$A$10000=$B$5,1,0)),INDEX(GPS_IMPORT!$2:$10000,MATCH($B$5,(GPS_IMPORT!$A$2:$A$10000),0)+ROWS($1:7)-1,COLUMN()-1),0) -> 11:19:16 | E13: =IF(ROWS(GPS_IMPORT!$1:7)<=SUM(IF(GPS_IMPORT!$A$2:$A$10000=$B$5,1,0)),INDEX(GPS_IMPORT!$2:$10000,MATCH($B$5,(GPS_IMPORT!$A$2:$A$10000),0)+ROWS($1:7)-1,COLUMN()-1),0) -> 692335.156 | F13: =IF(ROWS(GPS_IMPORT!$1:7)<=SUM(IF(GPS_IMPORT!$A$2:$A$10000=$B$5,1,0)),INDEX(GPS_IMPORT!$2:$10000,MATCH($B$5,(GPS_IMPORT!$A$2:$A$10000),0)+ROWS($1:7)-1,COLUMN()-1),0) -> 1856208.252 | G13: =IF(ROWS(GPS_IMPORT!$1:7)<=SUM(IF(GPS_IMPORT!$A$2:$A$10000=$B$5,1,0)),INDEX(GPS_IMPORT!$2:$10000,MATCH($B$5,(GPS_IMPORT!$A$2:$A$10000),0)+ROWS($1:7)-1,COLUMN()-1),0) -> 756.064 | H13: 0.003466666676 | I13: 0.008733333088 | J13: -0.01966666667 | K13: TRUE | L13: 0 | M13: 0
A14: 8 | B14: =IF(ROWS(GPS_IMPORT!$1:8)<=SUM(IF(GPS_IMPORT!$A$2:$A$10000=$B$5,1,0)),INDEX(GPS_IMPORT!$2:$10000,MATCH($B$5,(GPS_IMPORT!$A$2:$A$10000),0)+ROWS($1:8)-1,COLUMN()-1),0) -> 105 | C14: =IF(ROWS(GPS_IMPORT!$1:8)<=SUM(IF(GPS_IMPORT!$A$2:$A$10000=$B$5,1,0)),INDEX(GPS_IMPORT!$2:$10000,MATCH($B$5,(GPS_IMPORT!$A$2:$A$10000),0)+ROWS($1:8)-1,COLUMN()-1),0) -> 45408 | D14: =IF(ROWS(GPS_IMPORT!$1:8)<=SUM(IF(GPS_IMPORT!$A$2:$A$10000=$B$5,1,0)),INDEX(GPS_IMPORT!$2:$10000,MATCH($B$5,(GPS_IMPORT!$A$2:$A$10000),0)+ROWS($1:8)-1,COLUMN()-1),0) -> 11:19:50 | E14: =IF(ROWS(GPS_IMPORT!$1:8)<=SUM(IF(GPS_IMPORT!$A$2:$A$10000=$B$5,1,0)),INDEX(GPS_IMPORT!$2:$10000,MATCH($B$5,(GPS_IMPORT!$A$2:$A$10000),0)+ROWS($1:8)-1,COLUMN()-1),0) -> 692335.174 | F14: =IF(ROWS(GPS_IMPORT!$1:8)<=SUM(IF(GPS_IMPORT!$A$2:$A$10000=$B$5,1,0)),INDEX(GPS_IMPORT!$2:$10000,MATCH($B$5,(GPS_IMPORT!$A$2:$A$10000),0)+ROWS($1:8)-1,COLUMN()-1),0) -> 1856208.255 | G14: =IF(ROWS(GPS_IMPORT!$1:8)<=SUM(IF(GPS_IMPORT!$A$2:$A$10000=$B$5,1,0)),INDEX(GPS_IMPORT!$2:$10000,MATCH($B$5,(GPS_IMPORT!$A$2:$A$10000),0)+ROWS($1:8)-1,COLUMN()-1),0) -> 756.068 | H14: -0.01453333336 | I14: 0.005733333295 | J14: -0.02366666667 | K14: TRUE | L14: 0 | M14: 0
A15: 9 | B15: =IF(ROWS(GPS_IMPORT!$1:9)<=SUM(IF(GPS_IMPORT!$A$2:$A$10000=$B$5,1,0)),INDEX(GPS_IMPORT!$2:$10000,MATCH($B$5,(GPS_IMPORT!$A$2:$A$10000),0)+ROWS($1:9)-1,COLUMN()-1),0) -> 105 | C15: =IF(ROWS(GPS_IMPORT!$1:9)<=SUM(IF(GPS_IMPORT!$A$2:$A$10000=$B$5,1,0)),INDEX(GPS_IMPORT!$2:$10000,MATCH($B$5,(GPS_IMPORT!$A$2:$A$10000),0)+ROWS($1:9)-1,COLUMN()-1),0) -> 45408 | D15: =IF(ROWS(GPS_IMPORT!$1:9)<=SUM(IF(GPS_IMPORT!$A$2:$A$10000=$B$5,1,0)),INDEX(GPS_IMPORT!$2:$10000,MATCH($B$5,(GPS_IMPORT!$A$2:$A$10000),0)+ROWS($1:9)-1,COLUMN()-1),0) -> 11:21:37 | E15: =IF(ROWS(GPS_IMPORT!$1:9)<=SUM(IF(GPS_IMPORT!$A$2:$A$10000=$B$5,1,0)),INDEX(GPS_IMPORT!$2:$10000,MATCH($B$5,(GPS_IMPORT!$A$2:$A$10000),0)+ROWS($1:9)-1,COLUMN()-1),0) -> 692335.163 | F15: =IF(ROWS(GPS_IMPORT!$1:9)<=SUM(IF(GPS_IMPORT!$A$2:$A$10000=$B$5,1,0)),INDEX(GPS_IMPORT!$2:$10000,MATCH($B$5,(GPS_IMPORT!$A$2:$A$10000),0)+ROWS($1:9)-1,COLUMN()-1),0) -> 1856208.267 | G15: =IF(ROWS(GPS_IMPORT!$1:9)<=SUM(IF(GPS_IMPORT!$A$2:$A$10000=$B$5,1,0)),INDEX(GPS_IMPORT!$2:$10000,MATCH($B$5,(GPS_IMPORT!$A$2:$A$10000),0)+ROWS($1:9)-1,COLUMN()-1),0) -> 756.106 | H15: -0.003533333307 | I15: -0.006266666809 | J15: -0.06166666667 | K15: TRUE | L15: 0 | M15: 0
A16: 10 | B16: =IF(ROWS(GPS_IMPORT!$1:10)<=SUM(IF(GPS_IMPORT!$A$2:$A$10000=$B$5,1,0)),INDEX(GPS_IMPORT!$2:$10000,MATCH($B$5,(GPS_IMPORT!$A$2:$A$10000),0)+ROWS($1:10)-1,COLUMN()-1),0) -> 105 | C16: =IF(ROWS(GPS_IMPORT!$1:10)<=SUM(IF(GPS_IMPORT!$A$2:$A$10000=$B$5,1,0)),INDEX(GPS_IMPORT!$2:$10000,MATCH($B$5,(GPS_IMPORT!$A$2:$A$10000),0)+ROWS($1:10)-1,COLUMN()-1),0) -> 45408 | D16: =IF(ROWS(GPS_IMPORT!$1:10)<=SUM(IF(GPS_IMPORT!$A$2:$A$10000=$B$5,1,0)),INDEX(GPS_IMPORT!$2:$10000,MATCH($B$5,(GPS_IMPORT!$A$2:$A$10000),0)+ROWS($1:10)-1,COLUMN()-1),0) -> 11:22:21 | E16: =IF(ROWS(GPS_IMPORT!$1:10)<=SUM(IF(GPS_IMPORT!$A$2:$A$10000=$B$5,1,0)),INDEX(GPS_IMPORT!$2:$10000,MATCH($B$5,(GPS_IMPORT!$A$2:$A$10000),0)+ROWS($1:10)-1,COLUMN()-1),0) -> 692335.145 | F16: =IF(ROWS(GPS_IMPORT!$1:10)<=SUM(IF(GPS_IMPORT!$A$2:$A$10000=$B$5,1,0)),INDEX(GPS_IMPORT!$2:$10000,MATCH($B$5,(GPS_IMPORT!$A$2:$A$10000),0)+ROWS($1:10)-1,COLUMN()-1),0) -> 1856208.272 | G16: =IF(ROWS(GPS_IMPORT!$1:10)<=SUM(IF(GPS_IMPORT!$A$2:$A$10000=$B$5,1,0)),INDEX(GPS_IMPORT!$2:$10000,MATCH($B$5,(GPS_IMPORT!$A$2:$A$10000),0)+ROWS($1:10)-1,COLUMN()-1),0) -> 756.105 | H16: 0.01446666662 | I16: -0.01126666693 | J16: -0.06066666667 | K16: TRUE | L16: 0 | M16: 0
A17: 11 | B17: =IF(ROWS(GPS_IMPORT!$1:11)<=SUM(IF(GPS_IMPORT!$A$2:$A$10000=$B$5,1,0)),INDEX(GPS_IMPORT!$2:$10000,MATCH($B$5,(GPS_IMPORT!$A$2:$A$10000),0)+ROWS($1:11)-1,COLUMN()-1),0) -> 105 | C17: =IF(ROWS(GPS_IMPORT!$1:11)<=SUM(IF(GPS_IMPORT!$A$2:$A$10000=$B$5,1,0)),INDEX(GPS_IMPORT!$2:$10000,MATCH($B$5,(GPS_IMPORT!$A$2:$A$10000),0)+ROWS($1:11)-1,COLUMN()-1),0) -> 45408 | D17: =IF(ROWS(GPS_IMPORT!$1:11)<=SUM(IF(GPS_IMPORT!$A$2:$A$10000=$B$5,1,0)),INDEX(GPS_IMPORT!$2:$10000,MATCH($B$5,(GPS_IMPORT!$A$2:$A$10000),0)+ROWS($1:11)-1,COLUMN()-1),0) -> 11:23:08 | E17: =IF(ROWS(GPS_IMPORT!$1:11)<=SUM(IF(GPS_IMPORT!$A$2:$A$10000=$B$5,1,0)),INDEX(GPS_IMPORT!$2:$10000,MATCH($B$5,(GPS_IMPORT!$A$2:$A$10000),0)+ROWS($1:11)-1,COLUMN()-1),0) -> 692335.158 | F17: =IF(ROWS(GPS_IMPORT!$1:11)<=SUM(IF(GPS_IMPORT!$A$2:$A$10000=$B$5,1,0)),INDEX(GPS_IMPORT!$2:$10000,MATCH($B$5,(GPS_IMPORT!$A$2:$A$10000),0)+ROWS($1:11)-1,COLUMN()-1),0) -> 1856208.252 | G17: =IF(ROWS(GPS_IMPORT!$1:11)<=SUM(IF(GPS_IMPORT!$A$2:$A$10000=$B$5,1,0)),INDEX(GPS_IMPORT!$2:$10000,MATCH($B$5,(GPS_IMPORT!$A$2:$A$10000),0)+ROWS($1:11)-1,COLUMN()-1),0) -> 756.066 | H17: 0.001466666581 | I17: 0.008733333088 | J17: -0.02166666667 | K17: TRUE | L17: 0 | M17: 0
A18: 12 | B18: =IF(ROWS(GPS_IMPORT!$1:12)<=SUM(IF(GPS_IMPORT!$A$2:$A$10000=$B$5,1,0)),INDEX(GPS_IMPORT!$2:$10000,MATCH($B$5,(GPS_IMPORT!$A$2:$A$10000),0)+ROWS($1:12)-1,COLUMN()-1),0) -> 105 | C18: =IF(ROWS(GPS_IMPORT!$1:12)<=SUM(IF(GPS_IMPORT!$A$2:$A$10000=$B$5,1,0)),INDEX(GPS_IMPORT!$2:$10000,MATCH($B$5,(GPS_IMPORT!$A$2:$A$10000),0)+ROWS($1:12)-1,COLUMN()-1),0) -> 45408 | D18: =IF(ROWS(GPS_IMPORT!$1:12)<=SUM(IF(GPS_IMPORT!$A$2:$A$10000=$B$5,1,0)),INDEX(GPS_IMPORT!$2:$10000,MATCH($B$5,(GPS_IMPORT!$A$2:$A$10000),0)+ROWS($1:12)-1,COLUMN()-1),0) -> 11:23:46 | E18: =IF(ROWS(GPS_IMPORT!$1:12)<=SUM(IF(GPS_IMPORT!$A$2:$A$10000=$B$5,1,0)),INDEX(GPS_IMPORT!$2:$10000,MATCH($B$5,(GPS_IMPORT!$A$2:$A$10000),0)+ROWS($1:12)-1,COLUMN()-1),0) -> 692335.179 | F18: =IF(ROWS(GPS_IMPORT!$1:12)<=SUM(IF(GPS_IMPORT!$A$2:$A$10000=$B$5,1,0)),INDEX(GPS_IMPORT!$2:$10000,MATCH($B$5,(GPS_IMPORT!$A$2:$A$10000),0)+ROWS($1:12)-1,COLUMN()-1),0) -> 1856208.253 | G18: =IF(ROWS(GPS_IMPORT!$1:12)<=SUM(IF(GPS_IMPORT!$A$2:$A$10000=$B$5,1,0)),INDEX(GPS_IMPORT!$2:$10000,MATCH($B$5,(GPS_IMPORT!$A$2:$A$10000),0)+ROWS($1:12)-1,COLUMN()-1),0) -> 756.027 | H18: -0.01953333337 | I18: 0.007733333157 | J18: 0.01733333333 | K18: TRUE | L18: 0 | M18: 0
A19: 13 | B19: =IF(ROWS(GPS_IMPORT!$1:13)<=SUM(IF(GPS_IMPORT!$A$2:$A$10000=$B$5,1,0)),INDEX(GPS_IMPORT!$2:$10000,MATCH($B$5,(GPS_IMPORT!$A$2:$A$10000),0)+ROWS($1:13)-1,COLUMN()-1),0) -> 105 | C19: =IF(ROWS(GPS_IMPORT!$1:13)<=SUM(IF(GPS_IMPORT!$A$2:$A$10000=$B$5,1,0)),INDEX(GPS_IMPORT!$2:$10000,MATCH($B$5,(GPS_IMPORT!$A$2:$A$10000),0)+ROWS($1:13)-1,COLUMN()-1),0) -> 45408 | D19: =IF(ROWS(GPS_IMPORT!$1:13)<=SUM(IF(GPS_IMPORT!$A$2:$A$10000=$B$5,1,0)),INDEX(GPS_IMPORT!$2:$10000,MATCH($B$5,(GPS_IMPORT!$A$2:$A$10000),0)+ROWS($1:13)-1,COLUMN()-1),0) -> 11:25:04 | E19: =IF(ROWS(GPS_IMPORT!$1:13)<=SUM(IF(GPS_IMPORT!$A$2:$A$10000=$B$5,1,0)),INDEX(GPS_IMPORT!$2:$10000,MATCH($B$5,(GPS_IMPORT!$A$2:$A$10000),0)+ROWS($1:13)-1,COLUMN()-1),0) -> 692335.175 | F19: =IF(ROWS(GPS_IMPORT!$1:13)<=SUM(IF(GPS_IMPORT!$A$2:$A$10000=$B$5,1,0)),INDEX(GPS_IMPORT!$2:$10000,MATCH($B$5,(GPS_IMPORT!$A$2:$A$10000),0)+ROWS($1:13)-1,COLUMN()-1),0) -> 1856208.266 | G19: =IF(ROWS(GPS_IMPORT!$1:13)<=SUM(IF(GPS_IMPORT!$A$2:$A$10000=$B$5,1,0)),INDEX(GPS_IMPORT!$2:$10000,MATCH($B$5,(GPS_IMPORT!$A$2:$A$10000),0)+ROWS($1:13)-1,COLUMN()-1),0) -> 756.016 | H19: -0.01553333341 | I19: -0.005266666878 | J19: 0.02833333333 | K19: TRUE | L19: 0 | M19: 0
A20: 14 | B20: =IF(ROWS(GPS_IMPORT!$1:14)<=SUM(IF(GPS_IMPORT!$A$2:$A$10000=$B$5,1,0)),INDEX(GPS_IMPORT!$2:$10000,MATCH($B$5,(GPS_IMPORT!$A$2:$A$10000),0)+ROWS($1:14)-1,COLUMN()-1),0) -> 105 | C20: =IF(ROWS(GPS_IMPORT!$1:14)<=SUM(IF(GPS_IMPORT!$A$2:$A$10000=$B$5,1,0)),INDEX(GPS_IMPORT!$2:$10000,MATCH($B$5,(GPS_IMPORT!$A$2:$A$10000),0)+ROWS($1:14)-1,COLUMN()-1),0) -> 45408 | D20: =IF(ROWS(GPS_IMPORT!$1:14)<=SUM(IF(GPS_IMPORT!$A$2:$A$10000=$B$5,1,0)),INDEX(GPS_IMPORT!$2:$10000,MATCH($B$5,(GPS_IMPORT!$A$2:$A$10000),0)+ROWS($1:14)-1,COLUMN()-1),0) -> 11:25:42 | E20: =IF(ROWS(GPS_IMPORT!$1:14)<=SUM(IF(GPS_IMPORT!$A$2:$A$10000=$B$5,1,0)),INDEX(GPS_IMPORT!$2:$10000,MATCH($B$5,(GPS_IMPORT!$A$2:$A$10000),0)+ROWS($1:14)-1,COLUMN()-1),0) -> 692335.15 | F20: =IF(ROWS(GPS_IMPORT!$1:14)<=SUM(IF(GPS_IMPORT!$A$2:$A$10000=$B$5,1,0)),INDEX(GPS_IMPORT!$2:$10000,MATCH($B$5,(GPS_IMPORT!$A$2:$A$10000),0)+ROWS($1:14)-1,COLUMN()-1),0) -> 1856208.261 | G20: =IF(ROWS(GPS_IMPORT!$1:14)<=SUM(IF(GPS_IMPORT!$A$2:$A$10000=$B$5,1,0)),INDEX(GPS_IMPORT!$2:$10000,MATCH($B$5,(GPS_IMPORT!$A$2:$A$10000),0)+ROWS($1:14)-1,COLUMN()-1),0) -> 756.043 | H20: 0.009466666612 | I20: -0.0002666667569 | J20: 0.001333333333 | K20: TRUE | L20: 0 | M20: 0
A21: 15 | B21: =IF(ROWS(GPS_IMPORT!$1:15)<=SUM(IF(GPS_IMPORT!$A$2:$A$10000=$B$5,1,0)),INDEX(GPS_IMPORT!$2:$10000,MATCH($B$5,(GPS_IMPORT!$A$2:$A$10000),0)+ROWS($1:15)-1,COLUMN()-1),0) -> 105 | C21: =IF(ROWS(GPS_IMPORT!$1:15)<=SUM(IF(GPS_IMPORT!$A$2:$A$10000=$B$5,1,0)),INDEX(GPS_IMPORT!$2:$10000,MATCH($B$5,(GPS_IMPORT!$A$2:$A$10000),0)+ROWS($1:15)-1,COLUMN()-1),0) -> 45408 | D21: =IF(ROWS(GPS_IMPORT!$1:15)<=SUM(IF(GPS_IMPORT!$A$2:$A$10000=$B$5,1,0)),INDEX(GPS_IMPORT!$2:$10000,MATCH($B$5,(GPS_IMPORT!$A$2:$A$10000),0)+ROWS($1:15)-1,COLUMN()-1),0) -> 11:26:56 | E21: =IF(ROWS(GPS_IMPORT!$1:15)<=SUM(IF(GPS_IMPORT!$A$2:$A$10000=$B$5,1,0)),INDEX(GPS_IMPORT!$2:$10000,MATCH($B$5,(GPS_IMPORT!$A$2:$A$10000),0)+ROWS($1:15)-1,COLUMN()-1),0) -> 692335.162 | F21: =IF(ROWS(GPS_IMPORT!$1:15)<=SUM(IF(GPS_IMPORT!$A$2:$A$10000=$B$5,1,0)),INDEX(GPS_IMPORT!$2:$10000,MATCH($B$5,(GPS_IMPORT!$A$2:$A$10000),0)+ROWS($1:15)-1,COLUMN()-1),0) -> 1856208.234 | G21: =IF(ROWS(GPS_IMPORT!$1:15)<=SUM(IF(GPS_IMPORT!$A$2:$A$10000=$B$5,1,0)),INDEX(GPS_IMPORT!$2:$10000,MATCH($B$5,(GPS_IMPORT!$A$2:$A$10000),0)+ROWS($1:15)-1,COLUMN()-1),0) -> 756.022 | H21: =IF(K21=TRUE,IF(E21>0,E$22-E21,0),0) -> -0.002533333376 | I21: 0.02673333324 | J21: 0.02233333333 | K21: TRUE | L21: 0 | M21: 0
D22: AVERAGE | E22: =(IF($K$7=TRUE,E7,0)+IF($K$8=TRUE,E8,0)+IF($K$9=TRUE,E9,0)+IF($K$10=TRUE,E10,0)+IF($K$11=TRUE,E11,0)+IF($K$12=TRUE,E12,0)+IF($K$13=TRUE,E13,0)+IF($K$14=TRUE,E14,0)+IF($K$15=TRUE,E15,0)+IF($K$16=TRUE,E16,0)+IF($K$17=TRUE,E17,0)+IF($K$18=TRUE,E18,0)+IF($K$19=TRUE,E19,0)+IF($K$20=TRUE,E20,0)+IF($K$21=TRUE,E21,0))/(IF($K$7=TRUE,1,0)+IF($K$8=TRUE,1,0)+IF($K$9=TRUE,1,0)+IF($K$10=TRUE,1,0)+IF($K$11=TRUE,1,0)+IF($K$12=TRUE,1,0)+IF($K$13=TRUE,1,0)+IF($K$14=TRUE,1,0)+IF($K$15=TRUE,1,0)+IF($K$16=TRUE,1,0)+IF($K$17=TRUE,1,0)+IF($K$18=TRUE,1,0)+IF($K$19=TRUE,1,0)+IF($K$20=TRUE,1,0)+IF($K$21=TRUE,1,0)) -> 692335.1595 | F22: =(IF($K$7=TRUE,F7,0)+IF($K$8=TRUE,F8,0)+IF($K$9=TRUE,F9,0)+IF($K$10=TRUE,F10,0)+IF($K$11=TRUE,F11,0)+IF($K$12=TRUE,F12,0)+IF($K$13=TRUE,F13,0)+IF($K$14=TRUE,F14,0)+IF($K$15=TRUE,F15,0)+IF($K$16=TRUE,F16,0)+IF($K$17=TRUE,F17,0)+IF($K$18=TRUE,F18,0)+IF($K$19=TRUE,F19,0)+IF($K$20=TRUE,F20,0)+IF($K$21=TRUE,F21,0))/(IF($K$7=TRUE,1,0)+IF($K$8=TRUE,1,0)+IF($K$9=TRUE,1,0)+IF($K$10=TRUE,1,0)+IF($K$11=TRUE,1,0)+IF($K$12=TRUE,1,0)+IF($K$13=TRUE,1,0)+IF($K$14=TRUE,1,0)+IF($K$15=TRUE,1,0)+IF($K$16=TRUE,1,0)+IF($K$17=TRUE,1,0)+IF($K$18=TRUE,1,0)+IF($K$19=TRUE,1,0)+IF($K$20=TRUE,1,0)+IF($K$21=TRUE,1,0)) -> 1856208.261 | G22: =(IF($K$7=TRUE,G7,0)+IF($K$8=TRUE,G8,0)+IF($K$9=TRUE,G9,0)+IF($K$10=TRUE,G10,0)+IF($K$11=TRUE,G11,0)+IF($K$12=TRUE,G12,0)+IF($K$13=TRUE,G13,0)+IF($K$14=TRUE,G14,0)+IF($K$15=TRUE,G15,0)+IF($K$16=TRUE,G16,0)+IF($K$17=TRUE,G17,0)+IF($K$18=TRUE,G18,0)+IF($K$19=TRUE,G19,0)+IF($K$20=TRUE,G20,0)+IF($K$21=TRUE,G21,0))/ (IF($K$7=TRUE,1,0)+IF($K$8=TRUE,1,0)+IF($K$9=TRUE,1,0)+IF($K$10=TRUE,1,0)+IF($K$11=TRUE,1,0)+IF($K$12=TRUE,1,0)+IF($K$13=TRUE,1,0)+IF($K$14=TRUE,1,0)+IF($K$15=TRUE,1,0)+IF($K$16=TRUE,1,0)+IF($K$17=TRUE,1,0)+IF($K$18=TRUE,1,0)+IF($K$19=TRUE,1,0)+IF($K$20=TRUE,1,0)+IF($K$21=TRUE,1,0)) -> 756.0443333 | H22: RMSE: | I22: RMSE: | J22: RMSE:
G23: ="RMSE IN "&GPS_IMPORT!J4&":" -> RMSE IN U.S. Survey FT: | H23: =SQRT(SUMSQ((IF(K7:K21=TRUE,H7:H21)))/SUM(IF(K7:K21=TRUE,1,0))) -> 0.01158658227 | I23: =SQRT(SUMSQ((IF(K7:K21=TRUE,I7:I21)))/SUM(IF(K7:K21=TRUE,1,0))) -> 0.01201924385 | J23: =SQRT(SUMSQ((IF(K7:K21=TRUE,J7:J21)))/SUM(IF(K7:K21=TRUE,1,0))) -> 0.03166210493
G24: Tolerance: | H24: =VLOOKUP(GPS_IMPORT!$K$4,Lists!H3:I5,2,FALSE) -> 0.029 | J24: =VLOOKUP(GPS_IMPORT!$K$4,Lists!H3:J5,3,FALSE) -> 0.039
H25: =IF(H23<=H24,"PASS","FAIL") -> PASS | I25: =IF(I23<=H24,"PASS","FAIL") -> PASS | J25: =IF(J23<=J24,"PASS","FAIL") -> PASS
A27: AVERAGED GPS-DERIVED POSITION | I27: Notes:
B28: MONUMENT COORDINATES | D28: NORTHING | E28: EASTING | F28: ORTHO HEIGHT | N28: Degrees | O28: Radians | P28: SIN | Q28: COS
B29: =GPS_IMPORT!J4&" ("&IF(GPS_IMPORT!K2,"GROUND","State Plane")&")" -> U.S. Survey FT (State Plane) | D29: =$E$22 -> 692335.1595 | E29: =$F$22 -> 1856208.261 | F29: =$G$22 -> 756.0443333 | N29: 1 | O29: =N29*(PI()/180) -> 0.01745329252 | P29: =SIN(O29)*H$24 -> 0.0005061197867 | Q29: =COS(O29)*H$24 -> 0.02899558316
N30: =N29+1 -> 2 | O30: =N30*(PI()/180) -> 0.03490658504 | P30: 0.001012085404 | Q30: 0.02898233398
A31: LEVELED ELEVATION | N31: =N30+1 -> 3 | O31: 0.05235987756 | P31: 0.001517742731 | Q31: 0.02896025651
A32: ='LEVEL RUN'!B5 -> U.S. Survey FT | C32: =IFERROR(VLOOKUP(B5,'LEVEL RUN'!A7:I59,9,FALSE),"N/A") -> 756.015125 | D32: (Fill out Level Run Sheet or N/A if no leveled elevation is available) | N32: 4 | O32: 0.06981317008 | P32: 0.002022937739 | Q32: 0.02892935746
A33: MONUMENT HELD | C33: =IF('LEVEL RUN'!A7="","",'LEVEL RUN'!A7) -> CP13 | D33: (Type the monument name from which leveling originated) | N33: 5 | O33: 0.0872664626 | P33: 0.00252751654 | Q33: 0.02888964624
A34: LEVELED ELEVATION - GPS DERIVED ELEVATION = | E34: =IF(C32="N/A","N/A",C32-(F29*'LEVEL RUN'!F5)) -> -0.02920833333 | F34: ='LEVEL RUN'!D5 -> sft | N34: 6 | O34: 0.1047197551 | P34: 0.003031325435 | Q34: 0.02884113497
N35: 7 | O35: 0.1221730476 | P35: 0.003534210959 | Q35: 0.0287838384
A36: FINAL MONUMENT COORDINATES | N36: 8 | O36: 0.1396263402 | P36: 0.004036019928 | Q36: 0.02871777399
B37: MONUMENT COORDINATES | D37: NORTHING | E37: EASTING | F37: ELEVATION | G37: FEATURE CODE | N37: 9 | O37: 0.1570796327 | P37: 0.004536599486 | Q37: 0.02864296188
B38: =GPS_IMPORT!J6&" "&REPORT!C10 -> U.S. Survey FT South | D38: =IF(GPS_IMPORT!K2,($E$22*GPS_IMPORT!$L$6)*(1/REPORT!C14),$E$22*GPS_IMPORT!$L$6) -> 692335.1595 | E38: =IF(GPS_IMPORT!K2,($F$22*GPS_IMPORT!$L$6)*(1/REPORT!C14),$F$22*GPS_IMPORT!$L$6) -> 1856208.261 | F38: =IF($C$32="N/A",($G$22*GPS_IMPORT!$L$6),$C$32*'LEVEL RUN'!H5) -> 756.015125 | G38: =VLOOKUP($B$5,GPS_IMPORT!$A$2:$G$2000,7,FALSE) -> CNPT | N38: 10 | O38: 0.1745329252 | P38: 0.005035797152 | Q38: 0.02855942484
B39: =GPS_IMPORT!J6&" "&REPORT!C11&" "&"County" -> U.S. Survey FT Franklin County | D39: =VLOOKUP($B$5,'MON TABLE'!$A$11:$I$35,6,FALSE) -> 546493.049 | E39: =VLOOKUP($B$5,'MON TABLE'!$A$11:$I$35,7,FALSE) -> 220091.35 | F39: =VLOOKUP($B$5,'MON TABLE'!$A$11:$I$35,8,FALSE) -> 756.015 | G39: =$G$38 -> CNPT | N39: 11 | O39: 0.1919862177 | P39: 0.005533460866 | Q39: 0.02846718832
N40: 12 | O40: 0.2094395102 | P40: 0.006029439034 | Q40: 0.02836628042
A41: ∆ North, ∆ East, and ∆ Ht. are the difference between the average northing, easting, and height for each observation. | I41: Mask Angle: | J41: 10° | N41: 13 | O41: 0.2268928028 | P41: 0.006523580576 | Q41: 0.02825673188
N42: 14 | O42: 0.2443460953 | P42: 0.007015734972 | Q42: 0.02813857606
N43: 15 | O43: 0.2617993878 | P43: 0.007505752308 | Q43: 0.02801184896
N44: 16 | O44: 0.2792526803 | P44: 0.007993483319 | Q44: 0.02787658918
N45: 17 | O45: 0.2967059728 | P45: 0.008478779437 | Q45: 0.02773283792
N46: 18 | O46: 0.3141592654 | P46: 0.008961492837 | Q46: 0.02758063897
N47: 19 | O47: 0.3316125579 | P47: 0.009441476479 | Q47: 0.02742003869
N48: 20 | O48: 0.3490658504 | P48: 0.009918584156 | Q48: 0.027251086
N49: 21 | O49: 0.3665191429 | P49: 0.01039267054 | Q49: 0.02707383237
N50: 22 | O50: 0.3839724354 | P50: 0.01086359121 | Q50: 0.02688833178
N51: 23 | O51: 0.401425728 | P51: 0.01133120273 | Q51: 0.02669464075
N52: 24 | O52: 0.4188790205 | P52: 0.01179536265 | Q52: 0.02649281827
N53: 25 | O53: 0.436332313 | P53: 0.01225592959 | Q53: 0.02628292582
N54: 26 | O54: 0.4537856055 | P54: 0.01271276326 | Q54: 0.02606502734
N55: 27 | O55: 0.471238898 | P55: 0.01316572449 | Q55: 0.0258391892
N56: 28 | O56: 0.4886921906 | P56: 0.01361467532 | Q56: 0.02560548019
N57: 29 | O57: 0.5061454831 | P57: 0.01405947899 | Q57: 0.02536397151
N58: 30 | O58: 0.5235987756 | P58: 0.0145 | Q58: 0.02511473671
N59: 31 | O59: 0.5410520681 | P59: 0.01493610417 | Q59: 0.02485785172
N60: 32 | O60: 0.5585053606 | P60: 0.01536765866 | Q60: 0.02459339479
N61: 33 | O61: 0.5759586532 | P61: 0.01579453202 | Q61: 0.02432144647
N62: 34 | O62: 0.5934119457 | P62: 0.0162165942 | Q62: 0.0240420896
N63: 35 | O63: 0.6108652382 | P63: 0.01663371665 | Q63: 0.02375540928
N64: 36 | O64: 0.6283185307 | P64: 0.01704577232 | Q64: 0.02346149284
N65: 37 | O65: 0.6457718232 | P65: 0.01745263567 | Q65: 0.02316042979
N66: 38 | O66: 0.6632251158 | P66: 0.01785418278 | Q66: 0.02285231185
N67: 39 | O67: 0.6806784083 | P67: 0.01825029134 | Q67: 0.02253723288
N68: 40 | O68: 0.6981317008 | P68: 0.01864084068 | Q68: 0.02221528885
N69: 41 | O69: 0.7155849933 | P69: 0.01902571184 | Q69: 0.02188657783
N70: 42 | O70: 0.7330382858 | P70: 0.01940478758 | Q70: 0.02155119994
N71: 43 | O71: 0.7504915784 | P71: 0.01977795244 | Q71: 0.02120925735
N72: 44 | O72: 0.7679448709 | P72: 0.02014509274 | Q72: 0.02086085421
N73: 45 | O73: 0.7853981634 | P73: 0.02050609665 | Q73: 0.02050609665
N74: 46 | O74: 0.8028514559 | P74: 0.02086085421 | Q74: 0.02014509274
N75: 47 | O75: 0.8203047484 | P75: 0.02120925735 | Q75: 0.01977795244
N76: 48 | O76: 0.837758041 | P76: 0.02155119994 | Q76: 0.01940478758
N77: 49 | O77: 0.8552113335 | P77: 0.02188657783 | Q77: 0.01902571184
N78: 50 | O78: 0.872664626 | P78: 0.02221528885 | Q78: 0.01864084068
N79: 51 | O79: 0.8901179185 | P79: 0.02253723288 | Q79: 0.01825029134
N80: 52 | O80: 0.907571211 | P80: 0.02285231185 | Q80: 0.01785418278
N81: 53 | O81: 0.9250245036 | P81: 0.02316042979 | Q81: 0.01745263567
N82: 54 | O82: 0.9424777961 | P82: 0.02346149284 | Q82: 0.01704577232
N83: 55 | O83: 0.9599310886 | P83: 0.02375540928 | Q83: 0.01663371665
N84: 56 | O84: 0.9773843811 | P84: 0.0240420896 | Q84: 0.0162165942
N85: 57 | O85: 0.9948376736 | P85: 0.02432144647 | Q85: 0.01579453202
N86: 58 | O86: 1.012290966 | P86: 0.02459339479 | Q86: 0.01536765866
N87: 59 | O87: 1.029744259 | P87: 0.02485785172 | Q87: 0.01493610417
N88: 60 | O88: 1.047197551 | P88: 0.02511473671 | Q88: 0.0145
N89: 61 | O89: 1.064650844 | P89: 0.02536397151 | Q89: 0.01405947899
N90: 62 | O90: 1.082104136 | P90: 0.02560548019 | Q90: 0.01361467532
N91: 63 | O91: 1.099557429 | P91: 0.0258391892 | Q91: 0.01316572449
N92: 64 | O92: 1.117010721 | P92: 0.02606502734 | Q92: 0.01271276326
N93: 65 | O93: 1.134464014 | P93: =SIN(O93)*H$24 -> 0.02628292582 | Q93: =COS(O93)*H$24 -> 0.01225592959
N94: 66 | O94: =N94*(PI()/180) -> 1.151917306 | P94: 0.02649281827 | Q94: 0.01179536265
N95: =N94+1 -> 67 | O95: 1.169370599 | P95: 0.02669464075 | Q95: 0.01133120273
N96: 68 | O96: 1.186823891 | P96: 0.02688833178 | Q96: 0.01086359121
N97: 69 | O97: 1.204277184 | P97: 0.02707383237 | Q97: 0.01039267054
N98: 70 | O98: 1.221730476 | P98: 0.027251086 | Q98: 0.009918584156
N99: 71 | O99: 1.239183769 | P99: 0.02742003869 | Q99: 0.009441476479
N100: 72 | O100: 1.256637061 | P100: 0.02758063897 | Q100: 0.008961492837
N101: 73 | O101: 1.274090354 | P101: 0.02773283792 | Q101: 0.008478779437
N102: 74 | O102: 1.291543646 | P102: 0.02787658918 | Q102: 0.007993483319
N103: 75 | O103: 1.308996939 | P103: 0.02801184896 | Q103: 0.007505752308
N104: 76 | O104: 1.326450232 | P104: 0.02813857606 | Q104: 0.007015734972
N105: 77 | O105: 1.343903524 | P105: 0.02825673188 | Q105: 0.006523580576
N106: 78 | O106: 1.361356817 | P106: 0.02836628042 | Q106: 0.006029439034
N107: 79 | O107: 1.378810109 | P107: 0.02846718832 | Q107: 0.005533460866
N108: 80 | O108: 1.396263402 | P108: 0.02855942484 | Q108: 0.005035797152
N109: 81 | O109: 1.413716694 | P109: 0.02864296188 | Q109: 0.004536599486
N110: 82 | O110: 1.431169987 | P110: 0.02871777399 | Q110: 0.004036019928
N111: 83 | O111: 1.448623279 | P111: 0.0287838384 | Q111: 0.003534210959
N112: 84 | O112: 1.466076572 | P112: 0.02884113497 | Q112: 0.003031325435
N113: 85 | O113: 1.483529864 | P113: 0.02888964624 | Q113: 0.00252751654
N114: 86 | O114: 1.500983157 | P114: 0.02892935746 | Q114: 0.002022937739
N115: 87 | O115: 1.518436449 | P115: 0.02896025651 | Q115: 0.001517742731
N116: 88 | O116: 1.535889742 | P116: 0.02898233398 | Q116: 0.001012085404
N117: 89 | O117: 1.553343034 | P117: 0.02899558316 | Q117: 0.0005061197867
N118: 90 | O118: 1.570796327 | P118: 0.029 | Q118: 1.77646526e-18
N119: 91 | O119: 1.588249619 | P119: 0.02899558316 | Q119: -0.0005061197867
N120: 92 | O120: 1.605702912 | P120: 0.02898233398 | Q120: -0.001012085404
N121: 93 | O121: 1.623156204 | P121: 0.02896025651 | Q121: -0.001517742731
N122: 94 | O122: 1.640609497 | P122: 0.02892935746 | Q122: -0.002022937739
N123: 95 | O123: 1.658062789 | P123: 0.02888964624 | Q123: -0.00252751654
N124: 96 | O124: 1.675516082 | P124: 0.02884113497 | Q124: -0.003031325435
N125: 97 | O125: 1.692969374 | P125: 0.0287838384 | Q125: -0.003534210959
N126: 98 | O126: 1.710422667 | P126: 0.02871777399 | Q126: -0.004036019928
N127: 99 | O127: 1.727875959 | P127: 0.02864296188 | Q127: -0.004536599486
N128: 100 | O128: 1.745329252 | P128: 0.02855942484 | Q128: -0.005035797152
N129: 101 | O129: 1.762782545 | P129: 0.02846718832 | Q129: -0.005533460866
N130: 102 | O130: 1.780235837 | P130: 0.02836628042 | Q130: -0.006029439034
N131: 103 | O131: 1.79768913 | P131: 0.02825673188 | Q131: -0.006523580576
N132: 104 | O132: 1.815142422 | P132: 0.02813857606 | Q132: -0.007015734972
N133: 105 | O133: 1.832595715 | P133: 0.02801184896 | Q133: -0.007505752308
N134: 106 | O134: 1.850049007 | P134: 0.02787658918 | Q134: -0.007993483319
N135: 107 | O135: 1.8675023 | P135: 0.02773283792 | Q135: -0.008478779437
N136: 108 | O136: 1.884955592 | P136: 0.02758063897 | Q136: -0.008961492837
N137: 109 | O137: 1.902408885 | P137: 0.02742003869 | Q137: -0.009441476479
N138: 110 | O138: 1.919862177 | P138: 0.027251086 | Q138: -0.009918584156
N139: 111 | O139: 1.93731547 | P139: 0.02707383237 | Q139: -0.01039267054
N140: 112 | O140: 1.954768762 | P140: 0.02688833178 | Q140: -0.01086359121
N141: 113 | O141: 1.972222055 | P141: 0.02669464075 | Q141: -0.01133120273
N142: 114 | O142: 1.989675347 | P142: 0.02649281827 | Q142: -0.01179536265
N143: 115 | O143: 2.00712864 | P143: 0.02628292582 | Q143: -0.01225592959
N144: 116 | O144: 2.024581932 | P144: 0.02606502734 | Q144: -0.01271276326
N145: 117 | O145: 2.042035225 | P145: 0.0258391892 | Q145: -0.01316572449
N146: 118 | O146: 2.059488517 | P146: 0.02560548019 | Q146: -0.01361467532
N147: 119 | O147: 2.07694181 | P147: 0.02536397151 | Q147: -0.01405947899
N148: 120 | O148: 2.094395102 | P148: 0.02511473671 | Q148: -0.0145
N149: 121 | O149: 2.111848395 | P149: 0.02485785172 | Q149: -0.01493610417
N150: 122 | O150: 2.129301687 | P150: 0.02459339479 | Q150: -0.01536765866
N151: 123 | O151: 2.14675498 | P151: 0.02432144647 | Q151: -0.01579453202
N152: 124 | O152: 2.164208272 | P152: 0.0240420896 | Q152: -0.0162165942
N153: 125 | O153: 2.181661565 | P153: 0.02375540928 | Q153: -0.01663371665
N154: 126 | O154: 2.199114858 | P154: 0.02346149284 | Q154: -0.01704577232
N155: 127 | O155: 2.21656815 | P155: 0.02316042979 | Q155: -0.01745263567
N156: 128 | O156: 2.234021443 | P156: 0.02285231185 | Q156: -0.01785418278
N157: 129 | O157: 2.251474735 | P157: =SIN(O157)*H$24 -> 0.02253723288 | Q157: =COS(O157)*H$24 -> -0.01825029134
N158: 130 | O158: =N158*(PI()/180) -> 2.268928028 | P158: 0.02221528885 | Q158: -0.01864084068
N159: =N158+1 -> 131 | O159: 2.28638132 | P159: 0.02188657783 | Q159: -0.01902571184
N160: 132 | O160: 2.303834613 | P160: 0.02155119994 | Q160: -0.01940478758
N161: 133 | O161: 2.321287905 | P161: 0.02120925735 | Q161: -0.01977795244
N162: 134 | O162: 2.338741198 | P162: 0.02086085421 | Q162: -0.02014509274
N163: 135 | O163: 2.35619449 | P163: 0.02050609665 | Q163: -0.02050609665
N164: 136 | O164: 2.373647783 | P164: 0.02014509274 | Q164: -0.02086085421
N165: 137 | O165: 2.391101075 | P165: 0.01977795244 | Q165: -0.02120925735
N166: 138 | O166: 2.408554368 | P166: 0.01940478758 | Q166: -0.02155119994
N167: 139 | O167: 2.42600766 | P167: 0.01902571184 | Q167: -0.02188657783
N168: 140 | O168: 2.443460953 | P168: 0.01864084068 | Q168: -0.02221528885
N169: 141 | O169: 2.460914245 | P169: 0.01825029134 | Q169: -0.02253723288
N170: 142 | O170: 2.478367538 | P170: 0.01785418278 | Q170: -0.02285231185
N171: 143 | O171: 2.49582083 | P171: 0.01745263567 | Q171: -0.02316042979
N172: 144 | O172: 2.513274123 | P172: 0.01704577232 | Q172: -0.02346149284
N173: 145 | O173: 2.530727415 | P173: 0.01663371665 | Q173: -0.02375540928
N174: 146 | O174: 2.548180708 | P174: 0.0162165942 | Q174: -0.0240420896
N175: 147 | O175: 2.565634 | P175: 0.01579453202 | Q175: -0.02432144647
N176: 148 | O176: 2.583087293 | P176: 0.01536765866 | Q176: -0.02459339479
N177: 149 | O177: 2.600540585 | P177: 0.01493610417 | Q177: -0.02485785172
N178: 150 | O178: 2.617993878 | P178: 0.0145 | Q178: -0.02511473671
N179: 151 | O179: 2.635447171 | P179: 0.01405947899 | Q179: -0.02536397151
N180: 152 | O180: 2.652900463 | P180: 0.01361467532 | Q180: -0.02560548019
N181: 153 | O181: 2.670353756 | P181: 0.01316572449 | Q181: -0.0258391892
N182: 154 | O182: 2.687807048 | P182: 0.01271276326 | Q182: -0.02606502734
N183: 155 | O183: 2.705260341 | P183: 0.01225592959 | Q183: -0.02628292582
N184: 156 | O184: 2.722713633 | P184: 0.01179536265 | Q184: -0.02649281827
N185: 157 | O185: 2.740166926 | P185: 0.01133120273 | Q185: -0.02669464075
N186: 158 | O186: 2.757620218 | P186: 0.01086359121 | Q186: -0.02688833178
N187: 159 | O187: 2.775073511 | P187: 0.01039267054 | Q187: -0.02707383237
N188: 160 | O188: 2.792526803 | P188: 0.009918584156 | Q188: -0.027251086
N189: 161 | O189: 2.809980096 | P189: 0.009441476479 | Q189: -0.02742003869
N190: 162 | O190: 2.827433388 | P190: 0.008961492837 | Q190: -0.02758063897
N191: 163 | O191: 2.844886681 | P191: 0.008478779437 | Q191: -0.02773283792
N192: 164 | O192: 2.862339973 | P192: 0.007993483319 | Q192: -0.02787658918
N193: 165 | O193: 2.879793266 | P193: 0.007505752308 | Q193: -0.02801184896
N194: 166 | O194: 2.897246558 | P194: 0.007015734972 | Q194: -0.02813857606
N195: 167 | O195: 2.914699851 | P195: 0.006523580576 | Q195: -0.02825673188
N196: 168 | O196: 2.932153143 | P196: 0.006029439034 | Q196: -0.02836628042
N197: 169 | O197: 2.949606436 | P197: 0.005533460866 | Q197: -0.02846718832
N198: 170 | O198: 2.967059728 | P198: 0.005035797152 | Q198: -0.02855942484
N199: 171 | O199: 2.984513021 | P199: 0.004536599486 | Q199: -0.02864296188
N200: 172 | O200: 3.001966313 | P200: 0.004036019928 | Q200: -0.02871777399
N201: 173 | O201: 3.019419606 | P201: 0.003534210959 | Q201: -0.0287838384
N202: 174 | O202: 3.036872898 | P202: 0.003031325435 | Q202: -0.02884113497
... 186 more rows

Sheet LEVEL RUN
A1: =REPORT!B2 -> FRA-33-24.76 | L1: PID: | M1: =REPORT!E2 -> 119387
A2: Adjustment factor only works for closed level loops. | E2: Instrument Used: | G2: Length in Miles: | I2: 1.37 | J2: Instrument: | K2: DiNi07 | L2: Date: | M2: 2024-04-29
A3: SUM BS: | B3: =SUM(B7:B51) -> 229.3825 | C3: SUM FS: | D3: =SUM(D8:D51) -> 229.3816 | E3: Trimble DiNi | G3: Misclosure: | I3: =B3-D3 -> 0.0009 | J3: Notes: | K3: Adam Sine | L3: Weather: | M3: Sunny
A4: Misclosure must not exceed 0.04 ft x √E where E=Length of loop (miles) | G4: Adj Factor: | I4: =(I3/(COUNTA(B7:B199)))*-1 -> -2.045454545e-05 | J4: Rod: | K4: David MacRitchie | L4: Temperature: | M4: 75
A5: Unit: | B5: U.S. Survey FT | D5: =INDEX(ShortUnits,MATCH(B5,Units,0),1) -> sft | E5: =GPS_IMPORT!K4&"->"&D5 -> sft->sft | F5: =INDEX(FactorValues,MATCH(E5,FactorNames,0)) -> 1 | G5: =D5&"->"&GPS_IMPORT!K6 -> sft->sft | H5: =INDEX(FactorValues,MATCH(G5,FactorNames,0)) -> 1
A6: POINT | B6: BS | C6: HI | D6: FS | E6: SUMFS | F6: ELEV | G6: REC ELEV | H6: ADJ | I6: ADJ ELEV | J6: DESCRIPTION
A7: CP13 | B7: 6.4038 | C7: =F7+B7 -> 747.2408 | E7: =IF(D7>0,IF(B7>0,D7,0)," ") ->  | F7: 740.837 | I7: =F7 -> 740.837 | J7: LJB CP13
A8: TP1 | B8: 6.501 | C8: =IF(D8<>"",IF(OR(B8<>"",INDIRECT("D9")=0),IF(B7<>"",F7+B7,VLOOKUP(INDEX($B$7:B7,MATCH(9.99999999999999E+307,$B$7:B7)),$B$7:F7,5,FALSE)+INDEX($B$7:B7,MATCH(9.99999999999999E+307,$B$7:B7))),(VLOOKUP(INDEX($B$7:B7,MATCH(9.99999999999999E+307,$B$7:B7)),$B$7:F7,5,FALSE))+(INDEX($B$7:B7,MATCH(9.99999999999999E+307,$B$7:B7)))),"") -> 747.2408 | D8: 3.5116 | E8: =IF(D8<>"",IF(OR(B8<>"",INDIRECT("D9")=0),D8,0),"") -> 3.5116 | F8: =IF(D8<>"",C8-D8,"") -> 743.7292 | H8: =IF(D8<>"",IF(AND(B8<>"",B7<>""),$I$4+H7,VLOOKUP(INDEX($B$7:B7,MATCH(9.99999999999999E+307,$B$7:B7)),$B$7:H7,7,FALSE)+$I$4),"") -> -2.045454545e-05 | I8: =IF(D8<>"",(F8+H8),"") -> 743.7291795
A9: TP2 | B9: 6.5939 | C9: =IF(D9<>"",IF(OR(B9<>"",INDIRECT("D10")=0),IF(B8<>"",F8+B8,VLOOKUP(INDEX($B$7:B8,MATCH(9.99999999999999E+307,$B$7:B8)),$B$7:F8,5,FALSE)+INDEX($B$7:B8,MATCH(9.99999999999999E+307,$B$7:B8))),(VLOOKUP(INDEX($B$7:B8,MATCH(9.99999999999999E+307,$B$7:B8)),$B$7:F8,5,FALSE))+(INDEX($B$7:B8,MATCH(9.99999999999999E+307,$B$7:B8)))),"") -> 750.2302 | D9: 3.3693 | E9: =IF(D9<>"",IF(OR(B9<>"",INDIRECT("D10")=0),D9,0),"") -> 3.3693 | F9: =IF(D9<>"",C9-D9,"") -> 746.8609 | H9: =IF(D9<>"",IF(AND(B9<>"",B8<>""),$I$4+H8,VLOOKUP(INDEX($B$7:B8,MATCH(9.99999999999999E+307,$B$7:B8)),$B$7:H8,7,FALSE)+$I$4),"") -> -4.090909091e-05 | I9: =IF(D9<>"",(F9+H9),"") -> 746.8608591
A10: TP3 | B10: 5.56 | C10: =IF(D10<>"",IF(OR(B10<>"",INDIRECT("D11")=0),IF(B9<>"",F9+B9,VLOOKUP(INDEX($B$7:B9,MATCH(9.99999999999999E+307,$B$7:B9)),$B$7:F9,5,FALSE)+INDEX($B$7:B9,MATCH(9.99999999999999E+307,$B$7:B9))),(VLOOKUP(INDEX($B$7:B9,MATCH(9.99999999999999E+307,$B$7:B9)),$B$7:F9,5,FALSE))+(INDEX($B$7:B9,MATCH(9.99999999999999E+307,$B$7:B9)))),"") -> 753.4548 | D10: 2.7712 | E10: =IF(D10<>"",IF(OR(B10<>"",INDIRECT("D11")=0),D10,0),"") -> 2.7712 | F10: 750.6836 | H10: =IF(D10<>"",IF(AND(B10<>"",B9<>""),$I$4+H9,VLOOKUP(INDEX($B$7:B9,MATCH(9.99999999999999E+307,$B$7:B9)),$B$7:H9,7,FALSE)+$I$4),"") -> -6.136363636e-05 | I10: 750.6835386
A11: TP4 | B11: 2.7711 | C11: =IF(D11<>"",IF(OR(B11<>"",INDIRECT("D12")=0),IF(B10<>"",F10+B10,VLOOKUP(INDEX($B$7:B10,MATCH(9.99999999999999E+307,$B$7:B10)),$B$7:F10,5,FALSE)+INDEX($B$7:B10,MATCH(9.99999999999999E+307,$B$7:B10))),(VLOOKUP(INDEX($B$7:B10,MATCH(9.99999999999999E+307,$B$7:B10)),$B$7:F10,5,FALSE))+(INDEX($B$7:B10,MATCH(9.99999999999999E+307,$B$7:B10)))),"") -> 756.2436 | D11: 5.4828 | E11: =IF(D11<>"",IF(OR(B11<>"",INDIRECT("D12")=0),D11,0),"") -> 5.4828 | F11: 750.7608 | H11: =IF(D11<>"",IF(AND(B11<>"",B10<>""),$I$4+H10,VLOOKUP(INDEX($B$7:B10,MATCH(9.99999999999999E+307,$B$7:B10)),$B$7:H10,7,FALSE)+$I$4),"") -> -8.181818182e-05 | I11: 750.7607182
A12: TP5 | B12: 3.9509 | C12: =IF(D12<>"",IF(OR(B12<>"",INDIRECT("D13")=0),IF(B11<>"",F11+B11,VLOOKUP(INDEX($B$7:B11,MATCH(9.99999999999999E+307,$B$7:B11)),$B$7:F11,5,FALSE)+INDEX($B$7:B11,MATCH(9.99999999999999E+307,$B$7:B11))),(VLOOKUP(INDEX($B$7:B11,MATCH(9.99999999999999E+307,$B$7:B11)),$B$7:F11,5,FALSE))+(INDEX($B$7:B11,MATCH(9.99999999999999E+307,$B$7:B11)))),"") -> 753.5319 | D12: 6.2692 | E12: =IF(D12<>"",IF(OR(B12<>"",INDIRECT("D13")=0),D12,0),"") -> 6.2692 | F12: 747.2627 | H12: =IF(D12<>"",IF(AND(B12<>"",B11<>""),$I$4+H11,VLOOKUP(INDEX($B$7:B11,MATCH(9.99999999999999E+307,$B$7:B11)),$B$7:H11,7,FALSE)+$I$4),"") -> -0.0001022727273 | I12: 747.2625977
A13: TP6 | B13: 3.9743 | C13: =IF(D13<>"",IF(OR(B13<>"",INDIRECT("D14")=0),IF(B12<>"",F12+B12,VLOOKUP(INDEX($B$7:B12,MATCH(9.99999999999999E+307,$B$7:B12)),$B$7:F12,5,FALSE)+INDEX($B$7:B12,MATCH(9.99999999999999E+307,$B$7:B12))),(VLOOKUP(INDEX($B$7:B12,MATCH(9.99999999999999E+307,$B$7:B12)),$B$7:F12,5,FALSE))+(INDEX($B$7:B12,MATCH(9.99999999999999E+307,$B$7:B12)))),"") -> 751.2136 | D13: 5.0176 | E13: =IF(D13<>"",IF(OR(B13<>"",INDIRECT("D14")=0),D13,0),"") -> 5.0176 | F13: 746.196 | H13: =IF(D13<>"",IF(AND(B13<>"",B12<>""),$I$4+H12,VLOOKUP(INDEX($B$7:B12,MATCH(9.99999999999999E+307,$B$7:B12)),$B$7:H12,7,FALSE)+$I$4),"") -> -0.0001227272727 | I13: 746.1958773
A14: 101 | B14: 6.924 | C14: =IF(D14<>"",IF(OR(B14<>"",INDIRECT("D15")=0),IF(B13<>"",F13+B13,VLOOKUP(INDEX($B$7:B13,MATCH(9.99999999999999E+307,$B$7:B13)),$B$7:F13,5,FALSE)+INDEX($B$7:B13,MATCH(9.99999999999999E+307,$B$7:B13))),(VLOOKUP(INDEX($B$7:B13,MATCH(9.99999999999999E+307,$B$7:B13)),$B$7:F13,5,FALSE))+(INDEX($B$7:B13,MATCH(9.99999999999999E+307,$B$7:B13)))),"") -> 750.1703 | D14: 6.7529 | E14: =IF(D14<>"",IF(OR(B14<>"",INDIRECT("D15")=0),D14,0),"") -> 6.7529 | F14: 743.4174 | H14: =IF(D14<>"",IF(AND(B14<>"",B13<>""),$I$4+H13,VLOOKUP(INDEX($B$7:B13,MATCH(9.99999999999999E+307,$B$7:B13)),$B$7:H13,7,FALSE)+$I$4),"") -> -0.0001431818182 | I14: 743.4172568 | J14: Type A Conc Mon
A15: TP7 | B15: 5.204 | C15: =IF(D15<>"",IF(OR(B15<>"",INDIRECT("D16")=0),IF(B14<>"",F14+B14,VLOOKUP(INDEX($B$7:B14,MATCH(9.99999999999999E+307,$B$7:B14)),$B$7:F14,5,FALSE)+INDEX($B$7:B14,MATCH(9.99999999999999E+307,$B$7:B14))),(VLOOKUP(INDEX($B$7:B14,MATCH(9.99999999999999E+307,$B$7:B14)),$B$7:F14,5,FALSE))+(INDEX($B$7:B14,MATCH(9.99999999999999E+307,$B$7:B14)))),"") -> 750.3414 | D15: 4.3969 | E15: =IF(D15<>"",IF(OR(B15<>"",INDIRECT("D16")=0),D15,0),"") -> 4.3969 | F15: 745.9445 | H15: =IF(D15<>"",IF(AND(B15<>"",B14<>""),$I$4+H14,VLOOKUP(INDEX($B$7:B14,MATCH(9.99999999999999E+307,$B$7:B14)),$B$7:H14,7,FALSE)+$I$4),"") -> -0.0001636363636 | I15: 745.9443364
A16: TP8 | B16: 5.7695 | C16: =IF(D16<>"",IF(OR(B16<>"",INDIRECT("D17")=0),IF(B15<>"",F15+B15,VLOOKUP(INDEX($B$7:B15,MATCH(9.99999999999999E+307,$B$7:B15)),$B$7:F15,5,FALSE)+INDEX($B$7:B15,MATCH(9.99999999999999E+307,$B$7:B15))),(VLOOKUP(INDEX($B$7:B15,MATCH(9.99999999999999E+307,$B$7:B15)),$B$7:F15,5,FALSE))+(INDEX($B$7:B15,MATCH(9.99999999999999E+307,$B$7:B15)))),"") -> 751.1485 | D16: 3.9666 | E16: =IF(D16<>"",IF(OR(B16<>"",INDIRECT("D17")=0),D16,0),"") -> 3.9666 | F16: 747.1819 | H16: =IF(D16<>"",IF(AND(B16<>"",B15<>""),$I$4+H15,VLOOKUP(INDEX($B$7:B15,MATCH(9.99999999999999E+307,$B$7:B15)),$B$7:H15,7,FALSE)+$I$4),"") -> -0.0001840909091 | I16: 747.1817159
A17: 104 | B17: 8.2066 | C17: =IF(D17<>"",IF(OR(B17<>"",INDIRECT("D18")=0),IF(B16<>"",F16+B16,VLOOKUP(INDEX($B$7:B16,MATCH(9.99999999999999E+307,$B$7:B16)),$B$7:F16,5,FALSE)+INDEX($B$7:B16,MATCH(9.99999999999999E+307,$B$7:B16))),(VLOOKUP(INDEX($B$7:B16,MATCH(9.99999999999999E+307,$B$7:B16)),$B$7:F16,5,FALSE))+(INDEX($B$7:B16,MATCH(9.99999999999999E+307,$B$7:B16)))),"") -> 752.9514 | D17: 5.0577 | E17: =IF(D17<>"",IF(OR(B17<>"",INDIRECT("D18")=0),D17,0),"") -> 5.0577 | F17: 747.8937 | H17: =IF(D17<>"",IF(AND(B17<>"",B16<>""),$I$4+H16,VLOOKUP(INDEX($B$7:B16,MATCH(9.99999999999999E+307,$B$7:B16)),$B$7:H16,7,FALSE)+$I$4),"") -> -0.0002045454545 | I17: 747.8934955 | J17: Type B Mon
A18: TP9 | B18: 7.6873 | C18: =IF(D18<>"",IF(OR(B18<>"",INDIRECT("D19")=0),IF(B17<>"",F17+B17,VLOOKUP(INDEX($B$7:B17,MATCH(9.99999999999999E+307,$B$7:B17)),$B$7:F17,5,FALSE)+INDEX($B$7:B17,MATCH(9.99999999999999E+307,$B$7:B17))),(VLOOKUP(INDEX($B$7:B17,MATCH(9.99999999999999E+307,$B$7:B17)),$B$7:F17,5,FALSE))+(INDEX($B$7:B17,MATCH(9.99999999999999E+307,$B$7:B17)))),"") -> 756.1003 | D18: 1.7886 | E18: =IF(D18<>"",IF(OR(B18<>"",INDIRECT("D19")=0),D18,0),"") -> 1.7886 | F18: 754.3117 | H18: =IF(D18<>"",IF(AND(B18<>"",B17<>""),$I$4+H17,VLOOKUP(INDEX($B$7:B17,MATCH(9.99999999999999E+307,$B$7:B17)),$B$7:H17,7,FALSE)+$I$4),"") -> -0.000225 | I18: 754.311475
A19: TP10 | B19: 7.0691 | C19: =IF(D19<>"",IF(OR(B19<>"",INDIRECT("D20")=0),IF(B18<>"",F18+B18,VLOOKUP(INDEX($B$7:B18,MATCH(9.99999999999999E+307,$B$7:B18)),$B$7:F18,5,FALSE)+INDEX($B$7:B18,MATCH(9.99999999999999E+307,$B$7:B18))),(VLOOKUP(INDEX($B$7:B18,MATCH(9.99999999999999E+307,$B$7:B18)),$B$7:F18,5,FALSE))+(INDEX($B$7:B18,MATCH(9.99999999999999E+307,$B$7:B18)))),"") -> 761.999 | D19: 2.0305 | E19: =IF(D19<>"",IF(OR(B19<>"",INDIRECT("D20")=0),D19,0),"") -> 2.0305 | F19: 759.9685 | H19: =IF(D19<>"",IF(AND(B19<>"",B18<>""),$I$4+H18,VLOOKUP(INDEX($B$7:B18,MATCH(9.99999999999999E+307,$B$7:B18)),$B$7:H18,7,FALSE)+$I$4),"") -> -0.0002454545455 | I19: 759.9682545
A20: TP11 | B20: 6.2331 | C20: =IF(D20<>"",IF(OR(B20<>"",INDIRECT("D21")=0),IF(B19<>"",F19+B19,VLOOKUP(INDEX($B$7:B19,MATCH(9.99999999999999E+307,$B$7:B19)),$B$7:F19,5,FALSE)+INDEX($B$7:B19,MATCH(9.99999999999999E+307,$B$7:B19))),(VLOOKUP(INDEX($B$7:B19,MATCH(9.99999999999999E+307,$B$7:B19)),$B$7:F19,5,FALSE))+(INDEX($B$7:B19,MATCH(9.99999999999999E+307,$B$7:B19)))),"") -> 767.0376 | D20: 3.4889 | E20: =IF(D20<>"",IF(OR(B20<>"",INDIRECT("D21")=0),D20,0),"") -> 3.4889 | F20: 763.5487 | H20: =IF(D20<>"",IF(AND(B20<>"",B19<>""),$I$4+H19,VLOOKUP(INDEX($B$7:B19,MATCH(9.99999999999999E+307,$B$7:B19)),$B$7:H19,7,FALSE)+$I$4),"") -> -0.0002659090909 | I20: 763.5484341
A21: 102 | B21: 5.2901 | C21: =IF(D21<>"",IF(OR(B21<>"",INDIRECT("D22")=0),IF(B20<>"",F20+B20,VLOOKUP(INDEX($B$7:B20,MATCH(9.99999999999999E+307,$B$7:B20)),$B$7:F20,5,FALSE)+INDEX($B$7:B20,MATCH(9.99999999999999E+307,$B$7:B20))),(VLOOKUP(INDEX($B$7:B20,MATCH(9.99999999999999E+307,$B$7:B20)),$B$7:F20,5,FALSE))+(INDEX($B$7:B20,MATCH(9.99999999999999E+307,$B$7:B20)))),"") -> 769.7818 | D21: 5.3318 | E21: =IF(D21<>"",IF(OR(B21<>"",INDIRECT("D22")=0),D21,0),"") -> 5.3318 | F21: 764.45 | H21: =IF(D21<>"",IF(AND(B21<>"",B20<>""),$I$4+H20,VLOOKUP(INDEX($B$7:B20,MATCH(9.99999999999999E+307,$B$7:B20)),$B$7:H20,7,FALSE)+$I$4),"") -> -0.0002863636364 | I21: 764.4497136 | J21: Type A Conc Mon
A22: TP12 | B22: 2.0053 | C22: =IF(D22<>"",IF(OR(B22<>"",INDIRECT("D22")=0),IF(B21<>"",F21+B21,VLOOKUP(INDEX($B$7:B21,MATCH(9.99999999999999E+307,$B$7:B21)),$B$7:F21,5,FALSE)+INDEX($B$7:B21,MATCH(9.99999999999999E+307,$B$7:B21))),(VLOOKUP(INDEX($B$7:B21,MATCH(9.99999999999999E+307,$B$7:B21)),$B$7:F21,5,FALSE))+(INDEX($B$7:B21,MATCH(9.99999999999999E+307,$B$7:B21)))),"") -> 769.7401 | D22: 8.0317 | E22: =IF(D22<>"",IF(OR(B22<>"",INDIRECT("D23")=0),D22,0),"") -> 8.0317 | F22: 761.7084 | H22: =IF(D22<>"",IF(AND(B22<>"",B21<>""),$I$4+H21,VLOOKUP(INDEX($B$7:B21,MATCH(9.99999999999999E+307,$B$7:B21)),$B$7:H21,7,FALSE)+$I$4),"") -> -0.0003068181818 | I22: 761.7080932
A23: TP13 | B23: 0.8647 | C23: =IF(D23<>"",IF(OR(B23<>"",INDIRECT("D22")=0),IF(B22<>"",F22+B22,VLOOKUP(INDEX($B$7:B22,MATCH(9.99999999999999E+307,$B$7:B22)),$B$7:F22,5,FALSE)+INDEX($B$7:B22,MATCH(9.99999999999999E+307,$B$7:B22))),(VLOOKUP(INDEX($B$7:B22,MATCH(9.99999999999999E+307,$B$7:B22)),$B$7:F22,5,FALSE))+(INDEX($B$7:B22,MATCH(9.99999999999999E+307,$B$7:B22)))),"") -> 763.7137 | D23: 8.391 | E23: =IF(D23<>"",IF(OR(B23<>"",INDIRECT("D24")=0),D23,0),"") -> 8.391 | F23: 755.3227 | H23: =IF(D23<>"",IF(AND(B23<>"",B22<>""),$I$4+H22,VLOOKUP(INDEX($B$7:B22,MATCH(9.99999999999999E+307,$B$7:B22)),$B$7:H22,7,FALSE)+$I$4),"") -> -0.0003272727273 | I23: 755.3223727
A24: TP14 | B24: 3.0121 | C24: =IF(D24<>"",IF(OR(B24<>"",INDIRECT("D22")=0),IF(B23<>"",F23+B23,VLOOKUP(INDEX($B$7:B23,MATCH(9.99999999999999E+307,$B$7:B23)),$B$7:F23,5,FALSE)+INDEX($B$7:B23,MATCH(9.99999999999999E+307,$B$7:B23))),(VLOOKUP(INDEX($B$7:B23,MATCH(9.99999999999999E+307,$B$7:B23)),$B$7:F23,5,FALSE))+(INDEX($B$7:B23,MATCH(9.99999999999999E+307,$B$7:B23)))),"") -> 756.1874 | D24: 5.8581 | E24: =IF(D24<>"",IF(OR(B24<>"",INDIRECT("D25")=0),D24,0),"") -> 5.8581 | F24: 750.3293 | H24: =IF(D24<>"",IF(AND(B24<>"",B23<>""),$I$4+H23,VLOOKUP(INDEX($B$7:B23,MATCH(9.99999999999999E+307,$B$7:B23)),$B$7:H23,7,FALSE)+$I$4),"") -> -0.0003477272727 | I24: 750.3289523
A25: TP15 | B25: 5.8962 | C25: =IF(D25<>"",IF(OR(B25<>"",INDIRECT("D22")=0),IF(B24<>"",F24+B24,VLOOKUP(INDEX($B$7:B24,MATCH(9.99999999999999E+307,$B$7:B24)),$B$7:F24,5,FALSE)+INDEX($B$7:B24,MATCH(9.99999999999999E+307,$B$7:B24))),(VLOOKUP(INDEX($B$7:B24,MATCH(9.99999999999999E+307,$B$7:B24)),$B$7:F24,5,FALSE))+(INDEX($B$7:B24,MATCH(9.99999999999999E+307,$B$7:B24)))),"") -> 753.3414 | D25: 4.7267 | E25: =IF(D25<>"",IF(OR(B25<>"",INDIRECT("D26")=0),D26,0),"") -> 4.3556 | F25: 748.6147 | H25: =IF(D25<>"",IF(AND(B25<>"",B24<>""),$I$4+H24,VLOOKUP(INDEX($B$7:B24,MATCH(9.99999999999999E+307,$B$7:B24)),$B$7:H24,7,FALSE)+$I$4),"") -> -0.0003681818182 | I25: 748.6143318
A26: TP16 | B26: 5.1536 | C26: =IF(D26<>"",IF(OR(B26<>"",INDIRECT("D22")=0),IF(B25<>"",F25+B25,VLOOKUP(INDEX($B$7:B25,MATCH(9.99999999999999E+307,$B$7:B25)),$B$7:F25,5,FALSE)+INDEX($B$7:B25,MATCH(9.99999999999999E+307,$B$7:B25))),(VLOOKUP(INDEX($B$7:B25,MATCH(9.99999999999999E+307,$B$7:B25)),$B$7:F25,5,FALSE))+(INDEX($B$7:B25,MATCH(9.99999999999999E+307,$B$7:B25)))),"") -> 754.5109 | D26: 4.3556 | E26: =IF(D26<>"",IF(OR(B26<>"",INDIRECT("D27")=0),D26,0),"") -> 4.3556 | F26: 750.1553 | H26: =IF(D26<>"",IF(AND(B26<>"",B25<>""),$I$4+H25,VLOOKUP(INDEX($B$7:B25,MATCH(9.99999999999999E+307,$B$7:B25)),$B$7:H25,7,FALSE)+$I$4),"") -> -0.0003886363636 | I26: 750.1549114
A27: TP17 | B27: 5.085 | C27: =IF(D27<>"",IF(OR(B27<>"",INDIRECT("D22")=0),IF(B26<>"",F26+B26,VLOOKUP(INDEX($B$7:B26,MATCH(9.99999999999999E+307,$B$7:B26)),$B$7:F26,5,FALSE)+INDEX($B$7:B26,MATCH(9.99999999999999E+307,$B$7:B26))),(VLOOKUP(INDEX($B$7:B26,MATCH(9.99999999999999E+307,$B$7:B26)),$B$7:F26,5,FALSE))+(INDEX($B$7:B26,MATCH(9.99999999999999E+307,$B$7:B26)))),"") -> 755.3089 | D27: 4.1064 | E27: =IF(D27<>"",IF(OR(B27<>"",INDIRECT("D28")=0),D27,0),"") -> 4.1064 | F27: 751.2025 | H27: =IF(D27<>"",IF(AND(B27<>"",B26<>""),$I$4+H26,VLOOKUP(INDEX($B$7:B26,MATCH(9.99999999999999E+307,$B$7:B26)),$B$7:H26,7,FALSE)+$I$4),"") -> -0.0004090909091 | I27: 751.2020909
A28: TP18 | B28: 3.3982 | C28: =IF(D28<>"",IF(OR(B28<>"",INDIRECT("D22")=0),IF(B27<>"",F27+B27,VLOOKUP(INDEX($B$7:B27,MATCH(9.99999999999999E+307,$B$7:B27)),$B$7:F27,5,FALSE)+INDEX($B$7:B27,MATCH(9.99999999999999E+307,$B$7:B27))),(VLOOKUP(INDEX($B$7:B27,MATCH(9.99999999999999E+307,$B$7:B27)),$B$7:F27,5,FALSE))+(INDEX($B$7:B27,MATCH(9.99999999999999E+307,$B$7:B27)))),"") -> 756.2875 | D28: 5.719 | E28: =IF(D28<>"",IF(OR(B28<>"",INDIRECT("D22")=0),D28,0),"") -> 5.719 | F28: 750.5685 | H28: =IF(D28<>"",IF(AND(B28<>"",B27<>""),$I$4+H27,VLOOKUP(INDEX($B$7:B27,MATCH(9.99999999999999E+307,$B$7:B27)),$B$7:H27,7,FALSE)+$I$4),"") -> -0.0004295454545 | I28: 750.5680705
A29: CP14 | B29: 7.9502 | C29: =IF(D29<>"",IF(OR(B29<>"",INDIRECT("D22")=0),IF(B28<>"",F28+B28,VLOOKUP(INDEX($B$7:B28,MATCH(9.99999999999999E+307,$B$7:B28)),$B$7:F28,5,FALSE)+INDEX($B$7:B28,MATCH(9.99999999999999E+307,$B$7:B28))),(VLOOKUP(INDEX($B$7:B28,MATCH(9.99999999999999E+307,$B$7:B28)),$B$7:F28,5,FALSE))+(INDEX($B$7:B28,MATCH(9.99999999999999E+307,$B$7:B28)))),"") -> 753.9667 | D29: 6.4938 | E29: =IF(D29<>"",IF(OR(B29<>"",INDIRECT("D30")=0),D29,0),"") -> 6.4938 | F29: 747.4729 | H29: =IF(D29<>"",IF(AND(B29<>"",B28<>""),$I$4+H28,VLOOKUP(INDEX($B$7:B28,MATCH(9.99999999999999E+307,$B$7:B28)),$B$7:H28,7,FALSE)+$I$4),"") -> -0.00045 | I29: 747.47245 | J29: LJB CP14
A30: TP19 | B30: 5.3064 | C30: =IF(D30<>"",IF(OR(B30<>"",INDIRECT("D22")=0),IF(B29<>"",F29+B29,VLOOKUP(INDEX($B$7:B29,MATCH(9.99999999999999E+307,$B$7:B29)),$B$7:F29,5,FALSE)+INDEX($B$7:B29,MATCH(9.99999999999999E+307,$B$7:B29))),(VLOOKUP(INDEX($B$7:B29,MATCH(9.99999999999999E+307,$B$7:B29)),$B$7:F29,5,FALSE))+(INDEX($B$7:B29,MATCH(9.99999999999999E+307,$B$7:B29)))),"") -> 755.4231 | D30: 5.418 | E30: =IF(D30<>"",IF(OR(B30<>"",INDIRECT("D31")=0),D30,0),"") -> 5.418 | F30: 750.0051 | H30: =IF(D30<>"",IF(AND(B30<>"",B29<>""),$I$4+H29,VLOOKUP(INDEX($B$7:B29,MATCH(9.99999999999999E+307,$B$7:B29)),$B$7:H29,7,FALSE)+$I$4),"") -> -0.0004704545455 | I30: 750.0046295
A31: TP20 | B31: 5.4477 | C31: =IF(D31<>"",IF(OR(B31<>"",INDIRECT("D22")=0),IF(B30<>"",F30+B30,VLOOKUP(INDEX($B$7:B30,MATCH(9.99999999999999E+307,$B$7:B30)),$B$7:F30,5,FALSE)+INDEX($B$7:B30,MATCH(9.99999999999999E+307,$B$7:B30))),(VLOOKUP(INDEX($B$7:B30,MATCH(9.99999999999999E+307,$B$7:B30)),$B$7:F30,5,FALSE))+(INDEX($B$7:B30,MATCH(9.99999999999999E+307,$B$7:B30)))),"") -> 755.3115 | D31: 4.5436 | E31: =IF(D31<>"",IF(OR(B31<>"",INDIRECT("D32")=0),D31,0),"") -> 4.5436 | F31: 750.7679 | H31: =IF(D31<>"",IF(AND(B31<>"",B30<>""),$I$4+H30,VLOOKUP(INDEX($B$7:B30,MATCH(9.99999999999999E+307,$B$7:B30)),$B$7:H30,7,FALSE)+$I$4),"") -> -0.0004909090909 | I31: 750.7674091
A32: TP21 | B32: 5.5223 | C32: =IF(D32<>"",IF(OR(B32<>"",INDIRECT("D22")=0),IF(B31<>"",F31+B31,VLOOKUP(INDEX($B$7:B31,MATCH(9.99999999999999E+307,$B$7:B31)),$B$7:F31,5,FALSE)+INDEX($B$7:B31,MATCH(9.99999999999999E+307,$B$7:B31))),(VLOOKUP(INDEX($B$7:B31,MATCH(9.99999999999999E+307,$B$7:B31)),$B$7:F31,5,FALSE))+(INDEX($B$7:B31,MATCH(9.99999999999999E+307,$B$7:B31)))),"") -> 756.2156 | D32: 4.8808 | E32: =IF(D32<>"",IF(OR(B32<>"",INDIRECT("D33")=0),D32,0),"") -> 4.8808 | F32: 751.3348 | H32: =IF(D32<>"",IF(AND(B32<>"",B31<>""),$I$4+H31,VLOOKUP(INDEX($B$7:B31,MATCH(9.99999999999999E+307,$B$7:B31)),$B$7:H31,7,FALSE)+$I$4),"") -> -0.0005113636364 | I32: 751.3342886
